Workbook

Sheet PI vs x
A1: Measurement | B1: Hall
A2: Type | B2: Off-axis
A4: Project | B4: ='10 x=-2'!B5 -> 504314
A5: PS serial no | B5: ='10 x=-2'!B7 -> 2410100
A7: Measurement date | B7: =LEFT('10 x=-2'!B4,10) -> 23-09-2024
C11: Nominal gap [mm] | D11: Encoder [counts] | E11: Encoder [mm] | F11: PI [T^2mm^3] | G11: x [mm] | H11: Encoder value at 10 mm gap:
B12: ='PI vs x'!$C$12 & "mm gap" -> 10mm gap | C12: ='10 x=-2'!B48 -> 10 | D12: ='10 x=-2'!$B$50 -> 19.8194 | E12: =D12-$H$12+10 -> 9.99955 | F12: ='10 x=-2'!$K$3 -> 10421.38259 | G12: -2 | H12: 19.81985
C13: =C12 -> 10 | D13: ='10 x=-1'!$B$50 -> 19.8194 | E13: =D13-$H$12+10 -> 9.99955 | F13: ='10 x=-1'!$K$3 -> 10428.02036 | G13: -1
C14: =C13 -> 10 | D14: ='10 x=0'!$B$50 -> 19.8194 | E14: 9.99955 | F14: ='10 x=0'!$K$3 -> 10428.81029 | G14: 0
C15: 10 | D15: ='10 x=1'!$B$50 -> 19.8194 | E15: 9.99955 | F15: ='10 x=1'!$K$3 -> 10423.23309 | G15: 1
C16: 10 | D16: ='10 x=2'!$B$50 -> 19.8194 | E16: 9.99955 | F16: ='10 x=2'!$K$3 -> 10418.91568 | G16: 2
B17: ='PI vs x'!$C$17 & "mm gap" -> 30mm gap | C17: ='30 x=-2'!B48 -> 30 | D17: ='30 x=-2'!$B$50 -> 39.8171 | E17: 29.99725 | F17: ='30 x=-2'!$K$3 -> 2383.485684 | G17: =G12 -> -2
C18: 30 | D18: ='30 x=-1'!$B$50 -> 39.8171 | E18: 29.99725 | F18: ='30 x=-1'!$K$3 -> 2384.826737 | G18: =G13 -> -1
C19: 30 | D19: ='30 x=0'!$B$50 -> 39.8171 | E19: 29.99725 | F19: ='30 x=0'!$K$3 -> 2381.69879 | G19: 0
C20: 30 | D20: ='30 x=1'!$B$50 -> 39.8171 | E20: 29.99725 | F20: ='30 x=1'!$K$3 -> 2378.29627 | G20: 1
C21: 30 | D21: ='30 x=2'!$B$50 -> 39.8171 | E21: 29.99725 | F21: ='30 x=2'!$K$3 -> 2372.822509 | G21: 2

Sheet 10 x=-2
A1: =IF('DF raw data'!A1="","",'DF raw data'!A1) -> Number of header lines | B1: =IF('DF raw data'!B1="","",'DF raw data'!B1) -> 54 | C1: =IF('DF raw data'!C1="","",'DF raw data'!C1) ->  | D1: =IF('DF raw data'!D1="","",'DF raw data'!D1) ->  | F1: T_coeff | G1: -0.001 | H1: /degC | J1: IBy total | K1: =J1262*1000 -> -4.378028361 | L1: muTm | M1: =L1262*1000 -> 37.8481369 | R1: DF ref | S1: 1
A2: =IF('DF raw data'!A2="","",'DF raw data'!A2) -> Measured by | B2: =IF('DF raw data'!B2="","",'DF raw data'!B2) -> Danfysik | C2: =IF('DF raw data'!C2="","",'DF raw data'!C2) ->  | D2: =IF('DF raw data'!D2="","",'DF raw data'!D2) ->  | F2: Tcorr | G2: 20 | H2: degC | J2: JBy total | K2: =K1262 -> -32.23716616 | L2: muTm^2 | M2: =M1262 -> 18.92853496
A3: =IF('DF raw data'!A3="","",'DF raw data'!A3) -> Operator | B3: =IF('DF raw data'!B3="","",'DF raw data'!B3) -> PMHA | C3: =IF('DF raw data'!C3="","",'DF raw data'!C3) ->  | D3: =IF('DF raw data'!D3="","",'DF raw data'!D3) ->  | F3: Step | G3: =A63-A62 -> 0.5 | H3: mm | J3: PI total | K3: =N1262 -> 10421.38259 | L3: T^2mm^3
A4: =IF('DF raw data'!A4="","",'DF raw data'!A4) -> Data-time | B4: =IF('DF raw data'!B4="","",'DF raw data'!B4) -> 23-09-2024, 14:27:20 | C4: =IF('DF raw data'!C4="","",'DF raw data'!C4) ->  | D4: =IF('DF raw data'!D4="","",'DF raw data'!D4) -> 
A5: =IF('DF raw data'!A5="","",'DF raw data'!A5) -> Project | B5: =IF('DF raw data'!B5="","",'DF raw data'!B5) -> 504314 | C5: =IF('DF raw data'!C5="","",'DF raw data'!C5) ->  | D5: =IF('DF raw data'!D5="","",'DF raw data'!D5) -> 
A6: =IF('DF raw data'!A6="","",'DF raw data'!A6) -> Magnet type | B6: =IF('DF raw data'!B6="","",'DF raw data'!B6) -> Dipole | C6: =IF('DF raw data'!C6="","",'DF raw data'!C6) ->  | D6: =IF('DF raw data'!D6="","",'DF raw data'!D6) -> 
A7: =IF('DF raw data'!A7="","",'DF raw data'!A7) -> Magnet nr. | B7: =IF('DF raw data'!B7="","",'DF raw data'!B7) -> 2410100 | C7: =IF('DF raw data'!C7="","",'DF raw data'!C7) ->  | D7: =IF('DF raw data'!D7="","",'DF raw data'!D7) -> 
A8: =IF('DF raw data'!A8="","",'DF raw data'!A8) -> Meas. number | B8: =IF('DF raw data'!B8="","",'DF raw data'!B8) -> 642 | C8: =IF('DF raw data'!C8="","",'DF raw data'!C8) ->  | D8: =IF('DF raw data'!D8="","",'DF raw data'!D8) -> 
A9: =IF('DF raw data'!A9="","",'DF raw data'!A9) -> Add. info | B9: =IF('DF raw data'!B9="","",'DF raw data'!B9) -> X-alignment scan 1) | C9: =IF('DF raw data'!C9="","",'DF raw data'!C9) ->  | D9: =IF('DF raw data'!D9="","",'DF raw data'!D9) -> 
A10: =IF('DF raw data'!A10="","",'DF raw data'!A10) -> Device | B10: =IF('DF raw data'!B10="","",'DF raw data'!B10) -> (HAL) HALL-PROBE | C10: =IF('DF raw data'!C10="","",'DF raw data'!C10) ->  | D10: =IF('DF raw data'!D10="","",'DF raw data'!D10) -> 
A11: =IF('DF raw data'!A11="","",'DF raw data'!A11) -> Goal | B11: =IF('DF raw data'!B11="","",'DF raw data'!B11) -> (AXI) AXis Integral (Line, EFB) | C11: =IF('DF raw data'!C11="","",'DF raw data'!C11) ->  | D11: =IF('DF raw data'!D11="","",'DF raw data'!D11) -> 
A12: =IF('DF raw data'!A12="","",'DF raw data'!A12) -> Power supply mode | B12: =IF('DF raw data'!B12="","",'DF raw data'!B12) -> (PM) Permanent Magnet (no MPS in use) | C12: =IF('DF raw data'!C12="","",'DF raw data'!C12) ->  | D12: =IF('DF raw data'!D12="","",'DF raw data'!D12) -> 
A13: =IF('DF raw data'!A13="","",'DF raw data'!A13) -> Data format | B13: =IF('DF raw data'!B13="","",'DF raw data'!B13) -> Raw data text file | C13: =IF('DF raw data'!C13="","",'DF raw data'!C13) ->  | D13: =IF('DF raw data'!D13="","",'DF raw data'!D13) -> 
A14: =IF('DF raw data'!A14="","",'DF raw data'!A14) -> Direction of the pos. x-axis | B14: =IF('DF raw data'!B14="","",'DF raw data'!B14) -> See test program | C14: =IF('DF raw data'!C14="","",'DF raw data'!C14) ->  | D14: =IF('DF raw data'!D14="","",'DF raw data'!D14) -> 
A15: =IF('DF raw data'!A15="","",'DF raw data'!A15) -> Direction of the pos. y-axis | B15: =IF('DF raw data'!B15="","",'DF raw data'!B15) -> Vertical up | C15: =IF('DF raw data'!C15="","",'DF raw data'!C15) ->  | D15: =IF('DF raw data'!D15="","",'DF raw data'!D15) -> 
A16: =IF('DF raw data'!A16="","",'DF raw data'!A16) -> Direction of the pos. z-axis | B16: =IF('DF raw data'!B16="","",'DF raw data'!B16) -> See test program | C16: =IF('DF raw data'!C16="","",'DF raw data'!C16) ->  | D16: =IF('DF raw data'!D16="","",'DF raw data'!D16) -> 
A17: =IF('DF raw data'!A17="","",'DF raw data'!A17) -> Mapper type | B17: =IF('DF raw data'!B17="","",'DF raw data'!B17) -> Precision Hall Mapper | C17: =IF('DF raw data'!C17="","",'DF raw data'!C17) ->  | D17: =IF('DF raw data'!D17="","",'DF raw data'!D17) -> 
A18: =IF('DF raw data'!A18="","",'DF raw data'!A18) -> Mapper Danfysik Reg. Number | B18: =IF('DF raw data'!B18="","",'DF raw data'!B18) -> 2033-D (mapper 1) | C18: =IF('DF raw data'!C18="","",'DF raw data'!C18) ->  | D18: =IF('DF raw data'!D18="","",'DF raw data'!D18) -> 
A19: =IF('DF raw data'!A19="","",'DF raw data'!A19) -> Measurement consept | B19: =IF('DF raw data'!B19="","",'DF raw data'!B19) -> Square line grid | C19: =IF('DF raw data'!C19="","",'DF raw data'!C19) ->  | D19: =IF('DF raw data'!D19="","",'DF raw data'!D19) -> 
A20: =IF('DF raw data'!A20="","",'DF raw data'!A20) -> Mode | B20: =IF('DF raw data'!B20="","",'DF raw data'!B20) -> On-the-fly measurement | C20: =IF('DF raw data'!C20="","",'DF raw data'!C20) ->  | D20: =IF('DF raw data'!D20="","",'DF raw data'!D20) -> 
A21: =IF('DF raw data'!A21="","",'DF raw data'!A21) ->  | B21: =IF('DF raw data'!B21="","",'DF raw data'!B21) ->  | C21: =IF('DF raw data'!C21="","",'DF raw data'!C21) ->  | D21: =IF('DF raw data'!D21="","",'DF raw data'!D21) -> 
A22: =IF('DF raw data'!A22="","",'DF raw data'!A22) -> Probe Name | B22: =IF('DF raw data'!B22="","",'DF raw data'!B22) -> ID12_By | C22: =IF('DF raw data'!C22="","",'DF raw data'!C22) ->  | D22: =IF('DF raw data'!D22="","",'DF raw data'!D22) -> 
A23: =IF('DF raw data'!A23="","",'DF raw data'!A23) -> Probe Type | B23: =IF('DF raw data'!B23="","",'DF raw data'!B23) -> DF_ID_3D_Bxyz | C23: =IF('DF raw data'!C23="","",'DF raw data'!C23) ->  | D23: =IF('DF raw data'!D23="","",'DF raw data'!D23) -> 
A24: =IF('DF raw data'!A24="","",'DF raw data'!A24) -> Probe Danfysik Reg. Number | B24: =IF('DF raw data'!B24="","",'DF raw data'!B24) -> 2277 | C24: =IF('DF raw data'!C24="","",'DF raw data'!C24) ->  | D24: =IF('DF raw data'!D24="","",'DF raw data'!D24) -> 
A25: =IF('DF raw data'!A25="","",'DF raw data'!A25) -> Probe Axis | B25: =IF('DF raw data'!B25="","",'DF raw data'!B25) -> By | C25: =IF('DF raw data'!C25="","",'DF raw data'!C25) ->  | D25: =IF('DF raw data'!D25="","",'DF raw data'!D25) -> 
A26: =IF('DF raw data'!A26="","",'DF raw data'!A26) -> Probe Current Supply | B26: =IF('DF raw data'!B26="","",'DF raw data'!B26) -> 1825-D | C26: =IF('DF raw data'!C26="","",'DF raw data'!C26) ->  | D26: =IF('DF raw data'!D26="","",'DF raw data'!D26) -> 
A27: =IF('DF raw data'!A27="","",'DF raw data'!A27) -> Probe Gain Correction | B27: =IF('DF raw data'!B27="","",'DF raw data'!B27) -> 0.99619 | C27: =IF('DF raw data'!C27="","",'DF raw data'!C27) ->  | D27: =IF('DF raw data'!D27="","",'DF raw data'!D27) -> 
A28: =IF('DF raw data'!A28="","",'DF raw data'!A28) -> Probe Offset Correction | B28: =IF('DF raw data'!B28="","",'DF raw data'!B28) -> 0.0027544 | C28: =IF('DF raw data'!C28="","",'DF raw data'!C28) ->  | D28: =IF('DF raw data'!D28="","",'DF raw data'!D28) -> 
A29: =IF('DF raw data'!A29="","",'DF raw data'!A29) -> DVM Number | B29: =IF('DF raw data'!B29="","",'DF raw data'!B29) -> 2 | C29: =IF('DF raw data'!C29="","",'DF raw data'!C29) ->  | D29: =IF('DF raw data'!D29="","",'DF raw data'!D29) -> 
A30: =IF('DF raw data'!A30="","",'DF raw data'!A30) -> DVM Type | B30: =IF('DF raw data'!B30="","",'DF raw data'!B30) -> K2701 | C30: =IF('DF raw data'!C30="","",'DF raw data'!C30) ->  | D30: =IF('DF raw data'!D30="","",'DF raw data'!D30) -> 
A31: =IF('DF raw data'!A31="","",'DF raw data'!A31) -> DVM Danfysik Reg. Number | B31: =IF('DF raw data'!B31="","",'DF raw data'!B31) -> 1743-D | C31: =IF('DF raw data'!C31="","",'DF raw data'!C31) ->  | D31: =IF('DF raw data'!D31="","",'DF raw data'!D31) -> 
A32: =IF('DF raw data'!A32="","",'DF raw data'!A32) -> Probe Name | B32: =IF('DF raw data'!B32="","",'DF raw data'!B32) -> ID12_Bx | C32: =IF('DF raw data'!C32="","",'DF raw data'!C32) ->  | D32: =IF('DF raw data'!D32="","",'DF raw data'!D32) -> 
A33: =IF('DF raw data'!A33="","",'DF raw data'!A33) -> Probe Type | B33: =IF('DF raw data'!B33="","",'DF raw data'!B33) -> DF_ID_3D_Bxyz | C33: =IF('DF raw data'!C33="","",'DF raw data'!C33) ->  | D33: =IF('DF raw data'!D33="","",'DF raw data'!D33) -> 
A34: =IF('DF raw data'!A34="","",'DF raw data'!A34) -> Probe Danfysik Reg. Number | B34: =IF('DF raw data'!B34="","",'DF raw data'!B34) -> 2277 | C34: =IF('DF raw data'!C34="","",'DF raw data'!C34) ->  | D34: =IF('DF raw data'!D34="","",'DF raw data'!D34) -> 
A35: =IF('DF raw data'!A35="","",'DF raw data'!A35) -> Probe Axis | B35: =IF('DF raw data'!B35="","",'DF raw data'!B35) -> Bx | C35: =IF('DF raw data'!C35="","",'DF raw data'!C35) ->  | D35: =IF('DF raw data'!D35="","",'DF raw data'!D35) -> 
A36: =IF('DF raw data'!A36="","",'DF raw data'!A36) -> Probe Current Supply | B36: =IF('DF raw data'!B36="","",'DF raw data'!B36) -> 1825-D | C36: =IF('DF raw data'!C36="","",'DF raw data'!C36) ->  | D36: =IF('DF raw data'!D36="","",'DF raw data'!D36) -> 
A37: =IF('DF raw data'!A37="","",'DF raw data'!A37) -> Probe Gain Correction | B37: =IF('DF raw data'!B37="","",'DF raw data'!B37) -> 1 | C37: =IF('DF raw data'!C37="","",'DF raw data'!C37) ->  | D37: =IF('DF raw data'!D37="","",'DF raw data'!D37) -> 
A38: =IF('DF raw data'!A38="","",'DF raw data'!A38) -> Probe Offset Correction | B38: =IF('DF raw data'!B38="","",'DF raw data'!B38) -> -0.1756 | C38: =IF('DF raw data'!C38="","",'DF raw data'!C38) ->  | D38: =IF('DF raw data'!D38="","",'DF raw data'!D38) -> 
A39: =IF('DF raw data'!A39="","",'DF raw data'!A39) -> DVM Number | B39: =IF('DF raw data'!B39="","",'DF raw data'!B39) -> 3 | C39: =IF('DF raw data'!C39="","",'DF raw data'!C39) ->  | D39: =IF('DF raw data'!D39="","",'DF raw data'!D39) -> 
A40: =IF('DF raw data'!A40="","",'DF raw data'!A40) -> DVM Type | B40: =IF('DF raw data'!B40="","",'DF raw data'!B40) -> K2701 | C40: =IF('DF raw data'!C40="","",'DF raw data'!C40) ->  | D40: =IF('DF raw data'!D40="","",'DF raw data'!D40) -> 
A41: =IF('DF raw data'!A41="","",'DF raw data'!A41) -> DVM Danfysik Reg. Number | B41: =IF('DF raw data'!B41="","",'DF raw data'!B41) -> 1744-D | C41: =IF('DF raw data'!C41="","",'DF raw data'!C41) ->  | D41: =IF('DF raw data'!D41="","",'DF raw data'!D41) -> 
A42: =IF('DF raw data'!A42="","",'DF raw data'!A42) -> Probe Name | B42: =IF('DF raw data'!B42="","",'DF raw data'!B42) -> ID12_Bz | C42: =IF('DF raw data'!C42="","",'DF raw data'!C42) ->  | D42: =IF('DF raw data'!D42="","",'DF raw data'!D42) -> 
A43: =IF('DF raw data'!A43="","",'DF raw data'!A43) -> Probe Type | B43: =IF('DF raw data'!B43="","",'DF raw data'!B43) -> DF_ID_3D_Bxyz | C43: =IF('DF raw data'!C43="","",'DF raw data'!C43) ->  | D43: =IF('DF raw data'!D43="","",'DF raw data'!D43) -> 
A44: =IF('DF raw data'!A44="","",'DF raw data'!A44) -> Probe Danfysik Reg. Number | B44: =IF('DF raw data'!B44="","",'DF raw data'!B44) -> 2277 | C44: =IF('DF raw data'!C44="","",'DF raw data'!C44) ->  | D44: =IF('DF raw data'!D44="","",'DF raw data'!D44) -> 
A45: =IF('DF raw data'!A45="","",'DF raw data'!A45) -> Probe Axis | B45: =IF('DF raw data'!B45="","",'DF raw data'!B45) -> Bz | C45: =IF('DF raw data'!C45="","",'DF raw data'!C45) ->  | D45: =IF('DF raw data'!D45="","",'DF raw data'!D45) -> 
A46: =IF('DF raw data'!A46="","",'DF raw data'!A46) -> Probe Current Supply | B46: =IF('DF raw data'!B46="","",'DF raw data'!B46) -> 1825-D | C46: =IF('DF raw data'!C46="","",'DF raw data'!C46) ->  | D46: =IF('DF raw data'!D46="","",'DF raw data'!D46) -> 
A47: =IF('DF raw data'!A47="","",'DF raw data'!A47) -> Probe Gain Correction | B47: =IF('DF raw data'!B47="","",'DF raw data'!B47) -> 1 | C47: =IF('DF raw data'!C47="","",'DF raw data'!C47) ->  | D47: =IF('DF raw data'!D47="","",'DF raw data'!D47) -> 
A48: =IF('DF raw data'!A53="","",'DF raw data'!A53) -> PS-Gap: | B48: =IF('DF raw data'!B53="","",'DF raw data'!B53) -> 10 | C48: =IF('DF raw data'!C53="","",'DF raw data'!C53) ->  | D48: =IF('DF raw data'!D53="","",'DF raw data'!D53) -> 
A49: =IF('DF raw data'!A54="","",'DF raw data'!A54) -> PS-Temperature: | B49: =IF('DF raw data'!B54="","",'DF raw data'!B54) -> 24.6 | C49: =IF('DF raw data'!C54="","",'DF raw data'!C54) ->  | D49: =IF('DF raw data'!D54="","",'DF raw data'!D54) -> 
A50: =IF('DF raw data'!A55="","",'DF raw data'!A55) -> PS-Encoder: | B50: =IF('DF raw data'!B55="","",'DF raw data'!B55) -> 19.8194 | C50: =IF('DF raw data'!C55="","",'DF raw data'!C55) ->  | D50: =IF('DF raw data'!D55="","",'DF raw data'!D55) -> 
A51: =IF('DF raw data'!A56="","",'DF raw data'!A56) ->  | B51: =IF('DF raw data'!B56="","",'DF raw data'!B56) ->  | C51: =IF('DF raw data'!C56="","",'DF raw data'!C56) ->  | D51: =IF('DF raw data'!D56="","",'DF raw data'!D56) -> 
A52: =IF('DF raw data'!A57="","",'DF raw data'!A57) -> Monitor-Index | B52: =IF('DF raw data'!B57="","",'DF raw data'!B57) -> [1,1,4] | C52: =IF('DF raw data'!C57="","",'DF raw data'!C57) ->  | D52: =IF('DF raw data'!D57="","",'DF raw data'!D57) -> 
A53: =IF('DF raw data'!A58="","",'DF raw data'!A58) ->  | B53: =IF('DF raw data'!B58="","",'DF raw data'!B58) ->  | C53: =IF('DF raw data'!C58="","",'DF raw data'!C58) ->  | D53: =IF('DF raw data'!D58="","",'DF raw data'!D58) -> 
A54: =IF('DF raw data'!A59="","",'DF raw data'!A59) -> Time [s] | B54: =IF('DF raw data'!B59="","",'DF raw data'!B59) -> Y [mm] | C54: =IF('DF raw data'!C59="","",'DF raw data'!C59) -> X [mm] | D54: =IF('DF raw data'!D59="","",'DF raw data'!D59) -> Nominal current [A]
A55: =IF('DF raw data'!A60="","",'DF raw data'!A60) ->  | B55: =IF('DF raw data'!B60="","",'DF raw data'!B60) ->  | C55: =IF('DF raw data'!C60="","",'DF raw data'!C60) ->  | D55: =IF('DF raw data'!D60="","",'DF raw data'!D60) -> 
A56: =IF('DF raw data'!A61="","",'DF raw data'!A61) -> 209.1 | B56: =IF('DF raw data'!B61="","",'DF raw data'!B61) -> 31.55 | C56: =IF('DF raw data'!C61="","",'DF raw data'!C61) -> 300.55 | D56: =IF('DF raw data'!D61="","",'DF raw data'!D61) -> 0
A57: =IF('DF raw data'!A62="","",'DF raw data'!A62) ->  | B57: =IF('DF raw data'!B62="","",'DF raw data'!B62) ->  | C57: =IF('DF raw data'!C62="","",'DF raw data'!C62) ->  | D57: =IF('DF raw data'!D62="","",'DF raw data'!D62) -> 
A58: =IF('DF raw data'!A63="","",'DF raw data'!A63) -> Measurement-Index | B58: =IF('DF raw data'!B63="","",'DF raw data'!B63) -> [1,1,1201,2] | C58: =IF('DF raw data'!C63="","",'DF raw data'!C63) ->  | D58: =IF('DF raw data'!D63="","",'DF raw data'!D63) -> 
A59: =IF('DF raw data'!A64="","",'DF raw data'!A64) ->  | B59: =IF('DF raw data'!B64="","",'DF raw data'!B64) ->  | C59: =IF('DF raw data'!C64="","",'DF raw data'!C64) ->  | D59: =IF('DF raw data'!D64="","",'DF raw data'!D64) -> 
A60: =IF('DF raw data'!A65="","",'DF raw data'!A65) -> Z [mm] | B60: =IF('DF raw data'!B65="","",'DF raw data'!B65) -> By [T] | C60: =IF('DF raw data'!C65="","",'DF raw data'!C65) -> Bx [T] | D60: =IF('DF raw data'!D65="","",'DF raw data'!D65) -> Bz [T] | F60: By_corr | G60: Bx_corr | H60: Bz_corr | J60: Iy | K60: Jy | L60: Ix | M60: Jx | N60: PI
A62: =IF('DF raw data'!A67="","",'DF raw data'!A67) -> -300 | B62: =IF('DF raw data'!B67="","",'DF raw data'!B67) -> -1.06841e-05 | C62: =IF('DF raw data'!C67="","",'DF raw data'!C67) -> 0.000157904 | D62: =IF('DF raw data'!D67="","",'DF raw data'!D67) -> -1.94058e-05 | F62: =(1-$G$1*($B$49))*B62 -> -1.094692886e-05 | G62: =(1-$G$1*($B$49-$G$2))*C62 -> 0.0001586303584 | H62: =(1-$G$1*($B$49-$G$2))*D62 -> -1.949506668e-05 | J62: =F62*$G$3 -> -5.47346443e-06 | K62: =J62*$G$3 -> -2.736732215e-06 | L62: =G62*$G$3 -> 7.93151792e-05 | M62: =L62*$G$3 -> 3.96575896e-05 | N62: =(J62^2+L62^2)*$G$3 -> 3.160428232e-09
A63: =IF('DF raw data'!A68="","",'DF raw data'!A68) -> -299.5 | B63: =IF('DF raw data'!B68="","",'DF raw data'!B68) -> -2.27329e-05 | C63: =IF('DF raw data'!C68="","",'DF raw data'!C68) -> 0.000169968 | D63: =IF('DF raw data'!D68="","",'DF raw data'!D68) -> -1.87583e-05 | F63: =(1-$G$1*($B$49-$G$2))*B63 -> -2.283747134e-05 | G63: =(1-$G$1*($B$49-$G$2))*C63 -> 0.0001707498528 | H63: -1.884458818e-05 | J63: =F63*$G$3+J62 -> -1.68922001e-05 | K63: =J63*$G$3+K62 -> -1.118283226e-05 | L63: =G63*$G$3+L62 -> 0.0001646901056 | M63: =L63*$G$3+M62 -> 0.0001220026424 | N63: =(J63^2+L63^2)*$G$3+N62 -> 1.686451689e-08
A64: =IF('DF raw data'!A69="","",'DF raw data'!A69) -> -299 | B64: =IF('DF raw data'!B69="","",'DF raw data'!B69) -> -2.43998e-05 | C64: =IF('DF raw data'!C69="","",'DF raw data'!C69) -> 0.000157658 | D64: =IF('DF raw data'!D69="","",'DF raw data'!D69) -> -1.76977e-05 | F64: =(1-$G$1*($B$49-$G$2))*B64 -> -2.451203908e-05 | G64: 0.0001583832268 | H64: -1.777910942e-05 | J64: =F64*$G$3+J63 -> -2.914821964e-05 | K64: =J64*$G$3+K63 -> -2.575694208e-05 | L64: =G64*$G$3+L63 -> 0.000243881719 | M64: =L64*$G$3+M63 -> 0.0002439435019 | N64: =(J64^2+L64^2)*$G$3+N63 -> 4.702847267e-08
A65: =IF('DF raw data'!A70="","",'DF raw data'!A70) -> -298.5 | B65: =IF('DF raw data'!B70="","",'DF raw data'!B70) -> -2.23494e-05 | C65: =IF('DF raw data'!C70="","",'DF raw data'!C70) -> 0.000155079 | D65: =IF('DF raw data'!D70="","",'DF raw data'!D70) -> -1.72283e-05 | F65: -2.245220724e-05 | G65: 0.0001557923634 | H65: -1.730755018e-05 | J65: -4.037432326e-05 | K65: -4.594410372e-05 | L65: 0.0003217779007 | M65: 0.0004048324522 | N65: 9.961402435e-08
A66: =IF('DF raw data'!A71="","",'DF raw data'!A71) -> -298 | B66: =IF('DF raw data'!B71="","",'DF raw data'!B71) -> -2.64511e-05 | C66: =IF('DF raw data'!C71="","",'DF raw data'!C71) -> 0.000161034 | D66: =IF('DF raw data'!D71="","",'DF raw data'!D71) -> -1.71923e-05 | F66: -2.657277506e-05 | G66: 0.0001617747564 | H66: -1.727138458e-05 | J66: -5.366071079e-05 | K66: -7.277445911e-05 | L66: 0.0004026652789 | M66: 0.0006061650917 | N66: 1.821234237e-07
A67: =IF('DF raw data'!A72="","",'DF raw data'!A72) -> -297.5 | B67: =IF('DF raw data'!B72="","",'DF raw data'!B72) -> -2.54898e-05 | C67: =IF('DF raw data'!C72="","",'DF raw data'!C72) -> 0.000165776 | D67: =IF('DF raw data'!D72="","",'DF raw data'!D72) -> -1.71624e-05 | F67: -2.560705308e-05 | G67: 0.0001665385696 | H67: -1.724134704e-05 | J67: -6.646423733e-05 | K67: -0.0001060065778 | L67: 0.0004859345637 | M67: 0.0008491323735 | N67: 3.023983712e-07
A68: =IF('DF raw data'!A73="","",'DF raw data'!A73) -> -297 | B68: =IF('DF raw data'!B73="","",'DF raw data'!B73) -> -3.01041e-05 | C68: =IF('DF raw data'!C73="","",'DF raw data'!C73) -> 0.000163654 | D68: =IF('DF raw data'!D73="","",'DF raw data'!D73) -> -1.72847e-05 | F68: -3.024257886e-05 | G68: 0.0001644068084 | H68: -1.736420962e-05 | J68: -8.158552676e-05 | K68: -0.0001467993412 | L68: 0.0005681379679 | M68: 0.001133201358 | N68: 4.671168456e-07
A69: =IF('DF raw data'!A74="","",'DF raw data'!A74) -> -296.5 | B69: =IF('DF raw data'!B74="","",'DF raw data'!B74) -> -2.26056e-05 | C69: =IF('DF raw data'!C74="","",'DF raw data'!C74) -> 0.00015631 | D69: =IF('DF raw data'!D74="","",'DF raw data'!D74) -> -1.74796e-05 | F69: -2.270958576e-05 | G69: 0.000157029026 | H69: -1.756000616e-05 | J69: -9.294031964e-05 | K69: -0.000193269501 | L69: 0.0006466524809 | M69: 0.001456527598 | N69: 6.805155126e-07
A70: =IF('DF raw data'!A75="","",'DF raw data'!A75) -> -296 | B70: =IF('DF raw data'!B75="","",'DF raw data'!B75) -> -4.02304e-05 | C70: =IF('DF raw data'!C75="","",'DF raw data'!C75) -> 0.000149246 | D70: =IF('DF raw data'!D75="","",'DF raw data'!D75) -> -1.68295e-05 | F70: -4.041545984e-05 | G70: 0.0001499325316 | H70: -1.69069157e-05 | J70: -0.0001131480496 | K70: -0.0002498435258 | L70: 0.0007216187467 | M70: 0.001817336971 | N70: 9.47283561e-07
A71: =IF('DF raw data'!A76="","",'DF raw data'!A76) -> -295.5 | B71: =IF('DF raw data'!B76="","",'DF raw data'!B76) -> -3.03614e-05 | C71: =IF('DF raw data'!C76="","",'DF raw data'!C76) -> 0.000154089 | D71: =IF('DF raw data'!D76="","",'DF raw data'!D76) -> -1.58648e-05 | F71: -3.050106244e-05 | G71: 0.0001547978094 | H71: -1.593777808e-05 | J71: -0.0001283985808 | K71: -0.0003140428161 | L71: 0.0007990176514 | M71: 0.002216845797 | N71: 1.274741262e-06
A72: =IF('DF raw data'!A77="","",'DF raw data'!A77) -> -295 | B72: =IF('DF raw data'!B77="","",'DF raw data'!B77) -> -2.20941e-05 | C72: =IF('DF raw data'!C77="","",'DF raw data'!C77) -> 0.000157115 | D72: =IF('DF raw data'!D77="","",'DF raw data'!D77) -> -1.56378e-05 | F72: -2.219573286e-05 | G72: 0.000157837729 | H72: -1.570973388e-05 | J72: -0.0001394964472 | K72: -0.0003837910397 | L72: 0.0008779365159 | M72: 0.002655814055 | N72: 1.669857155e-06
A73: =IF('DF raw data'!A78="","",'DF raw data'!A78) -> -294.5 | B73: =IF('DF raw data'!B78="","",'DF raw data'!B78) -> -2.53624e-05 | C73: =IF('DF raw data'!C78="","",'DF raw data'!C78) -> 0.000153649 | D73: =IF('DF raw data'!D78="","",'DF raw data'!D78) -> -1.59803e-05 | F73: -2.547906704e-05 | G73: 0.0001543557854 | H73: -1.605380938e-05 | J73: -0.0001522359807 | K73: -0.0004599090301 | L73: 0.0009551144086 | M73: 0.003133371259 | N73: 2.137566818e-06
A74: =IF('DF raw data'!A79="","",'DF raw data'!A79) -> -294 | B74: =IF('DF raw data'!B79="","",'DF raw data'!B79) -> -1.74153e-05 | C74: =IF('DF raw data'!C79="","",'DF raw data'!C79) -> 0.00016113 | D74: =IF('DF raw data'!D79="","",'DF raw data'!D79) -> -1.63842e-05 | F74: -1.749541038e-05 | G74: 0.000161871198 | H74: -1.645956732e-05 | J74: -0.0001609836859 | K74: -0.0005404008731 | L74: 0.001036050008 | M74: 0.003651396263 | N74: 2.687224501e-06
A75: =IF('DF raw data'!A80="","",'DF raw data'!A80) -> -293.5 | B75: =IF('DF raw data'!B80="","",'DF raw data'!B80) -> -2.13884e-05 | C75: =IF('DF raw data'!C80="","",'DF raw data'!C80) -> 0.000166501 | D75: =IF('DF raw data'!D80="","",'DF raw data'!D80) -> -1.66774e-05 | F75: -2.148678664e-05 | G75: 0.0001672669046 | H75: -1.675411604e-05 | J75: -0.0001717270792 | K75: -0.0006262644127 | L75: 0.00111968346 | M75: 0.004211237993 | N75: 3.328815121e-06
A76: =IF('DF raw data'!A81="","",'DF raw data'!A81) -> -293 | B76: =IF('DF raw data'!B81="","",'DF raw data'!B81) -> -1.70946e-05 | C76: =IF('DF raw data'!C81="","",'DF raw data'!C81) -> 0.000155506 | D76: =IF('DF raw data'!D81="","",'DF raw data'!D81) -> -1.65251e-05 | F76: -1.717323516e-05 | G76: 0.0001562213276 | H76: -1.660111546e-05 | J76: -0.0001803136968 | K76: -0.0007164212611 | L76: 0.001197794124 | M76: 0.004810135055 | N76: 4.062427017e-06
A77: =IF('DF raw data'!A82="","",'DF raw data'!A82) -> -292.5 | B77: =IF('DF raw data'!B82="","",'DF raw data'!B82) -> -2.54906e-05 | C77: =IF('DF raw data'!C82="","",'DF raw data'!C82) -> 0.000158189 | D77: =IF('DF raw data'!D82="","",'DF raw data'!D82) -> -1.58903e-05 | F77: -2.560785676e-05 | G77: 0.0001589166694 | H77: -1.596339538e-05 | J77: -0.0001931176252 | K77: -0.0008129800737 | L77: 0.001277252458 | M77: 0.005448761284 | N77: 4.896761147e-06
A78: =IF('DF raw data'!A83="","",'DF raw data'!A83) -> -292 | B78: =IF('DF raw data'!B83="","",'DF raw data'!B83) -> -8.8275e-06 | C78: =IF('DF raw data'!C83="","",'DF raw data'!C83) -> 0.000164297 | D78: =IF('DF raw data'!D83="","",'DF raw data'!D83) -> -1.61067e-05 | F78: -8.8681065e-06 | G78: 0.0001650527662 | H78: -1.618079082e-05 | J78: -0.0001975516785 | K78: -0.0009117559129 | L78: 0.001359778841 | M78: 0.006128650705 | N78: 5.840773729e-06
A79: =IF('DF raw data'!A84="","",'DF raw data'!A84) -> -291.5 | B79: =IF('DF raw data'!B84="","",'DF raw data'!B84) -> -8.37171e-06 | C79: =IF('DF raw data'!C84="","",'DF raw data'!C84) -> 0.000160636 | D79: =IF('DF raw data'!D84="","",'DF raw data'!D84) -> -2.74099e-05 | F79: -8.410219866e-06 | G79: 0.0001613749256 | H79: -2.753598554e-05 | J79: -0.0002017567884 | K79: -0.001012634307 | L79: 0.001440466304 | M79: 0.006848883857 | N79: 6.898598216e-06
A80: =IF('DF raw data'!A85="","",'DF raw data'!A85) -> -291 | B80: =IF('DF raw data'!B85="","",'DF raw data'!B85) -> -1.94635e-05 | C80: =IF('DF raw data'!C85="","",'DF raw data'!C85) -> 0.000157792 | D80: =IF('DF raw data'!D85="","",'DF raw data'!D85) -> -2.02667e-05 | F80: -1.95530321e-05 | G80: 0.0001585178432 | H80: -2.035992682e-05 | J80: -0.0002115333044 | K80: -0.001118400959 | L80: 0.001519725226 | M80: 0.00760874647 | N80: 8.075753767e-06
A81: =IF('DF raw data'!A86="","",'DF raw data'!A86) -> -290.5 | B81: =IF('DF raw data'!B86="","",'DF raw data'!B86) -> -2.24681e-05 | C81: =IF('DF raw data'!C86="","",'DF raw data'!C86) -> 0.000153865 | D81: =IF('DF raw data'!D86="","",'DF raw data'!D86) -> -3.18975e-05 | F81: -2.257145326e-05 | G81: 0.000154572779 | H81: -3.20442285e-05 | J81: -0.0002228190311 | K81: -0.001229810475 | L81: 0.001597011615 | M81: 0.008407252278 | N81: 9.375800977e-06
A82: =IF('DF raw data'!A87="","",'DF raw data'!A87) -> -290 | B82: =IF('DF raw data'!B87="","",'DF raw data'!B87) -> -1.40747e-05 | C82: =IF('DF raw data'!C87="","",'DF raw data'!C87) -> 0.000157127 | D82: =IF('DF raw data'!D87="","",'DF raw data'!D87) -> -2.85873e-05 | F82: -1.413944362e-05 | G82: 0.0001578497842 | H82: -2.871880158e-05 | J82: -0.0002298887529 | K82: -0.001344754851 | L82: 0.001675936507 | M82: 0.009245220531 | N82: 1.080660699e-05
A83: =IF('DF raw data'!A88="","",'DF raw data'!A88) -> -289.5 | B83: =IF('DF raw data'!B88="","",'DF raw data'!B88) -> -2.67526e-05 | C83: =IF('DF raw data'!C88="","",'DF raw data'!C88) -> 0.000153999 | D83: =IF('DF raw data'!D88="","",'DF raw data'!D88) -> -4.63412e-05 | F83: -2.687566196e-05 | G83: 0.0001547073954 | H83: -4.655436952e-05 | J83: -0.0002433265839 | K83: -0.001466418143 | L83: 0.001753290205 | M83: 0.01012186563 | N83: 1.237322417e-05
A84: =IF('DF raw data'!A89="","",'DF raw data'!A89) -> -289 | B84: =IF('DF raw data'!B89="","",'DF raw data'!B89) -> -3.19424e-05 | C84: =IF('DF raw data'!C89="","",'DF raw data'!C89) -> 0.000152438 | D84: =IF('DF raw data'!D89="","",'DF raw data'!D89) -> -4.8737e-05 | F84: -3.208933504e-05 | G84: 0.0001531392148 | H84: -4.89611902e-05 | J84: -0.0002593712514 | K84: -0.001596103769 | L84: 0.001829859813 | M84: 0.01103679554 | N84: 1.408105436e-05
A85: =IF('DF raw data'!A90="","",'DF raw data'!A90) -> -288.5 | B85: =IF('DF raw data'!B90="","",'DF raw data'!B90) -> -2.59902e-05 | C85: =IF('DF raw data'!C90="","",'DF raw data'!C90) -> 0.000147463 | D85: =IF('DF raw data'!D90="","",'DF raw data'!D90) -> -3.6079e-05 | F85: -2.610975492e-05 | G85: 0.0001481413298 | H85: -3.62449634e-05 | J85: -0.0002724261288 | K85: -0.001732316833 | L85: 0.001903930477 | M85: 0.01198876078 | N85: 1.593063799e-05
A86: =IF('DF raw data'!A91="","",'DF raw data'!A91) -> -288 | B86: =IF('DF raw data'!B91="","",'DF raw data'!B91) -> -2.08709e-05 | C86: =IF('DF raw data'!C91="","",'DF raw data'!C91) -> 0.000151755 | D86: =IF('DF raw data'!D91="","",'DF raw data'!D91) -> -2.41368e-05 | F86: -2.096690614e-05 | G86: 0.000152453073 | H86: -2.424782928e-05 | J86: -0.0002829095819 | K86: -0.001873771624 | L86: 0.001980157014 | M86: 0.01297883929 | N86: 1.793116781e-05
A87: =IF('DF raw data'!A92="","",'DF raw data'!A92) -> -287.5 | B87: =IF('DF raw data'!B92="","",'DF raw data'!B92) -> -1.86923e-05 | C87: =IF('DF raw data'!C92="","",'DF raw data'!C92) -> 0.000160139 | D87: =IF('DF raw data'!D92="","",'DF raw data'!D92) -> -2.35339e-05 | F87: -1.877828458e-05 | G87: 0.0001608756394 | H87: -2.364215594e-05 | J87: -0.0002922987242 | K87: -0.002019920986 | L87: 0.002060594834 | M87: 0.0140091367 | N87: 2.009691261e-05
A88: =IF('DF raw data'!A93="","",'DF raw data'!A93) -> -287 | B88: =IF('DF raw data'!B93="","",'DF raw data'!B93) -> -8.75465e-06 | C88: =IF('DF raw data'!C93="","",'DF raw data'!C93) -> 0.000163205 | D88: =IF('DF raw data'!D93="","",'DF raw data'!D93) -> -2.98806e-05 | F88: -8.79492139e-06 | G88: 0.000163955743 | H88: -3.001805076e-05 | J88: -0.0002966961849 | K88: -0.002168269079 | L88: 0.002142572705 | M88: 0.01508042306 | N88: 2.243623582e-05
A89: =IF('DF raw data'!A94="","",'DF raw data'!A94) -> -286.5 | B89: =IF('DF raw data'!B94="","",'DF raw data'!B94) -> -2.79823e-05 | C89: =IF('DF raw data'!C94="","",'DF raw data'!C94) -> 0.00015327 | D89: =IF('DF raw data'!D94="","",'DF raw data'!D94) -> -2.7703e-05 | F89: -2.811101858e-05 | G89: 0.000153975042 | H89: -2.78304338e-05 | J89: -0.0003107516942 | K89: -0.002323644926 | L89: 0.002219560226 | M89: 0.01619020317 | N89: 2.494774293e-05
A90: =IF('DF raw data'!A95="","",'DF raw data'!A95) -> -286 | B90: =IF('DF raw data'!B95="","",'DF raw data'!B95) -> -2.74019e-05 | C90: =IF('DF raw data'!C95="","",'DF raw data'!C95) -> 0.000147847 | D90: =IF('DF raw data'!D95="","",'DF raw data'!D95) -> -3.34606e-05 | F90: -2.752794874e-05 | G90: 0.0001485270962 | H90: -3.361451876e-05 | J90: -0.0003245156685 | K90: -0.00248590276 | L90: 0.002293823774 | M90: 0.01733711506 | N90: 2.763121189e-05
A91: =IF('DF raw data'!A96="","",'DF raw data'!A96) -> -285.5 | B91: =IF('DF raw data'!B96="","",'DF raw data'!B96) -> -1.69497e-05 | C91: =IF('DF raw data'!C96="","",'DF raw data'!C96) -> 0.000154615 | D91: =IF('DF raw data'!D96="","",'DF raw data'!D96) -> -4.23771e-05 | F91: -1.702766862e-05 | G91: 0.000155326229 | H91: -4.257203466e-05 | J91: -0.0003330295029 | K91: -0.002652417512 | L91: 0.002371486889 | M91: 0.0185228585 | N91: 3.049864125e-05
A92: =IF('DF raw data'!A97="","",'DF raw data'!A97) -> -285 | B92: =IF('DF raw data'!B97="","",'DF raw data'!B97) -> -1.97732e-05 | C92: =IF('DF raw data'!C97="","",'DF raw data'!C97) -> 0.000149152 | D92: =IF('DF raw data'!D97="","",'DF raw data'!D97) -> -3.71672e-05 | F92: -1.986415672e-05 | G92: 0.0001498380992 | H92: -3.733816912e-05 | J92: -0.0003429615812 | K92: -0.002823898302 | L92: 0.002446405938 | M92: 0.01974606147 | N92: 3.354990358e-05
A93: =IF('DF raw data'!A98="","",'DF raw data'!A98) -> -284.5 | B93: =IF('DF raw data'!B98="","",'DF raw data'!B98) -> -2.0162e-05 | C93: =IF('DF raw data'!C98="","",'DF raw data'!C98) -> 0.000160008 | D93: =IF('DF raw data'!D98="","",'DF raw data'!D98) -> -3.03168e-05 | F93: -2.02547452e-05 | G93: 0.0001607440368 | H93: -3.045625728e-05 | J93: -0.0003530889538 | K93: -0.003000442779 | L93: 0.002526777957 | M93: 0.02100945045 | N93: 3.680454291e-05
A94: =IF('DF raw data'!A99="","",'DF raw data'!A99) -> -284 | B94: =IF('DF raw data'!B99="","",'DF raw data'!B99) -> -2.22756e-05 | C94: =IF('DF raw data'!C99="","",'DF raw data'!C99) -> 0.000172008 | D94: =IF('DF raw data'!D99="","",'DF raw data'!D99) -> -3.27044e-05 | F94: -2.237806776e-05 | G94: 0.0001727992368 | H94: -3.285484024e-05 | J94: -0.0003642779877 | K94: -0.003182581773 | L94: 0.002613177575 | M94: 0.02231603924 | N94: 4.028524065e-05
A95: =IF('DF raw data'!A100="","",'DF raw data'!A100) -> -283.5 | B95: =IF('DF raw data'!B100="","",'DF raw data'!B100) -> -2.63175e-05 | C95: =IF('DF raw data'!C100="","",'DF raw data'!C100) -> 0.000162755 | D95: =IF('DF raw data'!D100="","",'DF raw data'!D100) -> -2.54405e-05 | F95: -2.64385605e-05 | G95: 0.000163503673 | H95: -2.55575263e-05 | J95: -0.0003774972679 | K95: -0.003371330407 | L95: 0.002694929412 | M95: 0.02366350394 | N95: 4.398781501e-05
A96: =IF('DF raw data'!A101="","",'DF raw data'!A101) -> -283 | B96: =IF('DF raw data'!B101="","",'DF raw data'!B101) -> -1.85616e-05 | C96: =IF('DF raw data'!C101="","",'DF raw data'!C101) -> 0.000165717 | D96: =IF('DF raw data'!D101="","",'DF raw data'!D101) -> -2.77287e-05 | F96: -1.864698336e-05 | G96: 0.0001664792982 | H96: -2.785625202e-05 | J96: -0.0003868207596 | K96: -0.003564740787 | L96: 0.002778169061 | M96: 0.02505258847 | N96: 4.792174183e-05
A97: =IF('DF raw data'!A102="","",'DF raw data'!A102) -> -282.5 | B97: =IF('DF raw data'!B102="","",'DF raw data'!B102) -> -2.08674e-05 | C97: =IF('DF raw data'!C102="","",'DF raw data'!C102) -> 0.000164135 | D97: =IF('DF raw data'!D102="","",'DF raw data'!D102) -> -2.92408e-05 | F97: -2.096339004e-05 | G97: 0.000164890021 | H97: -2.937530768e-05 | J97: -0.0003973024546 | K97: -0.003763392014 | L97: 0.002860614071 | M97: 0.02648289551 | N97: 5.209222288e-05
A98: =IF('DF raw data'!A103="","",'DF raw data'!A103) -> -282 | B98: =IF('DF raw data'!B103="","",'DF raw data'!B103) -> -1.52924e-05 | C98: =IF('DF raw data'!C103="","",'DF raw data'!C103) -> 0.000149937 | D98: =IF('DF raw data'!D103="","",'DF raw data'!D103) -> -2.88691e-05 | F98: -1.536274504e-05 | G98: 0.0001506267102 | H98: -2.900189786e-05 | J98: -0.0004049838272 | K98: -0.003965883928 | L98: 0.002935927426 | M98: 0.02795085922 | N98: 5.648406376e-05
A99: =IF('DF raw data'!A104="","",'DF raw data'!A104) -> -281.5 | B99: =IF('DF raw data'!B104="","",'DF raw data'!B104) -> -1.96553e-05 | C99: =IF('DF raw data'!C104="","",'DF raw data'!C104) -> 0.000152931 | D99: =IF('DF raw data'!D104="","",'DF raw data'!D104) -> -2.10345e-05 | F99: -1.974571438e-05 | G99: 0.0001536344826 | H99: -2.11312587e-05 | J99: -0.0004148566844 | K99: -0.00417331227 | L99: 0.003012744668 | M99: 0.02945723155 | N99: 6.110843201e-05
A100: =IF('DF raw data'!A105="","",'DF raw data'!A105) -> -281 | B100: =IF('DF raw data'!B105="","",'DF raw data'!B105) -> -1.76017e-05 | C100: =IF('DF raw data'!C105="","",'DF raw data'!C105) -> 0.000155094 | D100: =IF('DF raw data'!D105="","",'DF raw data'!D105) -> -2.54551e-05 | F100: -1.768266782e-05 | G100: 0.0001558074324 | H100: -2.557219346e-05 | J100: -0.0004236980183 | K100: -0.004385161279 | L100: 0.003090648384 | M100: 0.03100255575 | N100: 6.597424573e-05
A101: =IF('DF raw data'!A106="","",'DF raw data'!A106) -> -280.5 | B101: =IF('DF raw data'!B106="","",'DF raw data'!B106) -> -1.70277e-05 | C101: =IF('DF raw data'!C106="","",'DF raw data'!C106) -> 0.000159284 | D101: =IF('DF raw data'!D106="","",'DF raw data'!D106) -> -2.10247e-05 | F101: -1.710602742e-05 | G101: 0.0001600167064 | H101: -2.112141362e-05 | J101: -0.000432251032 | K101: -0.004601286795 | L101: 0.003170656737 | M101: 0.03258788411 | N101: 7.109419828e-05
A102: =IF('DF raw data'!A107="","",'DF raw data'!A107) -> -280 | B102: =IF('DF raw data'!B107="","",'DF raw data'!B107) -> -1.48502e-05 | C102: =IF('DF raw data'!C107="","",'DF raw data'!C107) -> 0.000156457 | D102: =IF('DF raw data'!D107="","",'DF raw data'!D107) -> -1.8755e-05 | F102: -1.491851092e-05 | G102: 0.0001571767022 | H102: -1.8841273e-05 | J102: -0.0004397102874 | K102: -0.004821141939 | L102: 0.003249245088 | M102: 0.03421250666 | N102: 7.646966767e-05
A103: =IF('DF raw data'!A108="","",'DF raw data'!A108) -> -279.5 | B103: =IF('DF raw data'!B108="","",'DF raw data'!B108) -> -2.12534e-05 | C103: =IF('DF raw data'!C108="","",'DF raw data'!C108) -> 0.000160838 | D103: =IF('DF raw data'!D108="","",'DF raw data'!D108) -> -2.70958e-05 | F103: -2.135116564e-05 | G103: 0.0001615778548 | H103: -2.722044068e-05 | J103: -0.0004503858703 | K103: -0.005046334874 | L103: 0.003330034016 | M103: 0.03587752367 | N103: 8.211565466e-05
A104: =IF('DF raw data'!A109="","",'DF raw data'!A109) -> -279 | B104: =IF('DF raw data'!B109="","",'DF raw data'!B109) -> -1.53604e-05 | C104: =IF('DF raw data'!C109="","",'DF raw data'!C109) -> 0.000152307 | D104: =IF('DF raw data'!D109="","",'DF raw data'!D109) -> -2.24953e-05 | F104: -1.543105784e-05 | G104: 0.0001530076122 | H104: -2.259877838e-05 | J104: -0.0004581013992 | K104: -0.005275385573 | L104: 0.003406537822 | M104: 0.03758079258 | N104: 8.802283307e-05
A105: =IF('DF raw data'!A110="","",'DF raw data'!A110) -> -278.5 | B105: =IF('DF raw data'!B110="","",'DF raw data'!B110) -> -1.58696e-05 | C105: =IF('DF raw data'!C110="","",'DF raw data'!C110) -> 0.000152596 | D105: =IF('DF raw data'!D110="","",'DF raw data'!D110) -> -2.77568e-05 | F105: -1.594260016e-05 | G105: 0.0001532979416 | H105: -2.788448128e-05 | J105: -0.0004660726993 | K105: -0.005508421923 | L105: 0.003483186793 | M105: 0.03932238597 | N105: 9.419774007e-05
A106: =IF('DF raw data'!A111="","",'DF raw data'!A111) -> -278 | B106: =IF('DF raw data'!B111="","",'DF raw data'!B111) -> -3.14452e-05 | C106: =IF('DF raw data'!C111="","",'DF raw data'!C111) -> 0.000161037 | D106: =IF('DF raw data'!D111="","",'DF raw data'!D111) -> -2.5049e-05 | F106: -3.158984792e-05 | G106: 0.0001617777702 | H106: -2.51642254e-05 | J106: -0.0004818676232 | K106: -0.005749355735 | L106: 0.003564075678 | M106: 0.04110442381 | N106: 0.000100665156
A107: =IF('DF raw data'!A112="","",'DF raw data'!A112) -> -277.5 | B107: =IF('DF raw data'!B112="","",'DF raw data'!B112) -> -1.84322e-05 | C107: =IF('DF raw data'!C112="","",'DF raw data'!C112) -> 0.000155542 | D107: =IF('DF raw data'!D112="","",'DF raw data'!D112) -> -2.93841e-05 | F107: -1.851698812e-05 | G107: 0.0001562574932 | H107: -2.951926686e-05 | J107: -0.0004911261173 | K107: -0.005994918793 | L107: 0.003642204424 | M107: 0.04292552602 | N107: 0.000107418585
A108: =IF('DF raw data'!A113="","",'DF raw data'!A113) -> -277 | B108: =IF('DF raw data'!B113="","",'DF raw data'!B113) -> -1.86873e-05 | C108: =IF('DF raw data'!C113="","",'DF raw data'!C113) -> 0.000145378 | D108: =IF('DF raw data'!D113="","",'DF raw data'!D113) -> -3.15491e-05 | F108: -1.877326158e-05 | G108: 0.0001460467388 | H108: -3.169422586e-05 | J108: -0.0005005127481 | K108: -0.006245175167 | L108: 0.003715227794 | M108: 0.04478313992 | N108: 0.0001144453002
A109: =IF('DF raw data'!A114="","",'DF raw data'!A114) -> -276.5 | B109: =IF('DF raw data'!B114="","",'DF raw data'!B114) -> -2.3111e-05 | C109: =IF('DF raw data'!C114="","",'DF raw data'!C114) -> 0.00014282 | D109: =IF('DF raw data'!D114="","",'DF raw data'!D114) -> -2.86005e-05 | F109: -2.32173106e-05 | G109: 0.000143476972 | H109: -2.87320623e-05 | J109: -0.0005121214034 | K109: -0.006501235869 | L109: 0.00378696628 | M109: 0.04667662306 | N109: 0.0001217469912
A110: =IF('DF raw data'!A115="","",'DF raw data'!A115) -> -276 | B110: =IF('DF raw data'!B115="","",'DF raw data'!B115) -> -2.31755e-05 | C110: =IF('DF raw data'!C115="","",'DF raw data'!C115) -> 0.000139073 | D110: =IF('DF raw data'!D115="","",'DF raw data'!D115) -> -2.85793e-05 | F110: -2.32821073e-05 | G110: 0.0001397127358 | H110: -2.871076478e-05 | J110: -0.000523762457 | K110: -0.006763117098 | L110: 0.003856822647 | M110: 0.04860503439 | N110: 0.0001293216952
A111: =IF('DF raw data'!A116="","",'DF raw data'!A116) -> -275.5 | B111: =IF('DF raw data'!B116="","",'DF raw data'!B116) -> -2.86953e-05 | C111: =IF('DF raw data'!C116="","",'DF raw data'!C116) -> 0.000137349 | D111: =IF('DF raw data'!D116="","",'DF raw data'!D116) -> -1.55689e-05 | F111: -2.882729838e-05 | G111: 0.0001379808054 | H111: -1.564051694e-05 | J111: -0.0005381761062 | K111: -0.007032205151 | L111: 0.00392581305 | M111: 0.05056794091 | N111: 0.000137172516
A112: =IF('DF raw data'!A117="","",'DF raw data'!A117) -> -275 | B112: =IF('DF raw data'!B117="","",'DF raw data'!B117) -> -1.75396e-05 | C112: =IF('DF raw data'!C117="","",'DF raw data'!C117) -> 0.00014428 | D112: =IF('DF raw data'!D117="","",'DF raw data'!D117) -> -2.26142e-05 | F112: -1.762028216e-05 | G112: 0.000144943688 | H112: -2.271822532e-05 | J112: -0.0005469862473 | K112: -0.007305698274 | L112: 0.003998284894 | M112: 0.05256708336 | N112: 0.0001453152541
A113: =IF('DF raw data'!A118="","",'DF raw data'!A118) -> -274.5 | B113: =IF('DF raw data'!B118="","",'DF raw data'!B118) -> -1.99654e-05 | C113: =IF('DF raw data'!C118="","",'DF raw data'!C118) -> 0.000143541 | D113: =IF('DF raw data'!D118="","",'DF raw data'!D118) -> -3.68739e-05 | F113: -2.005724084e-05 | G113: 0.0001442012886 | H113: -3.704351994e-05 | J113: -0.0005570148677 | K113: -0.007584205708 | L113: 0.004070385538 | M113: 0.05460227613 | N113: 0.0001537544061
A114: =IF('DF raw data'!A119="","",'DF raw data'!A119) -> -274 | B114: =IF('DF raw data'!B119="","",'DF raw data'!B119) -> -2.05465e-05 | C114: =IF('DF raw data'!C119="","",'DF raw data'!C119) -> 0.0001419 | D114: =IF('DF raw data'!D119="","",'DF raw data'!D119) -> -3.06872e-05 | F114: -2.06410139e-05 | G114: 0.00014255274 | H114: -3.082836112e-05 | J114: -0.0005673353747 | K114: -0.007867873395 | L114: 0.004141661908 | M114: 0.05667310708 | N114: 0.0001624920225
A115: =IF('DF raw data'!A120="","",'DF raw data'!A120) -> -273.5 | B115: =IF('DF raw data'!B120="","",'DF raw data'!B120) -> -2.38087e-05 | C115: =IF('DF raw data'!C120="","",'DF raw data'!C120) -> 0.000147818 | D115: =IF('DF raw data'!D120="","",'DF raw data'!D120) -> -4.00404e-05 | F115: -2.391822002e-05 | G115: 0.0001484979628 | H115: -4.022458584e-05 | J115: -0.0005792944847 | K115: -0.008157520638 | L115: 0.00421591089 | M115: 0.05878106253 | N115: 0.0001715467658
A116: =IF('DF raw data'!A121="","",'DF raw data'!A121) -> -273 | B116: =IF('DF raw data'!B121="","",'DF raw data'!B121) -> -2.57372e-05 | C116: =IF('DF raw data'!C121="","",'DF raw data'!C121) -> 0.000150428 | D116: =IF('DF raw data'!D121="","",'DF raw data'!D121) -> -3.14332e-05 | F116: -2.585559112e-05 | G116: 0.0001511199688 | H116: -3.157779272e-05 | J116: -0.0005922222802 | K116: -0.008453631778 | L116: 0.004291470874 | M116: 0.06092679796 | N116: 0.0001809304906
A117: =IF('DF raw data'!A122="","",'DF raw data'!A122) -> -272.5 | B117: =IF('DF raw data'!B122="","",'DF raw data'!B122) -> -1.92713e-05 | C117: =IF('DF raw data'!C122="","",'DF raw data'!C122) -> 0.000146338 | D117: =IF('DF raw data'!D122="","",'DF raw data'!D122) -> -2.02568e-05 | F117: -1.935994798e-05 | G117: 0.0001470111548 | H117: -2.034998128e-05 | J117: -0.0006019022542 | K117: -0.008754582905 | L117: 0.004364976452 | M117: 0.06310928619 | N117: 0.0001906381434
A118: =IF('DF raw data'!A123="","",'DF raw data'!A123) -> -272 | B118: =IF('DF raw data'!B123="","",'DF raw data'!B123) -> -2.02909e-05 | C118: =IF('DF raw data'!C123="","",'DF raw data'!C123) -> 0.000145623 | D118: =IF('DF raw data'!D123="","",'DF raw data'!D123) -> -2.96876e-05 | F118: -2.038423814e-05 | G118: 0.0001462928658 | H118: -2.982416296e-05 | J118: -0.0006120943733 | K118: -0.009060630092 | L118: 0.004438122885 | M118: 0.06532834763 | N118: 0.0002006739406
A119: =IF('DF raw data'!A124="","",'DF raw data'!A124) -> -271.5 | B119: =IF('DF raw data'!B124="","",'DF raw data'!B124) -> -1.73468e-05 | C119: =IF('DF raw data'!C124="","",'DF raw data'!C124) -> 0.000133008 | D119: =IF('DF raw data'!D124="","",'DF raw data'!D124) -> -2.28363e-05 | F119: -1.742659528e-05 | G119: 0.0001336198368 | H119: -2.294134698e-05 | J119: -0.0006208076709 | K119: -0.009371033927 | L119: 0.004504932803 | M119: 0.06758081403 | N119: 0.0002110138514
A120: =IF('DF raw data'!A125="","",'DF raw data'!A125) -> -271 | B120: =IF('DF raw data'!B125="","",'DF raw data'!B125) -> -1.00361e-05 | C120: =IF('DF raw data'!C125="","",'DF raw data'!C125) -> 0.000141319 | D120: =IF('DF raw data'!D125="","",'DF raw data'!D125) -> -3.04945e-05 | F120: -1.008226606e-05 | G120: 0.0001419690674 | H120: -3.06347747e-05 | J120: -0.000625848804 | K120: -0.009683958329 | L120: 0.004575917337 | M120: 0.0698687727 | N120: 0.0002216792045
A121: =IF('DF raw data'!A126="","",'DF raw data'!A126) -> -270.5 | B121: =IF('DF raw data'!B126="","",'DF raw data'!B126) -> -1.7855e-05 | C121: =IF('DF raw data'!C126="","",'DF raw data'!C126) -> 0.000144208 | D121: =IF('DF raw data'!D126="","",'DF raw data'!D126) -> -2.96769e-05 | F121: -1.7937133e-05 | G121: 0.0001448713568 | H121: -2.981341374e-05 | J121: -0.0006348173705 | K121: -0.01000136701 | L121: 0.004648353015 | M121: 0.07219294921 | N121: 0.000232684294
A122: =IF('DF raw data'!A127="","",'DF raw data'!A127) -> -270 | B122: =IF('DF raw data'!B127="","",'DF raw data'!B127) -> -3.05484e-05 | C122: =IF('DF raw data'!C127="","",'DF raw data'!C127) -> 0.000147197 | D122: =IF('DF raw data'!D127="","",'DF raw data'!D127) -> -2.44763e-05 | F122: -3.068892264e-05 | G122: 0.0001478741062 | H122: -2.458889098e-05 | J122: -0.0006501618318 | K122: -0.01032644793 | L122: 0.004722290068 | M122: 0.07455409424 | N122: 0.0002440456609
A123: =IF('DF raw data'!A128="","",'DF raw data'!A128) -> -269.5 | B123: =IF('DF raw data'!B128="","",'DF raw data'!B128) -> -9.90545e-06 | C123: =IF('DF raw data'!C128="","",'DF raw data'!C128) -> 0.000154103 | D123: =IF('DF raw data'!D128="","",'DF raw data'!D128) -> -3.38841e-05 | F123: -9.95101507e-06 | G123: 0.0001548118738 | H123: -3.403996686e-05 | J123: -0.0006551373393 | K123: -0.0106540166 | L123: 0.004799696005 | M123: 0.07695394224 | N123: 0.0002557788042
A124: =IF('DF raw data'!A129="","",'DF raw data'!A129) -> -269 | B124: =IF('DF raw data'!B129="","",'DF raw data'!B129) -> -2.74642e-05 | C124: =IF('DF raw data'!C129="","",'DF raw data'!C129) -> 0.000156782 | D124: =IF('DF raw data'!D129="","",'DF raw data'!D129) -> -3.69972e-05 | F124: -2.759053532e-05 | G124: 0.0001575031972 | H124: -3.716738712e-05 | J124: -0.000668932607 | K124: -0.0109884829 | L124: 0.004878447604 | M124: 0.07939316605 | N124: 0.0002679021652
A125: =IF('DF raw data'!A130="","",'DF raw data'!A130) -> -268.5 | B125: =IF('DF raw data'!B130="","",'DF raw data'!B130) -> -3.07334e-05 | C125: =IF('DF raw data'!C130="","",'DF raw data'!C130) -> 0.000158287 | D125: =IF('DF raw data'!D130="","",'DF raw data'!D130) -> -3.46033e-05 | F125: -3.087477364e-05 | G125: 0.0001590151202 | H125: -3.476247518e-05 | J125: -0.0006843699938 | K125: -0.0113306679 | L125: 0.004957955164 | M125: 0.08187214363 | N125: 0.000280427006
A126: =IF('DF raw data'!A131="","",'DF raw data'!A131) -> -268 | B126: =IF('DF raw data'!B131="","",'DF raw data'!B131) -> -3.71413e-05 | C126: =IF('DF raw data'!C131="","",'DF raw data'!C131) -> 0.000154428 | D126: =IF('DF raw data'!D131="","",'DF raw data'!D131) -> -3.77042e-05 | F126: -3.731214998e-05 | G126: 0.0001551383688 | H126: -3.787763932e-05 | J126: -0.0007030260688 | K126: -0.01168218093 | L126: 0.005035524348 | M126: 0.0843899058 | N126: 0.0002933523816
A127: =IF('DF raw data'!A132="","",'DF raw data'!A132) -> -267.5 | B127: =IF('DF raw data'!B132="","",'DF raw data'!B132) -> -2.6887e-05 | C127: =IF('DF raw data'!C132="","",'DF raw data'!C132) -> 0.000151293 | D127: =IF('DF raw data'!D132="","",'DF raw data'!D132) -> -3.62077e-05 | F127: -2.70106802e-05 | G127: 0.0001519889478 | H127: -3.637425542e-05 | J127: -0.0007165314089 | K127: -0.01204044664 | L127: 0.005111518822 | M127: 0.08694566521 | N127: 0.0003066729025
A128: =IF('DF raw data'!A133="","",'DF raw data'!A133) -> -267 | B128: =IF('DF raw data'!B133="","",'DF raw data'!B133) -> -3.14401e-05 | C128: =IF('DF raw data'!C133="","",'DF raw data'!C133) -> 0.000147355 | D128: =IF('DF raw data'!D133="","",'DF raw data'!D133) -> -3.35046e-05 | F128: =(1-$G$1*($B$49-$G$2))*B128 -> -3.158472446e-05 | G128: 0.000148032833 | H128: -3.365872116e-05 | J128: =F128*$G$3+J127 -> -0.0007323237711 | K128: =J128*$G$3+K127 -> -0.01240660852 | L128: =G128*$G$3+L127 -> 0.005185535239 | M128: =L128*$G$3+M127 -> 0.08953843283 | N128: =(J128^2+L128^2)*$G$3+N127 -> 0.0003203859394
A129: =IF('DF raw data'!A134="","",'DF raw data'!A134) -> -266.5 | B129: =IF('DF raw data'!B134="","",'DF raw data'!B134) -> -2.64415e-05 | C129: =IF('DF raw data'!C134="","",'DF raw data'!C134) -> 0.000157308 | D129: =IF('DF raw data'!D134="","",'DF raw data'!D134) -> -3.17652e-05 | F129: -2.65631309e-05 | G129: 0.0001580316168 | H129: -3.191131992e-05 | J129: -0.0007456053366 | K129: -0.01277941119 | L129: 0.005264551047 | M129: 0.09217070836 | N129: 0.000334521652
A130: =IF('DF raw data'!A135="","",'DF raw data'!A135) -> -266 | B130: =IF('DF raw data'!B135="","",'DF raw data'!B135) -> -2.119e-05 | C130: =IF('DF raw data'!C135="","",'DF raw data'!C135) -> 0.000148295 | D130: =IF('DF raw data'!D135="","",'DF raw data'!D135) -> -2.70253e-05 | F130: -2.1287474e-05 | G130: 0.000148977157 | H130: -2.714961638e-05 | J130: -0.0007562490736 | K130: -0.01315753573 | L130: 0.005339039625 | M130: 0.09484022817 | N130: 0.0003490602804
A131: =IF('DF raw data'!A136="","",'DF raw data'!A136) -> -265.5 | B131: =IF('DF raw data'!B136="","",'DF raw data'!B136) -> -1.77294e-05 | C131: =IF('DF raw data'!C136="","",'DF raw data'!C136) -> 0.00014875 | D131: =IF('DF raw data'!D136="","",'DF raw data'!D136) -> -2.56278e-05 | F131: -1.781095524e-05 | G131: 0.00014943425 | H131: -2.574568788e-05 | J131: -0.0007651545512 | K131: -0.01354011301 | L131: 0.00541375675 | M131: 0.09754710654 | N131: 0.0003640073922
A132: =IF('DF raw data'!A137="","",'DF raw data'!A137) -> -265 | B132: =IF('DF raw data'!B137="","",'DF raw data'!B137) -> -2.68303e-05 | C132: =IF('DF raw data'!C137="","",'DF raw data'!C137) -> 0.000151307 | D132: =IF('DF raw data'!D137="","",'DF raw data'!D137) -> -2.62698e-05 | F132: -2.695371938e-05 | G132: 0.0001520030122 | H132: -2.639064108e-05 | J132: -0.0007786314109 | K132: -0.01392942871 | L132: 0.005489758257 | M132: 0.1002919857 | N132: 0.0003793792485
A133: =IF('DF raw data'!A138="","",'DF raw data'!A138) -> -264.5 | B133: =IF('DF raw data'!B138="","",'DF raw data'!B138) -> -2.67588e-05 | C133: =IF('DF raw data'!C138="","",'DF raw data'!C138) -> 0.000145827 | D133: =IF('DF raw data'!D138="","",'DF raw data'!D138) -> -3.63321e-05 | F133: -2.688189048e-05 | G133: 0.0001464978042 | H133: -3.649922766e-05 | J133: -0.0007920723561 | K133: -0.01432546489 | L133: 0.005563007159 | M133: 0.1030734893 | N133: 0.0003951664621
A134: =IF('DF raw data'!A139="","",'DF raw data'!A139) -> -264 | B134: =IF('DF raw data'!B139="","",'DF raw data'!B139) -> -2.56048e-05 | C134: =IF('DF raw data'!C139="","",'DF raw data'!C139) -> 0.000153195 | D134: =IF('DF raw data'!D139="","",'DF raw data'!D139) -> -3.82914e-05 | F134: -2.572258208e-05 | G134: 0.000153899697 | H134: -3.846754044e-05 | J134: -0.0008049336472 | K134: -0.01472793171 | L134: 0.005639957007 | M134: 0.1058934678 | N134: 0.0004113949787
A135: =IF('DF raw data'!A140="","",'DF raw data'!A140) -> -263.5 | B135: =IF('DF raw data'!B140="","",'DF raw data'!B140) -> -2.04778e-05 | C135: =IF('DF raw data'!C140="","",'DF raw data'!C140) -> 0.000156391 | D135: =IF('DF raw data'!D140="","",'DF raw data'!D140) -> -3.7026e-05 | F135: -2.057199788e-05 | G135: 0.0001571103986 | H135: -3.71963196e-05 | J135: -0.0008152196461 | K135: -0.01513554154 | L135: 0.005718512206 | M135: 0.1087527239 | N135: 0.0004280779612
A136: =IF('DF raw data'!A141="","",'DF raw data'!A141) -> -263 | B136: =IF('DF raw data'!B141="","",'DF raw data'!B141) -> -1.9194e-05 | C136: =IF('DF raw data'!C141="","",'DF raw data'!C141) -> 0.000160731 | D136: =IF('DF raw data'!D141="","",'DF raw data'!D141) -> -4.10952e-05 | F136: -1.92822924e-05 | G136: 0.0001614703626 | H136: -4.128423792e-05 | J136: -0.0008248607923 | K136: -0.01554797193 | L136: 0.005799247388 | M136: 0.1116523476 | N136: 0.000445233794
A137: =IF('DF raw data'!A142="","",'DF raw data'!A142) -> -262.5 | B137: =IF('DF raw data'!B142="","",'DF raw data'!B142) -> -1.34201e-05 | C137: =IF('DF raw data'!C142="","",'DF raw data'!C142) -> 0.000153893 | D137: =IF('DF raw data'!D142="","",'DF raw data'!D142) -> -4.95329e-05 | F137: -1.348183246e-05 | G137: 0.0001546009078 | H137: -4.976075134e-05 | J137: -0.0008316017085 | K137: -0.01596377279 | L137: 0.005876547842 | M137: 0.1145906215 | N137: 0.0004628464819
A138: =IF('DF raw data'!A143="","",'DF raw data'!A143) -> -262 | B138: =IF('DF raw data'!B143="","",'DF raw data'!B143) -> -1.59321e-05 | C138: =IF('DF raw data'!C143="","",'DF raw data'!C143) -> 0.000151274 | D138: =IF('DF raw data'!D143="","",'DF raw data'!D143) -> -3.08283e-05 | F138: -1.600538766e-05 | G138: 0.0001519698604 | H138: -3.097011018e-05 | J138: -0.0008396044024 | K138: -0.01638357499 | L138: 0.005952532772 | M138: 0.1175668879 | N138: 0.0004809152729
A139: =IF('DF raw data'!A144="","",'DF raw data'!A144) -> -261.5 | B139: =IF('DF raw data'!B144="","",'DF raw data'!B144) -> -2.69595e-05 | C139: =IF('DF raw data'!C144="","",'DF raw data'!C144) -> 0.00016292 | D139: =IF('DF raw data'!D144="","",'DF raw data'!D144) -> -2.36152e-05 | F139: -2.70835137e-05 | G139: 0.000163669432 | H139: -2.372382992e-05 | J139: -0.0008531461592 | K139: -0.01681014807 | L139: 0.006034367488 | M139: 0.1205840716 | N139: 0.0004994859976
A140: =IF('DF raw data'!A145="","",'DF raw data'!A145) -> -261 | B140: =IF('DF raw data'!B145="","",'DF raw data'!B145) -> -1.5291e-05 | C140: =IF('DF raw data'!C145="","",'DF raw data'!C145) -> 0.000163195 | D140: =IF('DF raw data'!D145="","",'DF raw data'!D145) -> -3.12869e-05 | F140: -1.53613386e-05 | G140: 0.000163945697 | H140: -3.143081974e-05 | J140: -0.0008608268285 | K140: -0.01724056148 | L140: 0.006116340336 | M140: 0.1236422418 | N140: 0.0005185613186
A141: =IF('DF raw data'!A146="","",'DF raw data'!A146) -> -260.5 | B141: =IF('DF raw data'!B146="","",'DF raw data'!B146) -> -1.55408e-05 | C141: =IF('DF raw data'!C146="","",'DF raw data'!C146) -> 0.000153901 | D141: =IF('DF raw data'!D146="","",'DF raw data'!D146) -> -4.07235e-05 | F141: -1.561228768e-05 | G141: 0.0001546089446 | H141: -4.09108281e-05 | J141: -0.0008686329723 | K141: -0.01767487797 | L141: 0.006193644809 | M141: 0.1267390642 | N141: 0.0005381191982
A142: =IF('DF raw data'!A147="","",'DF raw data'!A147) -> -260 | B142: =IF('DF raw data'!B147="","",'DF raw data'!B147) -> -2.13096e-05 | C142: =IF('DF raw data'!C147="","",'DF raw data'!C147) -> 0.000143784 | D142: =IF('DF raw data'!D147="","",'DF raw data'!D147) -> -4.02265e-05 | F142: -2.140762416e-05 | G142: 0.0001444454064 | H142: -4.04115419e-05 | J142: -0.0008793367844 | K142: -0.01811454636 | L142: 0.006265867512 | M142: 0.1298719979 | N142: 0.0005581363626
A143: =IF('DF raw data'!A148="","",'DF raw data'!A148) -> -259.5 | B143: =IF('DF raw data'!B148="","",'DF raw data'!B148) -> -2.17608e-05 | C143: =IF('DF raw data'!C148="","",'DF raw data'!C148) -> 0.000145571 | D143: =IF('DF raw data'!D148="","",'DF raw data'!D148) -> -3.51831e-05 | F143: -2.186089968e-05 | G143: 0.0001462406266 | H143: -3.534494226e-05 | J143: -0.0008902672343 | K143: -0.01855967998 | L143: 0.006338987825 | M143: 0.1330414918 | N143: 0.0005786240338
A144: =IF('DF raw data'!A149="","",'DF raw data'!A149) -> -259 | B144: =IF('DF raw data'!B149="","",'DF raw data'!B149) -> -3.04814e-05 | C144: =IF('DF raw data'!C149="","",'DF raw data'!C149) -> 0.00015622 | D144: =IF('DF raw data'!D149="","",'DF raw data'!D149) -> -2.94418e-05 | F144: -3.062161444e-05 | G144: 0.000156938612 | H144: -2.957723228e-05 | J144: -0.0009055780415 | K144: -0.019012469 | L144: 0.006417457131 | M144: 0.1362502204 | N144: 0.0005996259476
A145: =IF('DF raw data'!A150="","",'DF raw data'!A150) -> -258.5 | B145: =IF('DF raw data'!B150="","",'DF raw data'!B150) -> -1.70873e-05 | C145: =IF('DF raw data'!C150="","",'DF raw data'!C150) -> 0.000161658 | D145: =IF('DF raw data'!D150="","",'DF raw data'!D150) -> -2.76338e-05 | F145: -1.716590158e-05 | G145: 0.0001624016268 | H145: -2.776091548e-05 | J145: -0.0009141609923 | K145: -0.01946954949 | L145: 0.006498657945 | M145: 0.1394995494 | N145: 0.0006211600703
A146: =IF('DF raw data'!A151="","",'DF raw data'!A151) -> -258 | B146: =IF('DF raw data'!B151="","",'DF raw data'!B151) -> -1.98413e-05 | C146: =IF('DF raw data'!C151="","",'DF raw data'!C151) -> 0.000162045 | D146: =IF('DF raw data'!D151="","",'DF raw data'!D151) -> -3.13448e-05 | F146: -1.993256998e-05 | G146: 0.000162790407 | H146: -3.148898608e-05 | J146: -0.0009241272773 | K146: -0.01993161313 | L146: 0.006580053148 | M146: 0.142789576 | N146: 0.0006432356257
A147: =IF('DF raw data'!A152="","",'DF raw data'!A152) -> -257.5 | B147: =IF('DF raw data'!B152="","",'DF raw data'!B152) -> -2.95767e-05 | C147: =IF('DF raw data'!C152="","",'DF raw data'!C152) -> 0.000156592 | D147: =IF('DF raw data'!D152="","",'DF raw data'!D152) -> -3.96142e-05 | F147: -2.971275282e-05 | G147: 0.0001573123232 | H147: -3.979642532e-05 | J147: -0.0009389836537 | K147: -0.02040110496 | L147: 0.00665870931 | M147: 0.1461189306 | N147: 0.0006658456757
A148: =IF('DF raw data'!A153="","",'DF raw data'!A153) -> -257 | B148: =IF('DF raw data'!B153="","",'DF raw data'!B153) -> -9.52624e-06 | C148: =IF('DF raw data'!C153="","",'DF raw data'!C153) -> 0.000157334 | D148: =IF('DF raw data'!D153="","",'DF raw data'!D153) -> -2.62252e-05 | F148: -9.570060704e-06 | G148: 0.0001580577364 | H148: -2.634583592e-05 | J148: -0.000943768684 | K148: -0.0208729893 | L148: 0.006737738178 | M148: 0.1494877997 | N148: 0.0006889895832
A149: =IF('DF raw data'!A154="","",'DF raw data'!A154) -> -256.5 | B149: =IF('DF raw data'!B154="","",'DF raw data'!B154) -> -2.23372e-05 | C149: =IF('DF raw data'!C154="","",'DF raw data'!C154) -> 0.000159152 | D149: =IF('DF raw data'!D154="","",'DF raw data'!D154) -> -3.56788e-05 | F149: -2.243995112e-05 | G149: 0.0001598840992 | H149: -3.584292248e-05 | J149: -0.0009549886596 | K149: -0.02135048363 | L149: 0.006817680227 | M149: 0.1528966398 | N149: 0.0007126859667
A150: =IF('DF raw data'!A155="","",'DF raw data'!A155) -> -256 | B150: =IF('DF raw data'!B155="","",'DF raw data'!B155) -> -2.74653e-05 | C150: =IF('DF raw data'!C155="","",'DF raw data'!C155) -> 0.000157347 | D150: =IF('DF raw data'!D155="","",'DF raw data'!D155) -> -3.57142e-05 | F150: -2.759164038e-05 | G150: 0.0001580707962 | H150: -3.587848532e-05 | J150: -0.0009687844798 | K150: -0.02183487587 | L150: 0.006896715626 | M150: 0.1563449976 | N150: 0.0007369375816
A151: =IF('DF raw data'!A156="","",'DF raw data'!A156) -> -255.5 | B151: =IF('DF raw data'!B156="","",'DF raw data'!B156) -> -3.06686e-05 | C151: =IF('DF raw data'!C156="","",'DF raw data'!C156) -> 0.000152393 | D151: =IF('DF raw data'!D156="","",'DF raw data'!D156) -> -3.52969e-05 | F151: -3.080967556e-05 | G151: 0.0001530940078 | H151: -3.545926574e-05 | J151: -0.0009841893176 | K151: -0.02232697053 | L151: 0.006973262629 | M151: 0.1598316289 | N151: 0.0007617350918
A152: =IF('DF raw data'!A157="","",'DF raw data'!A157) -> -255 | B152: =IF('DF raw data'!B157="","",'DF raw data'!B157) -> -2.31759e-05 | C152: =IF('DF raw data'!C157="","",'DF raw data'!C157) -> 0.000156983 | D152: =IF('DF raw data'!D157="","",'DF raw data'!D157) -> -2.87238e-05 | F152: -2.328250914e-05 | G152: 0.0001577051218 | H152: -2.885592948e-05 | J152: -0.0009958305721 | K152: -0.02282488582 | L152: 0.00705211519 | M152: 0.1633576865 | N152: 0.0007870970953
A153: =IF('DF raw data'!A158="","",'DF raw data'!A158) -> -254.5 | B153: =IF('DF raw data'!B158="","",'DF raw data'!B158) -> -2.86864e-05 | C153: =IF('DF raw data'!C158="","",'DF raw data'!C158) -> 0.000161056 | D153: =IF('DF raw data'!D158="","",'DF raw data'!D158) -> -2.87334e-05 | F153: -2.881835744e-05 | G153: 0.0001617968576 | H153: -2.886557364e-05 | J153: -0.001010239751 | K153: -0.02333000569 | L153: 0.007133013619 | M153: 0.1669241933 | N153: 0.0008130473292
A154: =IF('DF raw data'!A159="","",'DF raw data'!A159) -> -254 | B154: =IF('DF raw data'!B159="","",'DF raw data'!B159) -> -1.81146e-05 | C154: =IF('DF raw data'!C159="","",'DF raw data'!C159) -> 0.00016628 | D154: =IF('DF raw data'!D159="","",'DF raw data'!D159) -> -2.58312e-05 | F154: -1.819792716e-05 | G154: 0.000167044888 | H154: -2.595002352e-05 | J154: -0.001019338714 | K154: -0.02383967505 | L154: 0.007216536063 | M154: 0.1705324614 | N154: 0.0008396060513
A155: =IF('DF raw data'!A160="","",'DF raw data'!A160) -> -253.5 | B155: =IF('DF raw data'!B160="","",'DF raw data'!B160) -> -1.55423e-05 | C155: =IF('DF raw data'!C160="","",'DF raw data'!C160) -> 0.000167687 | D155: =IF('DF raw data'!D160="","",'DF raw data'!D160) -> -3.80867e-05 | F155: -1.561379458e-05 | G155: 0.0001684583602 | H155: -3.826189882e-05 | J155: -0.001027145612 | K155: -0.02435324785 | L155: 0.007300765243 | M155: 0.174182844 | N155: 0.0008667841519
A156: =IF('DF raw data'!A161="","",'DF raw data'!A161) -> -253 | B156: =IF('DF raw data'!B161="","",'DF raw data'!B161) -> -1.52269e-05 | C156: =IF('DF raw data'!C161="","",'DF raw data'!C161) -> 0.000167335 | D156: =IF('DF raw data'!D161="","",'DF raw data'!D161) -> -3.14267e-05 | F156: -1.529694374e-05 | G156: 0.000168104741 | H156: -3.157126282e-05 | J156: -0.001034794084 | K156: -0.0248706449 | L156: 0.007384817614 | M156: 0.1778752528 | N156: 0.0008945873169
A157: =IF('DF raw data'!A162="","",'DF raw data'!A162) -> -252.5 | B157: =IF('DF raw data'!B162="","",'DF raw data'!B162) -> -1.68196e-05 | C157: =IF('DF raw data'!C162="","",'DF raw data'!C162) -> 0.00015927 | D157: =IF('DF raw data'!D162="","",'DF raw data'!D162) -> -4.4834e-05 | F157: -1.689697016e-05 | G157: 0.000160002642 | H157: -4.50402364e-05 | J157: -0.001043242569 | K157: -0.02539226618 | L157: 0.007464818935 | M157: 0.1816076623 | N157: 0.0009229932553
A158: =IF('DF raw data'!A163="","",'DF raw data'!A163) -> -252 | B158: =IF('DF raw data'!B163="","",'DF raw data'!B163) -> -2.02881e-05 | C158: =IF('DF raw data'!C163="","",'DF raw data'!C163) -> 0.000152161 | D158: =IF('DF raw data'!D163="","",'DF raw data'!D163) -> -3.45762e-05 | F158: -2.038142526e-05 | G158: 0.0001528609406 | H158: -3.473525052e-05 | J158: -0.001053433281 | K158: -0.02591898282 | L158: 0.007541249405 | M158: 0.185378287 | N158: 0.0009519833374
A159: =IF('DF raw data'!A164="","",'DF raw data'!A164) -> -251.5 | B159: =IF('DF raw data'!B164="","",'DF raw data'!B164) -> -2.40018e-05 | C159: =IF('DF raw data'!C164="","",'DF raw data'!C164) -> 0.000160955 | D159: =IF('DF raw data'!D164="","",'DF raw data'!D164) -> -3.8013e-05 | F159: -2.411220828e-05 | G159: 0.000161695393 | H159: -3.81878598e-05 | J159: -0.001065489385 | K159: -0.02645172751 | L159: 0.007622097102 | M159: 0.1891893355 | N159: 0.0009815991533
A160: =IF('DF raw data'!A165="","",'DF raw data'!A165) -> -251 | B160: =IF('DF raw data'!B165="","",'DF raw data'!B165) -> -2.8939e-05 | C160: =IF('DF raw data'!C165="","",'DF raw data'!C165) -> 0.000155911 | D160: =IF('DF raw data'!D165="","",'DF raw data'!D165) -> -3.66957e-05 | F160: -2.90721194e-05 | G160: 0.0001566281906 | H160: -3.686450022e-05 | J160: -0.001080025445 | K160: -0.02699174024 | L160: 0.007700411197 | M160: 0.1930395411 | N160: 0.001011830547
A161: =IF('DF raw data'!A166="","",'DF raw data'!A166) -> -250.5 | B161: =IF('DF raw data'!B166="","",'DF raw data'!B166) -> -2.32981e-05 | C161: =IF('DF raw data'!C166="","",'DF raw data'!C166) -> 0.000153837 | D161: =IF('DF raw data'!D166="","",'DF raw data'!D166) -> -3.63396e-05 | F161: -2.340527126e-05 | G161: 0.0001545446502 | H161: -3.650676216e-05 | J161: -0.001091728081 | K161: -0.02753760428 | L161: 0.007777683522 | M161: 0.1969283829 | N161: 0.001042672663
A162: =IF('DF raw data'!A167="","",'DF raw data'!A167) -> -250 | B162: =IF('DF raw data'!B167="","",'DF raw data'!B167) -> -2.39417e-05 | C162: =IF('DF raw data'!C167="","",'DF raw data'!C167) -> 0.000150434 | D162: =IF('DF raw data'!D167="","",'DF raw data'!D167) -> -3.38996e-05 | F162: -2.405183182e-05 | G162: 0.0001511259964 | H162: -3.405553816e-05 | J162: -0.001103753997 | K162: -0.02808948127 | L162: 0.00785324652 | M162: 0.2008550061 | N162: 0.00107411854
A163: =IF('DF raw data'!A168="","",'DF raw data'!A168) -> -249.5 | B163: =IF('DF raw data'!B168="","",'DF raw data'!B168) -> -1.68283e-05 | C163: =IF('DF raw data'!C168="","",'DF raw data'!C168) -> 0.000150745 | D163: =IF('DF raw data'!D168="","",'DF raw data'!D168) -> -3.15449e-05 | F163: -1.690571018e-05 | G163: 0.000151438427 | H163: -3.169000654e-05 | J163: -0.001112206852 | K163: -0.0286455847 | L163: 0.007928965734 | M163: 0.204819489 | N163: 0.00110617129
A164: =IF('DF raw data'!A169="","",'DF raw data'!A169) -> -249 | B164: =IF('DF raw data'!B169="","",'DF raw data'!B169) -> -2.53558e-05 | C164: =IF('DF raw data'!C169="","",'DF raw data'!C169) -> 0.00015008 | D164: =IF('DF raw data'!D169="","",'DF raw data'!D169) -> -2.74069e-05 | F164: -2.547243668e-05 | G164: 0.000150770368 | H164: -2.753297174e-05 | J164: -0.00112494307 | K164: -0.02920805624 | L164: 0.008004350918 | M164: 0.2088216645 | N164: 0.001138838856
A165: =IF('DF raw data'!A170="","",'DF raw data'!A170) -> -248.5 | B165: =IF('DF raw data'!B170="","",'DF raw data'!B170) -> -1.57419e-05 | C165: =IF('DF raw data'!C170="","",'DF raw data'!C170) -> 0.000156492 | D165: =IF('DF raw data'!D170="","",'DF raw data'!D170) -> -2.67099e-05 | F165: -1.581431274e-05 | G165: 0.0001572118632 | H165: -2.683276554e-05 | J165: -0.001132850226 | K165: -0.02977448135 | L165: 0.008082956849 | M165: 0.2128631429 | N165: 0.001172147626
A166: =IF('DF raw data'!A171="","",'DF raw data'!A171) -> -248 | B166: =IF('DF raw data'!B171="","",'DF raw data'!B171) -> -9.5265e-06 | C166: =IF('DF raw data'!C171="","",'DF raw data'!C171) -> 0.000155219 | D166: =IF('DF raw data'!D171="","",'DF raw data'!D171) -> -2.59642e-05 | F166: -9.5703219e-06 | G166: 0.0001559330074 | H166: -2.608363532e-05 | J166: -0.001137635387 | K166: -0.03034329904 | L166: 0.008160923353 | M166: 0.2169436046 | N166: 0.001206095068
A167: =IF('DF raw data'!A172="","",'DF raw data'!A172) -> -247.5 | B167: =IF('DF raw data'!B172="","",'DF raw data'!B172) -> -1.67657e-05 | C167: =IF('DF raw data'!C172="","",'DF raw data'!C172) -> 0.000153447 | D167: =IF('DF raw data'!D172="","",'DF raw data'!D172) -> -2.95471e-05 | F167: -1.684282222e-05 | G167: 0.0001541528562 | H167: -2.968301666e-05 | J167: -0.001146056799 | K167: -0.03091632744 | L167: 0.008237999781 | M167: 0.2210626045 | N167: 0.001240684112
A168: =IF('DF raw data'!A173="","",'DF raw data'!A173) -> -247 | B168: =IF('DF raw data'!B173="","",'DF raw data'!B173) -> -1.55514e-05 | C168: =IF('DF raw data'!C173="","",'DF raw data'!C173) -> 0.000160441 | D168: =IF('DF raw data'!D173="","",'DF raw data'!D173) -> -2.52816e-05 | F168: -1.562293644e-05 | G168: 0.0001611790286 | H168: -2.539789536e-05 | J168: -0.001153868267 | K168: -0.03149326158 | L168: 0.008318589295 | M168: 0.2252218991 | N168: 0.001275949282
A169: =IF('DF raw data'!A174="","",'DF raw data'!A174) -> -246.5 | B169: =IF('DF raw data'!B174="","",'DF raw data'!B174) -> -2.25391e-05 | C169: =IF('DF raw data'!C174="","",'DF raw data'!C174) -> 0.00015107 | D169: =IF('DF raw data'!D174="","",'DF raw data'!D174) -> -2.10772e-05 | F169: -2.264277986e-05 | G169: 0.000151764922 | H169: -2.117415512e-05 | J169: -0.001165189657 | K169: -0.0320758564 | L169: 0.008394471756 | M169: 0.229419135 | N169: 0.001311861693
A170: =IF('DF raw data'!A175="","",'DF raw data'!A175) -> -246 | B170: =IF('DF raw data'!B175="","",'DF raw data'!B175) -> -2.27272e-05 | C170: =IF('DF raw data'!C175="","",'DF raw data'!C175) -> 0.000154743 | D170: =IF('DF raw data'!D175="","",'DF raw data'!D175) -> -2.86889e-05 | F170: -2.283174512e-05 | G170: 0.0001554548178 | H170: -2.882086894e-05 | J170: -0.001176605529 | K170: -0.03266415917 | L170: 0.008472199165 | M170: 0.2336552346 | N170: 0.001348442973
A171: =IF('DF raw data'!A176="","",'DF raw data'!A176) -> -245.5 | B171: =IF('DF raw data'!B176="","",'DF raw data'!B176) -> -2.68263e-05 | C171: =IF('DF raw data'!C176="","",'DF raw data'!C176) -> 0.000161564 | D171: =IF('DF raw data'!D176="","",'DF raw data'!D176) -> -3.12235e-05 | F171: -2.694970098e-05 | G171: 0.0001623071944 | H171: -3.13671281e-05 | J171: -0.00119008038 | K171: -0.03325919936 | L171: 0.008553352763 | M171: 0.237931911 | N171: 0.00138573104
A172: =IF('DF raw data'!A177="","",'DF raw data'!A177) -> -245 | B172: =IF('DF raw data'!B177="","",'DF raw data'!B177) -> -2.08017e-05 | C172: =IF('DF raw data'!C177="","",'DF raw data'!C177) -> 0.000165987 | D172: =IF('DF raw data'!D177="","",'DF raw data'!D177) -> -3.31485e-05 | F172: -2.089738782e-05 | G172: 0.0001667505402 | H172: -3.33009831e-05 | J172: -0.001200529074 | K172: -0.03385946389 | L172: 0.008636728033 | M172: 0.242250275 | N172: 0.001423748211
A173: =IF('DF raw data'!A178="","",'DF raw data'!A178) -> -244.5 | B173: =IF('DF raw data'!B178="","",'DF raw data'!B178) -> -1.37562e-05 | C173: =IF('DF raw data'!C178="","",'DF raw data'!C178) -> 0.000163356 | D173: =IF('DF raw data'!D178="","",'DF raw data'!D178) -> -2.5396e-05 | F173: -1.381947852e-05 | G173: 0.0001641074376 | H173: -2.55128216e-05 | J173: -0.001207438813 | K173: -0.0344631833 | L173: 0.008718781751 | M173: 0.2466096658 | N173: 0.001462485743
A174: =IF('DF raw data'!A179="","",'DF raw data'!A179) -> -244 | B174: =IF('DF raw data'!B179="","",'DF raw data'!B179) -> -1.17622e-05 | C174: =IF('DF raw data'!C179="","",'DF raw data'!C179) -> 0.000152501 | D174: =IF('DF raw data'!D179="","",'DF raw data'!D179) -> -3.75335e-05 | F174: -1.181630612e-05 | G174: 0.0001532025046 | H174: -3.77061541e-05 | J174: -0.001213346966 | K174: -0.03506985678 | L174: 0.008795383004 | M174: 0.2510073573 | N174: 0.001501901229
A175: =IF('DF raw data'!A180="","",'DF raw data'!A180) -> -243.5 | B175: =IF('DF raw data'!B180="","",'DF raw data'!B180) -> -1.50415e-05 | C175: =IF('DF raw data'!C180="","",'DF raw data'!C180) -> 0.000148957 | D175: =IF('DF raw data'!D180="","",'DF raw data'!D180) -> -1.98692e-05 | F175: -1.51106909e-05 | G175: 0.0001496422022 | H175: -1.996059832e-05 | J175: -0.001220902311 | K175: -0.03568030794 | L175: 0.008870204105 | M175: 0.2554424594 | N175: 0.001541986791
A176: =IF('DF raw data'!A181="","",'DF raw data'!A181) -> -243 | B176: =IF('DF raw data'!B181="","",'DF raw data'!B181) -> -1.65784e-05 | C176: =IF('DF raw data'!C181="","",'DF raw data'!C181) -> 0.000151648 | D176: =IF('DF raw data'!D181="","",'DF raw data'!D181) -> -2.28958e-05 | F176: -1.665466064e-05 | G176: 0.0001523455808 | H176: -2.300112068e-05 | J176: -0.001229229642 | K176: -0.03629492276 | L176: 0.008946376895 | M176: 0.2599156478 | N176: 0.001582761123
A177: =IF('DF raw data'!A182="","",'DF raw data'!A182) -> -242.5 | B177: =IF('DF raw data'!B182="","",'DF raw data'!B182) -> -9.39861e-06 | C177: =IF('DF raw data'!C182="","",'DF raw data'!C182) -> 0.000155436 | D177: =IF('DF raw data'!D182="","",'DF raw data'!D182) -> -2.47856e-05 | F177: -9.441843606e-06 | G177: 0.0001561510056 | H177: -2.489961376e-05 | J177: -0.001233950564 | K177: -0.03691189804 | L177: 0.009024452398 | M177: 0.264427874 | N177: 0.001624242811
A178: =IF('DF raw data'!A183="","",'DF raw data'!A183) -> -242 | B178: =IF('DF raw data'!B183="","",'DF raw data'!B183) -> -1.40731e-05 | C178: =IF('DF raw data'!C183="","",'DF raw data'!C183) -> 0.000157131 | D178: =IF('DF raw data'!D183="","",'DF raw data'!D183) -> -3.18088e-05 | F178: -1.413783626e-05 | G178: 0.0001578538026 | H178: -3.195512048e-05 | J178: -0.001241019482 | K178: -0.03753240778 | L178: 0.009103379299 | M178: 0.2689795637 | N178: 0.001666448633
A179: =IF('DF raw data'!A184="","",'DF raw data'!A184) -> -241.5 | B179: =IF('DF raw data'!B184="","",'DF raw data'!B184) -> -8.3715e-06 | C179: =IF('DF raw data'!C184="","",'DF raw data'!C184) -> 0.000155525 | D179: =IF('DF raw data'!D184="","",'DF raw data'!D184) -> -2.75006e-05 | F179: -8.4100089e-06 | G179: 0.000156240415 | H179: -2.762710276e-05 | J179: -0.001245224486 | K179: -0.03815502003 | L179: 0.009181499507 | M179: 0.2735703135 | N179: 0.001709373891
A180: =IF('DF raw data'!A185="","",'DF raw data'!A185) -> -241 | B180: =IF('DF raw data'!B185="","",'DF raw data'!B185) -> -1.29232e-05 | C180: =IF('DF raw data'!C185="","",'DF raw data'!C185) -> 0.000150605 | D180: =IF('DF raw data'!D185="","",'DF raw data'!D185) -> -2.62593e-05 | F180: -1.298264672e-05 | G180: 0.000151297783 | H180: -2.638009278e-05 | J180: -0.001251715809 | K180: -0.03878087793 | L180: 0.009257148398 | M180: 0.2781988876 | N180: 0.001753004686
A181: =IF('DF raw data'!A186="","",'DF raw data'!A186) -> -240.5 | B181: =IF('DF raw data'!B186="","",'DF raw data'!B186) -> -1.11287e-05 | C181: =IF('DF raw data'!C186="","",'DF raw data'!C186) -> 0.00016077 | D181: =IF('DF raw data'!D186="","",'DF raw data'!D186) -> -2.51677e-05 | F181: -1.117989202e-05 | G181: 0.000161509542 | H181: -2.528347142e-05 | J181: -0.001257305755 | K181: -0.03940953081 | L181: 0.009337903169 | M181: 0.2828678392 | N181: 0.001797393313
A182: =IF('DF raw data'!A187="","",'DF raw data'!A187) -> -240 | B182: =IF('DF raw data'!B187="","",'DF raw data'!B187) -> -2.09947e-05 | C182: =IF('DF raw data'!C187="","",'DF raw data'!C187) -> 0.000155495 | D182: =IF('DF raw data'!D187="","",'DF raw data'!D187) -> -3.22631e-05 | F182: -2.109127562e-05 | G182: 0.000156210277 | H182: -3.241151026e-05 | J182: -0.001267851393 | K182: -0.04004345651 | L182: 0.009416008308 | M182: 0.2875758434 | N182: 0.001842527642
A183: =IF('DF raw data'!A188="","",'DF raw data'!A188) -> -239.5 | B183: =IF('DF raw data'!B188="","",'DF raw data'!B188) -> -7.92034e-06 | C183: =IF('DF raw data'!C188="","",'DF raw data'!C188) -> 0.000157771 | D183: =IF('DF raw data'!D188="","",'DF raw data'!D188) -> -3.12423e-05 | F183: -7.956773564e-06 | G183: 0.0001584967466 | H183: -3.138601458e-05 | J183: -0.00127182978 | K183: -0.0406793714 | L183: 0.009495256681 | M183: 0.2923234717 | N183: 0.001888416368
A184: =IF('DF raw data'!A189="","",'DF raw data'!A189) -> -239 | B184: =IF('DF raw data'!B189="","",'DF raw data'!B189) -> -2.51589e-05 | C184: =IF('DF raw data'!C189="","",'DF raw data'!C189) -> 0.000164419 | D184: =IF('DF raw data'!D189="","",'DF raw data'!D189) -> -3.47111e-05 | F184: -2.527463094e-05 | G184: 0.0001651753274 | H184: -3.487077106e-05 | J184: -0.001284467096 | K184: -0.04132160494 | L184: 0.009577844345 | M184: 0.2971123939 | N184: 0.001935108847
A185: =IF('DF raw data'!A190="","",'DF raw data'!A190) -> -238.5 | B185: =IF('DF raw data'!B190="","",'DF raw data'!B190) -> -3.24641e-05 | C185: =IF('DF raw data'!C190="","",'DF raw data'!C190) -> 0.000173111 | D185: =IF('DF raw data'!D190="","",'DF raw data'!D190) -> -3.37536e-05 | F185: -3.261343486e-05 | G185: 0.0001739073106 | H185: -3.390886656e-05 | J185: -0.001300773813 | K185: -0.04197199185 | L185: 0.009664798 | M185: 0.3019447929 | N185: 0.001982659013
A186: =IF('DF raw data'!A191="","",'DF raw data'!A191) -> -238 | B186: =IF('DF raw data'!B191="","",'DF raw data'!B191) -> -2.47768e-05 | C186: =IF('DF raw data'!C191="","",'DF raw data'!C191) -> 0.000167328 | D186: =IF('DF raw data'!D191="","",'DF raw data'!D191) -> -3.12689e-05 | F186: -2.489077328e-05 | G186: 0.0001680977088 | H186: -3.141273694e-05 | J186: -0.0013132192 | K186: -0.04262860145 | L186: 0.009748846855 | M186: 0.3068192163 | N186: 0.002031041293
A187: =IF('DF raw data'!A192="","",'DF raw data'!A192) -> -237.5 | B187: =IF('DF raw data'!B192="","",'DF raw data'!B192) -> -2.50902e-05 | C187: =IF('DF raw data'!C192="","",'DF raw data'!C192) -> 0.000171696 | D187: =IF('DF raw data'!D192="","",'DF raw data'!D192) -> -3.96892e-05 | F187: -2.520561492e-05 | G187: 0.0001724858016 | H187: -3.987177032e-05 | J187: -0.001325822007 | K187: -0.04329151245 | L187: 0.009835089755 | M187: 0.3117367612 | N187: 0.00208028469
A188: =IF('DF raw data'!A193="","",'DF raw data'!A193) -> -237 | B188: =IF('DF raw data'!B193="","",'DF raw data'!B193) -> -3.12528e-05 | C188: =IF('DF raw data'!C193="","",'DF raw data'!C193) -> 0.00016939 | D188: =IF('DF raw data'!D193="","",'DF raw data'!D193) -> -2.69112e-05 | F188: -3.139656288e-05 | G188: 0.000170169194 | H188: -2.703499152e-05 | J188: -0.001341520289 | K188: -0.0439622726 | L188: 0.009920174352 | M188: 0.3166968484 | N188: 0.002130389458
A189: =IF('DF raw data'!A194="","",'DF raw data'!A194) -> -236.5 | B189: =IF('DF raw data'!B194="","",'DF raw data'!B194) -> -2.49633e-05 | C189: =IF('DF raw data'!C194="","",'DF raw data'!C194) -> 0.000158351 | D189: =IF('DF raw data'!D194="","",'DF raw data'!D194) -> -3.76746e-05 | F189: -2.507813118e-05 | G189: 0.0001590794146 | H189: -3.784790316e-05 | J189: -0.001354059354 | K189: -0.04463930227 | L189: 0.00999971406 | M189: 0.3216967054 | N189: 0.002181303337
A190: =IF('DF raw data'!A195="","",'DF raw data'!A195) -> -236 | B190: =IF('DF raw data'!B195="","",'DF raw data'!B195) -> -1.12472e-05 | C190: =IF('DF raw data'!C195="","",'DF raw data'!C195) -> 0.00015478 | D190: =IF('DF raw data'!D195="","",'DF raw data'!D195) -> -4.12435e-05 | F190: -1.129893712e-05 | G190: 0.000155491988 | H190: -4.14332201e-05 | J190: -0.001359708823 | K190: -0.04531915669 | L190: 0.01007746005 | M190: 0.3267354354 | N190: 0.002233005342
A191: =IF('DF raw data'!A196="","",'DF raw data'!A196) -> -235.5 | B191: =IF('DF raw data'!B196="","",'DF raw data'!B196) -> -1.9765e-05 | C191: =IF('DF raw data'!C196="","",'DF raw data'!C196) -> 0.000156471 | D191: =IF('DF raw data'!D196="","",'DF raw data'!D196) -> -4.90806e-05 | F191: -1.9855919e-05 | G191: 0.0001571907666 | H191: -4.930637076e-05 | J191: -0.001369636782 | K191: -0.04600397508 | L191: 0.01015605544 | M191: 0.3318134632 | N191: 0.002285516025
A192: =IF('DF raw data'!A197="","",'DF raw data'!A197) -> -235 | B192: =IF('DF raw data'!B197="","",'DF raw data'!B197) -> -2.58605e-05 | C192: =IF('DF raw data'!C197="","",'DF raw data'!C197) -> 0.000157174 | D192: =IF('DF raw data'!D197="","",'DF raw data'!D197) -> -4.01932e-05 | F192: =(1-$G$1*($B$49-$G$2))*B192 -> -2.59794583e-05 | G192: 0.0001578970004 | H192: -4.037808872e-05 | J192: =F192*$G$3+J191 -> -0.001382626511 | K192: =J192*$G$3+K191 -> -0.04669528833 | L192: =G192*$G$3+L191 -> 0.01023500394 | M192: =L192*$G$3+M191 -> 0.3369309651 | N192: =(J192^2+L192^2)*$G$3+N191 -> 0.002338849506
A193: =IF('DF raw data'!A198="","",'DF raw data'!A198) -> -234.5 | B193: =IF('DF raw data'!B198="","",'DF raw data'!B198) -> -4.01596e-05 | C193: =IF('DF raw data'!C198="","",'DF raw data'!C198) -> 0.000151606 | D193: =IF('DF raw data'!D198="","",'DF raw data'!D198) -> -2.59981e-05 | F193: -4.034433416e-05 | G193: 0.0001523033876 | H193: -2.611769126e-05 | J193: -0.001402798678 | K193: -0.04739668767 | L193: 0.01031115563 | M193: 0.3420865429 | N193: 0.002392993393
A194: =IF('DF raw data'!A199="","",'DF raw data'!A199) -> -234 | B194: =IF('DF raw data'!B199="","",'DF raw data'!B199) -> -3.06696e-05 | C194: =IF('DF raw data'!C199="","",'DF raw data'!C199) -> 0.000154874 | D194: =IF('DF raw data'!D199="","",'DF raw data'!D199) -> -3.64459e-05 | F194: -3.081068016e-05 | G194: 0.0001555864204 | H194: -3.661355114e-05 | J194: -0.001418204018 | K194: -0.04810578968 | L194: 0.01038894884 | M194: 0.3472810174 | N194: 0.002447964174
A195: =IF('DF raw data'!A200="","",'DF raw data'!A200) -> -233.5 | B195: =IF('DF raw data'!B200="","",'DF raw data'!B200) -> -1.95179e-05 | C195: =IF('DF raw data'!C200="","",'DF raw data'!C200) -> 0.000164477 | D195: =IF('DF raw data'!D200="","",'DF raw data'!D200) -> -3.48544e-05 | F195: -1.960768234e-05 | G195: 0.0001652335942 | H195: -3.501473024e-05 | J195: -0.00142800786 | K195: -0.04881979361 | L195: 0.01047156564 | M195: 0.3525168002 | N195: 0.00250381062
A196: =IF('DF raw data'!A201="","",'DF raw data'!A201) -> -233 | B196: =IF('DF raw data'!B201="","",'DF raw data'!B201) -> -2.38183e-05 | C196: =IF('DF raw data'!C201="","",'DF raw data'!C201) -> 0.000159383 | D196: =IF('DF raw data'!D201="","",'DF raw data'!D201) -> -2.68229e-05 | F196: -2.392786418e-05 | G196: 0.0001601161618 | H196: -2.694628534e-05 | J196: -0.001439971792 | K196: -0.04953977951 | L196: 0.01055162372 | M196: 0.357792612 | N196: 0.002560515761
A197: =IF('DF raw data'!A202="","",'DF raw data'!A202) -> -232.5 | B197: =IF('DF raw data'!B202="","",'DF raw data'!B202) -> -2.43232e-05 | C197: =IF('DF raw data'!C202="","",'DF raw data'!C202) -> 0.000154483 | D197: =IF('DF raw data'!D202="","",'DF raw data'!D202) -> -3.66021e-05 | F197: -2.443508672e-05 | G197: 0.0001551936218 | H197: -3.677046966e-05 | J197: -0.001452189335 | K197: -0.05026587417 | L197: 0.01062922053 | M197: 0.3631072223 | N197: 0.002618060353
A198: =IF('DF raw data'!A203="","",'DF raw data'!A203) -> -232 | B198: =IF('DF raw data'!B203="","",'DF raw data'!B203) -> -1.86801e-05 | C198: =IF('DF raw data'!C203="","",'DF raw data'!C203) -> 0.000165171 | D198: =IF('DF raw data'!D203="","",'DF raw data'!D203) -> -4.36802e-05 | F198: -1.876602846e-05 | G198: 0.0001659307866 | H198: -4.388112892e-05 | J198: -0.001461572349 | K198: -0.05099666035 | L198: 0.01071218592 | M198: 0.3684633153 | N198: 0.002676503913
A199: =IF('DF raw data'!A204="","",'DF raw data'!A204) -> -231.5 | B199: =IF('DF raw data'!B204="","",'DF raw data'!B204) -> -2.11122e-05 | C199: =IF('DF raw data'!C204="","",'DF raw data'!C204) -> 0.000160524 | D199: =IF('DF raw data'!D204="","",'DF raw data'!D204) -> -4.67371e-05 | F199: -2.120931612e-05 | G199: 0.0001612624104 | H199: -4.695209066e-05 | J199: -0.001472177007 | K199: -0.05173274885 | L199: 0.01079281713 | M199: 0.3738597238 | N199: 0.002735830016
A200: =IF('DF raw data'!A205="","",'DF raw data'!A205) -> -231 | B200: =IF('DF raw data'!B205="","",'DF raw data'!B205) -> -2.65645e-05 | C200: =IF('DF raw data'!C205="","",'DF raw data'!C205) -> 0.00016428 | D200: =IF('DF raw data'!D205="","",'DF raw data'!D205) -> -4.1844e-05 | F200: -2.66866967e-05 | G200: 0.000165035688 | H200: -4.20364824e-05 | J200: -0.001485520356 | K200: -0.05247550903 | L200: 0.01087533497 | M200: 0.3792973913 | N200: 0.002796069857
A201: =IF('DF raw data'!A206="","",'DF raw data'!A206) -> -230.5 | B201: =IF('DF raw data'!B206="","",'DF raw data'!B206) -> -2.40022e-05 | C201: =IF('DF raw data'!C206="","",'DF raw data'!C206) -> 0.000165199 | D201: =IF('DF raw data'!D206="","",'DF raw data'!D206) -> -3.73195e-05 | F201: -2.411261012e-05 | G201: 0.0001659589154 | H201: -3.74911697e-05 | J201: -0.001497576661 | K201: -0.05322429736 | L201: 0.01095831443 | M201: 0.3847765485 | N201: 0.002857233553
... 1061 more rows

Sheet 10 x=-1
A1: =IF('DF raw data'!E1="","",'DF raw data'!E1) -> Number of header lines | B1: =IF('DF raw data'!F1="","",'DF raw data'!F1) -> 54 | C1: =IF('DF raw data'!G1="","",'DF raw data'!G1) ->  | D1: =IF('DF raw data'!H1="","",'DF raw data'!H1) ->  | F1: T_coeff | G1: -0.001 | H1: /degC | J1: IBy total | K1: =J1262*1000 -> -2.711119483 | L1: muTm | M1: =L1262*1000 -> 54.02727079 | R1: DF ref | S1: ='10 x=-2'!S1 -> 1
A2: =IF('DF raw data'!E2="","",'DF raw data'!E2) -> Measured by | B2: =IF('DF raw data'!F2="","",'DF raw data'!F2) -> Danfysik | C2: =IF('DF raw data'!G2="","",'DF raw data'!G2) ->  | D2: =IF('DF raw data'!H2="","",'DF raw data'!H2) ->  | F2: Tcorr | G2: 20 | H2: degC | J2: JBy total | K2: =K1262 -> -31.7551526 | L2: muTm^2 | M2: =M1262 -> 21.26026924
A3: =IF('DF raw data'!E3="","",'DF raw data'!E3) -> Operator | B3: =IF('DF raw data'!F3="","",'DF raw data'!F3) -> PMHA | C3: =IF('DF raw data'!G3="","",'DF raw data'!G3) ->  | D3: =IF('DF raw data'!H3="","",'DF raw data'!H3) ->  | F3: Step | G3: =A63-A62 -> 0.5 | H3: mm | J3: PI total | K3: =N1262 -> 10428.02036 | L3: T^2mm^3
A4: =IF('DF raw data'!E4="","",'DF raw data'!E4) -> Data-time | B4: =IF('DF raw data'!F4="","",'DF raw data'!F4) -> 23-09-2024, 14:30:48 | C4: =IF('DF raw data'!G4="","",'DF raw data'!G4) ->  | D4: =IF('DF raw data'!H4="","",'DF raw data'!H4) -> 
A5: =IF('DF raw data'!E5="","",'DF raw data'!E5) -> Project | B5: =IF('DF raw data'!F5="","",'DF raw data'!F5) -> 504314 | C5: =IF('DF raw data'!G5="","",'DF raw data'!G5) ->  | D5: =IF('DF raw data'!H5="","",'DF raw data'!H5) -> 
A6: =IF('DF raw data'!E6="","",'DF raw data'!E6) -> Magnet type | B6: =IF('DF raw data'!F6="","",'DF raw data'!F6) -> Dipole | C6: =IF('DF raw data'!G6="","",'DF raw data'!G6) ->  | D6: =IF('DF raw data'!H6="","",'DF raw data'!H6) -> 
A7: =IF('DF raw data'!E7="","",'DF raw data'!E7) -> Magnet nr. | B7: =IF('DF raw data'!F7="","",'DF raw data'!F7) -> 2410100 | C7: =IF('DF raw data'!G7="","",'DF raw data'!G7) ->  | D7: =IF('DF raw data'!H7="","",'DF raw data'!H7) -> 
A8: =IF('DF raw data'!E8="","",'DF raw data'!E8) -> Meas. number | B8: =IF('DF raw data'!F8="","",'DF raw data'!F8) -> 643 | C8: =IF('DF raw data'!G8="","",'DF raw data'!G8) ->  | D8: =IF('DF raw data'!H8="","",'DF raw data'!H8) -> 
A9: =IF('DF raw data'!E9="","",'DF raw data'!E9) -> Add. info | B9: =IF('DF raw data'!F9="","",'DF raw data'!F9) -> X-alignment scan 2) | C9: =IF('DF raw data'!G9="","",'DF raw data'!G9) ->  | D9: =IF('DF raw data'!H9="","",'DF raw data'!H9) -> 
A10: =IF('DF raw data'!E10="","",'DF raw data'!E10) -> Device | B10: =IF('DF raw data'!F10="","",'DF raw data'!F10) -> (HAL) HALL-PROBE | C10: =IF('DF raw data'!G10="","",'DF raw data'!G10) ->  | D10: =IF('DF raw data'!H10="","",'DF raw data'!H10) -> 
A11: =IF('DF raw data'!E11="","",'DF raw data'!E11) -> Goal | B11: =IF('DF raw data'!F11="","",'DF raw data'!F11) -> (AXI) AXis Integral (Line, EFB) | C11: =IF('DF raw data'!G11="","",'DF raw data'!G11) ->  | D11: =IF('DF raw data'!H11="","",'DF raw data'!H11) -> 
A12: =IF('DF raw data'!E12="","",'DF raw data'!E12) -> Power supply mode | B12: =IF('DF raw data'!F12="","",'DF raw data'!F12) -> (PM) Permanent Magnet (no MPS in use) | C12: =IF('DF raw data'!G12="","",'DF raw data'!G12) ->  | D12: =IF('DF raw data'!H12="","",'DF raw data'!H12) -> 
A13: =IF('DF raw data'!E13="","",'DF raw data'!E13) -> Data format | B13: =IF('DF raw data'!F13="","",'DF raw data'!F13) -> Raw data text file | C13: =IF('DF raw data'!G13="","",'DF raw data'!G13) ->  | D13: =IF('DF raw data'!H13="","",'DF raw data'!H13) -> 
A14: =IF('DF raw data'!E14="","",'DF raw data'!E14) -> Direction of the pos. x-axis | B14: =IF('DF raw data'!F14="","",'DF raw data'!F14) -> See test program | C14: =IF('DF raw data'!G14="","",'DF raw data'!G14) ->  | D14: =IF('DF raw data'!H14="","",'DF raw data'!H14) -> 
A15: =IF('DF raw data'!E15="","",'DF raw data'!E15) -> Direction of the pos. y-axis | B15: =IF('DF raw data'!F15="","",'DF raw data'!F15) -> Vertical up | C15: =IF('DF raw data'!G15="","",'DF raw data'!G15) ->  | D15: =IF('DF raw data'!H15="","",'DF raw data'!H15) -> 
A16: =IF('DF raw data'!E16="","",'DF raw data'!E16) -> Direction of the pos. z-axis | B16: =IF('DF raw data'!F16="","",'DF raw data'!F16) -> See test program | C16: =IF('DF raw data'!G16="","",'DF raw data'!G16) ->  | D16: =IF('DF raw data'!H16="","",'DF raw data'!H16) -> 
A17: =IF('DF raw data'!E17="","",'DF raw data'!E17) -> Mapper type | B17: =IF('DF raw data'!F17="","",'DF raw data'!F17) -> Precision Hall Mapper | C17: =IF('DF raw data'!G17="","",'DF raw data'!G17) ->  | D17: =IF('DF raw data'!H17="","",'DF raw data'!H17) -> 
A18: =IF('DF raw data'!E18="","",'DF raw data'!E18) -> Mapper Danfysik Reg. Number | B18: =IF('DF raw data'!F18="","",'DF raw data'!F18) -> 2033-D (mapper 1) | C18: =IF('DF raw data'!G18="","",'DF raw data'!G18) ->  | D18: =IF('DF raw data'!H18="","",'DF raw data'!H18) -> 
A19: =IF('DF raw data'!E19="","",'DF raw data'!E19) -> Measurement consept | B19: =IF('DF raw data'!F19="","",'DF raw data'!F19) -> Square line grid | C19: =IF('DF raw data'!G19="","",'DF raw data'!G19) ->  | D19: =IF('DF raw data'!H19="","",'DF raw data'!H19) -> 
A20: =IF('DF raw data'!E20="","",'DF raw data'!E20) -> Mode | B20: =IF('DF raw data'!F20="","",'DF raw data'!F20) -> On-the-fly measurement | C20: =IF('DF raw data'!G20="","",'DF raw data'!G20) ->  | D20: =IF('DF raw data'!H20="","",'DF raw data'!H20) -> 
A21: =IF('DF raw data'!E21="","",'DF raw data'!E21) ->  | B21: =IF('DF raw data'!F21="","",'DF raw data'!F21) ->  | C21: =IF('DF raw data'!G21="","",'DF raw data'!G21) ->  | D21: =IF('DF raw data'!H21="","",'DF raw data'!H21) -> 
A22: =IF('DF raw data'!E22="","",'DF raw data'!E22) -> Probe Name | B22: =IF('DF raw data'!F22="","",'DF raw data'!F22) -> ID12_By | C22: =IF('DF raw data'!G22="","",'DF raw data'!G22) ->  | D22: =IF('DF raw data'!H22="","",'DF raw data'!H22) -> 
A23: =IF('DF raw data'!E23="","",'DF raw data'!E23) -> Probe Type | B23: =IF('DF raw data'!F23="","",'DF raw data'!F23) -> DF_ID_3D_Bxyz | C23: =IF('DF raw data'!G23="","",'DF raw data'!G23) ->  | D23: =IF('DF raw data'!H23="","",'DF raw data'!H23) -> 
A24: =IF('DF raw data'!E24="","",'DF raw data'!E24) -> Probe Danfysik Reg. Number | B24: =IF('DF raw data'!F24="","",'DF raw data'!F24) -> 2277 | C24: =IF('DF raw data'!G24="","",'DF raw data'!G24) ->  | D24: =IF('DF raw data'!H24="","",'DF raw data'!H24) -> 
A25: =IF('DF raw data'!E25="","",'DF raw data'!E25) -> Probe Axis | B25: =IF('DF raw data'!F25="","",'DF raw data'!F25) -> By | C25: =IF('DF raw data'!G25="","",'DF raw data'!G25) ->  | D25: =IF('DF raw data'!H25="","",'DF raw data'!H25) -> 
A26: =IF('DF raw data'!E26="","",'DF raw data'!E26) -> Probe Current Supply | B26: =IF('DF raw data'!F26="","",'DF raw data'!F26) -> 1825-D | C26: =IF('DF raw data'!G26="","",'DF raw data'!G26) ->  | D26: =IF('DF raw data'!H26="","",'DF raw data'!H26) -> 
A27: =IF('DF raw data'!E27="","",'DF raw data'!E27) -> Probe Gain Correction | B27: =IF('DF raw data'!F27="","",'DF raw data'!F27) -> 0.99619 | C27: =IF('DF raw data'!G27="","",'DF raw data'!G27) ->  | D27: =IF('DF raw data'!H27="","",'DF raw data'!H27) -> 
A28: =IF('DF raw data'!E28="","",'DF raw data'!E28) -> Probe Offset Correction | B28: =IF('DF raw data'!F28="","",'DF raw data'!F28) -> 0.0027544 | C28: =IF('DF raw data'!G28="","",'DF raw data'!G28) ->  | D28: =IF('DF raw data'!H28="","",'DF raw data'!H28) -> 
A29: =IF('DF raw data'!E29="","",'DF raw data'!E29) -> DVM Number | B29: =IF('DF raw data'!F29="","",'DF raw data'!F29) -> 2 | C29: =IF('DF raw data'!G29="","",'DF raw data'!G29) ->  | D29: =IF('DF raw data'!H29="","",'DF raw data'!H29) -> 
A30: =IF('DF raw data'!E30="","",'DF raw data'!E30) -> DVM Type | B30: =IF('DF raw data'!F30="","",'DF raw data'!F30) -> K2701 | C30: =IF('DF raw data'!G30="","",'DF raw data'!G30) ->  | D30: =IF('DF raw data'!H30="","",'DF raw data'!H30) -> 
A31: =IF('DF raw data'!E31="","",'DF raw data'!E31) -> DVM Danfysik Reg. Number | B31: =IF('DF raw data'!F31="","",'DF raw data'!F31) -> 1743-D | C31: =IF('DF raw data'!G31="","",'DF raw data'!G31) ->  | D31: =IF('DF raw data'!H31="","",'DF raw data'!H31) -> 
A32: =IF('DF raw data'!E32="","",'DF raw data'!E32) -> Probe Name | B32: =IF('DF raw data'!F32="","",'DF raw data'!F32) -> ID12_Bx | C32: =IF('DF raw data'!G32="","",'DF raw data'!G32) ->  | D32: =IF('DF raw data'!H32="","",'DF raw data'!H32) -> 
A33: =IF('DF raw data'!E33="","",'DF raw data'!E33) -> Probe Type | B33: =IF('DF raw data'!F33="","",'DF raw data'!F33) -> DF_ID_3D_Bxyz | C33: =IF('DF raw data'!G33="","",'DF raw data'!G33) ->  | D33: =IF('DF raw data'!H33="","",'DF raw data'!H33) -> 
A34: =IF('DF raw data'!E34="","",'DF raw data'!E34) -> Probe Danfysik Reg. Number | B34: =IF('DF raw data'!F34="","",'DF raw data'!F34) -> 2277 | C34: =IF('DF raw data'!G34="","",'DF raw data'!G34) ->  | D34: =IF('DF raw data'!H34="","",'DF raw data'!H34) -> 
A35: =IF('DF raw data'!E35="","",'DF raw data'!E35) -> Probe Axis | B35: =IF('DF raw data'!F35="","",'DF raw data'!F35) -> Bx | C35: =IF('DF raw data'!G35="","",'DF raw data'!G35) ->  | D35: =IF('DF raw data'!H35="","",'DF raw data'!H35) -> 
A36: =IF('DF raw data'!E36="","",'DF raw data'!E36) -> Probe Current Supply | B36: =IF('DF raw data'!F36="","",'DF raw data'!F36) -> 1825-D | C36: =IF('DF raw data'!G36="","",'DF raw data'!G36) ->  | D36: =IF('DF raw data'!H36="","",'DF raw data'!H36) -> 
A37: =IF('DF raw data'!E37="","",'DF raw data'!E37) -> Probe Gain Correction | B37: =IF('DF raw data'!F37="","",'DF raw data'!F37) -> 1 | C37: =IF('DF raw data'!G37="","",'DF raw data'!G37) ->  | D37: =IF('DF raw data'!H37="","",'DF raw data'!H37) -> 
A38: =IF('DF raw data'!E38="","",'DF raw data'!E38) -> Probe Offset Correction | B38: =IF('DF raw data'!F38="","",'DF raw data'!F38) -> -0.1756 | C38: =IF('DF raw data'!G38="","",'DF raw data'!G38) ->  | D38: =IF('DF raw data'!H38="","",'DF raw data'!H38) -> 
A39: =IF('DF raw data'!E39="","",'DF raw data'!E39) -> DVM Number | B39: =IF('DF raw data'!F39="","",'DF raw data'!F39) -> 3 | C39: =IF('DF raw data'!G39="","",'DF raw data'!G39) ->  | D39: =IF('DF raw data'!H39="","",'DF raw data'!H39) -> 
A40: =IF('DF raw data'!E40="","",'DF raw data'!E40) -> DVM Type | B40: =IF('DF raw data'!F40="","",'DF raw data'!F40) -> K2701 | C40: =IF('DF raw data'!G40="","",'DF raw data'!G40) ->  | D40: =IF('DF raw data'!H40="","",'DF raw data'!H40) -> 
A41: =IF('DF raw data'!E41="","",'DF raw data'!E41) -> DVM Danfysik Reg. Number | B41: =IF('DF raw data'!F41="","",'DF raw data'!F41) -> 1744-D | C41: =IF('DF raw data'!G41="","",'DF raw data'!G41) ->  | D41: =IF('DF raw data'!H41="","",'DF raw data'!H41) -> 
A42: =IF('DF raw data'!E42="","",'DF raw data'!E42) -> Probe Name | B42: =IF('DF raw data'!F42="","",'DF raw data'!F42) -> ID12_Bz | C42: =IF('DF raw data'!G42="","",'DF raw data'!G42) ->  | D42: =IF('DF raw data'!H42="","",'DF raw data'!H42) -> 
A43: =IF('DF raw data'!E43="","",'DF raw data'!E43) -> Probe Type | B43: =IF('DF raw data'!F43="","",'DF raw data'!F43) -> DF_ID_3D_Bxyz | C43: =IF('DF raw data'!G43="","",'DF raw data'!G43) ->  | D43: =IF('DF raw data'!H43="","",'DF raw data'!H43) -> 
A44: =IF('DF raw data'!E44="","",'DF raw data'!E44) -> Probe Danfysik Reg. Number | B44: =IF('DF raw data'!F44="","",'DF raw data'!F44) -> 2277 | C44: =IF('DF raw data'!G44="","",'DF raw data'!G44) ->  | D44: =IF('DF raw data'!H44="","",'DF raw data'!H44) -> 
A45: =IF('DF raw data'!E45="","",'DF raw data'!E45) -> Probe Axis | B45: =IF('DF raw data'!F45="","",'DF raw data'!F45) -> Bz | C45: =IF('DF raw data'!G45="","",'DF raw data'!G45) ->  | D45: =IF('DF raw data'!H45="","",'DF raw data'!H45) -> 
A46: =IF('DF raw data'!E46="","",'DF raw data'!E46) -> Probe Current Supply | B46: =IF('DF raw data'!F46="","",'DF raw data'!F46) -> 1825-D | C46: =IF('DF raw data'!G46="","",'DF raw data'!G46) ->  | D46: =IF('DF raw data'!H46="","",'DF raw data'!H46) -> 
A47: =IF('DF raw data'!E47="","",'DF raw data'!E47) -> Probe Gain Correction | B47: =IF('DF raw data'!F47="","",'DF raw data'!F47) -> 1 | C47: =IF('DF raw data'!G47="","",'DF raw data'!G47) ->  | D47: =IF('DF raw data'!H47="","",'DF raw data'!H47) -> 
A48: =IF('DF raw data'!E53="","",'DF raw data'!E53) -> PS-Gap: | B48: =IF('DF raw data'!F53="","",'DF raw data'!F53) -> 10 | C48: =IF('DF raw data'!G53="","",'DF raw data'!G53) ->  | D48: =IF('DF raw data'!H53="","",'DF raw data'!H53) -> 
A49: =IF('DF raw data'!E54="","",'DF raw data'!E54) -> PS-Temperature: | B49: =IF('DF raw data'!F54="","",'DF raw data'!F54) -> 24.6 | C49: =IF('DF raw data'!G54="","",'DF raw data'!G54) ->  | D49: =IF('DF raw data'!H54="","",'DF raw data'!H54) -> 
A50: =IF('DF raw data'!E55="","",'DF raw data'!E55) -> PS-Encoder: | B50: =IF('DF raw data'!F55="","",'DF raw data'!F55) -> 19.8194 | C50: =IF('DF raw data'!G55="","",'DF raw data'!G55) ->  | D50: =IF('DF raw data'!H55="","",'DF raw data'!H55) -> 
A51: =IF('DF raw data'!E56="","",'DF raw data'!E56) ->  | B51: =IF('DF raw data'!F56="","",'DF raw data'!F56) ->  | C51: =IF('DF raw data'!G56="","",'DF raw data'!G56) ->  | D51: =IF('DF raw data'!H56="","",'DF raw data'!H56) -> 
A52: =IF('DF raw data'!E57="","",'DF raw data'!E57) -> Monitor-Index | B52: =IF('DF raw data'!F57="","",'DF raw data'!F57) -> [1,1,4] | C52: =IF('DF raw data'!G57="","",'DF raw data'!G57) ->  | D52: =IF('DF raw data'!H57="","",'DF raw data'!H57) -> 
A53: =IF('DF raw data'!E58="","",'DF raw data'!E58) ->  | B53: =IF('DF raw data'!F58="","",'DF raw data'!F58) ->  | C53: =IF('DF raw data'!G58="","",'DF raw data'!G58) ->  | D53: =IF('DF raw data'!H58="","",'DF raw data'!H58) -> 
A54: =IF('DF raw data'!E59="","",'DF raw data'!E59) -> Time [s] | B54: =IF('DF raw data'!F59="","",'DF raw data'!F59) -> Y [mm] | C54: =IF('DF raw data'!G59="","",'DF raw data'!G59) -> X [mm] | D54: =IF('DF raw data'!H59="","",'DF raw data'!H59) -> Nominal current [A]
A55: =IF('DF raw data'!E60="","",'DF raw data'!E60) ->  | B55: =IF('DF raw data'!F60="","",'DF raw data'!F60) ->  | C55: =IF('DF raw data'!G60="","",'DF raw data'!G60) ->  | D55: =IF('DF raw data'!H60="","",'DF raw data'!H60) -> 
A56: =IF('DF raw data'!E61="","",'DF raw data'!E61) -> 208.2 | B56: =IF('DF raw data'!F61="","",'DF raw data'!F61) -> 31.55 | C56: =IF('DF raw data'!G61="","",'DF raw data'!G61) -> 301.55 | D56: =IF('DF raw data'!H61="","",'DF raw data'!H61) -> 0
A57: =IF('DF raw data'!E62="","",'DF raw data'!E62) ->  | B57: =IF('DF raw data'!F62="","",'DF raw data'!F62) ->  | C57: =IF('DF raw data'!G62="","",'DF raw data'!G62) ->  | D57: =IF('DF raw data'!H62="","",'DF raw data'!H62) -> 
A58: =IF('DF raw data'!E63="","",'DF raw data'!E63) -> Measurement-Index | B58: =IF('DF raw data'!F63="","",'DF raw data'!F63) -> [1,1,1201,2] | C58: =IF('DF raw data'!G63="","",'DF raw data'!G63) ->  | D58: =IF('DF raw data'!H63="","",'DF raw data'!H63) -> 
A59: =IF('DF raw data'!E64="","",'DF raw data'!E64) ->  | B59: =IF('DF raw data'!F64="","",'DF raw data'!F64) ->  | C59: =IF('DF raw data'!G64="","",'DF raw data'!G64) ->  | D59: =IF('DF raw data'!H64="","",'DF raw data'!H64) -> 
A60: =IF('DF raw data'!E65="","",'DF raw data'!E65) -> Z [mm] | B60: By [T] | C60: Bx [T] | D60: Bz [T] | F60: By_corr | G60: Bx_corr | H60: Bz_corr | J60: Iy | K60: Jy | L60: Ix | M60: Jx | N60: PI
A62: =IF('DF raw data'!E67="","",'DF raw data'!E67) -> -300 | B62: =IF('DF raw data'!F67="","",'DF raw data'!F67) -> -1.81049e-05 | C62: =IF('DF raw data'!G67="","",'DF raw data'!G67) -> 9.39135e-05 | D62: =IF('DF raw data'!H67="","",'DF raw data'!H67) -> -4.35031e-05 | F62: =(1-$G$1*($B$49))*B62 -> -1.855028054e-05 | G62: =(1-$G$1*($B$49-$G$2))*C62 -> 9.43455021e-05 | H62: =(1-$G$1*($B$49-$G$2))*D62 -> -4.370321426e-05 | J62: =F62*$G$3 -> -9.27514027e-06 | K62: =J62*$G$3 -> -4.637570135e-06 | L62: =G62*$G$3 -> 4.717275105e-05 | M62: =L62*$G$3 -> 2.358637552e-05 | N62: =(J62^2+L62^2)*$G$3 -> 1.155648334e-09
A63: =IF('DF raw data'!E68="","",'DF raw data'!E68) -> -299.5 | B63: =IF('DF raw data'!F68="","",'DF raw data'!F68) -> -2.29118e-05 | C63: =IF('DF raw data'!G68="","",'DF raw data'!G68) -> 0.000106954 | D63: =IF('DF raw data'!H68="","",'DF raw data'!H68) -> -4.31973e-05 | F63: =(1-$G$1*($B$49-$G$2))*B63 -> -2.301719428e-05 | G63: =(1-$G$1*($B$49-$G$2))*C63 -> 0.0001074459884 | H63: -4.339600758e-05 | J63: =F63*$G$3+J62 -> -2.078373741e-05 | K63: =J63*$G$3+K62 -> -1.502943884e-05 | L63: =G63*$G$3+L62 -> 0.0001008957452 | M63: =L63*$G$3+M62 -> 7.403424815e-05 | N63: =(J63^2+L63^2)*$G$3+N62 -> 6.461605909e-09
A64: =IF('DF raw data'!E69="","",'DF raw data'!E69) -> -299 | B64: =IF('DF raw data'!F69="","",'DF raw data'!F69) -> -2.32322e-05 | C64: =IF('DF raw data'!G69="","",'DF raw data'!G69) -> 0.000113929 | D64: =IF('DF raw data'!H69="","",'DF raw data'!H69) -> -4.25768e-05 | F64: =(1-$G$1*($B$49-$G$2))*B64 -> -2.333906812e-05 | G64: 0.0001144530734 | H64: -4.277265328e-05 | J64: =F64*$G$3+J63 -> -3.245327147e-05 | K64: =J64*$G$3+K63 -> -3.125607457e-05 | L64: =G64*$G$3+L63 -> 0.0001581222819 | M64: =L64*$G$3+M63 -> 0.0001530953891 | N64: =(J64^2+L64^2)*$G$3+N63 -> 1.948954135e-08
A65: =IF('DF raw data'!E70="","",'DF raw data'!E70) -> -298.5 | B65: =IF('DF raw data'!F70="","",'DF raw data'!F70) -> -2.40035e-05 | C65: =IF('DF raw data'!G70="","",'DF raw data'!G70) -> 0.000105985 | D65: =IF('DF raw data'!H70="","",'DF raw data'!H70) -> -4.22442e-05 | F65: -2.41139161e-05 | G65: 0.000106472531 | H65: -4.243852332e-05 | J65: -4.451022952e-05 | K65: -5.351118933e-05 | L65: 0.0002113585474 | M65: 0.0002587746628 | N65: 4.28163394e-08
A66: =IF('DF raw data'!E71="","",'DF raw data'!E71) -> -298 | B66: =IF('DF raw data'!F71="","",'DF raw data'!F71) -> -1.6503e-05 | C66: =IF('DF raw data'!G71="","",'DF raw data'!G71) -> 0.000104678 | D66: =IF('DF raw data'!H71="","",'DF raw data'!H71) -> -4.24126e-05 | F66: -1.65789138e-05 | G66: 0.0001051595188 | H66: -4.260769796e-05 | J66: -5.279968642e-05 | K66: -7.991103254e-05 | L66: 0.0002639383068 | M66: 0.0003907438163 | N66: 7.904195776e-08
A67: =IF('DF raw data'!E72="","",'DF raw data'!E72) -> -297.5 | B67: =IF('DF raw data'!F72="","",'DF raw data'!F72) -> -2.4644e-05 | C67: =IF('DF raw data'!G72="","",'DF raw data'!G72) -> 0.000107785 | D67: =IF('DF raw data'!H72="","",'DF raw data'!H72) -> -4.23614e-05 | F67: -2.47573624e-05 | G67: 0.000108280811 | H67: -4.255626244e-05 | J67: -6.517836762e-05 | K67: -0.0001125002164 | L67: 0.0003180787123 | M67: 0.0005497831724 | N67: 1.317531012e-07
A68: =IF('DF raw data'!E73="","",'DF raw data'!E73) -> -297 | B68: =IF('DF raw data'!F73="","",'DF raw data'!F73) -> -2.23996e-05 | C68: =IF('DF raw data'!G73="","",'DF raw data'!G73) -> 0.000111541 | D68: =IF('DF raw data'!H73="","",'DF raw data'!H73) -> -4.21053e-05 | F68: -2.250263816e-05 | G68: 0.0001120540886 | H68: -4.229898438e-05 | J68: -7.64296867e-05 | K68: -0.0001507150597 | L68: 0.0003741057566 | M68: 0.0007368360508 | N68: 2.046514083e-07
A69: =IF('DF raw data'!E74="","",'DF raw data'!E74) -> -296.5 | B69: =IF('DF raw data'!F74="","",'DF raw data'!F74) -> -1.50296e-05 | C69: =IF('DF raw data'!G74="","",'DF raw data'!G74) -> 0.000105544 | D69: =IF('DF raw data'!H74="","",'DF raw data'!H74) -> -4.24778e-05 | F69: -1.509873616e-05 | G69: 0.0001060295024 | H69: -4.267319788e-05 | J69: -8.397905478e-05 | K69: -0.0001927045871 | L69: 0.0004271205078 | M69: 0.0009503963047 | N69: 2.993936132e-07
A70: =IF('DF raw data'!E75="","",'DF raw data'!E75) -> -296 | B70: =IF('DF raw data'!F75="","",'DF raw data'!F75) -> -1.9066e-05 | C70: =IF('DF raw data'!G75="","",'DF raw data'!G75) -> 9.98141e-05 | D70: =IF('DF raw data'!H75="","",'DF raw data'!H75) -> -4.33338e-05 | F70: -1.91537036e-05 | G70: 0.0001002732449 | H70: -4.353313548e-05 | J70: -9.355590658e-05 | K70: -0.0002394825404 | L70: 0.0004772571303 | M70: 0.00118902487 | N70: 4.176571512e-07
A71: =IF('DF raw data'!E76="","",'DF raw data'!E76) -> -295.5 | B71: =IF('DF raw data'!F76="","",'DF raw data'!F76) -> -2.50916e-05 | C71: =IF('DF raw data'!G76="","",'DF raw data'!G76) -> 0.000103959 | D71: =IF('DF raw data'!H76="","",'DF raw data'!H76) -> -4.37431e-05 | F71: -2.520702136e-05 | G71: 0.0001044372114 | H71: -4.394431826e-05 | J71: -0.0001061594173 | K71: -0.000292562249 | L71: 0.000529475736 | M71: 0.001453762738 | N71: 5.634643397e-07
A72: =IF('DF raw data'!E77="","",'DF raw data'!E77) -> -295 | B72: =IF('DF raw data'!F77="","",'DF raw data'!F77) -> -2.93845e-05 | C72: =IF('DF raw data'!G77="","",'DF raw data'!G77) -> 0.000107574 | D72: =IF('DF raw data'!H77="","",'DF raw data'!H77) -> -4.33532e-05 | F72: -2.95196687e-05 | G72: 0.0001080688404 | H72: -4.355262472e-05 | J72: -0.0001209192516 | K72: -0.0003530218748 | L72: 0.0005835101562 | M72: 0.001745517816 | N72: 7.410171236e-07
A73: =IF('DF raw data'!E78="","",'DF raw data'!E78) -> -294.5 | B73: =IF('DF raw data'!F78="","",'DF raw data'!F78) -> -3.07329e-05 | C73: =IF('DF raw data'!G78="","",'DF raw data'!G78) -> 0.000110636 | D73: =IF('DF raw data'!H78="","",'DF raw data'!H78) -> -4.23637e-05 | F73: -3.087427134e-05 | G73: 0.0001111449256 | H73: -4.255857302e-05 | J73: -0.0001363563873 | K73: -0.0004212000685 | L73: 0.000639082619 | M73: 0.002065059125 | N73: 9.545269527e-07
A74: =IF('DF raw data'!E79="","",'DF raw data'!E79) -> -294 | B74: =IF('DF raw data'!F79="","",'DF raw data'!F79) -> -3.48976e-05 | C74: =IF('DF raw data'!G79="","",'DF raw data'!G79) -> 9.92283e-05 | D74: =IF('DF raw data'!H79="","",'DF raw data'!H79) -> -4.15686e-05 | F74: -3.505812896e-05 | G74: 9.968475018e-05 | H74: -4.175981556e-05 | J74: -0.0001538854518 | K74: -0.0004981427943 | L74: 0.0006889249941 | M74: 0.002409521622 | N74: 1.203676143e-06
A75: =IF('DF raw data'!E80="","",'DF raw data'!E80) -> -293.5 | B75: =IF('DF raw data'!F80="","",'DF raw data'!F80) -> -1.29791e-05 | C75: =IF('DF raw data'!G80="","",'DF raw data'!G80) -> 0.000107611 | D75: =IF('DF raw data'!H80="","",'DF raw data'!H80) -> -4.17794e-05 | F75: -1.303880386e-05 | G75: 0.0001081060106 | H75: -4.197158524e-05 | J75: -0.0001604048537 | K75: -0.0005783452212 | L75: 0.0007429779994 | M75: 0.002781010622 | N75: 1.492549155e-06
A76: =IF('DF raw data'!E81="","",'DF raw data'!E81) -> -293 | B76: =IF('DF raw data'!F81="","",'DF raw data'!F81) -> -3.15004e-05 | C76: =IF('DF raw data'!G81="","",'DF raw data'!G81) -> 0.000108173 | D76: =IF('DF raw data'!H81="","",'DF raw data'!H81) -> -4.21228e-05 | F76: -3.164530184e-05 | G76: 0.0001086705958 | H76: -4.231656488e-05 | J76: -0.0001762275046 | K76: -0.0006664589735 | L76: 0.0007973132973 | M76: 0.003179667271 | N76: 1.825931469e-06
A77: =IF('DF raw data'!E82="","",'DF raw data'!E82) -> -292.5 | B77: =IF('DF raw data'!F82="","",'DF raw data'!F82) -> -1.91958e-05 | C77: =IF('DF raw data'!G82="","",'DF raw data'!G82) -> 0.000105443 | D77: =IF('DF raw data'!H82="","",'DF raw data'!H82) -> -4.23785e-05 | F77: -1.928410068e-05 | G77: 0.0001059280378 | H77: -4.25734411e-05 | J77: -0.0001858695549 | K77: -0.000759393751 | L77: 0.0008502773162 | M77: 0.003604805929 | N77: 2.204690971e-06
A78: =IF('DF raw data'!E83="","",'DF raw data'!E83) -> -292 | B78: =IF('DF raw data'!F83="","",'DF raw data'!F83) -> -2.04761e-05 | C78: =IF('DF raw data'!G83="","",'DF raw data'!G83) -> 0.000113202 | D78: =IF('DF raw data'!H83="","",'DF raw data'!H83) -> -4.29212e-05 | F78: -2.057029006e-05 | G78: 0.0001137227292 | H78: -4.311863752e-05 | J78: -0.0001961547 | K78: -0.000857471101 | L78: 0.0009071386808 | M78: 0.004058375269 | N78: 2.635379598e-06
A79: =IF('DF raw data'!E84="","",'DF raw data'!E84) -> -291.5 | B79: =IF('DF raw data'!F84="","",'DF raw data'!F84) -> -2.51614e-05 | C79: =IF('DF raw data'!G84="","",'DF raw data'!G84) -> 0.000109383 | D79: =IF('DF raw data'!H84="","",'DF raw data'!H84) -> -3.5144e-05 | F79: -2.527714244e-05 | G79: 0.0001098861618 | H79: -3.53056624e-05 | J79: -0.0002087932712 | K79: -0.0009618677366 | L79: 0.0009620817617 | M79: 0.00453941615 | N79: 3.119977571e-06
A80: =IF('DF raw data'!E85="","",'DF raw data'!E85) -> -291 | B80: =IF('DF raw data'!F85="","",'DF raw data'!F85) -> -3.07403e-05 | C80: =IF('DF raw data'!G85="","",'DF raw data'!G85) -> 0.00010166 | D80: =IF('DF raw data'!H85="","",'DF raw data'!H85) -> -2.82711e-05 | F80: -3.088170538e-05 | G80: 0.000102127636 | H80: -2.840114706e-05 | J80: -0.0002242341239 | K80: -0.001073984798 | L80: 0.00101314558 | M80: 0.00504598894 | N80: 3.658350025e-06
A81: =IF('DF raw data'!E86="","",'DF raw data'!E86) -> -290.5 | B81: =IF('DF raw data'!F86="","",'DF raw data'!F86) -> -3.00317e-05 | C81: =IF('DF raw data'!G86="","",'DF raw data'!G86) -> 0.000103283 | D81: =IF('DF raw data'!H86="","",'DF raw data'!H86) -> -3.64037e-05 | F81: -3.016984582e-05 | G81: 0.0001037581018 | H81: -3.657115702e-05 | J81: -0.0002393190468 | K81: -0.001193644322 | L81: 0.001065024631 | M81: 0.005578501255 | N81: 4.25412556e-06
A82: =IF('DF raw data'!E87="","",'DF raw data'!E87) -> -290 | B82: =IF('DF raw data'!F87="","",'DF raw data'!F87) -> -3.3687e-05 | C82: =IF('DF raw data'!G87="","",'DF raw data'!G87) -> 0.000102079 | D82: =IF('DF raw data'!H87="","",'DF raw data'!H87) -> -3.05443e-05 | F82: -3.38419602e-05 | G82: 0.0001025485634 | H82: -3.068480378e-05 | J82: -0.0002562400269 | K82: -0.001321764335 | L82: 0.001116298912 | M82: 0.006136650711 | N82: 4.910016666e-06
A83: =IF('DF raw data'!E88="","",'DF raw data'!E88) -> -289.5 | B83: =IF('DF raw data'!F88="","",'DF raw data'!F88) -> -1.77296e-05 | C83: =IF('DF raw data'!G88="","",'DF raw data'!G88) -> 0.00010373 | D83: =IF('DF raw data'!H88="","",'DF raw data'!H88) -> -3.01194e-05 | F83: -1.781115616e-05 | G83: 0.000104207158 | H83: -3.025794924e-05 | J83: -0.000265145605 | K83: -0.001454337138 | L83: 0.001168402491 | M83: 0.006720851957 | N83: 5.627749953e-06
A84: =IF('DF raw data'!E89="","",'DF raw data'!E89) -> -289 | B84: =IF('DF raw data'!F89="","",'DF raw data'!F89) -> -3.70813e-05 | C84: =IF('DF raw data'!G89="","",'DF raw data'!G89) -> 0.000103694 | D84: =IF('DF raw data'!H89="","",'DF raw data'!H89) -> -3.44064e-05 | F84: -3.725187398e-05 | G84: 0.0001041709924 | H84: -3.456466944e-05 | J84: -0.000283771542 | K84: -0.001596222909 | L84: 0.001220487987 | M84: 0.007331095951 | N84: 6.412808561e-06
A85: =IF('DF raw data'!E90="","",'DF raw data'!E90) -> -288.5 | B85: =IF('DF raw data'!F90="","",'DF raw data'!F90) -> -3.42617e-05 | C85: =IF('DF raw data'!G90="","",'DF raw data'!G90) -> 0.000109952 | D85: =IF('DF raw data'!H90="","",'DF raw data'!H90) -> -3.68931e-05 | F85: -3.441930382e-05 | G85: 0.0001104577792 | H85: -3.706280826e-05 | J85: -0.0003009811939 | K85: -0.001746713506 | L85: 0.001275716877 | M85: 0.007968954389 | N85: 7.271830175e-06
A86: =IF('DF raw data'!E91="","",'DF raw data'!E91) -> -288 | B86: =IF('DF raw data'!F91="","",'DF raw data'!F91) -> -2.84314e-05 | C86: =IF('DF raw data'!G91="","",'DF raw data'!G91) -> 0.000122446 | D86: =IF('DF raw data'!H91="","",'DF raw data'!H91) -> -3.0847e-05 | F86: -2.856218444e-05 | G86: 0.0001230092516 | H86: -3.09888962e-05 | J86: -0.0003152622861 | K86: -0.001904344649 | L86: 0.001337221503 | M86: 0.008637565141 | N86: 8.215606004e-06
A87: =IF('DF raw data'!E92="","",'DF raw data'!E92) -> -287.5 | B87: =IF('DF raw data'!F92="","",'DF raw data'!F92) -> -1.85007e-05 | C87: =IF('DF raw data'!G92="","",'DF raw data'!G92) -> 0.000125429 | D87: =IF('DF raw data'!H92="","",'DF raw data'!H92) -> -2.74727e-05 | F87: -1.858580322e-05 | G87: 0.0001260059734 | H87: -2.759907442e-05 | J87: -0.0003245551877 | K87: -0.002066622243 | L87: 0.00140022449 | M87: 0.009337677385 | N87: 9.248588349e-06
A88: =IF('DF raw data'!E93="","",'DF raw data'!E93) -> -287 | B88: =IF('DF raw data'!F93="","",'DF raw data'!F93) -> -1.63765e-05 | C88: =IF('DF raw data'!G93="","",'DF raw data'!G93) -> 0.000117582 | D88: =IF('DF raw data'!H93="","",'DF raw data'!H93) -> -3.96817e-05 | F88: -1.64518319e-05 | G88: 0.0001181228772 | H88: -3.986423582e-05 | J88: -0.0003327811037 | K88: -0.002233012794 | L88: 0.001459285928 | M88: 0.01006732035 | N88: 1.036871769e-05
A89: =IF('DF raw data'!E94="","",'DF raw data'!E94) -> -286.5 | B89: =IF('DF raw data'!F94="","",'DF raw data'!F94) -> -1.38157e-05 | C89: =IF('DF raw data'!G94="","",'DF raw data'!G94) -> 0.000116419 | D89: =IF('DF raw data'!H94="","",'DF raw data'!H94) -> -3.64401e-05 | F89: -1.387925222e-05 | G89: 0.0001169545274 | H89: -3.660772446e-05 | J89: -0.0003397207298 | K89: -0.002402873159 | L89: 0.001517763192 | M89: 0.01082620195 | N89: 1.157822533e-05
A90: =IF('DF raw data'!E95="","",'DF raw data'!E95) -> -286 | B90: =IF('DF raw data'!F95="","",'DF raw data'!F95) -> -2.3878e-05 | C90: =IF('DF raw data'!G95="","",'DF raw data'!G95) -> 0.000112957 | D90: =IF('DF raw data'!H95="","",'DF raw data'!H95) -> -3.4989e-05 | F90: -2.39878388e-05 | G90: 0.0001134766022 | H90: -3.51499494e-05 | J90: -0.0003517146492 | K90: -0.002578730484 | L90: 0.001574501493 | M90: 0.01161345269 | N90: 1.28796044e-05
A91: =IF('DF raw data'!E96="","",'DF raw data'!E96) -> -285.5 | B91: =IF('DF raw data'!F96="","",'DF raw data'!F96) -> -2.85597e-05 | C91: =IF('DF raw data'!G96="","",'DF raw data'!G96) -> 0.000109041 | D91: =IF('DF raw data'!H96="","",'DF raw data'!H96) -> -3.33566e-05 | F91: -2.869107462e-05 | G91: 0.0001095425886 | H91: -3.351004036e-05 | J91: -0.0003660601865 | K91: -0.002761760577 | L91: 0.001629272787 | M91: 0.01242808909 | N91: 1.427386934e-05
A92: =IF('DF raw data'!E97="","",'DF raw data'!E97) -> -285 | B92: =IF('DF raw data'!F97="","",'DF raw data'!F97) -> -4.32319e-05 | C92: =IF('DF raw data'!G97="","",'DF raw data'!G97) -> 0.000118021 | D92: =IF('DF raw data'!H97="","",'DF raw data'!H97) -> -3.76797e-05 | F92: -4.343076674e-05 | G92: 0.0001185638966 | H92: -3.785302662e-05 | J92: -0.0003877755698 | K92: -0.002955648362 | L92: 0.001688554736 | M92: 0.01327236645 | N92: 1.577466284e-05
A93: =IF('DF raw data'!E98="","",'DF raw data'!E98) -> -284.5 | B93: =IF('DF raw data'!F98="","",'DF raw data'!F98) -> -4.07358e-05 | C93: =IF('DF raw data'!G98="","",'DF raw data'!G98) -> 0.000119035 | D93: =IF('DF raw data'!H98="","",'DF raw data'!H98) -> -3.62635e-05 | F93: -4.092318468e-05 | G93: 0.000119582561 | H93: -3.64303121e-05 | J93: -0.0004082371622 | K93: -0.003159766943 | L93: 0.001748346016 | M93: 0.01414653946 | N93: 1.738634852e-05
A94: =IF('DF raw data'!E99="","",'DF raw data'!E99) -> -284 | B94: =IF('DF raw data'!F99="","",'DF raw data'!F99) -> -2.00332e-05 | C94: =IF('DF raw data'!G99="","",'DF raw data'!G99) -> 0.000114454 | D94: =IF('DF raw data'!H99="","",'DF raw data'!H99) -> -3.42755e-05 | F94: -2.012535272e-05 | G94: 0.0001149804884 | H94: -3.44331673e-05 | J94: -0.0004182998385 | K94: -0.003368916863 | L94: 0.00180583626 | M94: 0.01504945759 | N94: 1.91043582e-05
A95: =IF('DF raw data'!E100="","",'DF raw data'!E100) -> -283.5 | B95: =IF('DF raw data'!F100="","",'DF raw data'!F100) -> -1.72144e-05 | C95: =IF('DF raw data'!G100="","",'DF raw data'!G100) -> 0.000119084 | D95: =IF('DF raw data'!H100="","",'DF raw data'!H100) -> -3.39155e-05 | F95: -1.729358624e-05 | G95: 0.0001196317864 | H95: -3.40715113e-05 | J95: -0.0004269466317 | K95: -0.003582390178 | L95: 0.001865652153 | M95: 0.01598228367 | N95: 2.093582889e-05
A96: =IF('DF raw data'!E101="","",'DF raw data'!E101) -> -283 | B96: =IF('DF raw data'!F101="","",'DF raw data'!F101) -> -3.37484e-05 | C96: =IF('DF raw data'!G101="","",'DF raw data'!G101) -> 0.00011493 | D96: =IF('DF raw data'!H101="","",'DF raw data'!H101) -> -3.45725e-05 | F96: -3.390364264e-05 | G96: 0.000115458678 | H96: -3.47315335e-05 | J96: -0.000443898453 | K96: -0.003804339405 | L96: 0.001923381492 | M96: 0.01694397441 | N96: 2.288404999e-05
A97: =IF('DF raw data'!E102="","",'DF raw data'!E102) -> -282.5 | B97: =IF('DF raw data'!F102="","",'DF raw data'!F102) -> -3.08005e-05 | C97: =IF('DF raw data'!G102="","",'DF raw data'!G102) -> 0.000122051 | D97: =IF('DF raw data'!H102="","",'DF raw data'!H102) -> -3.71473e-05 | F97: -3.09421823e-05 | G97: 0.0001226124346 | H97: -3.731817758e-05 | J97: -0.0004593695441 | K97: -0.004034024177 | L97: 0.00198468771 | M97: 0.01793631827 | N97: 2.495905283e-05
A98: =IF('DF raw data'!E103="","",'DF raw data'!E103) -> -282 | B98: =IF('DF raw data'!F103="","",'DF raw data'!F103) -> -2.39421e-05 | C98: =IF('DF raw data'!G103="","",'DF raw data'!G103) -> 0.000121369 | D98: =IF('DF raw data'!H103="","",'DF raw data'!H103) -> -3.51839e-05 | F98: -2.405223366e-05 | G98: 0.0001219272974 | H98: -3.534574594e-05 | J98: -0.000471395661 | K98: -0.004269722007 | L98: 0.002045651358 | M98: 0.01895914395 | N98: 2.716250451e-05
A99: =IF('DF raw data'!E104="","",'DF raw data'!E104) -> -281.5 | B99: =IF('DF raw data'!F104="","",'DF raw data'!F104) -> -1.51595e-05 | C99: =IF('DF raw data'!G104="","",'DF raw data'!G104) -> 0.000121004 | D99: =IF('DF raw data'!H104="","",'DF raw data'!H104) -> -4.00747e-05 | F99: -1.52292337e-05 | G99: 0.0001215606184 | H99: -4.025904362e-05 | J99: -0.0004790102778 | K99: -0.004509227146 | L99: 0.002106431668 | M99: 0.02001235978 | N99: 2.949575712e-05
A100: =IF('DF raw data'!E105="","",'DF raw data'!E105) -> -281 | B100: =IF('DF raw data'!F105="","",'DF raw data'!F105) -> -2.77258e-05 | C100: =IF('DF raw data'!G105="","",'DF raw data'!G105) -> 0.000118791 | D100: =IF('DF raw data'!H105="","",'DF raw data'!H105) -> -3.13152e-05 | F100: -2.785333868e-05 | G100: 0.0001193374386 | H100: -3.145924992e-05 | J100: -0.0004929369472 | K100: -0.00475569562 | L100: 0.002166100387 | M100: 0.02109540998 | N100: 3.196324598e-05
A101: =IF('DF raw data'!E106="","",'DF raw data'!E106) -> -280.5 | B101: =IF('DF raw data'!F106="","",'DF raw data'!F106) -> -2.82366e-05 | C101: =IF('DF raw data'!G106="","",'DF raw data'!G106) -> 0.000117152 | D101: =IF('DF raw data'!H106="","",'DF raw data'!H106) -> -3.74707e-05 | F101: -2.836648836e-05 | G101: 0.0001176908992 | H101: -3.764306522e-05 | J101: -0.0005071201913 | K101: -0.005009255716 | L101: 0.002224945837 | M101: 0.02220788289 | N101: 3.456702341e-05
A102: =IF('DF raw data'!E107="","",'DF raw data'!E107) -> -280 | B102: =IF('DF raw data'!F107="","",'DF raw data'!F107) -> -2.29199e-05 | C102: =IF('DF raw data'!G107="","",'DF raw data'!G107) -> 0.000120879 | D102: =IF('DF raw data'!H107="","",'DF raw data'!H107) -> -3.004e-05 | F102: -2.302533154e-05 | G102: 0.0001214350434 | H102: -3.0178184e-05 | J102: -0.0005186328571 | K102: -0.005268572144 | L102: 0.002285663358 | M102: 0.02335071457 | N102: 3.731364192e-05
A103: =IF('DF raw data'!E108="","",'DF raw data'!E108) -> -279.5 | B103: =IF('DF raw data'!F108="","",'DF raw data'!F108) -> -1.94609e-05 | C103: =IF('DF raw data'!G108="","",'DF raw data'!G108) -> 0.000120661 | D103: =IF('DF raw data'!H108="","",'DF raw data'!H108) -> -2.9337e-05 | F103: -1.955042014e-05 | G103: 0.0001212160406 | H103: -2.94719502e-05 | J103: -0.0005284080672 | K103: -0.005532776178 | L103: 0.002346271379 | M103: 0.02452385026 | N103: 4.020574416e-05
A104: =IF('DF raw data'!E109="","",'DF raw data'!E109) -> -279 | B104: =IF('DF raw data'!F109="","",'DF raw data'!F109) -> -1.40059e-05 | C104: =IF('DF raw data'!G109="","",'DF raw data'!G109) -> 0.000118864 | D104: =IF('DF raw data'!H109="","",'DF raw data'!H109) -> -3.84355e-05 | F104: -1.407032714e-05 | G104: 0.0001194107744 | H104: -3.86123033e-05 | J104: -0.0005354432307 | K104: -0.005800497793 | L104: 0.002405976766 | M104: 0.02572683865 | N104: 4.324345598e-05
A105: =IF('DF raw data'!E110="","",'DF raw data'!E110) -> -278.5 | B105: =IF('DF raw data'!F110="","",'DF raw data'!F110) -> -2.0474e-05 | C105: =IF('DF raw data'!G110="","",'DF raw data'!G110) -> 0.000119559 | D105: =IF('DF raw data'!H110="","",'DF raw data'!H110) -> -4.84859e-05 | F105: -2.05681804e-05 | G105: 0.0001201089714 | H105: -4.870893514e-05 | J105: -0.0005457273209 | K105: -0.006073361454 | L105: 0.002466031251 | M105: 0.02695985427 | N105: 4.64330202e-05
A106: =IF('DF raw data'!E111="","",'DF raw data'!E111) -> -278 | B106: =IF('DF raw data'!F111="","",'DF raw data'!F111) -> -2.24016e-05 | C106: =IF('DF raw data'!G111="","",'DF raw data'!G111) -> 0.000120493 | D106: =IF('DF raw data'!H111="","",'DF raw data'!H111) -> -3.84938e-05 | F106: -2.250464736e-05 | G106: 0.0001210472678 | H106: -3.867087148e-05 | J106: -0.0005569796446 | K106: -0.006351851276 | L106: 0.002526554885 | M106: 0.02822313171 | N106: 4.977987316e-05
A107: =IF('DF raw data'!E112="","",'DF raw data'!E112) -> -277.5 | B107: =IF('DF raw data'!F112="","",'DF raw data'!F112) -> -1.91347e-05 | C107: =IF('DF raw data'!G112="","",'DF raw data'!G112) -> 0.000118994 | D107: =IF('DF raw data'!H112="","",'DF raw data'!H112) -> -3.84781e-05 | F107: -1.922271962e-05 | G107: 0.0001195413724 | H107: -3.865509926e-05 | J107: -0.0005665910044 | K107: -0.006635146778 | L107: 0.002586325572 | M107: 0.0295162945 | N107: 5.328492582e-05
A108: =IF('DF raw data'!E113="","",'DF raw data'!E113) -> -277 | B108: =IF('DF raw data'!F113="","",'DF raw data'!F113) -> -2.59316e-05 | C108: =IF('DF raw data'!G113="","",'DF raw data'!G113) -> 0.000118103 | D108: =IF('DF raw data'!H113="","",'DF raw data'!H113) -> -3.06138e-05 | F108: -2.605088536e-05 | G108: 0.0001186462738 | H108: -3.075462348e-05 | J108: -0.0005796164471 | K108: -0.006924955002 | L108: 0.002645648708 | M108: 0.03083911885 | N108: 5.695263198e-05
A109: =IF('DF raw data'!E114="","",'DF raw data'!E114) -> -276.5 | B109: =IF('DF raw data'!F114="","",'DF raw data'!F114) -> -2.5542e-05 | C109: =IF('DF raw data'!G114="","",'DF raw data'!G114) -> 0.000115871 | D109: =IF('DF raw data'!H114="","",'DF raw data'!H114) -> -4.20556e-05 | F109: -2.56594932e-05 | G109: 0.0001164040066 | H109: -4.224905576e-05 | J109: -0.0005924461937 | K109: -0.007221178098 | L109: 0.002703850712 | M109: 0.03219104421 | N109: 6.078353256e-05
A110: =IF('DF raw data'!E115="","",'DF raw data'!E115) -> -276 | B110: =IF('DF raw data'!F115="","",'DF raw data'!F115) -> -4.04125e-05 | C110: =IF('DF raw data'!G115="","",'DF raw data'!G115) -> 0.000115555 | D110: =IF('DF raw data'!H115="","",'DF raw data'!H115) -> -3.56637e-05 | F110: -4.05983975e-05 | G110: 0.000116086553 | H110: -3.582775302e-05 | J110: -0.0006127453925 | K110: -0.007527550795 | L110: 0.002761893988 | M110: 0.0335719912 | N110: 6.478529022e-05
A111: =IF('DF raw data'!E116="","",'DF raw data'!E116) -> -275.5 | B111: =IF('DF raw data'!F116="","",'DF raw data'!F116) -> -2.80431e-05 | C111: =IF('DF raw data'!G116="","",'DF raw data'!G116) -> 0.000115805 | D111: =IF('DF raw data'!H116="","",'DF raw data'!H116) -> -4.00226e-05 | F111: -2.817209826e-05 | G111: 0.000116337703 | H111: -4.020670396e-05 | J111: -0.0006268314416 | K111: -0.007840966516 | L111: 0.00282006284 | M111: 0.03498202262 | N111: 6.895812626e-05
A112: =IF('DF raw data'!E117="","",'DF raw data'!E117) -> -275 | B112: =IF('DF raw data'!F117="","",'DF raw data'!F117) -> -5.25851e-05 | C112: =IF('DF raw data'!G117="","",'DF raw data'!G117) -> 0.000108064 | D112: =IF('DF raw data'!H117="","",'DF raw data'!H117) -> -4.25211e-05 | F112: -5.282699146e-05 | G112: 0.0001085610944 | H112: -4.271669706e-05 | J112: -0.0006532449373 | K112: -0.008167588984 | L112: 0.002874343387 | M112: 0.03641919432 | N112: 7.330241569e-05
A113: =IF('DF raw data'!E118="","",'DF raw data'!E118) -> -274.5 | B113: =IF('DF raw data'!F118="","",'DF raw data'!F118) -> -2.47101e-05 | C113: =IF('DF raw data'!G118="","",'DF raw data'!G118) -> 0.000111091 | D113: =IF('DF raw data'!H118="","",'DF raw data'!H118) -> -3.99549e-05 | F113: -2.482376646e-05 | G113: 0.0001116020186 | H113: -4.013869254e-05 | J113: -0.0006656568206 | K113: -0.008500417394 | L113: 0.002930144396 | M113: 0.03788426652 | N113: 7.781683828e-05
A114: =IF('DF raw data'!E119="","",'DF raw data'!E119) -> -274 | B114: =IF('DF raw data'!F119="","",'DF raw data'!F119) -> -2.99592e-05 | C114: =IF('DF raw data'!G119="","",'DF raw data'!G119) -> 0.00011176 | D114: =IF('DF raw data'!H119="","",'DF raw data'!H119) -> -4.59462e-05 | F114: -3.009701232e-05 | G114: 0.000112274096 | H114: -4.615755252e-05 | J114: -0.0006807053267 | K114: -0.008840770058 | L114: 0.002986281444 | M114: 0.03937740724 | N114: 8.250745658e-05
A115: =IF('DF raw data'!E120="","",'DF raw data'!E120) -> -273.5 | B115: =IF('DF raw data'!F120="","",'DF raw data'!F120) -> -3.38082e-05 | C115: =IF('DF raw data'!G120="","",'DF raw data'!G120) -> 0.000110092 | D115: =IF('DF raw data'!H120="","",'DF raw data'!H120) -> -4.55317e-05 | F115: -3.396371772e-05 | G115: 0.0001105984232 | H115: -4.574114582e-05 | J115: -0.0006976871856 | K115: -0.009189613651 | L115: 0.003041580656 | M115: 0.04089819757 | N115: 8.737644673e-05
A116: =IF('DF raw data'!E121="","",'DF raw data'!E121) -> -273 | B116: =IF('DF raw data'!F121="","",'DF raw data'!F121) -> -3.7592e-05 | C116: =IF('DF raw data'!G121="","",'DF raw data'!G121) -> 0.000110647 | D116: =IF('DF raw data'!H121="","",'DF raw data'!H121) -> -3.68048e-05 | F116: -3.77649232e-05 | G116: 0.0001111559762 | H116: -3.697410208e-05 | J116: -0.0007165696472 | K116: -0.009547898474 | L116: 0.003097158644 | M116: 0.04244677689 | N116: 9.242937859e-05
A117: =IF('DF raw data'!E122="","",'DF raw data'!E122) -> -272.5 | B117: =IF('DF raw data'!F122="","",'DF raw data'!F122) -> -1.20854e-05 | C117: =IF('DF raw data'!G122="","",'DF raw data'!G122) -> 0.000111796 | D117: =IF('DF raw data'!H122="","",'DF raw data'!H122) -> -3.62325e-05 | F117: -1.214099284e-05 | G117: 0.0001123102616 | H117: -3.63991695e-05 | J117: -0.0007226401436 | K117: -0.009909218546 | L117: 0.003153313775 | M117: 0.04402343377 | N117: 9.766217686e-05
A118: =IF('DF raw data'!E123="","",'DF raw data'!E123) -> -272 | B118: =IF('DF raw data'!F123="","",'DF raw data'!F123) -> -3.20216e-05 | C118: =IF('DF raw data'!G123="","",'DF raw data'!G123) -> 0.000104948 | D118: =IF('DF raw data'!H123="","",'DF raw data'!H123) -> -2.8059e-05 | F118: -3.216889936e-05 | G118: 0.0001054307608 | H118: -2.81880714e-05 | J118: -0.0007387245933 | K118: -0.01027858084 | L118: 0.003206029155 | M118: 0.04562644835 | N118: 0.0001030743453
A119: =IF('DF raw data'!E124="","",'DF raw data'!E124) -> -271.5 | B119: =IF('DF raw data'!F124="","",'DF raw data'!F124) -> -1.52824e-05 | C119: =IF('DF raw data'!G124="","",'DF raw data'!G124) -> 0.00011404 | D119: =IF('DF raw data'!H124="","",'DF raw data'!H124) -> -4.84692e-05 | F119: -1.535269904e-05 | G119: 0.000114564584 | H119: -4.869215832e-05 | J119: -0.0007464009428 | K119: -0.01065178131 | L119: 0.003263311447 | M119: 0.04725810408 | N119: 0.0001086775033
A120: =IF('DF raw data'!E125="","",'DF raw data'!E125) -> -271 | B120: =IF('DF raw data'!F125="","",'DF raw data'!F125) -> -2.22728e-05 | C120: =IF('DF raw data'!G125="","",'DF raw data'!G125) -> 0.000120561 | D120: =IF('DF raw data'!H125="","",'DF raw data'!H125) -> -3.94091e-05 | F120: -2.237525488e-05 | G120: 0.0001211155806 | H120: -3.959038186e-05 | J120: -0.0007575885702 | K120: -0.0110305756 | L120: 0.003323869237 | M120: 0.04892003869 | N120: 0.0001144885269
A121: =IF('DF raw data'!E126="","",'DF raw data'!E126) -> -270.5 | B121: =IF('DF raw data'!F126="","",'DF raw data'!F126) -> -2.35508e-05 | C121: =IF('DF raw data'!G126="","",'DF raw data'!G126) -> 0.000121594 | D121: =IF('DF raw data'!H126="","",'DF raw data'!H126) -> -4.84707e-05 | F121: -2.365913368e-05 | G121: 0.0001221533324 | H121: -4.869366522e-05 | J121: -0.0007694181371 | K121: -0.01141528467 | L121: 0.003384945904 | M121: 0.05061251165 | N121: 0.0001205134584
A122: =IF('DF raw data'!E127="","",'DF raw data'!E127) -> -270 | B122: =IF('DF raw data'!F127="","",'DF raw data'!F127) -> -1.71411e-05 | C122: =IF('DF raw data'!G127="","",'DF raw data'!G127) -> 0.000120043 | D122: =IF('DF raw data'!H127="","",'DF raw data'!H127) -> -4.62308e-05 | F122: -1.721994906e-05 | G122: 0.0001205951978 | H122: -4.644346168e-05 | J122: -0.0007780281116 | K122: -0.01180429872 | L122: 0.003445243503 | M122: 0.0523351334 | N122: 0.0001267509737
A123: =IF('DF raw data'!E128="","",'DF raw data'!E128) -> -269.5 | B123: =IF('DF raw data'!F128="","",'DF raw data'!F128) -> -8.10848e-06 | C123: =IF('DF raw data'!G128="","",'DF raw data'!G128) -> 0.000121493 | D123: =IF('DF raw data'!H128="","",'DF raw data'!H128) -> -4.11705e-05 | F123: -8.145779008e-06 | G123: 0.0001220518678 | H123: -4.13598843e-05 | J123: -0.0007821010011 | K123: -0.01219534922 | L123: 0.003506269436 | M123: 0.05408826812 | N123: 0.0001332037774
A124: =IF('DF raw data'!E129="","",'DF raw data'!E129) -> -269 | B124: =IF('DF raw data'!F129="","",'DF raw data'!F129) -> -3.15771e-05 | C124: =IF('DF raw data'!G129="","",'DF raw data'!G129) -> 0.000120321 | D124: =IF('DF raw data'!H129="","",'DF raw data'!H129) -> -2.1887e-05 | F124: -3.172235466e-05 | G124: 0.0001208744766 | H124: -2.19876802e-05 | J124: -0.0007979621784 | K124: -0.01259433031 | L124: 0.003566706675 | M124: 0.05587162145 | N124: 0.0001398828474
A125: =IF('DF raw data'!E130="","",'DF raw data'!E130) -> -268.5 | B125: =IF('DF raw data'!F130="","",'DF raw data'!F130) -> -2.11222e-05 | C125: =IF('DF raw data'!G130="","",'DF raw data'!G130) -> 0.000126126 | D125: =IF('DF raw data'!H130="","",'DF raw data'!H130) -> -3.737e-05 | F125: -2.121936212e-05 | G125: 0.0001267061796 | H125: -3.7541902e-05 | J125: -0.0008085718595 | K125: -0.01299861624 | L125: 0.003630059765 | M125: 0.05768665134 | N125: 0.0001467984086
A126: =IF('DF raw data'!E131="","",'DF raw data'!E131) -> -268 | B126: =IF('DF raw data'!F131="","",'DF raw data'!F131) -> -1.59311e-05 | C126: =IF('DF raw data'!G131="","",'DF raw data'!G131) -> 0.000119467 | D126: =IF('DF raw data'!H131="","",'DF raw data'!H131) -> -3.4238e-05 | F126: -1.600438306e-05 | G126: 0.0001200165482 | H126: -3.43954948e-05 | J126: -0.000816574051 | K126: -0.01340690327 | L126: 0.003690068039 | M126: 0.05953168536 | N126: 0.0001539401063
A127: =IF('DF raw data'!E132="","",'DF raw data'!E132) -> -267.5 | B127: =IF('DF raw data'!F132="","",'DF raw data'!F132) -> -2.5036e-05 | C127: =IF('DF raw data'!G132="","",'DF raw data'!G132) -> 0.000116167 | D127: =IF('DF raw data'!H132="","",'DF raw data'!H132) -> -3.17702e-05 | F127: -2.51511656e-05 | G127: 0.0001167013682 | H127: -3.191634292e-05 | J127: -0.0008291496338 | K127: -0.01382147809 | L127: 0.003748418723 | M127: 0.06140589472 | N127: 0.0001613091723
A128: =IF('DF raw data'!E133="","",'DF raw data'!E133) -> -267 | B128: =IF('DF raw data'!F133="","",'DF raw data'!F133) -> -2.84284e-05 | C128: =IF('DF raw data'!G133="","",'DF raw data'!G133) -> 0.000119283 | D128: =IF('DF raw data'!H133="","",'DF raw data'!H133) -> -3.46995e-05 | F128: =(1-$G$1*($B$49-$G$2))*B128 -> -2.855917064e-05 | G128: 0.0001198317018 | H128: -3.48591177e-05 | J128: =F128*$G$3+J127 -> -0.0008434292192 | K128: =J128*$G$3+K127 -> -0.0142431927 | L128: =G128*$G$3+L127 -> 0.003808334574 | M128: =L128*$G$3+M127 -> 0.063310062 | N128: =(J128^2+L128^2)*$G$3+N127 -> 0.0001689165648
A129: =IF('DF raw data'!E134="","",'DF raw data'!E134) -> -266.5 | B129: =IF('DF raw data'!F134="","",'DF raw data'!F134) -> -2.42636e-05 | C129: =IF('DF raw data'!G134="","",'DF raw data'!G134) -> 0.000125409 | D129: =IF('DF raw data'!H134="","",'DF raw data'!H134) -> -3.64012e-05 | F129: -2.437521256e-05 | G129: 0.0001259858814 | H129: -3.656864552e-05 | J129: -0.0008556168254 | K129: -0.01467100111 | L129: 0.003871327514 | M129: 0.06524572576 | N129: 0.0001767761933
A130: =IF('DF raw data'!E135="","",'DF raw data'!E135) -> -266 | B130: =IF('DF raw data'!F135="","",'DF raw data'!F135) -> -2.9265e-05 | C130: =IF('DF raw data'!G135="","",'DF raw data'!G135) -> 0.000124436 | D130: =IF('DF raw data'!H135="","",'DF raw data'!H135) -> -2.90521e-05 | F130: -2.9399619e-05 | G130: 0.0001250084056 | H130: -2.918573966e-05 | J130: -0.0008703166349 | K130: -0.01510615943 | L130: 0.003933831717 | M130: 0.06721264162 | N130: 0.0001848924348
A131: =IF('DF raw data'!E136="","",'DF raw data'!E136) -> -265.5 | B131: =IF('DF raw data'!F136="","",'DF raw data'!F136) -> -2.95253e-05 | C131: =IF('DF raw data'!G136="","",'DF raw data'!G136) -> 0.000125652 | D131: =IF('DF raw data'!H136="","",'DF raw data'!H136) -> -2.76388e-05 | F131: -2.966111638e-05 | G131: 0.0001262299992 | H131: -2.776593848e-05 | J131: -0.0008851471931 | K131: -0.01554873302 | L131: 0.003996946717 | M131: 0.06921111498 | N131: 0.0001932719691
A132: =IF('DF raw data'!E137="","",'DF raw data'!E137) -> -265 | B132: =IF('DF raw data'!F137="","",'DF raw data'!F137) -> -2.86215e-05 | C132: =IF('DF raw data'!G137="","",'DF raw data'!G137) -> 0.000121587 | D132: =IF('DF raw data'!H137="","",'DF raw data'!H137) -> -3.30398e-05 | F132: -2.87531589e-05 | G132: 0.0001221463002 | H132: -3.319178308e-05 | J132: -0.0008995237726 | K132: -0.01599849491 | L132: 0.004058019867 | M132: 0.07124012491 | N132: 0.0002019103032
A133: =IF('DF raw data'!E138="","",'DF raw data'!E138) -> -264.5 | B133: =IF('DF raw data'!F138="","",'DF raw data'!F138) -> -3.00885e-05 | C133: =IF('DF raw data'!G138="","",'DF raw data'!G138) -> 0.000113878 | D133: =IF('DF raw data'!H138="","",'DF raw data'!H138) -> -4.90034e-05 | F133: -3.02269071e-05 | G133: 0.0001144018388 | H133: -4.922881564e-05 | J133: -0.0009146372261 | K133: -0.01645581352 | L133: 0.004115220786 | M133: 0.0732977353 | N133: 0.0002107961049
A134: =IF('DF raw data'!E139="","",'DF raw data'!E139) -> -264 | B134: =IF('DF raw data'!F139="","",'DF raw data'!F139) -> -3.14926e-05 | C134: =IF('DF raw data'!G139="","",'DF raw data'!G139) -> 0.000111152 | D134: =IF('DF raw data'!H139="","",'DF raw data'!H139) -> -5.26866e-05 | F134: -3.163746596e-05 | G134: 0.0001116632992 | H134: -5.292895836e-05 | J134: -0.0009304559591 | K134: -0.0169210415 | L134: 0.004171052436 | M134: 0.07538326152 | N134: 0.0002199278182
A135: =IF('DF raw data'!E140="","",'DF raw data'!E140) -> -263.5 | B135: =IF('DF raw data'!F140="","",'DF raw data'!F140) -> -3.21466e-05 | C135: =IF('DF raw data'!G140="","",'DF raw data'!G140) -> 0.000116933 | D135: =IF('DF raw data'!H140="","",'DF raw data'!H140) -> -3.8178e-05 | F135: -3.229447436e-05 | G135: 0.0001174708918 | H135: -3.83536188e-05 | J135: -0.0009466031963 | K135: -0.0173943431 | L135: 0.004229787882 | M135: 0.07749815546 | N135: 0.0002293213998
A136: =IF('DF raw data'!E141="","",'DF raw data'!E141) -> -263 | B136: =IF('DF raw data'!F141="","",'DF raw data'!F141) -> -2.90076e-05 | C136: =IF('DF raw data'!G141="","",'DF raw data'!G141) -> 0.000128073 | D136: =IF('DF raw data'!H141="","",'DF raw data'!H141) -> -3.0353e-05 | F136: -2.914103496e-05 | G136: 0.0001286621358 | H136: -3.04926238e-05 | J136: -0.0009611737138 | K136: -0.01787492996 | L136: 0.00429411895 | M136: 0.07964521494 | N136: 0.000239003056
A137: =IF('DF raw data'!E142="","",'DF raw data'!E142) -> -262.5 | B137: =IF('DF raw data'!F142="","",'DF raw data'!F142) -> -2.4967e-05 | C137: =IF('DF raw data'!G142="","",'DF raw data'!G142) -> 0.000125911 | D137: =IF('DF raw data'!H142="","",'DF raw data'!H142) -> -3.94793e-05 | F137: -2.50818482e-05 | G137: 0.0001264901906 | H137: -3.966090478e-05 | J137: -0.0009737146379 | K137: -0.01836178727 | L137: 0.004357364045 | M137: 0.08182389696 | N137: 0.0002489704269
A138: =IF('DF raw data'!E143="","",'DF raw data'!E143) -> -262 | B138: =IF('DF raw data'!F143="","",'DF raw data'!F143) -> -1.86238e-05 | C138: =IF('DF raw data'!G143="","",'DF raw data'!G143) -> 0.000124038 | D138: =IF('DF raw data'!H143="","",'DF raw data'!H143) -> -3.28908e-05 | F138: -1.870946948e-05 | G138: 0.0001246085748 | H138: -3.304209768e-05 | J138: -0.0009830693726 | K138: -0.01885332196 | L138: 0.004419668332 | M138: 0.08403373113 | N138: 0.0002592203736
A139: =IF('DF raw data'!E144="","",'DF raw data'!E144) -> -261.5 | B139: =IF('DF raw data'!F144="","",'DF raw data'!F144) -> -3.12573e-05 | C139: =IF('DF raw data'!G144="","",'DF raw data'!G144) -> 0.000118258 | D139: =IF('DF raw data'!H144="","",'DF raw data'!H144) -> -2.5655e-05 | F139: -3.140108358e-05 | G139: 0.0001188019868 | H139: -2.5773013e-05 | J139: -0.0009987699144 | K139: -0.01935270692 | L139: 0.004479069326 | M139: 0.08627326579 | N139: 0.0002697501753
A140: =IF('DF raw data'!E145="","",'DF raw data'!E145) -> -261 | B140: =IF('DF raw data'!F145="","",'DF raw data'!F145) -> -2.6697e-05 | C140: =IF('DF raw data'!G145="","",'DF raw data'!G145) -> 0.000113711 | D140: =IF('DF raw data'!H145="","",'DF raw data'!H145) -> -3.60429e-05 | F140: -2.68198062e-05 | G140: 0.0001142340706 | H140: -3.620869734e-05 | J140: -0.001012179817 | K140: -0.01985879683 | L140: 0.004536186361 | M140: 0.08854135897 | N140: 0.0002805509227
A141: =IF('DF raw data'!E146="","",'DF raw data'!E146) -> -260.5 | B141: =IF('DF raw data'!F146="","",'DF raw data'!F146) -> -1.97116e-05 | C141: =IF('DF raw data'!G146="","",'DF raw data'!G146) -> 0.000111853 | D141: =IF('DF raw data'!H146="","",'DF raw data'!H146) -> -3.84115e-05 | F141: -1.980227336e-05 | G141: 0.0001123675238 | H141: -3.85881929e-05 | J141: -0.001022080954 | K141: -0.0203698373 | L141: 0.004592370123 | M141: 0.09083754403 | N141: 0.0002916181791
A142: =IF('DF raw data'!E147="","",'DF raw data'!E147) -> -260 | B142: =IF('DF raw data'!F147="","",'DF raw data'!F147) -> -3.72701e-05 | C142: =IF('DF raw data'!G147="","",'DF raw data'!G147) -> 0.000113411 | D142: =IF('DF raw data'!H147="","",'DF raw data'!H147) -> -3.83725e-05 | F142: -3.744154246e-05 | G142: 0.0001139326906 | H142: -3.85490135e-05 | J142: -0.001040801725 | K142: -0.02089023817 | L142: 0.004649336468 | M142: 0.09316221227 | N142: 0.000302967978
A143: =IF('DF raw data'!E148="","",'DF raw data'!E148) -> -259.5 | B143: =IF('DF raw data'!F148="","",'DF raw data'!F148) -> -1.5994e-05 | C143: =IF('DF raw data'!G148="","",'DF raw data'!G148) -> 0.000113351 | D143: =IF('DF raw data'!H148="","",'DF raw data'!H148) -> -3.87446e-05 | F143: -1.60675724e-05 | G143: 0.0001138724146 | H143: -3.892282516e-05 | J143: -0.001048835512 | K143: -0.02141465592 | L143: 0.004706272676 | M143: 0.0955153486 | N143: 0.0003145925072
A144: =IF('DF raw data'!E149="","",'DF raw data'!E149) -> -259 | B144: =IF('DF raw data'!F149="","",'DF raw data'!F149) -> -3.00294e-05 | C144: =IF('DF raw data'!G149="","",'DF raw data'!G149) -> 0.000115697 | D144: =IF('DF raw data'!H149="","",'DF raw data'!H149) -> -3.61869e-05 | F144: -3.016753524e-05 | G144: 0.0001162292062 | H144: -3.635335974e-05 | J144: -0.001063919279 | K144: -0.02194661556 | L144: 0.004764387279 | M144: 0.09789754224 | N144: 0.0003265081624
A145: =IF('DF raw data'!E150="","",'DF raw data'!E150) -> -258.5 | B145: =IF('DF raw data'!F150="","",'DF raw data'!F150) -> -2.47107e-05 | C145: =IF('DF raw data'!G150="","",'DF raw data'!G150) -> 0.000119518 | D145: =IF('DF raw data'!H150="","",'DF raw data'!H150) -> -3.90893e-05 | F145: -2.482436922e-05 | G145: 0.0001200677828 | H145: -3.926911078e-05 | J145: -0.001076331464 | K145: -0.02248478129 | L145: 0.00482442117 | M145: 0.1003097528 | N145: 0.0003387249269
A146: =IF('DF raw data'!E151="","",'DF raw data'!E151) -> -258 | B146: =IF('DF raw data'!F151="","",'DF raw data'!F151) -> -2.0154e-05 | C146: =IF('DF raw data'!G151="","",'DF raw data'!G151) -> 0.000115843 | D146: =IF('DF raw data'!H151="","",'DF raw data'!H151) -> -4.50444e-05 | F146: -2.02467084e-05 | G146: 0.0001163758778 | H146: -4.525160424e-05 | J146: -0.001086454818 | K146: -0.0230280087 | L146: 0.004882609109 | M146: 0.1027510574 | N146: 0.0003512350548
A147: =IF('DF raw data'!E152="","",'DF raw data'!E152) -> -257.5 | B147: =IF('DF raw data'!F152="","",'DF raw data'!F152) -> -2.49654e-05 | C147: =IF('DF raw data'!G152="","",'DF raw data'!G152) -> 0.000119851 | D147: =IF('DF raw data'!H152="","",'DF raw data'!H152) -> -4.17885e-05 | F147: -2.508024084e-05 | G147: 0.0001204023146 | H147: -4.19807271e-05 | J147: -0.001098994938 | K147: -0.02357750617 | L147: 0.004942810266 | M147: 0.1052224625 | N147: 0.0003640546364
A148: =IF('DF raw data'!E153="","",'DF raw data'!E153) -> -257 | B148: =IF('DF raw data'!F153="","",'DF raw data'!F153) -> -2.15704e-05 | C148: =IF('DF raw data'!G153="","",'DF raw data'!G153) -> 0.000116116 | D148: =IF('DF raw data'!H153="","",'DF raw data'!H153) -> -3.50579e-05 | F148: -2.166962384e-05 | G148: 0.0001166501336 | H148: -3.521916634e-05 | J148: -0.00110982975 | K148: -0.02413242105 | L148: 0.005001135333 | M148: 0.1077230302 | N148: 0.0003771761747
A149: =IF('DF raw data'!E154="","",'DF raw data'!E154) -> -256.5 | B149: =IF('DF raw data'!F154="","",'DF raw data'!F154) -> -2.55495e-05 | C149: =IF('DF raw data'!G154="","",'DF raw data'!G154) -> 0.000112428 | D149: =IF('DF raw data'!H154="","",'DF raw data'!H154) -> -3.0749e-05 | F149: -2.56670277e-05 | G149: 0.0001129451688 | H149: -3.08904454e-05 | J149: -0.001122663264 | K149: -0.02469375268 | L149: 0.005057607917 | M149: 0.1102518341 | N149: 0.0003905960601
A150: =IF('DF raw data'!E155="","",'DF raw data'!E155) -> -256 | B150: =IF('DF raw data'!F155="","",'DF raw data'!F155) -> -3.04766e-05 | C150: =IF('DF raw data'!G155="","",'DF raw data'!G155) -> 0.000120188 | D150: =IF('DF raw data'!H155="","",'DF raw data'!H155) -> -3.85383e-05 | F150: -3.061679236e-05 | G150: 0.0001207408648 | H150: -3.871557618e-05 | J150: -0.00113797166 | K150: -0.02526273851 | L150: 0.00511797835 | M150: 0.1128108233 | N150: 0.000404340401
A151: =IF('DF raw data'!E156="","",'DF raw data'!E156) -> -255.5 | B151: =IF('DF raw data'!F156="","",'DF raw data'!F156) -> -1.64371e-05 | C151: =IF('DF raw data'!G156="","",'DF raw data'!G156) -> 0.00012293 | D151: =IF('DF raw data'!H156="","",'DF raw data'!H156) -> -4.7166e-05 | F151: -1.651271066e-05 | G151: 0.000123495478 | H151: -4.73829636e-05 | J151: -0.001146228016 | K151: -0.02583585252 | L151: 0.005179726089 | M151: 0.1154006864 | N151: 0.0004184121015
A152: =IF('DF raw data'!E157="","",'DF raw data'!E157) -> -255 | B152: =IF('DF raw data'!F157="","",'DF raw data'!F157) -> -2.97705e-05 | C152: =IF('DF raw data'!G157="","",'DF raw data'!G157) -> 0.000105496 | D152: =IF('DF raw data'!H157="","",'DF raw data'!H157) -> -4.00123e-05 | F152: -2.99074443e-05 | G152: 0.0001059812816 | H152: -4.019635658e-05 | J152: -0.001161181738 | K152: -0.02641644339 | L152: 0.00523271673 | M152: 0.1180170447 | N152: 0.0004327769352
A153: =IF('DF raw data'!E158="","",'DF raw data'!E158) -> -254.5 | B153: =IF('DF raw data'!F158="","",'DF raw data'!F158) -> -1.68297e-05 | C153: =IF('DF raw data'!G158="","",'DF raw data'!G158) -> 0.000111778 | D153: =IF('DF raw data'!H158="","",'DF raw data'!H158) -> -3.47354e-05 | F153: -1.690711662e-05 | G153: 0.0001122921788 | H153: -3.489518284e-05 | J153: -0.001169635296 | K153: -0.02700126103 | L153: 0.005288862819 | M153: 0.1206614761 | N153: 0.0004474469936
A154: =IF('DF raw data'!E159="","",'DF raw data'!E159) -> -254 | B154: =IF('DF raw data'!F159="","",'DF raw data'!F159) -> -2.13833e-05 | C154: =IF('DF raw data'!G159="","",'DF raw data'!G159) -> 0.000123163 | D154: =IF('DF raw data'!H159="","",'DF raw data'!H159) -> -2.73465e-05 | F154: -2.148166318e-05 | G154: 0.0001237295498 | H154: -2.74722939e-05 | J154: -0.001180376128 | K154: -0.0275914491 | L154: 0.005350727594 | M154: 0.1233368399 | N154: 0.0004624587803
A155: =IF('DF raw data'!E160="","",'DF raw data'!E160) -> -253.5 | B155: =IF('DF raw data'!F160="","",'DF raw data'!F160) -> -2.58707e-05 | C155: =IF('DF raw data'!G160="","",'DF raw data'!G160) -> 0.000125821 | D155: =IF('DF raw data'!H160="","",'DF raw data'!H160) -> -2.93128e-05 | F155: -2.598970522e-05 | G155: 0.0001263997766 | H155: -2.944763888e-05 | J155: -0.00119337098 | K155: -0.02818813459 | L155: 0.005413927482 | M155: 0.1260438037 | N155: 0.0004778261529
A156: =IF('DF raw data'!E161="","",'DF raw data'!E161) -> -253 | B156: =IF('DF raw data'!F161="","",'DF raw data'!F161) -> -1.77215e-05 | C156: =IF('DF raw data'!G161="","",'DF raw data'!G161) -> 0.000118638 | D156: =IF('DF raw data'!H161="","",'DF raw data'!H161) -> -4.03965e-05 | F156: -1.78030189e-05 | G156: 0.0001191837348 | H156: -4.05823239e-05 | J156: -0.00120227249 | K156: -0.02878927083 | L156: 0.00547351935 | M156: 0.1287805633 | N156: 0.0004935285895
A157: =IF('DF raw data'!E162="","",'DF raw data'!E162) -> -252.5 | B157: =IF('DF raw data'!F162="","",'DF raw data'!F162) -> -1.18281e-05 | C157: =IF('DF raw data'!G162="","",'DF raw data'!G162) -> 0.000110966 | D157: =IF('DF raw data'!H162="","",'DF raw data'!H162) -> -3.78571e-05 | F157: -1.188250926e-05 | G157: 0.0001114764436 | H157: -3.803124266e-05 | J157: -0.001208213744 | K157: -0.02939337771 | L157: 0.005529257571 | M157: 0.1315451921 | N157: 0.0005095448244
A158: =IF('DF raw data'!E163="","",'DF raw data'!E163) -> -252 | B158: =IF('DF raw data'!F163="","",'DF raw data'!F163) -> -3.25246e-05 | C158: =IF('DF raw data'!G163="","",'DF raw data'!G163) -> 0.00011493 | D158: =IF('DF raw data'!H163="","",'DF raw data'!H163) -> -4.29296e-05 | F158: -3.267421316e-05 | G158: 0.000115458678 | H158: -4.312707616e-05 | J158: -0.001224550851 | K158: -0.03000565313 | L158: 0.00558698691 | M158: 0.1343386856 | N158: 0.0005259017981
A159: =IF('DF raw data'!E164="","",'DF raw data'!E164) -> -251.5 | B159: =IF('DF raw data'!F164="","",'DF raw data'!F164) -> -1.92587e-05 | C159: =IF('DF raw data'!G164="","",'DF raw data'!G164) -> 0.000119993 | D159: =IF('DF raw data'!H164="","",'DF raw data'!H164) -> -4.51446e-05 | F159: -1.934729002e-05 | G159: 0.0001205449678 | H159: -4.535226516e-05 | J159: -0.001234224496 | K159: -0.03062276538 | L159: 0.005647259394 | M159: 0.1371623153 | N159: 0.0005426092225
A160: =IF('DF raw data'!E165="","",'DF raw data'!E165) -> -251 | B160: =IF('DF raw data'!F165="","",'DF raw data'!F165) -> -1.78467e-05 | C160: =IF('DF raw data'!G165="","",'DF raw data'!G165) -> 0.000124325 | D160: =IF('DF raw data'!H165="","",'DF raw data'!H165) -> -4.50463e-05 | F160: -1.792879482e-05 | G160: 0.000124896895 | H160: -4.525351298e-05 | J160: -0.001243188893 | K160: -0.03124435983 | L160: 0.005709707842 | M160: 0.1400171692 | N160: 0.0005596823636
A161: =IF('DF raw data'!E166="","",'DF raw data'!E166) -> -250.5 | B161: =IF('DF raw data'!F166="","",'DF raw data'!F166) -> -1.85567e-05 | C161: =IF('DF raw data'!G166="","",'DF raw data'!G166) -> 0.000125315 | D161: =IF('DF raw data'!H166="","",'DF raw data'!H166) -> -4.01508e-05 | F161: -1.864206082e-05 | G161: 0.000125891449 | H161: -4.033549368e-05 | J161: -0.001252509924 | K161: -0.03187061479 | L161: 0.005772653566 | M161: 0.142903496 | N161: 0.0005771285188
A162: =IF('DF raw data'!E167="","",'DF raw data'!E167) -> -250 | B162: =IF('DF raw data'!F167="","",'DF raw data'!F167) -> -1.70172e-05 | C162: =IF('DF raw data'!G167="","",'DF raw data'!G167) -> 0.000118253 | D162: =IF('DF raw data'!H167="","",'DF raw data'!H167) -> -3.98247e-05 | F162: -1.709547912e-05 | G162: 0.0001187969638 | H162: -4.000789362e-05 | J162: -0.001261057663 | K162: -0.03250114362 | L162: 0.005832052048 | M162: 0.145819522 | N162: 0.0005949300676
A163: =IF('DF raw data'!E168="","",'DF raw data'!E168) -> -249.5 | B163: =IF('DF raw data'!F168="","",'DF raw data'!F168) -> -2.03567e-05 | C163: =IF('DF raw data'!G168="","",'DF raw data'!G168) -> 0.000117218 | D163: =IF('DF raw data'!H168="","",'DF raw data'!H168) -> -3.16624e-05 | F163: -2.045034082e-05 | G163: 0.0001177572028 | H163: -3.180804704e-05 | J163: -0.001271282834 | K163: -0.03313678504 | L163: 0.00589093065 | M163: 0.1487649873 | N163: 0.0006130896795
A164: =IF('DF raw data'!E169="","",'DF raw data'!E169) -> -249 | B164: =IF('DF raw data'!F169="","",'DF raw data'!F169) -> -2.39965e-05 | C164: =IF('DF raw data'!G169="","",'DF raw data'!G169) -> 0.000123733 | D164: =IF('DF raw data'!H169="","",'DF raw data'!H169) -> -4.96322e-05 | F164: -2.41068839e-05 | G164: 0.0001243021718 | H164: -4.986050812e-05 | J164: -0.001283336276 | K164: -0.03377845317 | L164: 0.005953081736 | M164: 0.1517415282 | N164: 0.0006316327466
A165: =IF('DF raw data'!E170="","",'DF raw data'!E170) -> -248.5 | B165: =IF('DF raw data'!F170="","",'DF raw data'!F170) -> -2.19504e-05 | C165: =IF('DF raw data'!G170="","",'DF raw data'!G170) -> 0.000129349 | D165: =IF('DF raw data'!H170="","",'DF raw data'!H170) -> -4.50309e-05 | F165: -2.205137184e-05 | G165: 0.0001299440054 | H165: -4.523804214e-05 | J165: -0.001294361962 | K165: -0.03442563416 | L165: 0.006018053738 | M165: 0.1547505551 | N165: 0.0006505789185
A166: =IF('DF raw data'!E171="","",'DF raw data'!E171) -> -248 | B166: =IF('DF raw data'!F171="","",'DF raw data'!F171) -> -2.2406e-05 | C166: =IF('DF raw data'!G171="","",'DF raw data'!G171) -> 0.000119324 | D166: =IF('DF raw data'!H171="","",'DF raw data'!H171) -> -3.20755e-05 | F166: -2.25090676e-05 | G166: 0.0001198728904 | H166: -3.22230473e-05 | J166: -0.001305616496 | K166: -0.0350784424 | L166: 0.006077990183 | M166: 0.1577895502 | N166: 0.000669902218
A167: =IF('DF raw data'!E172="","",'DF raw data'!E172) -> -247.5 | B167: =IF('DF raw data'!F172="","",'DF raw data'!F172) -> -2.2077e-05 | C167: =IF('DF raw data'!G172="","",'DF raw data'!G172) -> 0.000112529 | D167: =IF('DF raw data'!H172="","",'DF raw data'!H172) -> -4.74262e-05 | F167: -2.21785542e-05 | G167: 0.0001130466334 | H167: -4.764436052e-05 | J167: -0.001316705773 | K167: -0.03573679529 | L167: 0.0061345135 | M167: 0.1608568069 | N167: 0.000689585203
A168: =IF('DF raw data'!E173="","",'DF raw data'!E173) -> -247 | B168: =IF('DF raw data'!F173="","",'DF raw data'!F173) -> -2.27816e-05 | C168: =IF('DF raw data'!G173="","",'DF raw data'!G173) -> 0.000112421 | D168: =IF('DF raw data'!H173="","",'DF raw data'!H173) -> -4.58731e-05 | F168: -2.288639536e-05 | G168: 0.0001129381366 | H168: -4.608411626e-05 | J168: -0.00132814897 | K168: -0.03640086977 | L168: 0.006190982568 | M168: 0.1639522982 | N168: 0.0007096313254
A169: =IF('DF raw data'!E174="","",'DF raw data'!E174) -> -246.5 | B169: =IF('DF raw data'!F174="","",'DF raw data'!F174) -> -1.1115e-05 | C169: =IF('DF raw data'!G174="","",'DF raw data'!G174) -> 0.000121882 | D169: =IF('DF raw data'!H174="","",'DF raw data'!H174) -> -5.02496e-05 | F169: -1.1166129e-05 | G169: 0.0001224426572 | H169: -5.048074816e-05 | J169: -0.001333732035 | K169: -0.03706773579 | L169: 0.006252203897 | M169: 0.1670784002 | N169: 0.0007300657728
A170: =IF('DF raw data'!E175="","",'DF raw data'!E175) -> -246 | B170: =IF('DF raw data'!F175="","",'DF raw data'!F175) -> -1.81742e-05 | C170: =IF('DF raw data'!G175="","",'DF raw data'!G175) -> 0.000125546 | D170: =IF('DF raw data'!H175="","",'DF raw data'!H175) -> -3.48314e-05 | F170: -1.825780132e-05 | G170: 0.0001261235116 | H170: -3.499162444e-05 | J170: -0.001342860935 | K170: -0.03773916626 | L170: 0.006315265653 | M170: 0.170236033 | N170: 0.0007509087007
A171: =IF('DF raw data'!E176="","",'DF raw data'!E176) -> -245.5 | B171: =IF('DF raw data'!F176="","",'DF raw data'!F176) -> -1.84331e-05 | C171: =IF('DF raw data'!G176="","",'DF raw data'!G176) -> 0.000123738 | D171: =IF('DF raw data'!H176="","",'DF raw data'!H176) -> -3.27141e-05 | F171: -1.851789226e-05 | G171: 0.0001243071948 | H171: -3.286458486e-05 | J171: -0.001352119882 | K171: -0.0384152262 | L171: 0.00637741925 | M171: 0.1734247426 | N171: 0.0007721585529
A172: =IF('DF raw data'!E177="","",'DF raw data'!E177) -> -245 | B172: =IF('DF raw data'!F177="","",'DF raw data'!F177) -> -2.5603e-05 | C172: =IF('DF raw data'!G177="","",'DF raw data'!G177) -> 0.000113991 | D172: =IF('DF raw data'!H177="","",'DF raw data'!H177) -> -4.36231e-05 | F172: -2.57207738e-05 | G172: 0.0001145153586 | H172: -4.382376626e-05 | J172: -0.001364980268 | K172: -0.03909771633 | L172: 0.00643467693 | M172: 0.1766420811 | N172: 0.0007937926721
A173: =IF('DF raw data'!E178="","",'DF raw data'!E178) -> -244.5 | B173: =IF('DF raw data'!F178="","",'DF raw data'!F178) -> -1.37542e-05 | C173: =IF('DF raw data'!G178="","",'DF raw data'!G178) -> 0.000116957 | D173: =IF('DF raw data'!H178="","",'DF raw data'!H178) -> -3.26914e-05 | F173: -1.381746932e-05 | G173: 0.0001174950022 | H173: -3.284178044e-05 | J173: -0.001371889003 | K173: -0.03978366084 | L173: 0.006493424431 | M173: 0.1798887933 | N173: 0.0008158159922
A174: =IF('DF raw data'!E179="","",'DF raw data'!E179) -> -244 | B174: =IF('DF raw data'!F179="","",'DF raw data'!F179) -> -3.16306e-05 | C174: =IF('DF raw data'!G179="","",'DF raw data'!G179) -> 0.000128339 | D174: =IF('DF raw data'!H179="","",'DF raw data'!H179) -> -3.88782e-05 | F174: -3.177610076e-05 | G174: 0.0001289293594 | H174: -3.905703972e-05 | J174: -0.001387777054 | K174: -0.04047754936 | L174: 0.00655788911 | M174: 0.1831677378 | N174: 0.0008382819096
A175: =IF('DF raw data'!E180="","",'DF raw data'!E180) -> -243.5 | B175: =IF('DF raw data'!F180="","",'DF raw data'!F180) -> -2.29166e-05 | C175: =IF('DF raw data'!G180="","",'DF raw data'!G180) -> 0.000122219 | D175: =IF('DF raw data'!H180="","",'DF raw data'!H180) -> -3.76096e-05 | F175: -2.302201636e-05 | G175: 0.0001227812074 | H175: -3.778260416e-05 | J175: -0.001399288062 | K175: -0.04117719339 | L175: 0.006619279714 | M175: 0.1864773777 | N175: 0.0008611683451
A176: =IF('DF raw data'!E181="","",'DF raw data'!E181) -> -243 | B176: =IF('DF raw data'!F181="","",'DF raw data'!F181) -> -2.4706e-05 | C176: =IF('DF raw data'!G181="","",'DF raw data'!G181) -> 0.000115583 | D176: =IF('DF raw data'!H181="","",'DF raw data'!H181) -> -4.30961e-05 | F176: -2.48196476e-05 | G176: 0.0001161146818 | H176: -4.329434206e-05 | J176: -0.001411697886 | K176: -0.04188304234 | L176: 0.006677337055 | M176: 0.1898160462 | N176: 0.0008844582056
A177: =IF('DF raw data'!E182="","",'DF raw data'!E182) -> -242.5 | B177: =IF('DF raw data'!F182="","",'DF raw data'!F182) -> -2.37479e-05 | C177: =IF('DF raw data'!G182="","",'DF raw data'!G182) -> 0.000113992 | D177: =IF('DF raw data'!H182="","",'DF raw data'!H182) -> -4.03206e-05 | F177: -2.385714034e-05 | G177: 0.0001145163632 | H177: -4.050607476e-05 | J177: -0.001423626456 | K177: -0.04259485556 | L177: 0.006734595237 | M177: 0.1931833438 | N177: 0.0009081489482
A178: =IF('DF raw data'!E183="","",'DF raw data'!E183) -> -242 | B178: =IF('DF raw data'!F183="","",'DF raw data'!F183) -> -2.37991e-05 | C178: =IF('DF raw data'!G183="","",'DF raw data'!G183) -> 0.000114165 | D178: =IF('DF raw data'!H183="","",'DF raw data'!H183) -> -5.80643e-05 | F178: -2.390857586e-05 | G178: 0.000114690159 | H178: -5.833139578e-05 | J178: -0.001435580744 | K178: -0.04331264594 | L178: 0.006791940316 | M178: 0.196579314 | N178: 0.0009322446209
A179: =IF('DF raw data'!E184="","",'DF raw data'!E184) -> -241.5 | B179: =IF('DF raw data'!F184="","",'DF raw data'!F184) -> -2.48981e-05 | C179: =IF('DF raw data'!G184="","",'DF raw data'!G184) -> 0.000120443 | D179: =IF('DF raw data'!H184="","",'DF raw data'!H184) -> -4.6099e-05 | F179: -2.501263126e-05 | G179: 0.0001209970378 | H179: -4.63110554e-05 | J179: -0.001448087059 | K179: -0.04403668947 | L179: 0.006852438835 | M179: 0.2000055334 | N179: 0.000956771058
A180: =IF('DF raw data'!E185="","",'DF raw data'!E185) -> -241 | B180: =IF('DF raw data'!F185="","",'DF raw data'!F185) -> -3.32335e-05 | C180: =IF('DF raw data'!G185="","",'DF raw data'!G185) -> 0.000112733 | D180: =IF('DF raw data'!H185="","",'DF raw data'!H185) -> -3.8024e-05 | F180: -3.33863741e-05 | G180: 0.0001132515718 | H180: -3.81989104e-05 | J180: -0.001464780246 | K180: -0.04476907959 | L180: 0.006909064621 | M180: 0.2034600657 | N180: 0.0009817114355
A181: =IF('DF raw data'!E186="","",'DF raw data'!E186) -> -240.5 | B181: =IF('DF raw data'!F186="","",'DF raw data'!F186) -> -2.73431e-05 | C181: =IF('DF raw data'!G186="","",'DF raw data'!G186) -> 0.000111503 | D181: =IF('DF raw data'!H186="","",'DF raw data'!H186) -> -3.14335e-05 | F181: -2.746887826e-05 | G181: 0.0001120159138 | H181: -3.15780941e-05 | J181: -0.001478514685 | K181: -0.04550833693 | L181: 0.006965072578 | M181: 0.206942602 | N181: 0.001007060556
A182: =IF('DF raw data'!E187="","",'DF raw data'!E187) -> -240 | B182: =IF('DF raw data'!F187="","",'DF raw data'!F187) -> -1.68321e-05 | C182: =IF('DF raw data'!G187="","",'DF raw data'!G187) -> 0.00011149 | D182: =IF('DF raw data'!H187="","",'DF raw data'!H187) -> -2.87872e-05 | F182: -1.690952766e-05 | G182: 0.000112002854 | H182: -2.891962112e-05 | J182: -0.001486969449 | K182: -0.04625182166 | L182: 0.007021074005 | M182: 0.210453139 | N182: 0.001032813836
A183: =IF('DF raw data'!E188="","",'DF raw data'!E188) -> -239.5 | B183: =IF('DF raw data'!F188="","",'DF raw data'!F188) -> -2.22054e-05 | C183: =IF('DF raw data'!G188="","",'DF raw data'!G188) -> 0.000118613 | D183: =IF('DF raw data'!H188="","",'DF raw data'!H188) -> -4.70811e-05 | F183: -2.230754484e-05 | G183: 0.0001191586198 | H183: -4.729767306e-05 | J183: -0.001498123222 | K183: -0.04700088327 | L183: 0.007080653315 | M183: 0.2139934657 | N183: 0.001059003848
A184: =IF('DF raw data'!E189="","",'DF raw data'!E189) -> -239 | B184: =IF('DF raw data'!F189="","",'DF raw data'!F189) -> -1.42675e-05 | C184: =IF('DF raw data'!G189="","",'DF raw data'!G189) -> 0.00012608 | D184: =IF('DF raw data'!H189="","",'DF raw data'!H189) -> -3.04878e-05 | F184: -1.43331305e-05 | G184: 0.000126659968 | H184: -3.062804388e-05 | J184: -0.001505289787 | K184: -0.04775352816 | L184: 0.007143983299 | M184: 0.2175654573 | N184: 0.001085655045
A185: =IF('DF raw data'!E190="","",'DF raw data'!E190) -> -238.5 | B185: =IF('DF raw data'!F190="","",'DF raw data'!F190) -> -8.93554e-06 | C185: =IF('DF raw data'!G190="","",'DF raw data'!G190) -> 0.000131583 | D185: =IF('DF raw data'!H190="","",'DF raw data'!H190) -> -5.02536e-05 | F185: -8.976643484e-06 | G185: 0.0001321882818 | H185: -5.048476656e-05 | J185: -0.001509778109 | K185: -0.04850841722 | L185: 0.00721007744 | M185: 0.221170496 | N185: 0.001112787368
A186: =IF('DF raw data'!E191="","",'DF raw data'!E191) -> -238 | B186: =IF('DF raw data'!F191="","",'DF raw data'!F191) -> -1.33018e-05 | C186: =IF('DF raw data'!G191="","",'DF raw data'!G191) -> 0.000125138 | D186: =IF('DF raw data'!H191="","",'DF raw data'!H191) -> -3.70101e-05 | F186: -1.336298828e-05 | G186: 0.0001257136348 | H186: -3.718034646e-05 | J186: -0.001516459603 | K186: -0.04926664702 | L186: 0.007272934257 | M186: 0.2248069632 | N186: 0.00114038498
A187: =IF('DF raw data'!E192="","",'DF raw data'!E192) -> -237.5 | B187: =IF('DF raw data'!F192="","",'DF raw data'!F192) -> -1.95137e-05 | C187: =IF('DF raw data'!G192="","",'DF raw data'!G192) -> 0.0001218 | D187: =IF('DF raw data'!H192="","",'DF raw data'!H192) -> -4.67304e-05 | F187: -1.960346302e-05 | G187: 0.00012236028 | H187: -4.694535984e-05 | J187: -0.001526261334 | K187: -0.05002977768 | L187: 0.007334114397 | M187: 0.2284740204 | N187: 0.001168444334
A188: =IF('DF raw data'!E193="","",'DF raw data'!E193) -> -237 | B188: =IF('DF raw data'!F193="","",'DF raw data'!F193) -> -3.20702e-05 | C188: =IF('DF raw data'!G193="","",'DF raw data'!G193) -> 0.00012791 | D188: =IF('DF raw data'!H193="","",'DF raw data'!H193) -> -5.30717e-05 | F188: -3.221772292e-05 | G188: 0.000128498386 | H188: -5.331582982e-05 | J188: -0.001542370196 | K188: -0.05080096278 | L188: 0.00739836359 | M188: 0.2321732022 | N188: 0.001197001678
A189: =IF('DF raw data'!E194="","",'DF raw data'!E194) -> -236.5 | B189: =IF('DF raw data'!F194="","",'DF raw data'!F194) -> -2.59708e-06 | C189: =IF('DF raw data'!G194="","",'DF raw data'!G194) -> 0.000117984 | D189: =IF('DF raw data'!H194="","",'DF raw data'!H194) -> -3.97659e-05 | F189: -2.609026568e-06 | G189: 0.0001185267264 | H189: -3.994882314e-05 | J189: -0.001543674709 | K189: -0.05157280014 | L189: 0.007457626953 | M189: 0.2359020156 | N189: 0.001226001244
A190: =IF('DF raw data'!E195="","",'DF raw data'!E195) -> -236 | B190: =IF('DF raw data'!F195="","",'DF raw data'!F195) -> -1.54789e-05 | C190: =IF('DF raw data'!G195="","",'DF raw data'!G195) -> 0.000118763 | D190: =IF('DF raw data'!H195="","",'DF raw data'!H195) -> -4.04337e-05 | F190: -1.555010294e-05 | G190: 0.0001193093098 | H190: -4.061969502e-05 | J190: -0.001551449761 | K190: -0.05234852502 | L190: 0.007517281608 | M190: 0.2396606564 | N190: 0.001255459504
A191: =IF('DF raw data'!E196="","",'DF raw data'!E196) -> -235.5 | B191: =IF('DF raw data'!F196="","",'DF raw data'!F196) -> -1.63746e-05 | C191: =IF('DF raw data'!G196="","",'DF raw data'!G196) -> 0.000116104 | D191: =IF('DF raw data'!H196="","",'DF raw data'!H196) -> -4.40938e-05 | F191: -1.644992316e-05 | G191: 0.0001166380784 | H191: -4.429663148e-05 | J191: -0.001559674722 | K191: -0.05312836238 | L191: 0.007575600647 | M191: 0.2434484568 | N191: 0.001285370659
A192: =IF('DF raw data'!E197="","",'DF raw data'!E197) -> -235 | B192: =IF('DF raw data'!F197="","",'DF raw data'!F197) -> -2.54117e-05 | C192: =IF('DF raw data'!G197="","",'DF raw data'!G197) -> 0.000122382 | D192: =IF('DF raw data'!H197="","",'DF raw data'!H197) -> -4.26365e-05 | F192: =(1-$G$1*($B$49-$G$2))*B192 -> -2.552859382e-05 | G192: 0.0001229449572 | H192: -4.28326279e-05 | J192: =F192*$G$3+J191 -> -0.001572439019 | K192: =J192*$G$3+K191 -> -0.05391458189 | L192: =G192*$G$3+L191 -> 0.007637073126 | M192: =L192*$G$3+M191 -> 0.2472669933 | N192: =(J192^2+L192^2)*$G$3+N191 -> 0.001315769384
A193: =IF('DF raw data'!E198="","",'DF raw data'!E198) -> -234.5 | B193: =IF('DF raw data'!F198="","",'DF raw data'!F198) -> -1.70768e-05 | C193: =IF('DF raw data'!G198="","",'DF raw data'!G198) -> 0.000129775 | D193: =IF('DF raw data'!H198="","",'DF raw data'!H198) -> -4.82574e-05 | F193: -1.715535328e-05 | G193: 0.000130371965 | H193: -4.847938404e-05 | J193: -0.001581016696 | K193: -0.05470509023 | L193: 0.007702259108 | M193: 0.2511181229 | N193: 0.001346681589
A194: =IF('DF raw data'!E199="","",'DF raw data'!E199) -> -234 | B194: =IF('DF raw data'!F199="","",'DF raw data'!F199) -> -1.17643e-05 | C194: =IF('DF raw data'!G199="","",'DF raw data'!G199) -> 0.000124712 | D194: =IF('DF raw data'!H199="","",'DF raw data'!H199) -> -3.62407e-05 | F194: -1.181841578e-05 | G194: 0.0001252856752 | H194: -3.640740722e-05 | J194: -0.001586925904 | K194: -0.05549855319 | L194: 0.007764901946 | M194: 0.2550005739 | N194: 0.001378087607
A195: =IF('DF raw data'!E200="","",'DF raw data'!E200) -> -233.5 | B195: =IF('DF raw data'!F200="","",'DF raw data'!F200) -> -1.34886e-05 | C195: =IF('DF raw data'!G200="","",'DF raw data'!G200) -> 0.000119922 | D195: =IF('DF raw data'!H200="","",'DF raw data'!H200) -> -4.68055e-05 | F195: -1.355064756e-05 | G195: 0.0001204736412 | H195: -4.70208053e-05 | J195: -0.001593701227 | K195: -0.0562954038 | L195: 0.007825138767 | M195: 0.2589131432 | N195: 0.001409973947
A196: =IF('DF raw data'!E201="","",'DF raw data'!E201) -> -233 | B196: =IF('DF raw data'!F201="","",'DF raw data'!F201) -> -2.2911e-05 | C196: =IF('DF raw data'!G201="","",'DF raw data'!G201) -> 0.000122947 | D196: =IF('DF raw data'!H201="","",'DF raw data'!H201) -> -4.45506e-05 | F196: -2.30163906e-05 | G196: 0.0001235125562 | H196: -4.475553276e-05 | J196: -0.001605209423 | K196: -0.05709800851 | L196: 0.007886895045 | M196: 0.2628565908 | N196: 0.001442363852
A197: =IF('DF raw data'!E202="","",'DF raw data'!E202) -> -232.5 | B197: =IF('DF raw data'!F202="","",'DF raw data'!F202) -> -2.19488e-05 | C197: =IF('DF raw data'!G202="","",'DF raw data'!G202) -> 0.000122384 | D197: =IF('DF raw data'!H202="","",'DF raw data'!H202) -> -4.68923e-05 | F197: -2.204976448e-05 | G197: 0.0001229469664 | H197: -4.710800458e-05 | J197: -0.001616234305 | K197: -0.05790612566 | L197: 0.007948368528 | M197: 0.266830775 | N197: 0.00147525824
A198: =IF('DF raw data'!E203="","",'DF raw data'!E203) -> -232 | B198: =IF('DF raw data'!F203="","",'DF raw data'!F203) -> -2.11204e-05 | C198: =IF('DF raw data'!G203="","",'DF raw data'!G203) -> 0.000119418 | D198: =IF('DF raw data'!H203="","",'DF raw data'!H203) -> -3.80805e-05 | F198: -2.121755384e-05 | G198: 0.0001199673228 | H198: -3.82556703e-05 | J198: -0.001626843082 | K198: -0.05871954721 | L198: 0.008008352189 | M198: 0.2708349511 | N198: 0.001508648402
A199: =IF('DF raw data'!E204="","",'DF raw data'!E204) -> -231.5 | B199: =IF('DF raw data'!F204="","",'DF raw data'!F204) -> -2.36086e-05 | C199: =IF('DF raw data'!G204="","",'DF raw data'!G204) -> 0.000108697 | D199: =IF('DF raw data'!H204="","",'DF raw data'!H204) -> -5.70213e-05 | F199: -2.371719956e-05 | G199: 0.0001091970062 | H199: -5.728359798e-05 | J199: -0.001638701682 | K199: -0.05953889805 | L199: 0.008062950692 | M199: 0.2748664265 | N199: 0.00154249666
A200: =IF('DF raw data'!E205="","",'DF raw data'!E205) -> -231 | B200: =IF('DF raw data'!F205="","",'DF raw data'!F205) -> -2.36213e-05 | C200: =IF('DF raw data'!G205="","",'DF raw data'!G205) -> 0.000101398 | D200: =IF('DF raw data'!H205="","",'DF raw data'!H205) -> -3.61148e-05 | F200: -2.372995798e-05 | G200: 0.0001018644308 | H200: -3.628092808e-05 | J200: -0.001650566661 | K200: -0.06036418138 | L200: 0.008113882908 | M200: 0.2789233679 | N200: 0.001576776393
A201: =IF('DF raw data'!E206="","",'DF raw data'!E206) -> -230.5 | B201: =IF('DF raw data'!F206="","",'DF raw data'!F206) -> -2.0603e-05 | C201: =IF('DF raw data'!G206="","",'DF raw data'!G206) -> 0.000105607 | D201: =IF('DF raw data'!H206="","",'DF raw data'!H206) -> -4.6418e-05 | F201: -2.06977738e-05 | G201: 0.0001060927922 | H201: -4.66315228e-05 | J201: -0.001660915547 | K201: -0.06119463915 | L201: 0.008166929304 | M201: 0.2830068326 | N201: 0.00161150508
... 1061 more rows

Sheet 10 x=0
A1: =IF('DF raw data'!I1="","",'DF raw data'!I1) -> Number of header lines | B1: =IF('DF raw data'!J1="","",'DF raw data'!J1) -> 54 | C1: =IF('DF raw data'!K1="","",'DF raw data'!K1) ->  | D1: =IF('DF raw data'!L1="","",'DF raw data'!L1) ->  | F1: T_coeff | G1: -0.001 | H1: /degC | J1: IBy total | K1: =J1262*1000 -> -3.033088686 | L1: muTm | M1: =L1262*1000 -> 80.06547297 | R1: DF ref | S1: ='10 x=-2'!S1 -> 1
A2: =IF('DF raw data'!I2="","",'DF raw data'!I2) -> Measured by | B2: =IF('DF raw data'!J2="","",'DF raw data'!J2) -> Danfysik | C2: =IF('DF raw data'!K2="","",'DF raw data'!K2) ->  | D2: =IF('DF raw data'!L2="","",'DF raw data'!L2) ->  | F2: Tcorr | G2: 20 | H2: degC | J2: JBy total | K2: =K1262 -> -31.62420171 | L2: muTm^2 | M2: =M1262 -> 28.55670156
A3: =IF('DF raw data'!I3="","",'DF raw data'!I3) -> Operator | B3: =IF('DF raw data'!J3="","",'DF raw data'!J3) -> PMHA | C3: =IF('DF raw data'!K3="","",'DF raw data'!K3) ->  | D3: =IF('DF raw data'!L3="","",'DF raw data'!L3) ->  | F3: Step | G3: =A63-A62 -> 0.5 | H3: mm | J3: PI total | K3: =N1262 -> 10428.81029 | L3: T^2mm^3
A4: =IF('DF raw data'!I4="","",'DF raw data'!I4) -> Data-time | B4: =IF('DF raw data'!J4="","",'DF raw data'!J4) -> 23-09-2024, 14:34:16 | C4: =IF('DF raw data'!K4="","",'DF raw data'!K4) ->  | D4: =IF('DF raw data'!L4="","",'DF raw data'!L4) -> 
A5: =IF('DF raw data'!I5="","",'DF raw data'!I5) -> Project | B5: =IF('DF raw data'!J5="","",'DF raw data'!J5) -> 504314 | C5: =IF('DF raw data'!K5="","",'DF raw data'!K5) ->  | D5: =IF('DF raw data'!L5="","",'DF raw data'!L5) -> 
A6: =IF('DF raw data'!I6="","",'DF raw data'!I6) -> Magnet type | B6: =IF('DF raw data'!J6="","",'DF raw data'!J6) -> Dipole | C6: =IF('DF raw data'!K6="","",'DF raw data'!K6) ->  | D6: =IF('DF raw data'!L6="","",'DF raw data'!L6) -> 
A7: =IF('DF raw data'!I7="","",'DF raw data'!I7) -> Magnet nr. | B7: =IF('DF raw data'!J7="","",'DF raw data'!J7) -> 2410100 | C7: =IF('DF raw data'!K7="","",'DF raw data'!K7) ->  | D7: =IF('DF raw data'!L7="","",'DF raw data'!L7) -> 
A8: =IF('DF raw data'!I8="","",'DF raw data'!I8) -> Meas. number | B8: =IF('DF raw data'!J8="","",'DF raw data'!J8) -> 644 | C8: =IF('DF raw data'!K8="","",'DF raw data'!K8) ->  | D8: =IF('DF raw data'!L8="","",'DF raw data'!L8) -> 
A9: =IF('DF raw data'!I9="","",'DF raw data'!I9) -> Add. info | B9: =IF('DF raw data'!J9="","",'DF raw data'!J9) -> X-alignment scan 3) | C9: =IF('DF raw data'!K9="","",'DF raw data'!K9) ->  | D9: =IF('DF raw data'!L9="","",'DF raw data'!L9) -> 
A10: =IF('DF raw data'!I10="","",'DF raw data'!I10) -> Device | B10: =IF('DF raw data'!J10="","",'DF raw data'!J10) -> (HAL) HALL-PROBE | C10: =IF('DF raw data'!K10="","",'DF raw data'!K10) ->  | D10: =IF('DF raw data'!L10="","",'DF raw data'!L10) -> 
A11: =IF('DF raw data'!I11="","",'DF raw data'!I11) -> Goal | B11: =IF('DF raw data'!J11="","",'DF raw data'!J11) -> (AXI) AXis Integral (Line, EFB) | C11: =IF('DF raw data'!K11="","",'DF raw data'!K11) ->  | D11: =IF('DF raw data'!L11="","",'DF raw data'!L11) -> 
A12: =IF('DF raw data'!I12="","",'DF raw data'!I12) -> Power supply mode | B12: =IF('DF raw data'!J12="","",'DF raw data'!J12) -> (PM) Permanent Magnet (no MPS in use) | C12: =IF('DF raw data'!K12="","",'DF raw data'!K12) ->  | D12: =IF('DF raw data'!L12="","",'DF raw data'!L12) -> 
A13: =IF('DF raw data'!I13="","",'DF raw data'!I13) -> Data format | B13: =IF('DF raw data'!J13="","",'DF raw data'!J13) -> Raw data text file | C13: =IF('DF raw data'!K13="","",'DF raw data'!K13) ->  | D13: =IF('DF raw data'!L13="","",'DF raw data'!L13) -> 
A14: =IF('DF raw data'!I14="","",'DF raw data'!I14) -> Direction of the pos. x-axis | B14: =IF('DF raw data'!J14="","",'DF raw data'!J14) -> See test program | C14: =IF('DF raw data'!K14="","",'DF raw data'!K14) ->  | D14: =IF('DF raw data'!L14="","",'DF raw data'!L14) -> 
A15: =IF('DF raw data'!I15="","",'DF raw data'!I15) -> Direction of the pos. y-axis | B15: =IF('DF raw data'!J15="","",'DF raw data'!J15) -> Vertical up | C15: =IF('DF raw data'!K15="","",'DF raw data'!K15) ->  | D15: =IF('DF raw data'!L15="","",'DF raw data'!L15) -> 
A16: =IF('DF raw data'!I16="","",'DF raw data'!I16) -> Direction of the pos. z-axis | B16: =IF('DF raw data'!J16="","",'DF raw data'!J16) -> See test program | C16: =IF('DF raw data'!K16="","",'DF raw data'!K16) ->  | D16: =IF('DF raw data'!L16="","",'DF raw data'!L16) -> 
A17: =IF('DF raw data'!I17="","",'DF raw data'!I17) -> Mapper type | B17: =IF('DF raw data'!J17="","",'DF raw data'!J17) -> Precision Hall Mapper | C17: =IF('DF raw data'!K17="","",'DF raw data'!K17) ->  | D17: =IF('DF raw data'!L17="","",'DF raw data'!L17) -> 
A18: =IF('DF raw data'!I18="","",'DF raw data'!I18) -> Mapper Danfysik Reg. Number | B18: =IF('DF raw data'!J18="","",'DF raw data'!J18) -> 2033-D (mapper 1) | C18: =IF('DF raw data'!K18="","",'DF raw data'!K18) ->  | D18: =IF('DF raw data'!L18="","",'DF raw data'!L18) -> 
A19: =IF('DF raw data'!I19="","",'DF raw data'!I19) -> Measurement consept | B19: =IF('DF raw data'!J19="","",'DF raw data'!J19) -> Square line grid | C19: =IF('DF raw data'!K19="","",'DF raw data'!K19) ->  | D19: =IF('DF raw data'!L19="","",'DF raw data'!L19) -> 
A20: =IF('DF raw data'!I20="","",'DF raw data'!I20) -> Mode | B20: =IF('DF raw data'!J20="","",'DF raw data'!J20) -> On-the-fly measurement | C20: =IF('DF raw data'!K20="","",'DF raw data'!K20) ->  | D20: =IF('DF raw data'!L20="","",'DF raw data'!L20) -> 
A21: =IF('DF raw data'!I21="","",'DF raw data'!I21) ->  | B21: =IF('DF raw data'!J21="","",'DF raw data'!J21) ->  | C21: =IF('DF raw data'!K21="","",'DF raw data'!K21) ->  | D21: =IF('DF raw data'!L21="","",'DF raw data'!L21) -> 
A22: =IF('DF raw data'!I22="","",'DF raw data'!I22) -> Probe Name | B22: =IF('DF raw data'!J22="","",'DF raw data'!J22) -> ID12_By | C22: =IF('DF raw data'!K22="","",'DF raw data'!K22) ->  | D22: =IF('DF raw data'!L22="","",'DF raw data'!L22) -> 
A23: =IF('DF raw data'!I23="","",'DF raw data'!I23) -> Probe Type | B23: =IF('DF raw data'!J23="","",'DF raw data'!J23) -> DF_ID_3D_Bxyz | C23: =IF('DF raw data'!K23="","",'DF raw data'!K23) ->  | D23: =IF('DF raw data'!L23="","",'DF raw data'!L23) -> 
A24: =IF('DF raw data'!I24="","",'DF raw data'!I24) -> Probe Danfysik Reg. Number | B24: =IF('DF raw data'!J24="","",'DF raw data'!J24) -> 2277 | C24: =IF('DF raw data'!K24="","",'DF raw data'!K24) ->  | D24: =IF('DF raw data'!L24="","",'DF raw data'!L24) -> 
A25: =IF('DF raw data'!I25="","",'DF raw data'!I25) -> Probe Axis | B25: =IF('DF raw data'!J25="","",'DF raw data'!J25) -> By | C25: =IF('DF raw data'!K25="","",'DF raw data'!K25) ->  | D25: =IF('DF raw data'!L25="","",'DF raw data'!L25) -> 
A26: =IF('DF raw data'!I26="","",'DF raw data'!I26) -> Probe Current Supply | B26: =IF('DF raw data'!J26="","",'DF raw data'!J26) -> 1825-D | C26: =IF('DF raw data'!K26="","",'DF raw data'!K26) ->  | D26: =IF('DF raw data'!L26="","",'DF raw data'!L26) -> 
A27: =IF('DF raw data'!I27="","",'DF raw data'!I27) -> Probe Gain Correction | B27: =IF('DF raw data'!J27="","",'DF raw data'!J27) -> 0.99619 | C27: =IF('DF raw data'!K27="","",'DF raw data'!K27) ->  | D27: =IF('DF raw data'!L27="","",'DF raw data'!L27) -> 
A28: =IF('DF raw data'!I28="","",'DF raw data'!I28) -> Probe Offset Correction | B28: =IF('DF raw data'!J28="","",'DF raw data'!J28) -> 0.0027544 | C28: =IF('DF raw data'!K28="","",'DF raw data'!K28) ->  | D28: =IF('DF raw data'!L28="","",'DF raw data'!L28) -> 
A29: =IF('DF raw data'!I29="","",'DF raw data'!I29) -> DVM Number | B29: =IF('DF raw data'!J29="","",'DF raw data'!J29) -> 2 | C29: =IF('DF raw data'!K29="","",'DF raw data'!K29) ->  | D29: =IF('DF raw data'!L29="","",'DF raw data'!L29) -> 
A30: =IF('DF raw data'!I30="","",'DF raw data'!I30) -> DVM Type | B30: =IF('DF raw data'!J30="","",'DF raw data'!J30) -> K2701 | C30: =IF('DF raw data'!K30="","",'DF raw data'!K30) ->  | D30: =IF('DF raw data'!L30="","",'DF raw data'!L30) -> 
A31: =IF('DF raw data'!I31="","",'DF raw data'!I31) -> DVM Danfysik Reg. Number | B31: =IF('DF raw data'!J31="","",'DF raw data'!J31) -> 1743-D | C31: =IF('DF raw data'!K31="","",'DF raw data'!K31) ->  | D31: =IF('DF raw data'!L31="","",'DF raw data'!L31) -> 
A32: =IF('DF raw data'!I32="","",'DF raw data'!I32) -> Probe Name | B32: =IF('DF raw data'!J32="","",'DF raw data'!J32) -> ID12_Bx | C32: =IF('DF raw data'!K32="","",'DF raw data'!K32) ->  | D32: =IF('DF raw data'!L32="","",'DF raw data'!L32) -> 
A33: =IF('DF raw data'!I33="","",'DF raw data'!I33) -> Probe Type | B33: =IF('DF raw data'!J33="","",'DF raw data'!J33) -> DF_ID_3D_Bxyz | C33: =IF('DF raw data'!K33="","",'DF raw data'!K33) ->  | D33: =IF('DF raw data'!L33="","",'DF raw data'!L33) -> 
A34: =IF('DF raw data'!I34="","",'DF raw data'!I34) -> Probe Danfysik Reg. Number | B34: =IF('DF raw data'!J34="","",'DF raw data'!J34) -> 2277 | C34: =IF('DF raw data'!K34="","",'DF raw data'!K34) ->  | D34: =IF('DF raw data'!L34="","",'DF raw data'!L34) -> 
A35: =IF('DF raw data'!I35="","",'DF raw data'!I35) -> Probe Axis | B35: =IF('DF raw data'!J35="","",'DF raw data'!J35) -> Bx | C35: =IF('DF raw data'!K35="","",'DF raw data'!K35) ->  | D35: =IF('DF raw data'!L35="","",'DF raw data'!L35) -> 
A36: =IF('DF raw data'!I36="","",'DF raw data'!I36) -> Probe Current Supply | B36: =IF('DF raw data'!J36="","",'DF raw data'!J36) -> 1825-D | C36: =IF('DF raw data'!K36="","",'DF raw data'!K36) ->  | D36: =IF('DF raw data'!L36="","",'DF raw data'!L36) -> 
A37: =IF('DF raw data'!I37="","",'DF raw data'!I37) -> Probe Gain Correction | B37: =IF('DF raw data'!J37="","",'DF raw data'!J37) -> 1 | C37: =IF('DF raw data'!K37="","",'DF raw data'!K37) ->  | D37: =IF('DF raw data'!L37="","",'DF raw data'!L37) -> 
A38: =IF('DF raw data'!I38="","",'DF raw data'!I38) -> Probe Offset Correction | B38: =IF('DF raw data'!J38="","",'DF raw data'!J38) -> -0.1756 | C38: =IF('DF raw data'!K38="","",'DF raw data'!K38) ->  | D38: =IF('DF raw data'!L38="","",'DF raw data'!L38) -> 
A39: =IF('DF raw data'!I39="","",'DF raw data'!I39) -> DVM Number | B39: =IF('DF raw data'!J39="","",'DF raw data'!J39) -> 3 | C39: =IF('DF raw data'!K39="","",'DF raw data'!K39) ->  | D39: =IF('DF raw data'!L39="","",'DF raw data'!L39) -> 
A40: =IF('DF raw data'!I40="","",'DF raw data'!I40) -> DVM Type | B40: =IF('DF raw data'!J40="","",'DF raw data'!J40) -> K2701 | C40: =IF('DF raw data'!K40="","",'DF raw data'!K40) ->  | D40: =IF('DF raw data'!L40="","",'DF raw data'!L40) -> 
A41: =IF('DF raw data'!I41="","",'DF raw data'!I41) -> DVM Danfysik Reg. Number | B41: =IF('DF raw data'!J41="","",'DF raw data'!J41) -> 1744-D | C41: =IF('DF raw data'!K41="","",'DF raw data'!K41) ->  | D41: =IF('DF raw data'!L41="","",'DF raw data'!L41) -> 
A42: =IF('DF raw data'!I42="","",'DF raw data'!I42) -> Probe Name | B42: =IF('DF raw data'!J42="","",'DF raw data'!J42) -> ID12_Bz | C42: =IF('DF raw data'!K42="","",'DF raw data'!K42) ->  | D42: =IF('DF raw data'!L42="","",'DF raw data'!L42) -> 
A43: =IF('DF raw data'!I43="","",'DF raw data'!I43) -> Probe Type | B43: =IF('DF raw data'!J43="","",'DF raw data'!J43) -> DF_ID_3D_Bxyz | C43: =IF('DF raw data'!K43="","",'DF raw data'!K43) ->  | D43: =IF('DF raw data'!L43="","",'DF raw data'!L43) -> 
A44: =IF('DF raw data'!I44="","",'DF raw data'!I44) -> Probe Danfysik Reg. Number | B44: =IF('DF raw data'!J44="","",'DF raw data'!J44) -> 2277 | C44: =IF('DF raw data'!K44="","",'DF raw data'!K44) ->  | D44: =IF('DF raw data'!L44="","",'DF raw data'!L44) -> 
A45: =IF('DF raw data'!I45="","",'DF raw data'!I45) -> Probe Axis | B45: =IF('DF raw data'!J45="","",'DF raw data'!J45) -> Bz | C45: =IF('DF raw data'!K45="","",'DF raw data'!K45) ->  | D45: =IF('DF raw data'!L45="","",'DF raw data'!L45) -> 
A46: =IF('DF raw data'!I46="","",'DF raw data'!I46) -> Probe Current Supply | B46: =IF('DF raw data'!J46="","",'DF raw data'!J46) -> 1825-D | C46: =IF('DF raw data'!K46="","",'DF raw data'!K46) ->  | D46: =IF('DF raw data'!L46="","",'DF raw data'!L46) -> 
A47: =IF('DF raw data'!I47="","",'DF raw data'!I47) -> Probe Gain Correction | B47: =IF('DF raw data'!J47="","",'DF raw data'!J47) -> 1 | C47: =IF('DF raw data'!K47="","",'DF raw data'!K47) ->  | D47: =IF('DF raw data'!L47="","",'DF raw data'!L47) -> 
A48: =IF('DF raw data'!I53="","",'DF raw data'!I53) -> PS-Gap: | B48: =IF('DF raw data'!J53="","",'DF raw data'!J53) -> 10 | C48: =IF('DF raw data'!K53="","",'DF raw data'!K53) ->  | D48: =IF('DF raw data'!L53="","",'DF raw data'!L53) -> 
A49: =IF('DF raw data'!I54="","",'DF raw data'!I54) -> PS-Temperature: | B49: =IF('DF raw data'!J54="","",'DF raw data'!J54) -> 24.6 | C49: =IF('DF raw data'!K54="","",'DF raw data'!K54) ->  | D49: =IF('DF raw data'!L54="","",'DF raw data'!L54) -> 
A50: =IF('DF raw data'!I55="","",'DF raw data'!I55) -> PS-Encoder: | B50: =IF('DF raw data'!J55="","",'DF raw data'!J55) -> 19.8194 | C50: =IF('DF raw data'!K55="","",'DF raw data'!K55) ->  | D50: =IF('DF raw data'!L55="","",'DF raw data'!L55) -> 
A51: =IF('DF raw data'!I56="","",'DF raw data'!I56) ->  | B51: =IF('DF raw data'!J56="","",'DF raw data'!J56) ->  | C51: =IF('DF raw data'!K56="","",'DF raw data'!K56) ->  | D51: =IF('DF raw data'!L56="","",'DF raw data'!L56) -> 
A52: =IF('DF raw data'!I57="","",'DF raw data'!I57) -> Monitor-Index | B52: =IF('DF raw data'!J57="","",'DF raw data'!J57) -> [1,1,4] | C52: =IF('DF raw data'!K57="","",'DF raw data'!K57) ->  | D52: =IF('DF raw data'!L57="","",'DF raw data'!L57) -> 
A53: =IF('DF raw data'!I58="","",'DF raw data'!I58) ->  | B53: =IF('DF raw data'!J58="","",'DF raw data'!J58) ->  | C53: =IF('DF raw data'!K58="","",'DF raw data'!K58) ->  | D53: =IF('DF raw data'!L58="","",'DF raw data'!L58) -> 
A54: =IF('DF raw data'!I59="","",'DF raw data'!I59) -> Time [s] | B54: =IF('DF raw data'!J59="","",'DF raw data'!J59) -> Y [mm] | C54: =IF('DF raw data'!K59="","",'DF raw data'!K59) -> X [mm] | D54: =IF('DF raw data'!L59="","",'DF raw data'!L59) -> Nominal current [A]
A55: =IF('DF raw data'!I60="","",'DF raw data'!I60) ->  | B55: =IF('DF raw data'!J60="","",'DF raw data'!J60) ->  | C55: =IF('DF raw data'!K60="","",'DF raw data'!K60) ->  | D55: =IF('DF raw data'!L60="","",'DF raw data'!L60) -> 
A56: =IF('DF raw data'!I61="","",'DF raw data'!I61) -> 207.7 | B56: =IF('DF raw data'!J61="","",'DF raw data'!J61) -> 31.55 | C56: =IF('DF raw data'!K61="","",'DF raw data'!K61) -> 302.55 | D56: =IF('DF raw data'!L61="","",'DF raw data'!L61) -> 0
A57: =IF('DF raw data'!I62="","",'DF raw data'!I62) ->  | B57: =IF('DF raw data'!J62="","",'DF raw data'!J62) ->  | C57: =IF('DF raw data'!K62="","",'DF raw data'!K62) ->  | D57: =IF('DF raw data'!L62="","",'DF raw data'!L62) -> 
A58: =IF('DF raw data'!I63="","",'DF raw data'!I63) -> Measurement-Index | B58: =IF('DF raw data'!J63="","",'DF raw data'!J63) -> [1,1,1201,2] | C58: =IF('DF raw data'!K63="","",'DF raw data'!K63) ->  | D58: =IF('DF raw data'!L63="","",'DF raw data'!L63) -> 
A59: =IF('DF raw data'!I64="","",'DF raw data'!I64) ->  | B59: =IF('DF raw data'!J64="","",'DF raw data'!J64) ->  | C59: =IF('DF raw data'!K64="","",'DF raw data'!K64) ->  | D59: =IF('DF raw data'!L64="","",'DF raw data'!L64) -> 
A60: =IF('DF raw data'!I65="","",'DF raw data'!I65) -> Z [mm] | B60: By [T] | C60: Bx [T] | D60: Bz [T] | F60: By_corr | G60: Bx_corr | H60: Bz_corr | J60: Iy | K60: Jy | L60: Ix | M60: Jx | N60: PI
A62: =IF('DF raw data'!I67="","",'DF raw data'!I67) -> -300 | B62: =IF('DF raw data'!J67="","",'DF raw data'!J67) -> -8.52388e-06 | C62: =IF('DF raw data'!K67="","",'DF raw data'!K67) -> 0.000180516 | D62: =IF('DF raw data'!L67="","",'DF raw data'!L67) -> -2.68464e-05 | F62: =(1-$G$1*($B$49))*B62 -> -8.733567448e-06 | G62: =(1-$G$1*($B$49-$G$2))*C62 -> 0.0001813463736 | H62: =(1-$G$1*($B$49-$G$2))*D62 -> -2.696989344e-05 | J62: =F62*$G$3 -> -4.366783724e-06 | K62: =J62*$G$3 -> -2.183391862e-06 | L62: =G62*$G$3 -> 9.06731868e-05 | M62: =L62*$G$3 -> 4.53365934e-05 | N62: =(J62^2+L62^2)*$G$3 -> 4.120347802e-09
A63: =IF('DF raw data'!I68="","",'DF raw data'!I68) -> -299.5 | B63: =IF('DF raw data'!J68="","",'DF raw data'!J68) -> -1.75617e-05 | C63: =IF('DF raw data'!K68="","",'DF raw data'!K68) -> 0.000185719 | D63: =IF('DF raw data'!L68="","",'DF raw data'!L68) -> -2.59542e-05 | F63: =(1-$G$1*($B$49-$G$2))*B63 -> -1.764248382e-05 | G63: =(1-$G$1*($B$49-$G$2))*C63 -> 0.0001865733074 | H63: -2.607358932e-05 | J63: =F63*$G$3+J62 -> -1.318802563e-05 | K63: =J63*$G$3+K62 -> -8.777404679e-06 | L63: =G63*$G$3+L62 -> 0.0001839598405 | M63: =L63*$G$3+M62 -> 0.0001373165136 | N63: =(J63^2+L63^2)*$G$3+N62 -> 2.112792127e-08
A64: =IF('DF raw data'!I69="","",'DF raw data'!I69) -> -299 | B64: =IF('DF raw data'!J69="","",'DF raw data'!J69) -> -2.23695e-05 | C64: =IF('DF raw data'!K69="","",'DF raw data'!K69) -> 0.000189955 | D64: =IF('DF raw data'!L69="","",'DF raw data'!L69) -> -2.46173e-05 | F64: =(1-$G$1*($B$49-$G$2))*B64 -> -2.24723997e-05 | G64: 0.000190828793 | H64: -2.473053958e-05 | J64: =F64*$G$3+J63 -> -2.442422548e-05 | K64: =J64*$G$3+K63 -> -2.098951742e-05 | L64: =G64*$G$3+L63 -> 0.000279374237 | M64: =L64*$G$3+M63 -> 0.0002770036321 | N64: =(J64^2+L64^2)*$G$3+N63 -> 6.045117482e-08
A65: =IF('DF raw data'!I70="","",'DF raw data'!I70) -> -298.5 | B65: =IF('DF raw data'!J70="","",'DF raw data'!J70) -> -5.2561e-06 | C65: =IF('DF raw data'!K70="","",'DF raw data'!K70) -> 0.000193543 | D65: =IF('DF raw data'!L70="","",'DF raw data'!L70) -> -2.48266e-05 | F65: -5.28027806e-06 | G65: 0.0001944332978 | H65: -2.494080236e-05 | J65: -2.706436451e-05 | K65: -3.452169968e-05 | L65: 0.0003765908859 | M65: 0.0004652990751 | N65: 1.317277624e-07
A66: =IF('DF raw data'!I71="","",'DF raw data'!I71) -> -298 | B66: =IF('DF raw data'!J71="","",'DF raw data'!J71) -> -1.10884e-05 | C66: =IF('DF raw data'!K71="","",'DF raw data'!K71) -> 0.000198092 | D66: =IF('DF raw data'!L71="","",'DF raw data'!L71) -> -2.57956e-05 | F66: -1.113940664e-05 | G66: 0.0001990032232 | H66: -2.591425976e-05 | J66: -3.263406783e-05 | K66: -5.08387336e-05 | L66: 0.0004760924975 | M66: 0.0007033453238 | N66: 2.455922867e-07
A67: =IF('DF raw data'!I72="","",'DF raw data'!I72) -> -297.5 | B67: =IF('DF raw data'!J72="","",'DF raw data'!J72) -> -2.80697e-05 | C67: =IF('DF raw data'!K72="","",'DF raw data'!K72) -> 0.000193218 | D67: =IF('DF raw data'!L72="","",'DF raw data'!L72) -> -2.57163e-05 | F67: -2.819882062e-05 | G67: 0.0001941068028 | H67: -2.583459498e-05 | J67: -4.673347814e-05 | K67: -7.420547267e-05 | L67: 0.0005731458989 | M67: 0.0009899182733 | N67: 4.109324064e-07
A68: =IF('DF raw data'!I73="","",'DF raw data'!I73) -> -297 | B68: =IF('DF raw data'!J73="","",'DF raw data'!J73) -> -1.57034e-05 | C68: =IF('DF raw data'!K73="","",'DF raw data'!K73) -> 0.000198957 | D68: =IF('DF raw data'!L73="","",'DF raw data'!L73) -> -2.52353e-05 | F68: -1.577563564e-05 | G68: 0.0001998722022 | H68: -2.535138238e-05 | J68: -5.462129596e-05 | K68: -0.0001015161206 | L68: 0.000673082 | M68: 0.001326459273 | N68: 6.389438387e-07
A69: =IF('DF raw data'!I74="","",'DF raw data'!I74) -> -296.5 | B69: =IF('DF raw data'!J74="","",'DF raw data'!J74) -> -2.10851e-05 | C69: =IF('DF raw data'!K74="","",'DF raw data'!K74) -> 0.000195627 | D69: =IF('DF raw data'!L74="","",'DF raw data'!L74) -> -2.51346e-05 | F69: -2.118209146e-05 | G69: 0.0001965268842 | H69: -2.525021916e-05 | J69: -6.521234169e-05 | K69: -0.0001341222915 | L69: 0.0007713454421 | M69: 0.001712131994 | N69: 9.38557059e-07
A70: =IF('DF raw data'!I75="","",'DF raw data'!I75) -> -296 | B70: =IF('DF raw data'!J75="","",'DF raw data'!J75) -> -2.4292e-05 | C70: =IF('DF raw data'!K75="","",'DF raw data'!K75) -> 0.000189183 | D70: =IF('DF raw data'!L75="","",'DF raw data'!L75) -> -2.46178e-05 | F70: -2.44037432e-05 | G70: 0.0001900532418 | H70: -2.473104188e-05 | J70: -7.741421329e-05 | K70: -0.0001728293981 | L70: 0.000866372063 | M70: 0.002145318026 | N70: 1.316853815e-06
A71: =IF('DF raw data'!I76="","",'DF raw data'!I76) -> -295.5 | B71: =IF('DF raw data'!J76="","",'DF raw data'!J76) -> -2.4034e-05 | C71: =IF('DF raw data'!K76="","",'DF raw data'!K76) -> 0.000188699 | D71: =IF('DF raw data'!L76="","",'DF raw data'!L76) -> -2.35077e-05 | F71: -2.41445564e-05 | G71: 0.0001895670154 | H71: -2.361583542e-05 | J71: -8.948649149e-05 | K71: -0.0002175726439 | L71: 0.0009611555707 | M71: 0.002625895811 | N71: 1.782767747e-06
A72: =IF('DF raw data'!I77="","",'DF raw data'!I77) -> -295 | B72: =IF('DF raw data'!J77="","",'DF raw data'!J77) -> -1.26281e-05 | C72: =IF('DF raw data'!K77="","",'DF raw data'!K77) -> 0.000195157 | D72: =IF('DF raw data'!L77="","",'DF raw data'!L77) -> -2.3277e-05 | F72: -1.268618926e-05 | G72: 0.0001960547222 | H72: -2.33840742e-05 | J72: -9.582958612e-05 | K72: -0.000265487437 | L72: 0.001059182932 | M72: 0.003155487277 | N72: 2.348293643e-06
A73: =IF('DF raw data'!I78="","",'DF raw data'!I78) -> -294.5 | B73: =IF('DF raw data'!J78="","",'DF raw data'!J78) -> -3.59024e-06 | C73: =IF('DF raw data'!K78="","",'DF raw data'!K78) -> 0.000204988 | D73: =IF('DF raw data'!L78="","",'DF raw data'!L78) -> -2.44251e-05 | F73: -3.606755104e-06 | G73: 0.0002059309448 | H73: -2.453745546e-05 | J73: -9.763296368e-05 | K73: -0.0003143039188 | L73: 0.001162148404 | M73: 0.003736561479 | N73: 3.028354197e-06
A74: =IF('DF raw data'!I79="","",'DF raw data'!I79) -> -294 | B74: =IF('DF raw data'!J79="","",'DF raw data'!J79) -> -1.15372e-05 | C74: =IF('DF raw data'!K79="","",'DF raw data'!K79) -> 0.000208309 | D74: =IF('DF raw data'!L79="","",'DF raw data'!L79) -> -2.55158e-05 | F74: -1.159027112e-05 | G74: 0.0002092672214 | H74: -2.563317268e-05 | J74: -0.0001034280992 | K74: -0.0003660179684 | L74: 0.001266782015 | M74: 0.004369952487 | N74: 3.83607122e-06
A75: =IF('DF raw data'!I80="","",'DF raw data'!I80) -> -293.5 | B75: =IF('DF raw data'!J80="","",'DF raw data'!J80) -> -1.5381e-05 | C75: =IF('DF raw data'!K80="","",'DF raw data'!K80) -> 0.000206593 | D75: =IF('DF raw data'!L80="","",'DF raw data'!L80) -> -2.5556e-05 | F75: -1.54517526e-05 | G75: 0.0002075433278 | H75: -2.56735576e-05 | J75: -0.0001111539755 | K75: -0.0004215949562 | L75: 0.001370553679 | M75: 0.005055229326 | N75: 4.781457516e-06
A76: =IF('DF raw data'!I81="","",'DF raw data'!I81) -> -293 | B76: =IF('DF raw data'!J81="","",'DF raw data'!J81) -> -1.67288e-05 | C76: =IF('DF raw data'!K81="","",'DF raw data'!K81) -> 0.000195827 | D76: =IF('DF raw data'!L81="","",'DF raw data'!L81) -> -2.52675e-05 | F76: -1.680575248e-05 | G76: 0.0001967278042 | H76: -2.53837305e-05 | J76: -0.0001195568518 | K76: -0.0004813733821 | L76: 0.001468917581 | M76: 0.005789688116 | N76: 5.867463866e-06
A77: =IF('DF raw data'!I82="","",'DF raw data'!I82) -> -292.5 | B77: =IF('DF raw data'!J82="","",'DF raw data'!J82) -> -1.19207e-05 | C77: =IF('DF raw data'!K82="","",'DF raw data'!K82) -> 0.000185114 | D77: =IF('DF raw data'!L82="","",'DF raw data'!L82) -> -2.53663e-05 | F77: -1.197553522e-05 | G77: 0.0001859655244 | H77: -2.548298498e-05 | J77: -0.0001255446194 | K77: -0.0005441456918 | L77: 0.001561900343 | M77: 0.006570638288 | N77: 7.095110933e-06
A78: =IF('DF raw data'!I83="","",'DF raw data'!I83) -> -292 | B78: =IF('DF raw data'!J83="","",'DF raw data'!J83) -> -2.17921e-05 | C78: =IF('DF raw data'!K83="","",'DF raw data'!K83) -> 0.000187714 | D78: =IF('DF raw data'!L83="","",'DF raw data'!L83) -> -2.52652e-05 | F78: -2.189234366e-05 | G78: 0.0001885774844 | H78: -2.538141992e-05 | J78: -0.0001364907912 | K78: -0.0006123910874 | L78: 0.001656189085 | M78: 0.007398732831 | N78: 8.475906944e-06
A79: =IF('DF raw data'!I84="","",'DF raw data'!I84) -> -291.5 | B79: =IF('DF raw data'!J84="","",'DF raw data'!J84) -> -2.00631e-05 | C79: =IF('DF raw data'!K84="","",'DF raw data'!K84) -> 0.000182962 | D79: =IF('DF raw data'!L84="","",'DF raw data'!L84) -> -1.94989e-05 | F79: -2.015539026e-05 | G79: 0.0001838036252 | H79: -1.958859494e-05 | J79: -0.0001465684863 | K79: -0.0006856753305 | L79: 0.001748090898 | M79: 0.00827277828 | N79: 1.0014559e-05
A80: =IF('DF raw data'!I85="","",'DF raw data'!I85) -> -291 | B80: =IF('DF raw data'!J85="","",'DF raw data'!J85) -> -1.60245e-05 | C80: =IF('DF raw data'!K85="","",'DF raw data'!K85) -> 0.000178416 | D80: =IF('DF raw data'!L85="","",'DF raw data'!L85) -> -2.40211e-05 | F80: -1.60982127e-05 | G80: 0.0001792367136 | H80: -2.413159706e-05 | J80: -0.0001546175927 | K80: -0.0007629841269 | L80: 0.001837709255 | M80: 0.009191632907 | N80: 1.171509995e-05
A81: =IF('DF raw data'!I86="","",'DF raw data'!I86) -> -290.5 | B81: =IF('DF raw data'!J86="","",'DF raw data'!J86) -> -1.90381e-05 | C81: =IF('DF raw data'!K86="","",'DF raw data'!K86) -> 0.000186297 | D81: =IF('DF raw data'!L86="","",'DF raw data'!L86) -> -1.89782e-05 | F81: -1.912567526e-05 | G81: 0.0001871539662 | H81: -1.906549972e-05 | J81: -0.0001641804303 | K81: -0.000845074342 | L81: 0.001931286238 | M81: 0.01015727603 | N81: 1.359351082e-05
A82: =IF('DF raw data'!I87="","",'DF raw data'!I87) -> -290 | B82: =IF('DF raw data'!J87="","",'DF raw data'!J87) -> -1.90957e-05 | C82: =IF('DF raw data'!K87="","",'DF raw data'!K87) -> 0.000178018 | D82: =IF('DF raw data'!L87="","",'DF raw data'!L87) -> -3.23977e-05 | F82: -1.918354022e-05 | G82: 0.0001788368828 | H82: -3.254672942e-05 | J82: -0.0001737722004 | K82: -0.0009319604423 | L82: 0.002020704679 | M82: 0.01116762837 | N82: 1.565023291e-05
A83: =IF('DF raw data'!I88="","",'DF raw data'!I88) -> -289.5 | B83: =IF('DF raw data'!J88="","",'DF raw data'!J88) -> -1.5195e-05 | C83: =IF('DF raw data'!K88="","",'DF raw data'!K88) -> 0.000179721 | D83: =IF('DF raw data'!L88="","",'DF raw data'!L88) -> -1.61304e-05 | F83: -1.5264897e-05 | G83: 0.0001805477166 | H83: -1.620459984e-05 | J83: -0.0001814046489 | K83: -0.001022662767 | L83: 0.002110978537 | M83: 0.01222311763 | N83: 1.789480193e-05
A84: =IF('DF raw data'!I89="","",'DF raw data'!I89) -> -289 | B84: =IF('DF raw data'!J89="","",'DF raw data'!J89) -> -1.32038e-05 | C84: =IF('DF raw data'!K89="","",'DF raw data'!K89) -> 0.000189465 | D84: =IF('DF raw data'!L89="","",'DF raw data'!L89) -> -2.53009e-05 | F84: -1.326453748e-05 | G84: 0.000190336539 | H84: -2.541728414e-05 | J84: -0.0001880369177 | K84: -0.001116681226 | L84: 0.002206146807 | M84: 0.01332619104 | N84: 2.034602274e-05
A85: =IF('DF raw data'!I90="","",'DF raw data'!I90) -> -288.5 | B85: =IF('DF raw data'!J90="","",'DF raw data'!J90) -> -1.44819e-05 | C85: =IF('DF raw data'!K90="","",'DF raw data'!K90) -> 0.000185916 | D85: =IF('DF raw data'!L90="","",'DF raw data'!L90) -> -2.86436e-05 | F85: -1.454851674e-05 | G85: 0.0001867712136 | H85: -2.877536056e-05 | J85: -0.000195311176 | K85: -0.001214336814 | L85: 0.002299532414 | M85: 0.01447595724 | N85: 2.300902063e-05
A86: =IF('DF raw data'!I91="","",'DF raw data'!I91) -> -288 | B86: =IF('DF raw data'!J91="","",'DF raw data'!J91) -> -1.57063e-05 | C86: =IF('DF raw data'!K91="","",'DF raw data'!K91) -> 0.000183112 | D86: =IF('DF raw data'!L91="","",'DF raw data'!L91) -> -2.07792e-05 | F86: -1.577854898e-05 | G86: 0.0001839543152 | H86: -2.087478432e-05 | J86: -0.0002032004505 | K86: -0.001315937039 | L86: 0.002391509571 | M86: 0.01567171203 | N86: 2.588932485e-05
A87: =IF('DF raw data'!I92="","",'DF raw data'!I92) -> -287.5 | B87: =IF('DF raw data'!J92="","",'DF raw data'!J92) -> -2.23018e-05 | C87: =IF('DF raw data'!K92="","",'DF raw data'!K92) -> 0.00018487 | D87: =IF('DF raw data'!L92="","",'DF raw data'!L92) -> -2.63939e-05 | F87: -2.240438828e-05 | G87: 0.000185720402 | H87: -2.651531194e-05 | J87: -0.0002144026447 | K87: -0.001423138361 | L87: 0.002484369772 | M87: 0.01691389692 | N87: 2.899835568e-05
A88: =IF('DF raw data'!I93="","",'DF raw data'!I93) -> -287 | B88: =IF('DF raw data'!J93="","",'DF raw data'!J93) -> -2.60819e-05 | C88: =IF('DF raw data'!K93="","",'DF raw data'!K93) -> 0.000184762 | D88: =IF('DF raw data'!L93="","",'DF raw data'!L93) -> -3.17383e-05 | F88: -2.620187674e-05 | G88: 0.0001856119052 | H88: -3.188429618e-05 | J88: -0.000227503583 | K88: -0.001536890153 | L88: 0.002577175725 | M88: 0.01820248478 | N88: 3.234515198e-05
A89: =IF('DF raw data'!I94="","",'DF raw data'!I94) -> -286.5 | B89: =IF('DF raw data'!J94="","",'DF raw data'!J94) -> -1.90356e-05 | C89: =IF('DF raw data'!K94="","",'DF raw data'!K94) -> 0.000186043 | D89: =IF('DF raw data'!L94="","",'DF raw data'!L94) -> -2.30711e-05 | F89: -1.912316376e-05 | G89: 0.0001868987978 | H89: -2.317722706e-05 | J89: -0.0002370651649 | K89: -0.001655422735 | L89: 0.002670625124 | M89: 0.01953779734 | N89: 3.59393712e-05
A90: =IF('DF raw data'!I95="","",'DF raw data'!I95) -> -286 | B90: =IF('DF raw data'!J95="","",'DF raw data'!J95) -> -1.67251e-05 | C90: =IF('DF raw data'!K95="","",'DF raw data'!K95) -> 0.000191301 | D90: =IF('DF raw data'!L95="","",'DF raw data'!L95) -> -3.09106e-05 | F90: -1.680203546e-05 | G90: 0.0001921809846 | H90: -3.105278876e-05 | J90: -0.0002454661827 | K90: -0.001778155827 | L90: 0.002766715616 | M90: 0.02092115515 | N90: 3.979685568e-05
A91: =IF('DF raw data'!I96="","",'DF raw data'!I96) -> -285.5 | B91: =IF('DF raw data'!J96="","",'DF raw data'!J96) -> -1.39767e-05 | C91: =IF('DF raw data'!K96="","",'DF raw data'!K96) -> 0.000198184 | D91: =IF('DF raw data'!L96="","",'DF raw data'!L96) -> -1.71528e-05 | F91: -1.404099282e-05 | G91: 0.0001990956464 | H91: -1.723170288e-05 | J91: -0.0002524866791 | K91: -0.001904399166 | L91: 0.002866263439 | M91: 0.02235428687 | N91: 4.393646349e-05
A92: =IF('DF raw data'!I97="","",'DF raw data'!I97) -> -285 | B92: =IF('DF raw data'!J97="","",'DF raw data'!J97) -> -1.06425e-05 | C92: =IF('DF raw data'!K97="","",'DF raw data'!K97) -> 0.000197691 | D92: =IF('DF raw data'!L97="","",'DF raw data'!L97) -> -2.16546e-05 | F92: -1.06914555e-05 | G92: 0.0001986003786 | H92: -2.175421116e-05 | J92: -0.0002578324068 | K92: -0.002033315369 | L92: 0.002965563629 | M92: 0.02383706868 | N92: 4.836698608e-05
A93: =IF('DF raw data'!I98="","",'DF raw data'!I98) -> -284.5 | B93: =IF('DF raw data'!J98="","",'DF raw data'!J98) -> -2.31459e-05 | C93: =IF('DF raw data'!K98="","",'DF raw data'!K98) -> 0.000192842 | D93: =IF('DF raw data'!L98="","",'DF raw data'!L98) -> -9.69558e-06 | F93: -2.325237114e-05 | G93: 0.0001937290732 | H93: -9.740179668e-06 | J93: -0.0002694585924 | K93: -0.002168044666 | L93: 0.003062428165 | M93: 0.02536828277 | N93: 5.309252318e-05
A94: =IF('DF raw data'!I99="","",'DF raw data'!I99) -> -284 | B94: =IF('DF raw data'!J99="","",'DF raw data'!J99) -> -2.08277e-05 | C94: =IF('DF raw data'!K99="","",'DF raw data'!K99) -> 0.000191699 | D94: =IF('DF raw data'!L99="","",'DF raw data'!L99) -> -2.94469e-05 | F94: -2.092350742e-05 | G94: 0.0001925808154 | H94: -2.958235574e-05 | J94: -0.0002799203461 | K94: -0.002308004839 | L94: 0.003158718573 | M94: 0.02694764205 | N94: 5.81204524e-05
A95: =IF('DF raw data'!I100="","",'DF raw data'!I100) -> -283.5 | B95: =IF('DF raw data'!J100="","",'DF raw data'!J100) -> -1.55009e-05 | C95: =IF('DF raw data'!K100="","",'DF raw data'!K100) -> 0.000192183 | D95: =IF('DF raw data'!L100="","",'DF raw data'!L100) -> -3.85775e-05 | F95: -1.557220414e-05 | G95: 0.0001930670418 | H95: -3.87549565e-05 | J95: -0.0002877064482 | K95: -0.002451858063 | L95: 0.003255252094 | M95: 0.0285752681 | N95: 6.346017299e-05
A96: =IF('DF raw data'!I101="","",'DF raw data'!I101) -> -283 | B96: =IF('DF raw data'!J101="","",'DF raw data'!J101) -> -2.66626e-05 | C96: =IF('DF raw data'!K101="","",'DF raw data'!K101) -> 0.000195176 | D96: =IF('DF raw data'!L101="","",'DF raw data'!L101) -> -2.58092e-05 | F96: -2.678524796e-05 | G96: 0.0001960738096 | H96: -2.592792232e-05 | J96: -0.0003010990721 | K96: -0.002602407599 | L96: 0.003353288999 | M96: 0.0302519126 | N96: 6.912777687e-05
A97: =IF('DF raw data'!I102="","",'DF raw data'!I102) -> -282.5 | B97: =IF('DF raw data'!J102="","",'DF raw data'!J102) -> -1.65959e-05 | C97: =IF('DF raw data'!K102="","",'DF raw data'!K102) -> 0.000195194 | D97: =IF('DF raw data'!L102="","",'DF raw data'!L102) -> -3.01177e-05 | F97: -1.667224114e-05 | G97: 0.0001960918924 | H97: -3.025624142e-05 | J97: -0.0003094351927 | K97: -0.002757125195 | L97: 0.003451334945 | M97: 0.03197758007 | N97: 7.513150839e-05
A98: =IF('DF raw data'!I103="","",'DF raw data'!I103) -> -282 | B98: =IF('DF raw data'!J103="","",'DF raw data'!J103) -> -2.18545e-05 | C98: =IF('DF raw data'!K103="","",'DF raw data'!K103) -> 0.000198728 | D98: =IF('DF raw data'!L103="","",'DF raw data'!L103) -> -2.78593e-05 | F98: -2.19550307e-05 | G98: 0.0001996421488 | H98: -2.798745278e-05 | J98: -0.0003204127081 | K98: -0.002917331549 | L98: 0.003551156019 | M98: 0.03375315808 | N98: 8.148819508e-05
A99: =IF('DF raw data'!I104="","",'DF raw data'!I104) -> -281.5 | B99: =IF('DF raw data'!J104="","",'DF raw data'!J104) -> -1.51331e-05 | C99: =IF('DF raw data'!K104="","",'DF raw data'!K104) -> 0.000201724 | D99: =IF('DF raw data'!L104="","",'DF raw data'!L104) -> -1.28109e-05 | F99: -1.520271226e-05 | G99: 0.0002026519304 | H99: -1.286983014e-05 | J99: -0.0003280140642 | K99: -0.003081338581 | L99: 0.003652481984 | M99: 0.03557939907 | N99: 8.821230402e-05
A100: =IF('DF raw data'!I105="","",'DF raw data'!I105) -> -281 | B100: =IF('DF raw data'!J105="","",'DF raw data'!J105) -> -2.26263e-05 | C100: =IF('DF raw data'!K105="","",'DF raw data'!K105) -> 0.000198018 | D100: =IF('DF raw data'!L105="","",'DF raw data'!L105) -> -2.36444e-05 | F100: -2.273038098e-05 | G100: 0.0001989288828 | H100: -2.375316424e-05 | J100: -0.0003393792547 | K100: -0.003251028209 | L100: 0.003751946426 | M100: 0.03745537229 | N100: 9.530844415e-05
A101: =IF('DF raw data'!I106="","",'DF raw data'!I106) -> -280.5 | B101: =IF('DF raw data'!J106="","",'DF raw data'!J106) -> -2.23019e-05 | C101: =IF('DF raw data'!K106="","",'DF raw data'!K106) -> 0.000199325 | D101: =IF('DF raw data'!L106="","",'DF raw data'!L106) -> -2.62371e-05 | F101: -2.240448874e-05 | G101: 0.000200241895 | H101: -2.635779066e-05 | J101: -0.0003505814991 | K101: -0.003426318958 | L101: 0.003852067373 | M101: 0.03938140597 | N101: 0.0001027891094
A102: =IF('DF raw data'!I107="","",'DF raw data'!I107) -> -280 | B102: =IF('DF raw data'!J107="","",'DF raw data'!J107) -> -1.93584e-05 | C102: =IF('DF raw data'!K107="","",'DF raw data'!K107) -> 0.000200581 | D102: =IF('DF raw data'!L107="","",'DF raw data'!L107) -> -2.25105e-05 | F102: -1.944744864e-05 | G102: 0.0002015036726 | H102: -2.26140483e-05 | J102: -0.0003603052234 | K102: -0.00360647157 | L102: 0.00395281921 | M102: 0.04135781558 | N102: 0.0001106664091
A103: =IF('DF raw data'!I108="","",'DF raw data'!I108) -> -279.5 | B103: =IF('DF raw data'!J108="","",'DF raw data'!J108) -> -1.39697e-05 | C103: =IF('DF raw data'!K108="","",'DF raw data'!K108) -> 0.000192463 | D103: =IF('DF raw data'!L108="","",'DF raw data'!L108) -> -2.79262e-05 | F103: -1.403396062e-05 | G103: 0.0001933483298 | H103: -2.805466052e-05 | J103: -0.0003673222037 | K103: -0.003790132672 | L103: 0.004049493375 | M103: 0.04338256226 | N103: 0.0001189330702
A104: =IF('DF raw data'!I109="","",'DF raw data'!I109) -> -279 | B104: =IF('DF raw data'!J109="","",'DF raw data'!J109) -> -1.6855e-05 | C104: =IF('DF raw data'!K109="","",'DF raw data'!K109) -> 0.000187865 | D104: =IF('DF raw data'!L109="","",'DF raw data'!L109) -> -2.83195e-05 | F104: -1.6932533e-05 | G104: 0.000188729179 | H104: -2.84497697e-05 | J104: -0.0003757884702 | K104: -0.003978026907 | L104: 0.004143857964 | M104: 0.04545449125 | N104: 0.0001275894581
A105: =IF('DF raw data'!I110="","",'DF raw data'!I110) -> -278.5 | B105: =IF('DF raw data'!J110="","",'DF raw data'!J110) -> -2.6847e-05 | C105: =IF('DF raw data'!K110="","",'DF raw data'!K110) -> 0.000184376 | D105: =IF('DF raw data'!L110="","",'DF raw data'!L110) -> -3.37289e-05 | F105: -2.69704962e-05 | G105: 0.0001852241296 | H105: -3.388405294e-05 | J105: -0.0003892737183 | K105: -0.004172663766 | L105: 0.004236470029 | M105: 0.04757272626 | N105: 0.0001366390643
A106: =IF('DF raw data'!I111="","",'DF raw data'!I111) -> -278 | B106: =IF('DF raw data'!J111="","",'DF raw data'!J111) -> -1.44287e-05 | C106: =IF('DF raw data'!K111="","",'DF raw data'!K111) -> 0.000188977 | D106: =IF('DF raw data'!L111="","",'DF raw data'!L111) -> -1.44036e-05 | F106: -1.449507202e-05 | G106: 0.0001898462942 | H106: -1.446985656e-05 | J106: -0.0003965212543 | K106: -0.004370924393 | L106: 0.004331393176 | M106: 0.04973842285 | N106: 0.0001460981623
A107: =IF('DF raw data'!I112="","",'DF raw data'!I112) -> -277.5 | B107: =IF('DF raw data'!J112="","",'DF raw data'!J112) -> -2.64132e-05 | C107: =IF('DF raw data'!K112="","",'DF raw data'!K112) -> 0.000183964 | D107: =IF('DF raw data'!L112="","",'DF raw data'!L112) -> -1.10895e-05 | F107: -2.653470072e-05 | G107: 0.0001848102344 | H107: -1.11405117e-05 | J107: -0.0004097886047 | K107: -0.004575818695 | L107: 0.004423798293 | M107: 0.051950322 | N107: 0.0001559671213
A108: =IF('DF raw data'!I113="","",'DF raw data'!I113) -> -277 | B108: =IF('DF raw data'!J113="","",'DF raw data'!J113) -> -1.73666e-05 | C108: =IF('DF raw data'!K113="","",'DF raw data'!K113) -> 0.000178891 | D108: =IF('DF raw data'!L113="","",'DF raw data'!L113) -> -3.00974e-05 | F108: -1.744648636e-05 | G108: 0.0001797138986 | H108: -3.023584804e-05 | J108: -0.0004185118478 | K108: -0.004785074619 | L108: 0.004513655242 | M108: 0.05420714962 | N108: 0.0001662412392
A109: =IF('DF raw data'!I114="","",'DF raw data'!I114) -> -276.5 | B109: =IF('DF raw data'!J114="","",'DF raw data'!J114) -> -1.44209e-05 | C109: =IF('DF raw data'!K114="","",'DF raw data'!K114) -> 0.000184059 | D109: =IF('DF raw data'!L114="","",'DF raw data'!L114) -> -2.40484e-05 | F109: -1.448723614e-05 | G109: 0.0001849056714 | H109: -2.415902264e-05 | J109: -0.0004257554659 | K109: -0.004997952352 | L109: 0.004606108078 | M109: 0.05651020366 | N109: 0.0001769399889
A110: =IF('DF raw data'!I115="","",'DF raw data'!I115) -> -276 | B110: =IF('DF raw data'!J115="","",'DF raw data'!J115) -> -9.29614e-06 | C110: =IF('DF raw data'!K115="","",'DF raw data'!K115) -> 0.000181136 | D110: =IF('DF raw data'!L115="","",'DF raw data'!L115) -> -2.22505e-05 | F110: -9.338902244e-06 | G110: 0.0001819692256 | H110: -2.23528523e-05 | J110: -0.000430424917 | K110: -0.005213164811 | L110: 0.004697092691 | M110: 0.05885875 | N110: 0.0001880639616
A111: =IF('DF raw data'!I116="","",'DF raw data'!I116) -> -275.5 | B111: =IF('DF raw data'!J116="","",'DF raw data'!J116) -> -1.62161e-05 | C111: =IF('DF raw data'!K116="","",'DF raw data'!K116) -> 0.00017615 | D111: =IF('DF raw data'!L116="","",'DF raw data'!L116) -> -2.26044e-05 | F111: -1.629069406e-05 | G111: 0.00017696029 | H111: -2.270838024e-05 | J111: -0.0004385702641 | K111: -0.005432449943 | L111: 0.004785572836 | M111: 0.06125153642 | N111: 0.0001996109872
A112: =IF('DF raw data'!I117="","",'DF raw data'!I117) -> -275 | B112: =IF('DF raw data'!J117="","",'DF raw data'!J117) -> -2.44239e-05 | C112: =IF('DF raw data'!K117="","",'DF raw data'!K117) -> 0.00016907 | D112: =IF('DF raw data'!L117="","",'DF raw data'!L117) -> -1.913e-05 | F112: -2.453624994e-05 | G112: 0.000169847722 | H112: -1.9217998e-05 | J112: -0.000450838389 | K112: -0.005657869137 | L112: 0.004870496697 | M112: 0.06368678477 | N112: 0.0002115734839
A113: =IF('DF raw data'!I118="","",'DF raw data'!I118) -> -274.5 | B113: =IF('DF raw data'!J118="","",'DF raw data'!J118) -> -2.72993e-05 | C113: =IF('DF raw data'!K118="","",'DF raw data'!K118) -> 0.000176192 | D113: =IF('DF raw data'!L118="","",'DF raw data'!L118) -> -2.80656e-05 | F113: -2.742487678e-05 | G113: 0.0001770024832 | H113: -2.819470176e-05 | J113: -0.0004645508274 | K113: -0.005890144551 | L113: 0.004958997939 | M113: 0.06616628374 | N113: 0.0002239772179
A114: =IF('DF raw data'!I119="","",'DF raw data'!I119) -> -274 | B114: =IF('DF raw data'!J119="","",'DF raw data'!J119) -> -2.26948e-05 | C114: =IF('DF raw data'!K119="","",'DF raw data'!K119) -> 0.000177556 | D114: =IF('DF raw data'!L119="","",'DF raw data'!L119) -> -1.68494e-05 | F114: -2.279919608e-05 | G114: 0.0001783727576 | H114: -1.692690724e-05 | J114: -0.0004759504255 | K114: -0.006128119764 | L114: 0.005048184317 | M114: 0.0686903759 | N114: 0.0002368325647
A115: =IF('DF raw data'!I120="","",'DF raw data'!I120) -> -273.5 | B115: =IF('DF raw data'!J120="","",'DF raw data'!J120) -> -1.70506e-05 | C115: =IF('DF raw data'!K120="","",'DF raw data'!K120) -> 0.00017147 | D115: =IF('DF raw data'!L120="","",'DF raw data'!L120) -> -2.02215e-05 | F115: -1.712903276e-05 | G115: 0.000172258762 | H115: -2.03145189e-05 | J115: -0.0004845149418 | K115: -0.006370377235 | L115: 0.005134313698 | M115: 0.07125753275 | N115: 0.0002501305307
A116: =IF('DF raw data'!I121="","",'DF raw data'!I121) -> -273 | B116: =IF('DF raw data'!J121="","",'DF raw data'!J121) -> -2.12186e-05 | C116: =IF('DF raw data'!K121="","",'DF raw data'!K121) -> 0.000177787 | D116: =IF('DF raw data'!L121="","",'DF raw data'!L121) -> -2.02459e-05 | F116: -2.131620556e-05 | G116: 0.0001786048202 | H116: -2.033903114e-05 | J116: -0.0004951730446 | K116: -0.006617963757 | L116: 0.005223616108 | M116: 0.0738693408 | N116: 0.0002638962115
A117: =IF('DF raw data'!I122="","",'DF raw data'!I122) -> -272.5 | B117: =IF('DF raw data'!J122="","",'DF raw data'!J122) -> -2.74314e-05 | C117: =IF('DF raw data'!K122="","",'DF raw data'!K122) -> 0.000176165 | D117: =IF('DF raw data'!L122="","",'DF raw data'!L122) -> -2.21532e-05 | F117: -2.755758444e-05 | G117: 0.000176975359 | H117: -2.225510472e-05 | J117: -0.0005089518368 | K117: -0.006872439675 | L117: 0.005312103788 | M117: 0.07652539269 | N117: 0.0002781349508
A118: =IF('DF raw data'!I123="","",'DF raw data'!I123) -> -272 | B118: =IF('DF raw data'!J123="","",'DF raw data'!J123) -> -2.89641e-05 | C118: =IF('DF raw data'!K123="","",'DF raw data'!K123) -> 0.000171259 | D118: =IF('DF raw data'!L123="","",'DF raw data'!L123) -> -3.49476e-05 | F118: -2.909733486e-05 | G118: 0.0001720467914 | H118: -3.510835896e-05 | J118: -0.0005235005043 | K118: -0.007134189928 | L118: 0.005398127184 | M118: 0.07922445629 | N118: 0.0002928418657
A119: =IF('DF raw data'!I124="","",'DF raw data'!I124) -> -271.5 | B119: =IF('DF raw data'!J124="","",'DF raw data'!J124) -> -1.40293e-05 | C119: =IF('DF raw data'!K124="","",'DF raw data'!K124) -> 0.000169286 | D119: =IF('DF raw data'!L124="","",'DF raw data'!L124) -> -3.50571e-05 | F119: -1.409383478e-05 | G119: 0.0001700647156 | H119: -3.521836266e-05 | J119: -0.0005305474217 | K119: -0.007399463638 | L119: 0.005483159541 | M119: 0.08196603606 | N119: 0.0003080151253
A120: =IF('DF raw data'!I125="","",'DF raw data'!I125) -> -271 | B120: =IF('DF raw data'!J125="","",'DF raw data'!J125) -> -1.92838e-05 | C120: =IF('DF raw data'!K125="","",'DF raw data'!K125) -> 0.000168277 | D120: =IF('DF raw data'!L125="","",'DF raw data'!L125) -> -3.85131e-05 | F120: -1.937250548e-05 | G120: 0.0001690510742 | H120: -3.869026026e-05 | J120: -0.0005402336744 | K120: -0.007669580476 | L120: 0.005567685079 | M120: 0.0847498786 | N120: 0.00032366061
A121: =IF('DF raw data'!I126="","",'DF raw data'!I126) -> -270.5 | B121: =IF('DF raw data'!J126="","",'DF raw data'!J126) -> -1.78078e-05 | C121: =IF('DF raw data'!K126="","",'DF raw data'!K126) -> 0.00018083 | D121: =IF('DF raw data'!L126="","",'DF raw data'!L126) -> -3.88914e-05 | F121: -1.788971588e-05 | G121: 0.000181661818 | H121: -3.907030044e-05 | J121: -0.0005491785323 | K121: -0.007944169742 | L121: 0.005658515988 | M121: 0.08757913659 | N121: 0.0003398208102
A122: =IF('DF raw data'!I127="","",'DF raw data'!I127) -> -270 | B122: =IF('DF raw data'!J127="","",'DF raw data'!J127) -> -1.78792e-05 | C122: =IF('DF raw data'!K127="","",'DF raw data'!K127) -> 0.00017183 | D122: =IF('DF raw data'!L127="","",'DF raw data'!L127) -> -3.02292e-05 | F122: -1.796144432e-05 | G122: 0.000172620418 | H122: -3.036825432e-05 | J122: -0.0005581592545 | K122: -0.008223249369 | L122: 0.005744826197 | M122: 0.09045154969 | N122: 0.0003564780951
A123: =IF('DF raw data'!I128="","",'DF raw data'!I128) -> -269.5 | B123: =IF('DF raw data'!J128="","",'DF raw data'!J128) -> -2.19745e-05 | C123: =IF('DF raw data'!K128="","",'DF raw data'!K128) -> 0.000174972 | D123: =IF('DF raw data'!L128="","",'DF raw data'!L128) -> -3.73068e-05 | F123: -2.20755827e-05 | G123: 0.0001757768712 | H123: -3.747841128e-05 | J123: -0.0005691970458 | K123: -0.008507847892 | L123: 0.005832714632 | M123: 0.093367907 | N123: 0.0003736503677
A124: =IF('DF raw data'!I129="","",'DF raw data'!I129) -> -269 | B124: =IF('DF raw data'!J129="","",'DF raw data'!J129) -> -1.99926e-05 | C124: =IF('DF raw data'!K129="","",'DF raw data'!K129) -> 0.00018553 | D124: =IF('DF raw data'!L129="","",'DF raw data'!L129) -> -3.27679e-05 | F124: -2.008456596e-05 | G124: 0.000186383438 | H124: -3.291863234e-05 | J124: -0.0005792393288 | K124: -0.008797467556 | L124: 0.005925906351 | M124: 0.09633086018 | N124: 0.0003913763098
A125: =IF('DF raw data'!I130="","",'DF raw data'!I130) -> -268.5 | B125: =IF('DF raw data'!J130="","",'DF raw data'!J130) -> -2.36448e-05 | C125: =IF('DF raw data'!K130="","",'DF raw data'!K130) -> 0.000181913 | D125: =IF('DF raw data'!L130="","",'DF raw data'!L130) -> -3.08172e-05 | F125: -2.375356608e-05 | G125: 0.0001827497998 | H125: -3.095895912e-05 | J125: -0.0005911161119 | K125: -0.009093025612 | L125: 0.006017281251 | M125: 0.0993395008 | N125: 0.0004096548558
A126: =IF('DF raw data'!I131="","",'DF raw data'!I131) -> -268 | B126: =IF('DF raw data'!J131="","",'DF raw data'!J131) -> -1.71732e-05 | C126: =IF('DF raw data'!K131="","",'DF raw data'!K131) -> 0.000180659 | D126: =IF('DF raw data'!L131="","",'DF raw data'!L131) -> -3.14878e-05 | F126: -1.725219672e-05 | G126: 0.0001814900314 | H126: -3.163264388e-05 | J126: -0.0005997422102 | K126: -0.009392896717 | L126: 0.006108026267 | M126: 0.1023935139 | N126: 0.0004284886936
A127: =IF('DF raw data'!I132="","",'DF raw data'!I132) -> -267.5 | B127: =IF('DF raw data'!J132="","",'DF raw data'!J132) -> -2.15382e-05 | C127: =IF('DF raw data'!K132="","",'DF raw data'!K132) -> 0.00017671 | D127: =IF('DF raw data'!L132="","",'DF raw data'!L132) -> -1.81565e-05 | F127: -2.163727572e-05 | G127: 0.000177522866 | H127: -1.82400199e-05 | J127: -0.0006105608481 | K127: -0.009698177141 | L127: 0.0061967877 | M127: 0.1054919078 | N127: 0.0004478751748
A128: =IF('DF raw data'!I133="","",'DF raw data'!I133) -> -267 | B128: =IF('DF raw data'!J133="","",'DF raw data'!J133) -> -1.70487e-05 | C128: =IF('DF raw data'!K133="","",'DF raw data'!K133) -> 0.000170862 | D128: =IF('DF raw data'!L133="","",'DF raw data'!L133) -> -2.58124e-05 | F128: =(1-$G$1*($B$49-$G$2))*B128 -> -1.712712402e-05 | G128: 0.0001716479652 | H128: -2.593113704e-05 | J128: =F128*$G$3+J127 -> -0.0006191244101 | K128: =J128*$G$3+K127 -> -0.01000773935 | L128: =G128*$G$3+L127 -> 0.006282611682 | M128: =L128*$G$3+M127 -> 0.1086332136 | N128: =(J128^2+L128^2)*$G$3+N127 -> 0.000467802437
A129: =IF('DF raw data'!I134="","",'DF raw data'!I134) -> -266.5 | B129: =IF('DF raw data'!J134="","",'DF raw data'!J134) -> -1.40327e-05 | C129: =IF('DF raw data'!K134="","",'DF raw data'!K134) -> 0.000170306 | D129: =IF('DF raw data'!L134="","",'DF raw data'!L134) -> -2.97885e-05 | F129: -1.409725042e-05 | G129: 0.0001710894076 | H129: -2.99255271e-05 | J129: -0.0006261730353 | K129: -0.01032082586 | L129: 0.006368156386 | M129: 0.1118172918 | N129: 0.0004882751913
A130: =IF('DF raw data'!I135="","",'DF raw data'!I135) -> -266 | B130: =IF('DF raw data'!J135="","",'DF raw data'!J135) -> -1.73718e-05 | C130: =IF('DF raw data'!K135="","",'DF raw data'!K135) -> 0.000171094 | D130: =IF('DF raw data'!L135="","",'DF raw data'!L135) -> -2.19864e-05 | F130: -1.745171028e-05 | G130: 0.0001718810324 | H130: -2.208753744e-05 | J130: -0.0006348988904 | K130: -0.01063827531 | L130: 0.006454096902 | M130: 0.1150443403 | N130: 0.000509304423
A131: =IF('DF raw data'!I136="","",'DF raw data'!I136) -> -265.5 | B131: =IF('DF raw data'!J136="","",'DF raw data'!J136) -> -2.62126e-05 | C131: =IF('DF raw data'!K136="","",'DF raw data'!K136) -> 0.000166577 | D131: =IF('DF raw data'!L136="","",'DF raw data'!L136) -> -2.39923e-05 | F131: -2.633317796e-05 | G131: 0.0001673432542 | H131: -2.410266458e-05 | J131: -0.0006480654794 | K131: -0.01096230805 | L131: 0.006537768529 | M131: 0.1183132245 | N131: 0.0005308856261
A132: =IF('DF raw data'!I137="","",'DF raw data'!I137) -> -265 | B132: =IF('DF raw data'!J137="","",'DF raw data'!J137) -> -1.51295e-05 | C132: =IF('DF raw data'!K137="","",'DF raw data'!K137) -> 0.000169485 | D132: =IF('DF raw data'!L137="","",'DF raw data'!L137) -> -2.0521e-05 | F132: -1.51990957e-05 | G132: 0.000170264631 | H132: -2.06153966e-05 | J132: -0.0006556650273 | K132: -0.01129014056 | L132: 0.006622900845 | M132: 0.121624675 | N132: 0.0005530319822
A133: =IF('DF raw data'!I138="","",'DF raw data'!I138) -> -264.5 | B133: =IF('DF raw data'!J138="","",'DF raw data'!J138) -> -1.69798e-05 | C133: =IF('DF raw data'!K138="","",'DF raw data'!K138) -> 0.000174946 | D133: =IF('DF raw data'!L138="","",'DF raw data'!L138) -> -3.09797e-05 | F133: -1.705790708e-05 | G133: 0.0001757507516 | H133: -3.112220662e-05 | J133: -0.0006641939808 | K133: -0.01162223755 | L133: 0.006710776221 | M133: 0.1249800631 | N133: 0.0005757698178
A134: =IF('DF raw data'!I139="","",'DF raw data'!I139) -> -264 | B134: =IF('DF raw data'!J139="","",'DF raw data'!J139) -> -1.60925e-05 | C134: =IF('DF raw data'!K139="","",'DF raw data'!K139) -> 0.000175472 | D134: =IF('DF raw data'!L139="","",'DF raw data'!L139) -> -1.83273e-05 | F134: -1.61665255e-05 | G134: 0.0001762791712 | H134: -1.841160558e-05 | J134: -0.0006722772436 | K134: -0.01195837617 | L134: 0.006798915806 | M134: 0.128379521 | N134: 0.0005991084242
A135: =IF('DF raw data'!I140="","",'DF raw data'!I140) -> -263.5 | B135: =IF('DF raw data'!J140="","",'DF raw data'!J140) -> -1.45442e-05 | C135: =IF('DF raw data'!K140="","",'DF raw data'!K140) -> 0.000180502 | D135: =IF('DF raw data'!L140="","",'DF raw data'!L140) -> -3.14753e-05 | F135: -1.461110332e-05 | G135: 0.0001813323092 | H135: -3.162008638e-05 | J135: -0.0006795827952 | K135: -0.01229816757 | L135: 0.006889581961 | M135: 0.131824312 | N135: 0.0006230725104
A136: =IF('DF raw data'!I141="","",'DF raw data'!I141) -> -263 | B136: =IF('DF raw data'!J141="","",'DF raw data'!J141) -> -1.3907e-05 | C136: =IF('DF raw data'!K141="","",'DF raw data'!K141) -> 0.00017518 | D136: =IF('DF raw data'!L141="","",'DF raw data'!L141) -> -2.83107e-05 | F136: -1.39709722e-05 | G136: 0.000175985828 | H136: -2.844092922e-05 | J136: -0.0006865682813 | K136: -0.01264145171 | L136: 0.006977574875 | M136: 0.1353130994 | N136: 0.0006476514739
A137: =IF('DF raw data'!I142="","",'DF raw data'!I142) -> -262.5 | B137: =IF('DF raw data'!J142="","",'DF raw data'!J142) -> -2.0508e-05 | C137: =IF('DF raw data'!K142="","",'DF raw data'!K142) -> 0.000170881 | D137: =IF('DF raw data'!L142="","",'DF raw data'!L142) -> -2.54575e-05 | F137: -2.06023368e-05 | G137: 0.0001716670526 | H137: -2.55746045e-05 | J137: -0.0006968694497 | K137: -0.01298988644 | L137: 0.007063408401 | M137: 0.1388448036 | N137: 0.0006728401566
A138: =IF('DF raw data'!I143="","",'DF raw data'!I143) -> -262 | B138: =IF('DF raw data'!J143="","",'DF raw data'!J143) -> -2.37208e-05 | C138: =IF('DF raw data'!K143="","",'DF raw data'!K143) -> 0.00016569 | D138: =IF('DF raw data'!L143="","",'DF raw data'!L143) -> -1.61453e-05 | F138: -2.382991568e-05 | G138: 0.000166452174 | H138: -1.621956838e-05 | J138: -0.0007087844076 | K138: -0.01334427864 | L138: 0.007146634488 | M138: 0.1424181208 | N138: 0.0006986285365
A139: =IF('DF raw data'!I144="","",'DF raw data'!I144) -> -261.5 | B139: =IF('DF raw data'!J144="","",'DF raw data'!J144) -> -1.30765e-05 | C139: =IF('DF raw data'!K144="","",'DF raw data'!K144) -> 0.000174249 | D139: =IF('DF raw data'!L144="","",'DF raw data'!L144) -> -2.1704e-05 | F139: -1.31366519e-05 | G139: 0.0001750505454 | H139: -2.18038384e-05 | J139: -0.0007153527335 | K139: -0.01370195501 | L139: 0.007234159761 | M139: 0.1460352007 | N139: 0.000725050935
A140: =IF('DF raw data'!I145="","",'DF raw data'!I145) -> -261 | B140: =IF('DF raw data'!J145="","",'DF raw data'!J145) -> -1.12816e-05 | C140: =IF('DF raw data'!K145="","",'DF raw data'!K145) -> 0.000174696 | D140: =IF('DF raw data'!L145="","",'DF raw data'!L145) -> -2.45505e-05 | F140: -1.133349536e-05 | G140: 0.0001754996016 | H140: -2.46634323e-05 | J140: -0.0007210194812 | K140: -0.01406246475 | L140: 0.007321909562 | M140: 0.1496961555 | N140: 0.0007521160493
A141: =IF('DF raw data'!I146="","",'DF raw data'!I146) -> -260.5 | B141: =IF('DF raw data'!J146="","",'DF raw data'!J146) -> -1.61503e-05 | C141: =IF('DF raw data'!K146="","",'DF raw data'!K146) -> 0.000173023 | D141: =IF('DF raw data'!L146="","",'DF raw data'!L146) -> -2.51417e-05 | F141: -1.622459138e-05 | G141: 0.0001738189058 | H141: -2.525735182e-05 | J141: -0.0007291317769 | K141: -0.01442703064 | L141: 0.007408819015 | M141: 0.153400565 | N141: 0.0007798271655
A142: =IF('DF raw data'!I147="","",'DF raw data'!I147) -> -260 | B142: =IF('DF raw data'!J147="","",'DF raw data'!J147) -> -8.65472e-06 | C142: =IF('DF raw data'!K147="","",'DF raw data'!K147) -> 0.000171699 | D142: =IF('DF raw data'!L147="","",'DF raw data'!L147) -> -2.31197e-05 | F142: -8.694531712e-06 | G142: 0.0001724888154 | H142: -2.322605062e-05 | J142: -0.0007334790427 | K142: -0.01479377016 | L142: 0.007495063422 | M142: 0.1571480967 | N142: 0.0008081841491
A143: =IF('DF raw data'!I148="","",'DF raw data'!I148) -> -259.5 | B143: =IF('DF raw data'!J148="","",'DF raw data'!J148) -> -2.12082e-05 | C143: =IF('DF raw data'!K148="","",'DF raw data'!K148) -> 0.000171647 | D143: =IF('DF raw data'!L148="","",'DF raw data'!L148) -> -3.28562e-05 | F143: -2.130575772e-05 | G143: 0.0001724365762 | H143: -3.300733852e-05 | J143: -0.0007441319216 | K143: -0.01516583612 | L143: 0.00758128171 | M143: 0.1609387376 | N143: 0.0008371989315
A144: =IF('DF raw data'!I149="","",'DF raw data'!I149) -> -259 | B144: =IF('DF raw data'!J149="","",'DF raw data'!J149) -> -1.87127e-05 | C144: =IF('DF raw data'!K149="","",'DF raw data'!K149) -> 0.00017629 | D144: =IF('DF raw data'!L149="","",'DF raw data'!L149) -> -3.00608e-05 | F144: -1.879877842e-05 | G144: 0.000177100934 | H144: -3.019907968e-05 | J144: -0.0007535313108 | K144: -0.01554260178 | L144: 0.007669832177 | M144: 0.1647736537 | N144: 0.000866895999
A145: =IF('DF raw data'!I150="","",'DF raw data'!I150) -> -258.5 | B145: =IF('DF raw data'!J150="","",'DF raw data'!J150) -> -2.04362e-06 | C145: =IF('DF raw data'!K150="","",'DF raw data'!K150) -> 0.000179271 | D145: =IF('DF raw data'!L150="","",'DF raw data'!L150) -> -3.73197e-05 | F145: -2.053020652e-06 | G145: 0.0001800956466 | H145: -3.749137062e-05 | J145: -0.0007545578211 | K145: -0.01591988069 | L145: 0.007759880001 | M145: 0.1686535937 | N145: 0.0008972885466
A146: =IF('DF raw data'!I151="","",'DF raw data'!I151) -> -258 | B146: =IF('DF raw data'!J151="","",'DF raw data'!J151) -> -2.14052e-05 | C146: =IF('DF raw data'!K151="","",'DF raw data'!K151) -> 0.000175765 | D146: =IF('DF raw data'!L151="","",'DF raw data'!L151) -> -2.8813e-05 | F146: -2.150366392e-05 | G146: 0.000176573519 | H146: -2.89455398e-05 | J146: -0.0007653096531 | K146: -0.01630253551 | L146: 0.00784816676 | M146: 0.172577677 | N146: 0.0009283782568
A147: =IF('DF raw data'!I152="","",'DF raw data'!I152) -> -257.5 | B147: =IF('DF raw data'!J152="","",'DF raw data'!J152) -> -1.77559e-05 | C147: =IF('DF raw data'!K152="","",'DF raw data'!K152) -> 0.000170549 | D147: =IF('DF raw data'!L152="","",'DF raw data'!L152) -> -2.00371e-05 | F147: -1.783757714e-05 | G147: 0.0001713335254 | H147: -2.012927066e-05 | J147: -0.0007742284417 | K147: -0.01668964973 | L147: 0.007933833523 | M147: 0.1765445938 | N147: 0.0009601508288
A148: =IF('DF raw data'!I153="","",'DF raw data'!I153) -> -257 | B148: =IF('DF raw data'!J153="","",'DF raw data'!J153) -> -1.79439e-05 | C148: =IF('DF raw data'!K153="","",'DF raw data'!K153) -> 0.000174299 | D148: =IF('DF raw data'!L153="","",'DF raw data'!L153) -> -2.95719e-05 | F148: -1.802644194e-05 | G148: 0.0001751007754 | H148: -2.970793074e-05 | J148: -0.0007832416626 | K148: -0.01708127056 | L148: 0.008021383911 | M148: 0.1805552858 | N148: 0.0009926288624
A149: =IF('DF raw data'!I154="","",'DF raw data'!I154) -> -256.5 | B149: =IF('DF raw data'!J154="","",'DF raw data'!J154) -> -1.44889e-05 | C149: =IF('DF raw data'!K154="","",'DF raw data'!K154) -> 0.000169935 | D149: =IF('DF raw data'!L154="","",'DF raw data'!L154) -> -1.77827e-05 | F149: -1.455554894e-05 | G149: 0.000170716701 | H149: -1.786450042e-05 | J149: -0.0007905194371 | K149: -0.01747653028 | L149: 0.008106742261 | M149: 0.1846086569 | N149: 0.001025800958
A150: =IF('DF raw data'!I155="","",'DF raw data'!I155) -> -256 | B150: =IF('DF raw data'!J155="","",'DF raw data'!J155) -> -2.45414e-05 | C150: =IF('DF raw data'!K155="","",'DF raw data'!K155) -> 0.000176005 | D150: =IF('DF raw data'!L155="","",'DF raw data'!L155) -> -3.54647e-05 | F150: -2.465429044e-05 | G150: 0.000176814623 | H150: -3.562783762e-05 | J150: -0.0008028465823 | K150: -0.01787795357 | L150: 0.008195149573 | M150: 0.1887062317 | N150: 0.001059703478
A151: =IF('DF raw data'!I156="","",'DF raw data'!I156) -> -255.5 | B151: =IF('DF raw data'!J156="","",'DF raw data'!J156) -> -1.7109e-05 | C151: =IF('DF raw data'!K156="","",'DF raw data'!K156) -> 0.000178071 | D151: =IF('DF raw data'!L156="","",'DF raw data'!L156) -> -2.93838e-05 | F151: -1.71877014e-05 | G151: 0.0001788901266 | H151: -2.951896548e-05 | J151: -0.000811440433 | K151: -0.01828367379 | L151: 0.008284594636 | M151: 0.192848529 | N151: 0.001094349949
A152: =IF('DF raw data'!I157="","",'DF raw data'!I157) -> -255 | B152: =IF('DF raw data'!J157="","",'DF raw data'!J157) -> -7.68863e-06 | C152: =IF('DF raw data'!K157="","",'DF raw data'!K157) -> 0.000178142 | D152: =IF('DF raw data'!L157="","",'DF raw data'!L157) -> -3.01445e-05 | F152: -7.723997698e-06 | G152: 0.0001789614532 | H152: -3.02831647e-05 | J152: -0.0008153024319 | K152: -0.01869132501 | L152: 0.008374075363 | M152: 0.1970355667 | N152: 0.001129744878
A153: =IF('DF raw data'!I158="","",'DF raw data'!I158) -> -254.5 | B153: =IF('DF raw data'!J158="","",'DF raw data'!J158) -> -2.10155e-05 | C153: =IF('DF raw data'!K158="","",'DF raw data'!K158) -> 0.000184811 | D153: =IF('DF raw data'!L158="","",'DF raw data'!L158) -> -3.35407e-05 | F153: -2.11121713e-05 | G153: 0.0001856611306 | H153: -3.369498722e-05 | J153: -0.0008258585175 | K153: -0.01910425427 | L153: 0.008466905928 | M153: 0.2012690196 | N153: 0.001165930147
A154: =IF('DF raw data'!I159="","",'DF raw data'!I159) -> -254 | B154: =IF('DF raw data'!J159="","",'DF raw data'!J159) -> -1.28216e-05 | C154: =IF('DF raw data'!K159="","",'DF raw data'!K159) -> 0.000183877 | D154: =IF('DF raw data'!L159="","",'DF raw data'!L159) -> -2.15719e-05 | F154: -1.288057936e-05 | G154: 0.0001847228342 | H154: -2.167113074e-05 | J154: -0.0008322988072 | K154: -0.01952040367 | L154: 0.008559267345 | M154: 0.2055486533 | N154: 0.001202907036
A155: =IF('DF raw data'!I160="","",'DF raw data'!I160) -> -253.5 | B155: =IF('DF raw data'!J160="","",'DF raw data'!J160) -> -1.15303e-05 | C155: =IF('DF raw data'!K160="","",'DF raw data'!K160) -> 0.000184254 | D155: =IF('DF raw data'!L160="","",'DF raw data'!L160) -> -3.44984e-05 | F155: -1.158333938e-05 | G155: 0.0001851015684 | H155: -3.465709264e-05 | J155: -0.0008380904769 | K155: -0.01993944891 | L155: 0.008651818129 | M155: 0.2098745624 | N155: 0.001240685212
A156: =IF('DF raw data'!I161="","",'DF raw data'!I161) -> -253 | B156: =IF('DF raw data'!J161="","",'DF raw data'!J161) -> -1.33932e-05 | C156: =IF('DF raw data'!K161="","",'DF raw data'!K161) -> 0.000183876 | D156: =IF('DF raw data'!L161="","",'DF raw data'!L161) -> -2.94756e-05 | F156: -1.345480872e-05 | G156: 0.0001847218296 | H156: -2.961118776e-05 | J156: -0.0008448178813 | K156: -0.02036185785 | L156: 0.008744179044 | M156: 0.2142466519 | N156: 0.001279272405
A157: =IF('DF raw data'!I162="","",'DF raw data'!I162) -> -252.5 | B157: =IF('DF raw data'!J162="","",'DF raw data'!J162) -> -2.77414e-05 | C157: =IF('DF raw data'!K162="","",'DF raw data'!K162) -> 0.000180807 | D157: =IF('DF raw data'!L162="","",'DF raw data'!L162) -> -3.82186e-05 | F157: -2.786901044e-05 | G157: 0.0001816387122 | H157: -3.839440556e-05 | J157: -0.0008587523865 | K157: -0.02079123404 | L157: 0.0088349984 | M157: 0.2186641511 | N157: 0.001318669731
A158: =IF('DF raw data'!I163="","",'DF raw data'!I163) -> -252 | B158: =IF('DF raw data'!J163="","",'DF raw data'!J163) -> -1.31359e-05 | C158: =IF('DF raw data'!K163="","",'DF raw data'!K163) -> 0.000180104 | D158: =IF('DF raw data'!L163="","",'DF raw data'!L163) -> -3.09151e-05 | F158: -1.319632514e-05 | G158: 0.0001809324784 | H158: -3.105730946e-05 | J158: -0.000865350549 | K158: -0.02122390932 | L158: 0.008925464639 | M158: 0.2231268834 | N158: 0.001358876106
A159: =IF('DF raw data'!I164="","",'DF raw data'!I164) -> -251.5 | B159: =IF('DF raw data'!J164="","",'DF raw data'!J164) -> -2.9346e-05 | C159: =IF('DF raw data'!K164="","",'DF raw data'!K164) -> 0.000185244 | D159: =IF('DF raw data'!L164="","",'DF raw data'!L164) -> -3.45503e-05 | F159: -2.94809916e-05 | G159: 0.0001860961224 | H159: -3.470923138e-05 | J159: -0.0008800910448 | K159: -0.02166395484 | L159: 0.0090185127 | M159: 0.2276361398 | N159: 0.001399930172
A160: =IF('DF raw data'!I165="","",'DF raw data'!I165) -> -251 | B160: =IF('DF raw data'!J165="","",'DF raw data'!J165) -> -1.65306e-05 | C160: =IF('DF raw data'!K165="","",'DF raw data'!K165) -> 0.000185193 | D160: =IF('DF raw data'!L165="","",'DF raw data'!L165) -> -3.42496e-05 | F160: -1.660664076e-05 | G160: 0.0001860448878 | H160: -3.440714816e-05 | J160: -0.0008883943652 | K160: -0.02210815202 | L160: 0.009111535144 | M160: 0.2321919073 | N160: 0.001441834831
A161: =IF('DF raw data'!I166="","",'DF raw data'!I166) -> -250.5 | B161: =IF('DF raw data'!J166="","",'DF raw data'!J166) -> -1.89666e-05 | C161: =IF('DF raw data'!K166="","",'DF raw data'!K166) -> 0.000181208 | D161: =IF('DF raw data'!L166="","",'DF raw data'!L166) -> -3.07892e-05 | F161: -1.905384636e-05 | G161: 0.0001820415568 | H161: -3.093083032e-05 | J161: -0.0008979212884 | K161: -0.02255711267 | L161: 0.009202555923 | M161: 0.2367931853 | N161: 0.00148458148
A162: =IF('DF raw data'!I167="","",'DF raw data'!I167) -> -250 | B162: =IF('DF raw data'!J167="","",'DF raw data'!J167) -> -1.28809e-05 | C162: =IF('DF raw data'!K167="","",'DF raw data'!K167) -> 0.00018056 | D162: =IF('DF raw data'!L167="","",'DF raw data'!L167) -> -2.88437e-05 | F162: -1.294015214e-05 | G162: 0.000181390576 | H162: -2.897638102e-05 | J162: -0.0009043913645 | K162: -0.02300930835 | L162: 0.009293251211 | M162: 0.2414398109 | N162: 0.001528172701
A163: =IF('DF raw data'!I168="","",'DF raw data'!I168) -> -249.5 | B163: =IF('DF raw data'!J168="","",'DF raw data'!J168) -> -1.35244e-05 | C163: =IF('DF raw data'!K168="","",'DF raw data'!K168) -> 0.00017543 | D163: =IF('DF raw data'!L168="","",'DF raw data'!L168) -> -2.26936e-05 | F163: -1.358661224e-05 | G163: 0.000176236978 | H163: -2.279799056e-05 | J163: -0.0009111846706 | K163: -0.02346490068 | L163: 0.0093813697 | M163: 0.2461304958 | N163: 0.001572592878
A164: =IF('DF raw data'!I169="","",'DF raw data'!I169) -> -249 | B164: =IF('DF raw data'!J169="","",'DF raw data'!J169) -> -1.10269e-05 | C164: =IF('DF raw data'!K169="","",'DF raw data'!K169) -> 0.000183454 | D164: =IF('DF raw data'!L169="","",'DF raw data'!L169) -> -2.19014e-05 | F164: -1.107762374e-05 | G164: 0.0001842978884 | H164: -2.200214644e-05 | J164: -0.0009167234825 | K164: -0.02392326242 | L164: 0.009473518644 | M164: 0.2508672551 | N164: 0.001617886847
A165: =IF('DF raw data'!I170="","",'DF raw data'!I170) -> -248.5 | B165: =IF('DF raw data'!J170="","",'DF raw data'!J170) -> -1.3262e-05 | C165: =IF('DF raw data'!K170="","",'DF raw data'!K170) -> 0.000191683 | D165: =IF('DF raw data'!L170="","",'DF raw data'!L170) -> -3.19392e-05 | F165: -1.33230052e-05 | G165: 0.0001925647418 | H165: -3.208612032e-05 | J165: -0.0009233849851 | K165: -0.02438495492 | L165: 0.009569801015 | M165: 0.2556521556 | N165: 0.001664103712
A166: =IF('DF raw data'!I171="","",'DF raw data'!I171) -> -248 | B166: =IF('DF raw data'!J171="","",'DF raw data'!J171) -> -1.2556e-05 | C166: =IF('DF raw data'!K171="","",'DF raw data'!K171) -> 0.00019049 | D166: =IF('DF raw data'!L171="","",'DF raw data'!L171) -> -3.59637e-05 | F166: -1.26137576e-05 | G166: 0.000191366254 | H166: -3.612913302e-05 | J166: -0.0009296918639 | K166: -0.02484980085 | L166: 0.009665484142 | M166: 0.2604848977 | N166: 0.001711246668
A167: =IF('DF raw data'!I172="","",'DF raw data'!I172) -> -247.5 | B167: =IF('DF raw data'!J172="","",'DF raw data'!J172) -> -1.83254e-05 | C167: =IF('DF raw data'!K172="","",'DF raw data'!K172) -> 0.000187783 | D167: =IF('DF raw data'!L172="","",'DF raw data'!L172) -> -3.12295e-05 | F167: -1.840969684e-05 | G167: 0.0001886468018 | H167: -3.13731557e-05 | J167: -0.0009388967123 | K167: -0.0253192492 | L167: 0.009759807543 | M167: 0.2653648014 | N167: 0.001759314353
A168: =IF('DF raw data'!I173="","",'DF raw data'!I173) -> -247 | B168: =IF('DF raw data'!J173="","",'DF raw data'!J173) -> -1.64743e-05 | C168: =IF('DF raw data'!K173="","",'DF raw data'!K173) -> 0.000189105 | D168: =IF('DF raw data'!L173="","",'DF raw data'!L173) -> -2.2547e-05 | F168: -1.655008178e-05 | G168: 0.000189974883 | H168: -2.26507162e-05 | J168: -0.0009471717532 | K168: -0.02579283508 | L168: 0.009854794984 | M168: 0.2702921989 | N168: 0.001808321412
A169: =IF('DF raw data'!I174="","",'DF raw data'!I174) -> -246.5 | B169: =IF('DF raw data'!J174="","",'DF raw data'!J174) -> -1.65959e-05 | C169: =IF('DF raw data'!K174="","",'DF raw data'!K174) -> 0.00019234 | D169: =IF('DF raw data'!L174="","",'DF raw data'!L174) -> -2.99009e-05 | F169: -1.667224114e-05 | G169: 0.000193224764 | H169: -3.003844414e-05 | J169: -0.0009555078737 | K169: -0.02627058902 | L169: 0.009951407366 | M169: 0.2752679026 | N169: 0.001858293164
A170: =IF('DF raw data'!I175="","",'DF raw data'!I175) -> -246 | B170: =IF('DF raw data'!J175="","",'DF raw data'!J175) -> -8.71312e-06 | C170: =IF('DF raw data'!K175="","",'DF raw data'!K175) -> 0.00018997 | D170: =IF('DF raw data'!L175="","",'DF raw data'!L175) -> -3.16869e-05 | F170: -8.753200352e-06 | G170: 0.000190843862 | H170: -3.183265974e-05 | J170: -0.0009598844739 | K170: -0.02675053125 | L170: 0.0100468293 | M170: 0.2802913173 | N170: 0.001909223243
A171: =IF('DF raw data'!I176="","",'DF raw data'!I176) -> -245.5 | B171: =IF('DF raw data'!J176="","",'DF raw data'!J176) -> -2.0116e-05 | C171: =IF('DF raw data'!K176="","",'DF raw data'!K176) -> 0.000180938 | D171: =IF('DF raw data'!L176="","",'DF raw data'!L176) -> -3.70719e-05 | F171: -2.02085336e-05 | G171: 0.0001817703148 | H171: -3.724243074e-05 | J171: -0.0009699887407 | K171: -0.02723552563 | L171: 0.01013771445 | M171: 0.2853601745 | N171: 0.001961080309
A172: =IF('DF raw data'!I177="","",'DF raw data'!I177) -> -245 | B172: =IF('DF raw data'!J177="","",'DF raw data'!J177) -> -1.62813e-05 | C172: =IF('DF raw data'!K177="","",'DF raw data'!K177) -> 0.000178963 | D172: =IF('DF raw data'!L177="","",'DF raw data'!L177) -> -2.34723e-05 | F172: -1.635619398e-05 | G172: 0.0001797862298 | H172: -2.358027258e-05 | J172: -0.0009781668377 | K172: -0.02772460904 | L172: 0.01022760757 | M172: 0.2904739783 | N172: 0.002013860692
A173: =IF('DF raw data'!I178="","",'DF raw data'!I178) -> -244.5 | B173: =IF('DF raw data'!J178="","",'DF raw data'!J178) -> -1.27498e-05 | C173: =IF('DF raw data'!K178="","",'DF raw data'!K178) -> 0.000178854 | D173: =IF('DF raw data'!L178="","",'DF raw data'!L178) -> -3.12289e-05 | F173: -1.280844908e-05 | G173: 0.0001796767284 | H173: -3.137255294e-05 | J173: -0.0009845710623 | K173: -0.02821689458 | L173: 0.01031744593 | M173: 0.2956327012 | N173: 0.002067570228
A174: =IF('DF raw data'!I179="","",'DF raw data'!I179) -> -244 | B174: =IF('DF raw data'!J179="","",'DF raw data'!J179) -> -1.62053e-05 | C174: =IF('DF raw data'!K179="","",'DF raw data'!K179) -> 0.000178772 | D174: =IF('DF raw data'!L179="","",'DF raw data'!L179) -> -4.2132e-05 | F174: -1.627984438e-05 | G174: 0.0001795943512 | H174: -4.23258072e-05 | J174: -0.0009927109844 | K174: -0.02871325007 | L174: 0.01040724311 | M174: 0.3008363228 | N174: 0.00212221832
A175: =IF('DF raw data'!I180="","",'DF raw data'!I180) -> -243.5 | B175: =IF('DF raw data'!J180="","",'DF raw data'!J180) -> -9.60778e-06 | C175: =IF('DF raw data'!K180="","",'DF raw data'!K180) -> 0.000185078 | D175: =IF('DF raw data'!L180="","",'DF raw data'!L180) -> -3.40849e-05 | F175: -9.651975788e-06 | G175: 0.0001859293588 | H175: -3.424169054e-05 | J175: -0.0009975369723 | K175: -0.02921201855 | L175: 0.01050020779 | M175: 0.3060864267 | N175: 0.002177843042
A176: =IF('DF raw data'!I181="","",'DF raw data'!I181) -> -243 | B176: =IF('DF raw data'!J181="","",'DF raw data'!J181) -> -1.73037e-05 | C176: =IF('DF raw data'!K181="","",'DF raw data'!K181) -> 0.000180964 | D176: =IF('DF raw data'!L181="","",'DF raw data'!L181) -> -2.81187e-05 | F176: -1.738329702e-05 | G176: 0.0001817964344 | H176: -2.824804602e-05 | J176: -0.001006228621 | K176: -0.02971513286 | L176: 0.01059110601 | M176: 0.3113819797 | N176: 0.002234435053
A177: =IF('DF raw data'!I182="","",'DF raw data'!I182) -> -242.5 | B177: =IF('DF raw data'!J182="","",'DF raw data'!J182) -> -1.75642e-05 | C177: =IF('DF raw data'!K182="","",'DF raw data'!K182) -> 0.000182882 | D177: =IF('DF raw data'!L182="","",'DF raw data'!L182) -> -1.93439e-05 | F177: -1.764499532e-05 | G177: 0.0001837232572 | H177: -1.943288194e-05 | J177: -0.001015051119 | K177: -0.03022265842 | L177: 0.01068296763 | M177: 0.3167234635 | N177: 0.002292013116
A178: =IF('DF raw data'!I183="","",'DF raw data'!I183) -> -242 | B178: =IF('DF raw data'!J183="","",'DF raw data'!J183) -> -1.87834e-05 | C178: =IF('DF raw data'!K183="","",'DF raw data'!K183) -> 0.000183513 | D178: =IF('DF raw data'!L183="","",'DF raw data'!L183) -> -1.97614e-05 | F178: -1.886980364e-05 | G178: 0.0001843571598 | H178: -1.985230244e-05 | J178: -0.00102448602 | K178: -0.03073490143 | L178: 0.01077514621 | M178: 0.3221110366 | N178: 0.00235058979
A179: =IF('DF raw data'!I184="","",'DF raw data'!I184) -> -241.5 | B179: =IF('DF raw data'!J184="","",'DF raw data'!J184) -> -1.88429e-05 | C179: =IF('DF raw data'!K184="","",'DF raw data'!K184) -> 0.00018419 | D179: =IF('DF raw data'!L184="","",'DF raw data'!L184) -> -2.38518e-05 | F179: -1.892957734e-05 | G179: 0.000185037274 | H179: -2.396151828e-05 | J179: -0.001033950809 | K179: -0.03125187684 | L179: 0.01086766485 | M179: 0.327544869 | N179: 0.002410177387
A180: =IF('DF raw data'!I185="","",'DF raw data'!I185) -> -241 | B180: =IF('DF raw data'!J185="","",'DF raw data'!J185) -> -2.44818e-05 | C180: =IF('DF raw data'!K185="","",'DF raw data'!K185) -> 0.000179005 | D180: =IF('DF raw data'!L185="","",'DF raw data'!L185) -> -2.84068e-05 | F180: -2.459441628e-05 | G180: 0.000179828423 | H180: -2.853747128e-05 | J180: -0.001046248017 | K180: -0.03177500085 | L180: 0.01095757906 | M180: 0.3330236586 | N180: 0.002470758974
A181: =IF('DF raw data'!I186="","",'DF raw data'!I186) -> -240.5 | B181: =IF('DF raw data'!J186="","",'DF raw data'!J186) -> -2.6847e-05 | C181: =IF('DF raw data'!K186="","",'DF raw data'!K186) -> 0.000183039 | D181: =IF('DF raw data'!L186="","",'DF raw data'!L186) -> -3.38379e-05 | F181: -2.69704962e-05 | G181: 0.0001838809794 | H181: -3.399355434e-05 | J181: -0.001059733265 | K181: -0.03230486748 | L181: 0.01104951955 | M181: 0.3385484183 | N181: 0.002532366432
A182: =IF('DF raw data'!I187="","",'DF raw data'!I187) -> -240 | B182: =IF('DF raw data'!J187="","",'DF raw data'!J187) -> -2.07667e-05 | C182: =IF('DF raw data'!K187="","",'DF raw data'!K187) -> 0.000191257 | D182: =IF('DF raw data'!L187="","",'DF raw data'!L187) -> -2.51258e-05 | F182: -2.086222682e-05 | G182: 0.0001921367822 | H182: -2.524137868e-05 | J182: -0.001070164379 | K182: -0.03283994967 | L182: 0.01114558794 | M182: 0.3441212123 | N182: 0.002595051123
A183: =IF('DF raw data'!I188="","",'DF raw data'!I188) -> -239.5 | B183: =IF('DF raw data'!J188="","",'DF raw data'!J188) -> -1.96738e-05 | C183: =IF('DF raw data'!K188="","",'DF raw data'!K188) -> 0.000189472 | D183: =IF('DF raw data'!L188="","",'DF raw data'!L188) -> -2.7215e-05 | F183: -1.976429948e-05 | G183: 0.0001903435712 | H183: -2.7340189e-05 | J183: -0.001080046528 | K183: -0.03337997293 | L183: 0.01124075973 | M183: 0.3497415922 | N183: 0.002658811713
A184: =IF('DF raw data'!I189="","",'DF raw data'!I189) -> -239 | B184: =IF('DF raw data'!J189="","",'DF raw data'!J189) -> -1.96099e-05 | C184: =IF('DF raw data'!K189="","",'DF raw data'!K189) -> 0.000183477 | D184: =IF('DF raw data'!L189="","",'DF raw data'!L189) -> -3.00252e-05 | F184: -1.970010554e-05 | G184: 0.0001843209942 | H184: -3.016331592e-05 | J184: -0.001089896581 | K184: -0.03392492122 | L184: 0.01133292023 | M184: 0.3554080523 | N184: 0.002723623191
A185: =IF('DF raw data'!I190="","",'DF raw data'!I190) -> -238.5 | B185: =IF('DF raw data'!J190="","",'DF raw data'!J190) -> -1.74942e-05 | C185: =IF('DF raw data'!K190="","",'DF raw data'!K190) -> 0.000183997 | D185: =IF('DF raw data'!L190="","",'DF raw data'!L190) -> -2.83642e-05 | F185: -1.757467332e-05 | G185: 0.0001848433862 | H185: -2.849467532e-05 | J185: -0.001098683918 | K185: -0.03447426318 | L185: 0.01142534192 | M185: 0.3611207233 | N185: 0.002789495963
A186: =IF('DF raw data'!I191="","",'DF raw data'!I191) -> -238 | B186: =IF('DF raw data'!J191="","",'DF raw data'!J191) -> -2.80058e-05 | C186: =IF('DF raw data'!K191="","",'DF raw data'!K191) -> 0.000178998 | D186: =IF('DF raw data'!L191="","",'DF raw data'!L191) -> -2.99725e-05 | F186: -2.813462668e-05 | G186: 0.0001798213908 | H186: -3.01103735e-05 | J186: -0.001112751231 | K186: -0.0350306388 | L186: 0.01151525261 | M186: 0.3668783496 | N186: 0.002856415592
A187: =IF('DF raw data'!I192="","",'DF raw data'!I192) -> -237.5 | B187: =IF('DF raw data'!J192="","",'DF raw data'!J192) -> -2.20436e-05 | C187: =IF('DF raw data'!K192="","",'DF raw data'!K192) -> 0.000180852 | D187: =IF('DF raw data'!L192="","",'DF raw data'!L192) -> -2.93365e-05 | F187: -2.214500056e-05 | G187: 0.0001816839192 | H187: -2.94714479e-05 | J187: -0.001123823731 | K187: -0.03559255066 | L187: 0.01160609457 | M187: 0.3726813968 | N187: 0.002924397798
A188: =IF('DF raw data'!I193="","",'DF raw data'!I193) -> -237 | B188: =IF('DF raw data'!J193="","",'DF raw data'!J193) -> -1.76226e-05 | C188: =IF('DF raw data'!K193="","",'DF raw data'!K193) -> 0.00018473 | D188: =IF('DF raw data'!L193="","",'DF raw data'!L193) -> -3.06936e-05 | F188: -1.770366396e-05 | G188: 0.000185579758 | H188: -3.083479056e-05 | J188: -0.001132675563 | K188: -0.03615888845 | L188: 0.01169888445 | M188: 0.3785308391 | N188: 0.002993471223
A189: =IF('DF raw data'!I194="","",'DF raw data'!I194) -> -236.5 | B189: =IF('DF raw data'!J194="","",'DF raw data'!J194) -> -1.58959e-05 | C189: =IF('DF raw data'!K194="","",'DF raw data'!K194) -> 0.000185097 | D189: =IF('DF raw data'!L194="","",'DF raw data'!L194) -> -2.22304e-05 | F189: -1.596902114e-05 | G189: 0.0001859484462 | H189: -2.233265984e-05 | J189: -0.001140660074 | K189: -0.03672921848 | L189: 0.01179185868 | M189: 0.3844267684 | N189: 0.003063645741
A190: =IF('DF raw data'!I195="","",'DF raw data'!I195) -> -236 | B190: =IF('DF raw data'!J195="","",'DF raw data'!J195) -> -9.49205e-06 | C190: =IF('DF raw data'!K195="","",'DF raw data'!K195) -> 0.00019115 | D190: =IF('DF raw data'!L195="","",'DF raw data'!L195) -> -1.64375e-05 | F190: -9.53571343e-06 | G190: 0.00019202929 | H190: -1.65131125e-05 | J190: -0.001145427931 | K190: -0.03730193245 | L190: 0.01188787332 | M190: 0.3903707051 | N190: 0.00313496251
A191: =IF('DF raw data'!I196="","",'DF raw data'!I196) -> -235.5 | B191: =IF('DF raw data'!J196="","",'DF raw data'!J196) -> -1.87704e-05 | C191: =IF('DF raw data'!K196="","",'DF raw data'!K196) -> 0.000193955 | D191: =IF('DF raw data'!L196="","",'DF raw data'!L196) -> -3.66762e-05 | F191: -1.885674384e-05 | G191: 0.000194847193 | H191: -3.684491052e-05 | J191: -0.001154856303 | K191: -0.0378793606 | L191: 0.01198529692 | M191: 0.3963633535 | N191: 0.003207453028
A192: =IF('DF raw data'!I197="","",'DF raw data'!I197) -> -235 | B192: =IF('DF raw data'!J197="","",'DF raw data'!J197) -> -1.35812e-05 | C192: =IF('DF raw data'!K197="","",'DF raw data'!K197) -> 0.000191702 | D192: =IF('DF raw data'!L197="","",'DF raw data'!L197) -> -3.62307e-05 | F192: =(1-$G$1*($B$49-$G$2))*B192 -> -1.364367352e-05 | G192: 0.0001925838292 | H192: -3.639736122e-05 | J192: =F192*$G$3+J191 -> -0.001161678139 | K192: =J192*$G$3+K191 -> -0.03846019967 | L192: =G192*$G$3+L191 -> 0.01208158883 | M192: =L192*$G$3+M191 -> 0.4024041479 | N192: =(J192^2+L192^2)*$G$3+N191 -> 0.00328111017
A193: =IF('DF raw data'!I198="","",'DF raw data'!I198) -> -234.5 | B193: =IF('DF raw data'!J198="","",'DF raw data'!J198) -> -2.47992e-05 | C193: =IF('DF raw data'!K198="","",'DF raw data'!K198) -> 0.000192346 | D193: =IF('DF raw data'!L198="","",'DF raw data'!L198) -> -2.94383e-05 | F193: -2.491327632e-05 | G193: 0.0001932307916 | H193: -2.957371618e-05 | J193: -0.001174134778 | K193: -0.03904726706 | L193: 0.01217820423 | M193: 0.4084932501 | N193: 0.003355953796
A194: =IF('DF raw data'!I199="","",'DF raw data'!I199) -> -234 | B194: =IF('DF raw data'!J199="","",'DF raw data'!J199) -> -1.41611e-05 | C194: =IF('DF raw data'!K199="","",'DF raw data'!K199) -> 0.00019181 | D194: =IF('DF raw data'!L199="","",'DF raw data'!L199) -> -3.16794e-05 | F194: -1.422624106e-05 | G194: 0.000192692326 | H194: -3.182512524e-05 | J194: -0.001181247898 | K194: -0.03963789101 | L194: 0.01227455039 | M194: 0.4146305253 | N194: 0.003431983762
A195: =IF('DF raw data'!I200="","",'DF raw data'!I200) -> -233.5 | B195: =IF('DF raw data'!J200="","",'DF raw data'!J200) -> -4.92537e-06 | C195: =IF('DF raw data'!K200="","",'DF raw data'!K200) -> 0.000187002 | D195: =IF('DF raw data'!L200="","",'DF raw data'!L200) -> -4.05822e-05 | F195: -4.948026702e-06 | G195: 0.0001878622092 | H195: -4.076887812e-05 | J195: -0.001183721911 | K195: -0.04022975196 | L195: 0.0123684815 | M195: 0.420814766 | N195: 0.003509174028
A196: =IF('DF raw data'!I201="","",'DF raw data'!I201) -> -233 | B196: =IF('DF raw data'!J201="","",'DF raw data'!J201) -> -9.02903e-06 | C196: =IF('DF raw data'!K201="","",'DF raw data'!K201) -> 0.000196976 | D196: =IF('DF raw data'!L201="","",'DF raw data'!L201) -> -3.88807e-05 | F196: -9.070563538e-06 | G196: 0.0001978820896 | H196: -3.905955122e-05 | J196: -0.001188257193 | K196: -0.04082388056 | L196: 0.01246742254 | M196: 0.4270484773 | N196: 0.003587598318
A197: =IF('DF raw data'!I202="","",'DF raw data'!I202) -> -232.5 | B197: =IF('DF raw data'!J202="","",'DF raw data'!J202) -> -1.6274e-05 | C197: =IF('DF raw data'!K202="","",'DF raw data'!K202) -> 0.000196276 | D197: =IF('DF raw data'!L202="","",'DF raw data'!L202) -> -3.19701e-05 | F197: -1.63488604e-05 | G197: 0.0001971788696 | H197: -3.211716246e-05 | J197: -0.001196431623 | K197: -0.04142209637 | L197: 0.01256601198 | M197: 0.4333314833 | N197: 0.003667266371
A198: =IF('DF raw data'!I203="","",'DF raw data'!I203) -> -232 | B198: =IF('DF raw data'!J203="","",'DF raw data'!J203) -> -1.21793e-05 | C198: =IF('DF raw data'!K203="","",'DF raw data'!K203) -> 0.00019191 | D198: =IF('DF raw data'!L203="","",'DF raw data'!L203) -> -2.38445e-05 | F198: -1.223532478e-05 | G198: 0.000192792786 | H198: -2.39541847e-05 | J198: -0.001202549286 | K198: -0.04202337101 | L198: 0.01266240837 | M198: 0.4396626874 | N198: 0.003748157727
A199: =IF('DF raw data'!I204="","",'DF raw data'!I204) -> -231.5 | B199: =IF('DF raw data'!J204="","",'DF raw data'!J204) -> -1.70455e-05 | C199: =IF('DF raw data'!K204="","",'DF raw data'!K204) -> 0.000190041 | D199: =IF('DF raw data'!L204="","",'DF raw data'!L204) -> -2.81049e-05 | F199: -1.71239093e-05 | G199: 0.0001909151886 | H199: -2.823418254e-05 | J199: -0.00121111124 | K199: -0.04262892663 | L199: 0.01275786596 | M199: 0.4460416204 | N199: 0.003830272694
A200: =IF('DF raw data'!I205="","",'DF raw data'!I205) -> -231 | B200: =IF('DF raw data'!J205="","",'DF raw data'!J205) -> -1.98675e-05 | C200: =IF('DF raw data'!K205="","",'DF raw data'!K205) -> 0.000195809 | D200: =IF('DF raw data'!L205="","",'DF raw data'!L205) -> -2.84148e-05 | F200: -1.99588905e-05 | G200: 0.0001967097214 | H200: -2.854550808e-05 | J200: -0.001221090686 | K200: -0.04323947198 | L200: 0.01285622082 | M200: 0.4524697308 | N200: 0.003913659432
A201: =IF('DF raw data'!I206="","",'DF raw data'!I206) -> -230.5 | B201: =IF('DF raw data'!J206="","",'DF raw data'!J206) -> -2.6334e-05 | C201: =IF('DF raw data'!K206="","",'DF raw data'!K206) -> 0.000197289 | D201: =IF('DF raw data'!L206="","",'DF raw data'!L206) -> -3.42628e-05 | F201: -2.64551364e-05 | G201: 0.0001981965294 | H201: -3.442040888e-05 | J201: -0.001234318254 | K201: -0.0438566311 | L201: 0.01295531909 | M201: 0.4589473904 | N201: 0.003998341349
... 1061 more rows

Sheet 10 x=1
A1: =IF('DF raw data'!M1="","",'DF raw data'!M1) -> Number of header lines | B1: =IF('DF raw data'!N1="","",'DF raw data'!N1) -> 54 | C1: =IF('DF raw data'!O1="","",'DF raw data'!O1) ->  | D1: =IF('DF raw data'!P1="","",'DF raw data'!P1) ->  | F1: T_coeff | G1: -0.001 | H1: /degC | J1: ='10 x=-2'!J1 -> IBy total | K1: ='10 x=-2'!K1 -> -4.378028361 | L1: ='10 x=-2'!L1 -> muTm | R1: ='10 x=-2'!R1 -> DF ref | S1: ='10 x=-2'!S1 -> 1
A2: =IF('DF raw data'!M2="","",'DF raw data'!M2) -> Measured by | B2: =IF('DF raw data'!N2="","",'DF raw data'!N2) -> Danfysik | C2: =IF('DF raw data'!O2="","",'DF raw data'!O2) ->  | D2: =IF('DF raw data'!P2="","",'DF raw data'!P2) ->  | F2: Tcorr | G2: 20 | H2: degC | J2: JBy total | K2: =K1262 -> -32.73622056 | L2: muTm^2 | M2: =M1262 -> 18.73008962
A3: =IF('DF raw data'!M3="","",'DF raw data'!M3) -> Operator | B3: =IF('DF raw data'!N3="","",'DF raw data'!N3) -> PMHA | C3: =IF('DF raw data'!O3="","",'DF raw data'!O3) ->  | D3: =IF('DF raw data'!P3="","",'DF raw data'!P3) ->  | F3: Step | G3: =A63-A62 -> 0.5 | H3: mm | J3: PI total | K3: =N1262 -> 10423.23309 | L3: T^2mm^3
A4: =IF('DF raw data'!M4="","",'DF raw data'!M4) -> Data-time | B4: =IF('DF raw data'!N4="","",'DF raw data'!N4) -> 23-09-2024, 14:37:44 | C4: =IF('DF raw data'!O4="","",'DF raw data'!O4) ->  | D4: =IF('DF raw data'!P4="","",'DF raw data'!P4) -> 
A5: =IF('DF raw data'!M5="","",'DF raw data'!M5) -> Project | B5: =IF('DF raw data'!N5="","",'DF raw data'!N5) -> 504314 | C5: =IF('DF raw data'!O5="","",'DF raw data'!O5) ->  | D5: =IF('DF raw data'!P5="","",'DF raw data'!P5) -> 
A6: =IF('DF raw data'!M6="","",'DF raw data'!M6) -> Magnet type | B6: =IF('DF raw data'!N6="","",'DF raw data'!N6) -> Dipole | C6: =IF('DF raw data'!O6="","",'DF raw data'!O6) ->  | D6: =IF('DF raw data'!P6="","",'DF raw data'!P6) -> 
A7: =IF('DF raw data'!M7="","",'DF raw data'!M7) -> Magnet nr. | B7: =IF('DF raw data'!N7="","",'DF raw data'!N7) -> 2410100 | C7: =IF('DF raw data'!O7="","",'DF raw data'!O7) ->  | D7: =IF('DF raw data'!P7="","",'DF raw data'!P7) -> 
A8: =IF('DF raw data'!M8="","",'DF raw data'!M8) -> Meas. number | B8: =IF('DF raw data'!N8="","",'DF raw data'!N8) -> 645 | C8: =IF('DF raw data'!O8="","",'DF raw data'!O8) ->  | D8: =IF('DF raw data'!P8="","",'DF raw data'!P8) -> 
A9: =IF('DF raw data'!M9="","",'DF raw data'!M9) -> Add. info | B9: =IF('DF raw data'!N9="","",'DF raw data'!N9) -> X-alignment scan 4) | C9: =IF('DF raw data'!O9="","",'DF raw data'!O9) ->  | D9: =IF('DF raw data'!P9="","",'DF raw data'!P9) -> 
A10: =IF('DF raw data'!M10="","",'DF raw data'!M10) -> Device | B10: =IF('DF raw data'!N10="","",'DF raw data'!N10) -> (HAL) HALL-PROBE | C10: =IF('DF raw data'!O10="","",'DF raw data'!O10) ->  | D10: =IF('DF raw data'!P10="","",'DF raw data'!P10) -> 
A11: =IF('DF raw data'!M11="","",'DF raw data'!M11) -> Goal | B11: =IF('DF raw data'!N11="","",'DF raw data'!N11) -> (AXI) AXis Integral (Line, EFB) | C11: =IF('DF raw data'!O11="","",'DF raw data'!O11) ->  | D11: =IF('DF raw data'!P11="","",'DF raw data'!P11) -> 
A12: =IF('DF raw data'!M12="","",'DF raw data'!M12) -> Power supply mode | B12: =IF('DF raw data'!N12="","",'DF raw data'!N12) -> (PM) Permanent Magnet (no MPS in use) | C12: =IF('DF raw data'!O12="","",'DF raw data'!O12) ->  | D12: =IF('DF raw data'!P12="","",'DF raw data'!P12) -> 
A13: =IF('DF raw data'!M13="","",'DF raw data'!M13) -> Data format | B13: =IF('DF raw data'!N13="","",'DF raw data'!N13) -> Raw data text file | C13: =IF('DF raw data'!O13="","",'DF raw data'!O13) ->  | D13: =IF('DF raw data'!P13="","",'DF raw data'!P13) -> 
A14: =IF('DF raw data'!M14="","",'DF raw data'!M14) -> Direction of the pos. x-axis | B14: =IF('DF raw data'!N14="","",'DF raw data'!N14) -> See test program | C14: =IF('DF raw data'!O14="","",'DF raw data'!O14) ->  | D14: =IF('DF raw data'!P14="","",'DF raw data'!P14) -> 
A15: =IF('DF raw data'!M15="","",'DF raw data'!M15) -> Direction of the pos. y-axis | B15: =IF('DF raw data'!N15="","",'DF raw data'!N15) -> Vertical up | C15: =IF('DF raw data'!O15="","",'DF raw data'!O15) ->  | D15: =IF('DF raw data'!P15="","",'DF raw data'!P15) -> 
A16: =IF('DF raw data'!M16="","",'DF raw data'!M16) -> Direction of the pos. z-axis | B16: =IF('DF raw data'!N16="","",'DF raw data'!N16) -> See test program | C16: =IF('DF raw data'!O16="","",'DF raw data'!O16) ->  | D16: =IF('DF raw data'!P16="","",'DF raw data'!P16) -> 
A17: =IF('DF raw data'!M17="","",'DF raw data'!M17) -> Mapper type | B17: =IF('DF raw data'!N17="","",'DF raw data'!N17) -> Precision Hall Mapper | C17: =IF('DF raw data'!O17="","",'DF raw data'!O17) ->  | D17: =IF('DF raw data'!P17="","",'DF raw data'!P17) -> 
A18: =IF('DF raw data'!M18="","",'DF raw data'!M18) -> Mapper Danfysik Reg. Number | B18: =IF('DF raw data'!N18="","",'DF raw data'!N18) -> 2033-D (mapper 1) | C18: =IF('DF raw data'!O18="","",'DF raw data'!O18) ->  | D18: =IF('DF raw data'!P18="","",'DF raw data'!P18) -> 
A19: =IF('DF raw data'!M19="","",'DF raw data'!M19) -> Measurement consept | B19: =IF('DF raw data'!N19="","",'DF raw data'!N19) -> Square line grid | C19: =IF('DF raw data'!O19="","",'DF raw data'!O19) ->  | D19: =IF('DF raw data'!P19="","",'DF raw data'!P19) -> 
A20: =IF('DF raw data'!M20="","",'DF raw data'!M20) -> Mode | B20: =IF('DF raw data'!N20="","",'DF raw data'!N20) -> On-the-fly measurement | C20: =IF('DF raw data'!O20="","",'DF raw data'!O20) ->  | D20: =IF('DF raw data'!P20="","",'DF raw data'!P20) -> 
A21: =IF('DF raw data'!M21="","",'DF raw data'!M21) ->  | B21: =IF('DF raw data'!N21="","",'DF raw data'!N21) ->  | C21: =IF('DF raw data'!O21="","",'DF raw data'!O21) ->  | D21: =IF('DF raw data'!P21="","",'DF raw data'!P21) -> 
A22: =IF('DF raw data'!M22="","",'DF raw data'!M22) -> Probe Name | B22: =IF('DF raw data'!N22="","",'DF raw data'!N22) -> ID12_By | C22: =IF('DF raw data'!O22="","",'DF raw data'!O22) ->  | D22: =IF('DF raw data'!P22="","",'DF raw data'!P22) -> 
A23: =IF('DF raw data'!M23="","",'DF raw data'!M23) -> Probe Type | B23: =IF('DF raw data'!N23="","",'DF raw data'!N23) -> DF_ID_3D_Bxyz | C23: =IF('DF raw data'!O23="","",'DF raw data'!O23) ->  | D23: =IF('DF raw data'!P23="","",'DF raw data'!P23) -> 
A24: =IF('DF raw data'!M24="","",'DF raw data'!M24) -> Probe Danfysik Reg. Number | B24: =IF('DF raw data'!N24="","",'DF raw data'!N24) -> 2277 | C24: =IF('DF raw data'!O24="","",'DF raw data'!O24) ->  | D24: =IF('DF raw data'!P24="","",'DF raw data'!P24) -> 
A25: =IF('DF raw data'!M25="","",'DF raw data'!M25) -> Probe Axis | B25: =IF('DF raw data'!N25="","",'DF raw data'!N25) -> By | C25: =IF('DF raw data'!O25="","",'DF raw data'!O25) ->  | D25: =IF('DF raw data'!P25="","",'DF raw data'!P25) -> 
A26: =IF('DF raw data'!M26="","",'DF raw data'!M26) -> Probe Current Supply | B26: =IF('DF raw data'!N26="","",'DF raw data'!N26) -> 1825-D | C26: =IF('DF raw data'!O26="","",'DF raw data'!O26) ->  | D26: =IF('DF raw data'!P26="","",'DF raw data'!P26) -> 
A27: =IF('DF raw data'!M27="","",'DF raw data'!M27) -> Probe Gain Correction | B27: =IF('DF raw data'!N27="","",'DF raw data'!N27) -> 0.99619 | C27: =IF('DF raw data'!O27="","",'DF raw data'!O27) ->  | D27: =IF('DF raw data'!P27="","",'DF raw data'!P27) -> 
A28: =IF('DF raw data'!M28="","",'DF raw data'!M28) -> Probe Offset Correction | B28: =IF('DF raw data'!N28="","",'DF raw data'!N28) -> 0.0027544 | C28: =IF('DF raw data'!O28="","",'DF raw data'!O28) ->  | D28: =IF('DF raw data'!P28="","",'DF raw data'!P28) -> 
A29: =IF('DF raw data'!M29="","",'DF raw data'!M29) -> DVM Number | B29: =IF('DF raw data'!N29="","",'DF raw data'!N29) -> 2 | C29: =IF('DF raw data'!O29="","",'DF raw data'!O29) ->  | D29: =IF('DF raw data'!P29="","",'DF raw data'!P29) -> 
A30: =IF('DF raw data'!M30="","",'DF raw data'!M30) -> DVM Type | B30: =IF('DF raw data'!N30="","",'DF raw data'!N30) -> K2701 | C30: =IF('DF raw data'!O30="","",'DF raw data'!O30) ->  | D30: =IF('DF raw data'!P30="","",'DF raw data'!P30) -> 
A31: =IF('DF raw data'!M31="","",'DF raw data'!M31) -> DVM Danfysik Reg. Number | B31: =IF('DF raw data'!N31="","",'DF raw data'!N31) -> 1743-D | C31: =IF('DF raw data'!O31="","",'DF raw data'!O31) ->  | D31: =IF('DF raw data'!P31="","",'DF raw data'!P31) -> 
A32: =IF('DF raw data'!M32="","",'DF raw data'!M32) -> Probe Name | B32: =IF('DF raw data'!N32="","",'DF raw data'!N32) -> ID12_Bx | C32: =IF('DF raw data'!O32="","",'DF raw data'!O32) ->  | D32: =IF('DF raw data'!P32="","",'DF raw data'!P32) -> 
A33: =IF('DF raw data'!M33="","",'DF raw data'!M33) -> Probe Type | B33: =IF('DF raw data'!N33="","",'DF raw data'!N33) -> DF_ID_3D_Bxyz | C33: =IF('DF raw data'!O33="","",'DF raw data'!O33) ->  | D33: =IF('DF raw data'!P33="","",'DF raw data'!P33) -> 
A34: =IF('DF raw data'!M34="","",'DF raw data'!M34) -> Probe Danfysik Reg. Number | B34: =IF('DF raw data'!N34="","",'DF raw data'!N34) -> 2277 | C34: =IF('DF raw data'!O34="","",'DF raw data'!O34) ->  | D34: =IF('DF raw data'!P34="","",'DF raw data'!P34) -> 
A35: =IF('DF raw data'!M35="","",'DF raw data'!M35) -> Probe Axis | B35: =IF('DF raw data'!N35="","",'DF raw data'!N35) -> Bx | C35: =IF('DF raw data'!O35="","",'DF raw data'!O35) ->  | D35: =IF('DF raw data'!P35="","",'DF raw data'!P35) -> 
A36: =IF('DF raw data'!M36="","",'DF raw data'!M36) -> Probe Current Supply | B36: =IF('DF raw data'!N36="","",'DF raw data'!N36) -> 1825-D | C36: =IF('DF raw data'!O36="","",'DF raw data'!O36) ->  | D36: =IF('DF raw data'!P36="","",'DF raw data'!P36) -> 
A37: =IF('DF raw data'!M37="","",'DF raw data'!M37) -> Probe Gain Correction | B37: =IF('DF raw data'!N37="","",'DF raw data'!N37) -> 1 | C37: =IF('DF raw data'!O37="","",'DF raw data'!O37) ->  | D37: =IF('DF raw data'!P37="","",'DF raw data'!P37) -> 
A38: =IF('DF raw data'!M38="","",'DF raw data'!M38) -> Probe Offset Correction | B38: =IF('DF raw data'!N38="","",'DF raw data'!N38) -> -0.1756 | C38: =IF('DF raw data'!O38="","",'DF raw data'!O38) ->  | D38: =IF('DF raw data'!P38="","",'DF raw data'!P38) -> 
A39: =IF('DF raw data'!M39="","",'DF raw data'!M39) -> DVM Number | B39: =IF('DF raw data'!N39="","",'DF raw data'!N39) -> 3 | C39: =IF('DF raw data'!O39="","",'DF raw data'!O39) ->  | D39: =IF('DF raw data'!P39="","",'DF raw data'!P39) -> 
A40: =IF('DF raw data'!M40="","",'DF raw data'!M40) -> DVM Type | B40: =IF('DF raw data'!N40="","",'DF raw data'!N40) -> K2701 | C40: =IF('DF raw data'!O40="","",'DF raw data'!O40) ->  | D40: =IF('DF raw data'!P40="","",'DF raw data'!P40) -> 
A41: =IF('DF raw data'!M41="","",'DF raw data'!M41) -> DVM Danfysik Reg. Number | B41: =IF('DF raw data'!N41="","",'DF raw data'!N41) -> 1744-D | C41: =IF('DF raw data'!O41="","",'DF raw data'!O41) ->  | D41: =IF('DF raw data'!P41="","",'DF raw data'!P41) -> 
A42: =IF('DF raw data'!M42="","",'DF raw data'!M42) -> Probe Name | B42: =IF('DF raw data'!N42="","",'DF raw data'!N42) -> ID12_Bz | C42: =IF('DF raw data'!O42="","",'DF raw data'!O42) ->  | D42: =IF('DF raw data'!P42="","",'DF raw data'!P42) -> 
A43: =IF('DF raw data'!M43="","",'DF raw data'!M43) -> Probe Type | B43: =IF('DF raw data'!N43="","",'DF raw data'!N43) -> DF_ID_3D_Bxyz | C43: =IF('DF raw data'!O43="","",'DF raw data'!O43) ->  | D43: =IF('DF raw data'!P43="","",'DF raw data'!P43) -> 
A44: =IF('DF raw data'!M44="","",'DF raw data'!M44) -> Probe Danfysik Reg. Number | B44: =IF('DF raw data'!N44="","",'DF raw data'!N44) -> 2277 | C44: =IF('DF raw data'!O44="","",'DF raw data'!O44) ->  | D44: =IF('DF raw data'!P44="","",'DF raw data'!P44) -> 
A45: =IF('DF raw data'!M45="","",'DF raw data'!M45) -> Probe Axis | B45: =IF('DF raw data'!N45="","",'DF raw data'!N45) -> Bz | C45: =IF('DF raw data'!O45="","",'DF raw data'!O45) ->  | D45: =IF('DF raw data'!P45="","",'DF raw data'!P45) -> 
A46: =IF('DF raw data'!M46="","",'DF raw data'!M46) -> Probe Current Supply | B46: =IF('DF raw data'!N46="","",'DF raw data'!N46) -> 1825-D | C46: =IF('DF raw data'!O46="","",'DF raw data'!O46) ->  | D46: =IF('DF raw data'!P46="","",'DF raw data'!P46) -> 
A47: =IF('DF raw data'!M47="","",'DF raw data'!M47) -> Probe Gain Correction | B47: =IF('DF raw data'!N47="","",'DF raw data'!N47) -> 1 | C47: =IF('DF raw data'!O47="","",'DF raw data'!O47) ->  | D47: =IF('DF raw data'!P47="","",'DF raw data'!P47) -> 
A48: =IF('DF raw data'!M53="","",'DF raw data'!M53) -> PS-Gap: | B48: =IF('DF raw data'!N53="","",'DF raw data'!N53) -> 10 | C48: =IF('DF raw data'!O53="","",'DF raw data'!O53) ->  | D48: =IF('DF raw data'!P53="","",'DF raw data'!P53) -> 
A49: =IF('DF raw data'!M54="","",'DF raw data'!M54) -> PS-Temperature: | B49: =IF('DF raw data'!N54="","",'DF raw data'!N54) -> 24.6 | C49: =IF('DF raw data'!O54="","",'DF raw data'!O54) ->  | D49: =IF('DF raw data'!P54="","",'DF raw data'!P54) -> 
A50: =IF('DF raw data'!M55="","",'DF raw data'!M55) -> PS-Encoder: | B50: =IF('DF raw data'!N55="","",'DF raw data'!N55) -> 19.8194 | C50: =IF('DF raw data'!O55="","",'DF raw data'!O55) ->  | D50: =IF('DF raw data'!P55="","",'DF raw data'!P55) -> 
A51: =IF('DF raw data'!M56="","",'DF raw data'!M56) ->  | B51: =IF('DF raw data'!N56="","",'DF raw data'!N56) ->  | C51: =IF('DF raw data'!O56="","",'DF raw data'!O56) ->  | D51: =IF('DF raw data'!P56="","",'DF raw data'!P56) -> 
A52: =IF('DF raw data'!M57="","",'DF raw data'!M57) -> Monitor-Index | B52: =IF('DF raw data'!N57="","",'DF raw data'!N57) -> [1,1,4] | C52: =IF('DF raw data'!O57="","",'DF raw data'!O57) ->  | D52: =IF('DF raw data'!P57="","",'DF raw data'!P57) -> 
A53: =IF('DF raw data'!M58="","",'DF raw data'!M58) ->  | B53: =IF('DF raw data'!N58="","",'DF raw data'!N58) ->  | C53: =IF('DF raw data'!O58="","",'DF raw data'!O58) ->  | D53: =IF('DF raw data'!P58="","",'DF raw data'!P58) -> 
A54: =IF('DF raw data'!M59="","",'DF raw data'!M59) -> Time [s] | B54: =IF('DF raw data'!N59="","",'DF raw data'!N59) -> Y [mm] | C54: =IF('DF raw data'!O59="","",'DF raw data'!O59) -> X [mm] | D54: =IF('DF raw data'!P59="","",'DF raw data'!P59) -> Nominal current [A]
A55: =IF('DF raw data'!M60="","",'DF raw data'!M60) ->  | B55: =IF('DF raw data'!N60="","",'DF raw data'!N60) ->  | C55: =IF('DF raw data'!O60="","",'DF raw data'!O60) ->  | D55: =IF('DF raw data'!P60="","",'DF raw data'!P60) -> 
A56: =IF('DF raw data'!M61="","",'DF raw data'!M61) -> 208.3 | B56: =IF('DF raw data'!N61="","",'DF raw data'!N61) -> 31.55 | C56: =IF('DF raw data'!O61="","",'DF raw data'!O61) -> 303.55 | D56: =IF('DF raw data'!P61="","",'DF raw data'!P61) -> 0
A57: =IF('DF raw data'!M62="","",'DF raw data'!M62) ->  | B57: =IF('DF raw data'!N62="","",'DF raw data'!N62) ->  | C57: =IF('DF raw data'!O62="","",'DF raw data'!O62) ->  | D57: =IF('DF raw data'!P62="","",'DF raw data'!P62) -> 
A58: =IF('DF raw data'!M63="","",'DF raw data'!M63) -> Measurement-Index | B58: =IF('DF raw data'!N63="","",'DF raw data'!N63) -> [1,1,1201,2] | C58: =IF('DF raw data'!O63="","",'DF raw data'!O63) ->  | D58: =IF('DF raw data'!P63="","",'DF raw data'!P63) -> 
A59: =IF('DF raw data'!M64="","",'DF raw data'!M64) ->  | B59: =IF('DF raw data'!N64="","",'DF raw data'!N64) ->  | C59: =IF('DF raw data'!O64="","",'DF raw data'!O64) ->  | D59: =IF('DF raw data'!P64="","",'DF raw data'!P64) -> 
A60: =IF('DF raw data'!M65="","",'DF raw data'!M65) -> Z [mm] | B60: By [T] | C60: Bx [T] | D60: Bz [T] | F60: By_corr | G60: Bx_corr | H60: Bz_corr | J60: Iy | K60: Jy | L60: Ix | M60: Jx | N60: PI
A62: =IF('DF raw data'!M67="","",'DF raw data'!M67) -> -300 | B62: =IF('DF raw data'!N67="","",'DF raw data'!N67) -> -2.23953e-05 | C62: =IF('DF raw data'!O67="","",'DF raw data'!O67) -> 0.00014557 | D62: =IF('DF raw data'!P67="","",'DF raw data'!P67) -> -3.10114e-05 | F62: =(1-$G$1*($B$49))*B62 -> -2.294622438e-05 | G62: =(1-$G$1*($B$49-$G$2))*C62 -> 0.000146239622 | H62: =(1-$G$1*($B$49-$G$2))*D62 -> -3.115405244e-05 | J62: =F62*$G$3 -> -1.147311219e-05 | K62: =J62*$G$3 -> -5.736556095e-06 | L62: =G62*$G$3 -> 7.3119811e-05 | M62: =L62*$G$3 -> 3.65599055e-05 | N62: =(J62^2+L62^2)*$G$3 -> 2.739069532e-09
A63: =IF('DF raw data'!M68="","",'DF raw data'!M68) -> -299.5 | B63: =IF('DF raw data'!N68="","",'DF raw data'!N68) -> -3.07287e-05 | C63: =IF('DF raw data'!O68="","",'DF raw data'!O68) -> 0.000149605 | D63: =IF('DF raw data'!P68="","",'DF raw data'!P68) -> -3.06571e-05 | F63: =(1-$G$1*($B$49-$G$2))*B63 -> -3.087005202e-05 | G63: =(1-$G$1*($B$49-$G$2))*C63 -> 0.000150293183 | H63: -3.079812266e-05 | J63: =F63*$G$3+J62 -> -2.69081382e-05 | K63: =J63*$G$3+K62 -> -1.919062519e-05 | L63: =G63*$G$3+L62 -> 0.0001482664025 | M63: =L63*$G$3+M62 -> 0.0001106931067 | N63: =(J63^2+L63^2)*$G$3+N62 -> 1.409255654e-08
A64: =IF('DF raw data'!M69="","",'DF raw data'!M69) -> -299 | B64: =IF('DF raw data'!N69="","",'DF raw data'!N69) -> -8.23226e-06 | C64: =IF('DF raw data'!O69="","",'DF raw data'!O69) -> 0.00015188 | D64: =IF('DF raw data'!P69="","",'DF raw data'!P69) -> -3.08554e-05 | F64: =(1-$G$1*($B$49-$G$2))*B64 -> -8.270128396e-06 | G64: 0.000152578648 | H64: -3.099733484e-05 | J64: =F64*$G$3+J63 -> -3.10432024e-05 | K64: =J64*$G$3+K63 -> -3.471222639e-05 | L64: =G64*$G$3+L63 -> 0.0002245557265 | M64: =L64*$G$3+M63 -> 0.00022297097 | N64: =(J64^2+L64^2)*$G$3+N63 -> 3.97870339e-08
A65: =IF('DF raw data'!M70="","",'DF raw data'!M70) -> -298.5 | B65: =IF('DF raw data'!N70="","",'DF raw data'!N70) -> -1.79726e-05 | C65: =IF('DF raw data'!O70="","",'DF raw data'!O70) -> 0.000156137 | D65: =IF('DF raw data'!P70="","",'DF raw data'!P70) -> -3.19044e-05 | F65: -1.805527396e-05 | G65: 0.0001568552302 | H65: -3.205116024e-05 | J65: -4.007083938e-05 | K65: -5.474764608e-05 | L65: 0.0003029833416 | M65: 0.0003744626408 | N65: 8.648932263e-08
A66: =IF('DF raw data'!M71="","",'DF raw data'!M71) -> -298 | B66: =IF('DF raw data'!N71="","",'DF raw data'!N71) -> -2.02804e-05 | C66: =IF('DF raw data'!O71="","",'DF raw data'!O71) -> 0.000156865 | D66: =IF('DF raw data'!P71="","",'DF raw data'!P71) -> -3.23531e-05 | F66: -2.037368984e-05 | G66: 0.000157586579 | H66: -3.250192426e-05 | J66: -5.02576843e-05 | K66: -7.987648823e-05 | L66: 0.0003817766311 | M66: 0.0005653509564 | N66: 1.606289381e-07
A67: =IF('DF raw data'!M72="","",'DF raw data'!M72) -> -297.5 | B67: =IF('DF raw data'!N72="","",'DF raw data'!N72) -> -2.75861e-05 | C67: =IF('DF raw data'!O72="","",'DF raw data'!O72) -> 0.000152638 | D67: =IF('DF raw data'!P72="","",'DF raw data'!P72) -> -3.16739e-05 | F67: -2.771299606e-05 | G67: 0.0001533401348 | H67: -3.181959994e-05 | J67: -6.411418233e-05 | K67: -0.0001119335794 | L67: 0.0004584466985 | M67: 0.0007945743056 | N67: 2.677709399e-07
A68: =IF('DF raw data'!M73="","",'DF raw data'!M73) -> -297 | B68: =IF('DF raw data'!N73="","",'DF raw data'!N73) -> -2.32935e-05 | C68: =IF('DF raw data'!O73="","",'DF raw data'!O73) -> 0.000144012 | D68: =IF('DF raw data'!P73="","",'DF raw data'!P73) -> -3.11541e-05 | F68: -2.34006501e-05 | G68: 0.0001446744552 | H68: -3.129740886e-05 | J68: -7.581450738e-05 | K68: -0.0001498408331 | L68: 0.0005307839261 | M68: 0.001059966269 | N68: 4.115106478e-07
A69: =IF('DF raw data'!M74="","",'DF raw data'!M74) -> -296.5 | B69: =IF('DF raw data'!N74="","",'DF raw data'!N74) -> -1.6307e-05 | C69: =IF('DF raw data'!O74="","",'DF raw data'!O74) -> 0.000137729 | D69: =IF('DF raw data'!P74="","",'DF raw data'!P74) -> -3.12952e-05 | F69: -1.63820122e-05 | G69: 0.0001383625534 | H69: -3.143915792e-05 | J69: -8.400551348e-05 | K69: -0.0001918435898 | L69: 0.0005999652028 | M69: 0.00135994887 | N69: 5.950182332e-07
A70: =IF('DF raw data'!M75="","",'DF raw data'!M75) -> -296 | B70: =IF('DF raw data'!N75="","",'DF raw data'!N75) -> -2.84849e-05 | C70: =IF('DF raw data'!O75="","",'DF raw data'!O75) -> 0.00014292 | D70: =IF('DF raw data'!P75="","",'DF raw data'!P75) -> -3.13294e-05 | F70: -2.861593054e-05 | G70: 0.000143577432 | H70: -3.147351524e-05 | J70: -9.831347875e-05 | K70: -0.0002410003292 | L70: 0.0006717539188 | M70: 0.001695825829 | N70: 8.25477667e-07
A71: =IF('DF raw data'!M76="","",'DF raw data'!M76) -> -295.5 | B71: =IF('DF raw data'!N76="","",'DF raw data'!N76) -> -1.72043e-05 | C71: =IF('DF raw data'!O76="","",'DF raw data'!O76) -> 0.00014078 | D71: =IF('DF raw data'!P76="","",'DF raw data'!P76) -> -3.11047e-05 | F71: -1.728343978e-05 | G71: 0.000141427588 | H71: -3.124778162e-05 | J71: -0.0001069551986 | K71: -0.0002944779285 | L71: 0.0007424677128 | M71: 0.002067059686 | N71: 1.106826527e-06
A72: =IF('DF raw data'!M77="","",'DF raw data'!M77) -> -295 | B72: =IF('DF raw data'!N77="","",'DF raw data'!N77) -> -2.33578e-05 | C72: =IF('DF raw data'!O77="","",'DF raw data'!O77) -> 0.000148302 | D72: =IF('DF raw data'!P77="","",'DF raw data'!P77) -> -3.07334e-05 | F72: -2.346524588e-05 | G72: 0.0001489841892 | H72: -3.087477364e-05 | J72: -0.0001186878216 | K72: -0.0003538218393 | L72: 0.0008169598074 | M72: 0.00247553959 | N72: 1.447581589e-06
A73: =IF('DF raw data'!M78="","",'DF raw data'!M78) -> -294.5 | B73: =IF('DF raw data'!N78="","",'DF raw data'!N78) -> -1.7525e-05 | C73: =IF('DF raw data'!O78="","",'DF raw data'!O78) -> 0.000150155 | D73: =IF('DF raw data'!P78="","",'DF raw data'!P78) -> -3.06137e-05 | F73: -1.7605615e-05 | G73: 0.000150845713 | H73: -3.075452302e-05 | J73: -0.0001274906291 | K73: -0.0004175671538 | L73: 0.0008923826639 | M73: 0.002921730921 | N73: 1.853881929e-06
A74: =IF('DF raw data'!M79="","",'DF raw data'!M79) -> -294 | B74: =IF('DF raw data'!N79="","",'DF raw data'!N79) -> -1.29104e-05 | C74: =IF('DF raw data'!O79="","",'DF raw data'!O79) -> 0.000155979 | D74: =IF('DF raw data'!P79="","",'DF raw data'!P79) -> -3.12593e-05 | F74: -1.296978784e-05 | G74: 0.0001566965034 | H74: -3.140309278e-05 | J74: -0.000133975523 | K74: -0.0004845549153 | L74: 0.0009707309156 | M74: 0.003407096379 | N74: 2.334015905e-06
A75: =IF('DF raw data'!M80="","",'DF raw data'!M80) -> -293.5 | B75: =IF('DF raw data'!N80="","",'DF raw data'!N80) -> -1.08587e-05 | C75: =IF('DF raw data'!O80="","",'DF raw data'!O80) -> 0.000150418 | D75: =IF('DF raw data'!P80="","",'DF raw data'!P80) -> -3.2338e-05 | F75: -1.090865002e-05 | G75: 0.0001511099228 | H75: -3.24867548e-05 | J75: -0.000139429848 | K75: -0.0005542698393 | L75: 0.001046285877 | M75: 0.003930239318 | N75: 2.891093314e-06
A76: =IF('DF raw data'!M81="","",'DF raw data'!M81) -> -293 | B76: =IF('DF raw data'!N81="","",'DF raw data'!N81) -> -2.62405e-05 | C76: =IF('DF raw data'!O81="","",'DF raw data'!O81) -> 0.000146422 | D76: =IF('DF raw data'!P81="","",'DF raw data'!P81) -> -3.26407e-05 | F76: -2.63612063e-05 | G76: 0.0001470955412 | H76: -3.279084722e-05 | J76: -0.0001526104512 | K76: -0.0006305750649 | L76: 0.001119833648 | M76: 0.004490156142 | N76: 3.529751988e-06
A77: =IF('DF raw data'!M82="","",'DF raw data'!M82) -> -292.5 | B77: =IF('DF raw data'!N82="","",'DF raw data'!N82) -> -2.18823e-05 | C77: =IF('DF raw data'!O82="","",'DF raw data'!O82) -> 0.000152894 | D77: =IF('DF raw data'!P82="","",'DF raw data'!P82) -> -3.20392e-05 | F77: -2.198295858e-05 | G77: 0.0001535973124 | H77: -3.218658032e-05 | J77: -0.0001636019304 | K77: -0.0007123760302 | L77: 0.001196632304 | M77: 0.005088472294 | N77: 4.259099219e-06
A78: =IF('DF raw data'!M83="","",'DF raw data'!M83) -> -292 | B78: =IF('DF raw data'!N83="","",'DF raw data'!N83) -> -2.87411e-05 | C78: =IF('DF raw data'!O83="","",'DF raw data'!O83) -> 0.00014295 | D78: =IF('DF raw data'!P83="","",'DF raw data'!P83) -> -3.11454e-05 | F78: -2.887330906e-05 | G78: 0.00014360757 | H78: -3.128866884e-05 | J78: -0.000178038585 | K78: -0.0008013953226 | L78: 0.001268436089 | M78: 0.005722690338 | N78: 5.079413144e-06
A79: =IF('DF raw data'!M84="","",'DF raw data'!M84) -> -291.5 | B79: =IF('DF raw data'!N84="","",'DF raw data'!N84) -> -2.34228e-05 | C79: =IF('DF raw data'!O84="","",'DF raw data'!O84) -> 0.000141035 | D79: =IF('DF raw data'!P84="","",'DF raw data'!P84) -> -2.82105e-05 | F79: -2.353054488e-05 | G79: 0.000141683761 | H79: -2.83402683e-05 | J79: -0.0001898038574 | K79: -0.0008962972513 | L79: 0.001339277969 | M79: 0.006392329323 | N79: 5.994258636e-06
A80: =IF('DF raw data'!M85="","",'DF raw data'!M85) -> -291 | B80: =IF('DF raw data'!N85="","",'DF raw data'!N85) -> -1.33632e-05 | C80: =IF('DF raw data'!O85="","",'DF raw data'!O85) -> 0.00014878 | D80: =IF('DF raw data'!P85="","",'DF raw data'!P85) -> -2.48955e-05 | F80: -1.342467072e-05 | G80: 0.000149464388 | H80: -2.50100193e-05 | J80: -0.0001965161928 | K80: -0.0009945553477 | L80: 0.001414010163 | M80: 0.007099334404 | N80: 7.013280314e-06
A81: =IF('DF raw data'!M86="","",'DF raw data'!M86) -> -290.5 | B81: =IF('DF raw data'!N86="","",'DF raw data'!N86) -> -3.1181e-05 | C81: =IF('DF raw data'!O86="","",'DF raw data'!O86) -> 0.000142391 | D81: =IF('DF raw data'!P86="","",'DF raw data'!P86) -> -2.30811e-05 | F81: -3.13244326e-05 | G81: 0.0001430459986 | H81: -2.318727306e-05 | J81: -0.0002121784091 | K81: -0.001100644552 | L81: 0.001485533163 | M81: 0.007842100986 | N81: 8.139194541e-06
A82: =IF('DF raw data'!M87="","",'DF raw data'!M87) -> -290 | B82: =IF('DF raw data'!N87="","",'DF raw data'!N87) -> -2.76595e-05 | C82: =IF('DF raw data'!O87="","",'DF raw data'!O87) -> 0.000137841 | D82: =IF('DF raw data'!P87="","",'DF raw data'!P87) -> -1.87627e-05 | F82: -2.77867337e-05 | G82: 0.0001384750686 | H82: -1.884900842e-05 | J82: -0.0002260717759 | K82: -0.00121368044 | L82: 0.001554770697 | M82: 0.008619486334 | N82: 9.373404725e-06
A83: =IF('DF raw data'!M88="","",'DF raw data'!M88) -> -289.5 | B83: =IF('DF raw data'!N88="","",'DF raw data'!N88) -> -1.88135e-05 | C83: =IF('DF raw data'!O88="","",'DF raw data'!O88) -> 0.000143752 | D83: =IF('DF raw data'!P88="","",'DF raw data'!P88) -> -2.07092e-05 | F83: -1.89000421e-05 | G83: 0.0001444132592 | H83: -2.080446232e-05 | J83: -0.000235521797 | K83: -0.001331441339 | L83: 0.001626977327 | M83: 0.009432974997 | N83: 1.072466759e-05
A84: =IF('DF raw data'!M89="","",'DF raw data'!M89) -> -289 | B84: =IF('DF raw data'!N89="","",'DF raw data'!N89) -> -2.11803e-05 | C84: =IF('DF raw data'!O89="","",'DF raw data'!O89) -> 0.000144401 | D84: =IF('DF raw data'!P89="","",'DF raw data'!P89) -> -2.78186e-05 | F84: -2.127772938e-05 | G84: 0.0001450652446 | H84: -2.794656556e-05 | J84: -0.0002461606617 | K84: -0.00145452167 | L84: 0.001699509949 | M84: 0.01028272997 | N84: 1.219913216e-05
A85: =IF('DF raw data'!M90="","",'DF raw data'!M90) -> -288.5 | B85: =IF('DF raw data'!N90="","",'DF raw data'!N90) -> -1.68815e-05 | C85: =IF('DF raw data'!O90="","",'DF raw data'!O90) -> 0.000150916 | D85: =IF('DF raw data'!P90="","",'DF raw data'!P90) -> -3.47803e-05 | F85: -1.69591549e-05 | G85: 0.0001516102136 | H85: -3.494028938e-05 | J85: -0.0002546402391 | K85: -0.001581841789 | L85: 0.001775315056 | M85: 0.0111703875 | N85: 1.380742476e-05
A86: =IF('DF raw data'!M91="","",'DF raw data'!M91) -> -288 | B86: =IF('DF raw data'!N91="","",'DF raw data'!N91) -> -2.9954e-05 | C86: =IF('DF raw data'!O91="","",'DF raw data'!O91) -> 0.000143414 | D86: =IF('DF raw data'!P91="","",'DF raw data'!P91) -> -3.84681e-05 | F86: -3.00917884e-05 | G86: 0.0001440737044 | H86: -3.864505326e-05 | J86: -0.0002696861333 | K86: -0.001716684856 | L86: 0.001847351908 | M86: 0.01209406345 | N86: 1.55501446e-05
A87: =IF('DF raw data'!M92="","",'DF raw data'!M92) -> -287.5 | B87: =IF('DF raw data'!N92="","",'DF raw data'!N92) -> -2.75248e-05 | C87: =IF('DF raw data'!O92="","",'DF raw data'!O92) -> 0.000128153 | D87: =IF('DF raw data'!P92="","",'DF raw data'!P92) -> -2.8275e-05 | F87: -2.765141408e-05 | G87: 0.0001287425038 | H87: -2.8405065e-05 | J87: -0.0002835118404 | K87: -0.001858440776 | L87: 0.00191172316 | M87: 0.01304992503 | N87: 1.74176768e-05
A88: =IF('DF raw data'!M93="","",'DF raw data'!M93) -> -287 | B88: =IF('DF raw data'!N93="","",'DF raw data'!N93) -> -1.82952e-05 | C88: =IF('DF raw data'!O93="","",'DF raw data'!O93) -> 0.000129567 | D88: =IF('DF raw data'!P93="","",'DF raw data'!P93) -> -2.92844e-05 | F88: -1.837935792e-05 | G88: 0.0001301630082 | H88: -2.941910824e-05 | J88: -0.0002927015193 | K88: -0.002004791536 | L88: 0.001976804664 | M88: 0.01403832737 | N88: 1.941439223e-05
A89: =IF('DF raw data'!M94="","",'DF raw data'!M94) -> -286.5 | B89: =IF('DF raw data'!N94="","",'DF raw data'!N94) -> -1.7726e-05 | C89: =IF('DF raw data'!O94="","",'DF raw data'!O94) -> 0.000140656 | D89: =IF('DF raw data'!P94="","",'DF raw data'!P94) -> -1.76759e-05 | F89: -1.78075396e-05 | G89: 0.0001413030176 | H89: -1.775720914e-05 | J89: -0.0003016052891 | K89: -0.00215559418 | L89: 0.002047456173 | M89: 0.01506205545 | N89: 2.15559135e-05
A90: =IF('DF raw data'!M95="","",'DF raw data'!M95) -> -286 | B90: =IF('DF raw data'!N95="","",'DF raw data'!N95) -> -2.47734e-05 | C90: =IF('DF raw data'!O95="","",'DF raw data'!O95) -> 0.000147755 | D90: =IF('DF raw data'!P95="","",'DF raw data'!P95) -> -2.15582e-05 | F90: -2.488735764e-05 | G90: 0.000148434673 | H90: -2.165736772e-05 | J90: -0.0003140489679 | K90: -0.002312618664 | L90: 0.002121673509 | M90: 0.01612289221 | N90: 2.385597611e-05
A91: =IF('DF raw data'!M96="","",'DF raw data'!M96) -> -285.5 | B91: =IF('DF raw data'!N96="","",'DF raw data'!N96) -> -2.32327e-05 | C91: =IF('DF raw data'!O96="","",'DF raw data'!O96) -> 0.000147966 | D91: =IF('DF raw data'!P96="","",'DF raw data'!P96) -> -2.55656e-05 | F91: -2.333957042e-05 | G91: 0.0001486466436 | H91: -2.568320176e-05 | J91: -0.0003257187531 | K91: -0.002475478041 | L91: 0.002195996831 | M91: 0.01722089062 | N91: 2.632022351e-05
A92: =IF('DF raw data'!M97="","",'DF raw data'!M97) -> -285 | B92: =IF('DF raw data'!N97="","",'DF raw data'!N97) -> -2.2201e-05 | C92: =IF('DF raw data'!O97="","",'DF raw data'!O97) -> 0.000141544 | D92: =IF('DF raw data'!P97="","",'DF raw data'!P97) -> -3.52187e-05 | F92: -2.23031246e-05 | G92: 0.0001421951024 | H92: -3.538070602e-05 | J92: -0.0003368703154 | K92: -0.002643913198 | L92: 0.002267094382 | M92: 0.01835443781 | N92: 2.894682278e-05
A93: =IF('DF raw data'!M98="","",'DF raw data'!M98) -> -284.5 | B93: =IF('DF raw data'!N98="","",'DF raw data'!N98) -> -1.72678e-05 | C93: =IF('DF raw data'!O98="","",'DF raw data'!O98) -> 0.000147422 | D93: =IF('DF raw data'!P98="","",'DF raw data'!P98) -> -3.23221e-05 | F93: -1.734723188e-05 | G93: 0.0001481001412 | H93: -3.247078166e-05 | J93: -0.0003455439314 | K93: -0.002816685164 | L93: 0.002341144453 | M93: 0.01952501004 | N93: 3.174700176e-05
A94: =IF('DF raw data'!M99="","",'DF raw data'!M99) -> -284 | B94: =IF('DF raw data'!N99="","",'DF raw data'!N99) -> -2.66904e-05 | C94: =IF('DF raw data'!O99="","",'DF raw data'!O99) -> 0.000147157 | D94: =IF('DF raw data'!P99="","",'DF raw data'!P99) -> -3.02127e-05 | F94: -2.681317584e-05 | G94: 0.0001478339222 | H94: -3.035167842e-05 | J94: -0.0003589505193 | K94: -0.002996160424 | L94: 0.002415061414 | M94: 0.02073254075 | N94: 3.472768531e-05
A95: =IF('DF raw data'!M100="","",'DF raw data'!M100) -> -283.5 | B95: =IF('DF raw data'!N100="","",'DF raw data'!N100) -> -1.84745e-05 | C95: =IF('DF raw data'!O100="","",'DF raw data'!O100) -> 0.000149286 | D95: =IF('DF raw data'!P100="","",'DF raw data'!P100) -> -4.93985e-05 | F95: -1.85594827e-05 | G95: 0.0001499727156 | H95: -4.96257331e-05 | J95: -0.0003682302607 | K95: -0.003180275554 | L95: 0.002490047772 | M95: 0.02197756463 | N95: 3.789565103e-05
A96: =IF('DF raw data'!M101="","",'DF raw data'!M101) -> -283 | B96: =IF('DF raw data'!N101="","",'DF raw data'!N101) -> -2.3287e-05 | C96: =IF('DF raw data'!O101="","",'DF raw data'!O101) -> 0.000145536 | D96: =IF('DF raw data'!P101="","",'DF raw data'!P101) -> -4.05101e-05 | F96: -2.33941202e-05 | G96: 0.0001462054656 | H96: -4.069644646e-05 | J96: -0.0003799273208 | K96: -0.003370239215 | L96: 0.002563150504 | M96: 0.02325913988 | N96: 4.125269367e-05
A97: =IF('DF raw data'!M102="","",'DF raw data'!M102) -> -282.5 | B97: =IF('DF raw data'!N102="","",'DF raw data'!N102) -> -2.54044e-05 | C97: =IF('DF raw data'!O102="","",'DF raw data'!O102) -> 0.000146761 | D97: =IF('DF raw data'!P102="","",'DF raw data'!P102) -> -3.66649e-05 | F97: -2.552126024e-05 | G97: 0.0001474361006 | H97: -3.683355854e-05 | J97: -0.0003926879509 | K97: -0.00356658319 | L97: 0.002636868555 | M97: 0.02457757416 | N97: 4.480633347e-05
A98: =IF('DF raw data'!M103="","",'DF raw data'!M103) -> -282 | B98: =IF('DF raw data'!N103="","",'DF raw data'!N103) -> -2.07342e-05 | C98: =IF('DF raw data'!O103="","",'DF raw data'!O103) -> 0.000147196 | D98: =IF('DF raw data'!P103="","",'DF raw data'!P103) -> -2.39996e-05 | F98: -2.082957732e-05 | G98: 0.0001478731016 | H98: -2.410999816e-05 | J98: -0.0004031027395 | K98: -0.00376813456 | L98: 0.002710805106 | M98: 0.02593297671 | N98: 4.856181154e-05
A99: =IF('DF raw data'!M104="","",'DF raw data'!M104) -> -281.5 | B99: =IF('DF raw data'!N104="","",'DF raw data'!N104) -> -2.36797e-05 | C99: =IF('DF raw data'!O104="","",'DF raw data'!O104) -> 0.000149963 | D99: =IF('DF raw data'!P104="","",'DF raw data'!P104) -> -2.78527e-05 | F99: -2.378862662e-05 | G99: 0.0001506528298 | H99: -2.798082242e-05 | J99: -0.0004149970528 | K99: -0.003975633086 | L99: 0.00278613152 | M99: 0.02732604247 | N99: 5.252918724e-05
A100: =IF('DF raw data'!M105="","",'DF raw data'!M105) -> -281 | B100: =IF('DF raw data'!N105="","",'DF raw data'!N105) -> -2.00213e-05 | C100: =IF('DF raw data'!O105="","",'DF raw data'!O105) -> 0.000150765 | D100: =IF('DF raw data'!P105="","",'DF raw data'!P105) -> -3.59394e-05 | F100: -2.011339798e-05 | G100: 0.000151458519 | H100: -3.610472124e-05 | J100: -0.0004250537518 | K100: -0.004188159962 | L100: 0.00286186078 | M100: 0.02875697286 | N100: 5.671464615e-05
A101: =IF('DF raw data'!M106="","",'DF raw data'!M106) -> -280.5 | B101: =IF('DF raw data'!N106="","",'DF raw data'!N106) -> -1.48957e-05 | C101: =IF('DF raw data'!O106="","",'DF raw data'!O106) -> 0.000147399 | D101: =IF('DF raw data'!P106="","",'DF raw data'!P106) -> -3.33739e-05 | F101: -1.496422022e-05 | G101: 0.0001480770354 | H101: -3.352741994e-05 | J101: -0.0004325358619 | K101: -0.004404427893 | L101: 0.002935899298 | M101: 0.03022492251 | N101: 6.111794213e-05
A102: =IF('DF raw data'!M107="","",'DF raw data'!M107) -> -280 | B102: =IF('DF raw data'!N107="","",'DF raw data'!N107) -> -2.27133e-05 | C102: =IF('DF raw data'!O107="","",'DF raw data'!O107) -> 0.000144057 | D102: =IF('DF raw data'!P107="","",'DF raw data'!P107) -> -3.59605e-05 | F102: -2.281778118e-05 | G102: 0.0001447196622 | H102: -3.61259183e-05 | J102: -0.0004439447525 | K102: -0.004626400269 | L102: 0.003008259129 | M102: 0.03172905208 | N102: 6.574129709e-05
A103: =IF('DF raw data'!M108="","",'DF raw data'!M108) -> -279.5 | B103: =IF('DF raw data'!N108="","",'DF raw data'!N108) -> -1.80432e-05 | C103: =IF('DF raw data'!O108="","",'DF raw data'!O108) -> 0.000140398 | D103: =IF('DF raw data'!P108="","",'DF raw data'!P108) -> -2.25473e-05 | F103: -1.812619872e-05 | G103: 0.0001410438308 | H103: -2.265101758e-05 | J103: -0.0004530078519 | K103: -0.004852904195 | L103: 0.003078781044 | M103: 0.0332684426 | N103: 7.058335151e-05
A104: =IF('DF raw data'!M109="","",'DF raw data'!M109) -> -279 | B104: =IF('DF raw data'!N109="","",'DF raw data'!N109) -> -2.59199e-05 | C104: =IF('DF raw data'!O109="","",'DF raw data'!O109) -> 0.000139913 | D104: =IF('DF raw data'!P109="","",'DF raw data'!P109) -> -3.25977e-05 | F104: -2.603913154e-05 | G104: 0.0001405565998 | H104: -3.274764942e-05 | J104: -0.0004660274177 | K104: -0.005085917904 | L104: 0.003149059344 | M104: 0.03484297227 | N104: 7.565022966e-05
A105: =IF('DF raw data'!M110="","",'DF raw data'!M110) -> -278.5 | B105: =IF('DF raw data'!N110="","",'DF raw data'!N110) -> -2.57253e-05 | C105: =IF('DF raw data'!O110="","",'DF raw data'!O110) -> 0.000143827 | D105: =IF('DF raw data'!P110="","",'DF raw data'!P110) -> -3.62732e-05 | F105: -2.584363638e-05 | G105: 0.0001444886042 | H105: -3.644005672e-05 | J105: -0.0004789492359 | K105: -0.005325392522 | L105: 0.003221303646 | M105: 0.03645362409 | N105: 8.095332443e-05
A106: =IF('DF raw data'!M111="","",'DF raw data'!M111) -> -278 | B106: =IF('DF raw data'!N111="","",'DF raw data'!N111) -> -1.55998e-05 | C106: =IF('DF raw data'!O111="","",'DF raw data'!O111) -> 0.000140477 | D106: =IF('DF raw data'!P111="","",'DF raw data'!P111) -> -3.51656e-05 | F106: -1.567155908e-05 | G106: 0.0001411231942 | H106: -3.532736176e-05 | J106: -0.0004867850154 | K106: -0.00556878503 | L106: 0.003291865243 | M106: 0.03809955672 | N106: 8.648999265e-05
A107: =IF('DF raw data'!M112="","",'DF raw data'!M112) -> -277.5 | B107: =IF('DF raw data'!N112="","",'DF raw data'!N112) -> -2.22671e-05 | C107: =IF('DF raw data'!O112="","",'DF raw data'!O112) -> 0.000136007 | D107: =IF('DF raw data'!P112="","",'DF raw data'!P112) -> -3.18912e-05 | F107: -2.236952866e-05 | G107: 0.0001366326322 | H107: -3.203789952e-05 | J107: -0.0004979697797 | K107: -0.00581776992 | L107: 0.003360181559 | M107: 0.0397796475 | N107: 9.225938966e-05
A108: =IF('DF raw data'!M113="","",'DF raw data'!M113) -> -277 | B108: =IF('DF raw data'!N113="","",'DF raw data'!N113) -> -1.42638e-05 | C108: =IF('DF raw data'!O113="","",'DF raw data'!O113) -> 0.000143199 | D108: =IF('DF raw data'!P113="","",'DF raw data'!P113) -> -1.97089e-05 | F108: -1.432941348e-05 | G108: 0.0001438577154 | H108: -1.979956094e-05 | J108: -0.0005051344865 | K108: -0.006070337163 | L108: 0.003432110417 | M108: 0.0414957027 | N108: 9.827666104e-05
A109: =IF('DF raw data'!M114="","",'DF raw data'!M114) -> -276.5 | B109: =IF('DF raw data'!N114="","",'DF raw data'!N114) -> -1.79138e-05 | C109: =IF('DF raw data'!O114="","",'DF raw data'!O114) -> 0.000147531 | D109: =IF('DF raw data'!P114="","",'DF raw data'!P114) -> -2.43451e-05 | F109: -1.799620348e-05 | G109: 0.0001482096426 | H109: -2.445708746e-05 | J109: -0.0005141325882 | K109: -0.006327403457 | L109: 0.003506215238 | M109: 0.04324881032 | N109: 0.0001045555998
A110: =IF('DF raw data'!M115="","",'DF raw data'!M115) -> -276 | B110: =IF('DF raw data'!N115="","",'DF raw data'!N115) -> -9.57965e-06 | C110: =IF('DF raw data'!O115="","",'DF raw data'!O115) -> 0.000141237 | D110: =IF('DF raw data'!P115="","",'DF raw data'!P115) -> -2.83935e-05 | F110: -9.62371639e-06 | G110: 0.0001418866902 | H110: -2.85241101e-05 | J110: -0.0005189444464 | K110: -0.00658687568 | L110: 0.003577158583 | M110: 0.04503738961 | N110: 0.0001110882833
A111: =IF('DF raw data'!M116="","",'DF raw data'!M116) -> -275.5 | B111: =IF('DF raw data'!N116="","",'DF raw data'!N116) -> -2.22661e-05 | C111: =IF('DF raw data'!O116="","",'DF raw data'!O116) -> 0.000144585 | D111: =IF('DF raw data'!P116="","",'DF raw data'!P116) -> -3.34058e-05 | F111: -2.236852406e-05 | G111: 0.000145250091 | H111: -3.355946668e-05 | J111: -0.0005301287084 | K111: -0.006851940034 | L111: 0.003649783629 | M111: 0.04686228143 | N111: 0.0001178892618
A112: =IF('DF raw data'!M117="","",'DF raw data'!M117) -> -275 | B112: =IF('DF raw data'!N117="","",'DF raw data'!N117) -> -2.82327e-05 | C112: =IF('DF raw data'!O117="","",'DF raw data'!O117) -> 0.000143574 | D112: =IF('DF raw data'!P117="","",'DF raw data'!P117) -> -2.42419e-05 | F112: -2.836257042e-05 | G112: 0.0001442344404 | H112: -2.435341274e-05 | J112: -0.0005443099936 | K112: -0.007124095031 | L112: 0.003721900849 | M112: 0.04872323185 | N112: 0.0001249636714
A113: =IF('DF raw data'!M118="","",'DF raw data'!M118) -> -274.5 | B113: =IF('DF raw data'!N118="","",'DF raw data'!N118) -> -3.20126e-05 | C113: =IF('DF raw data'!O118="","",'DF raw data'!O118) -> 0.000134868 | D113: =IF('DF raw data'!P118="","",'DF raw data'!P118) -> -2.6083e-05 | F113: -3.215985796e-05 | G113: 0.0001354883928 | H113: -2.62029818e-05 | J113: -0.0005603899226 | K113: -0.007404289992 | L113: 0.003789645046 | M113: 0.05061805438 | N113: 0.0001323013946
A114: =IF('DF raw data'!M119="","",'DF raw data'!M119) -> -274 | B114: =IF('DF raw data'!N119="","",'DF raw data'!N119) -> -2.94528e-05 | C114: =IF('DF raw data'!O119="","",'DF raw data'!O119) -> 0.000133315 | D114: =IF('DF raw data'!P119="","",'DF raw data'!P119) -> -2.03511e-05 | F114: -2.958828288e-05 | G114: 0.000133928249 | H114: -2.044471506e-05 | J114: -0.0005751840641 | K114: -0.007691882024 | L114: 0.00385660917 | M114: 0.05254635896 | N114: 0.0001399035301
A115: =IF('DF raw data'!M120="","",'DF raw data'!M120) -> -273.5 | B115: =IF('DF raw data'!N120="","",'DF raw data'!N120) -> -2.93941e-05 | C115: =IF('DF raw data'!O120="","",'DF raw data'!O120) -> 0.000138122 | D115: =IF('DF raw data'!P120="","",'DF raw data'!P120) -> -1.21244e-05 | F115: -2.952931286e-05 | G115: 0.0001387573612 | H115: -1.218017224e-05 | J115: -0.0005899487205 | K115: -0.007986856385 | L115: 0.003925987851 | M115: 0.05450935289 | N115: 0.0001477842402
A116: =IF('DF raw data'!M121="","",'DF raw data'!M121) -> -273 | B116: =IF('DF raw data'!N121="","",'DF raw data'!N121) -> -2.43923e-05 | C116: =IF('DF raw data'!O121="","",'DF raw data'!O121) -> 0.000138822 | D116: =IF('DF raw data'!P121="","",'DF raw data'!P121) -> -1.6351e-05 | F116: -2.450450458e-05 | G116: 0.0001394605812 | H116: -1.64262146e-05 | J116: -0.0006022009728 | K116: -0.008287956871 | L116: 0.003995718141 | M116: 0.05650721196 | N116: 0.0001559484449
A117: =IF('DF raw data'!M122="","",'DF raw data'!M122) -> -272.5 | B117: =IF('DF raw data'!N122="","",'DF raw data'!N122) -> -1.75897e-05 | C117: =IF('DF raw data'!O122="","",'DF raw data'!O122) -> 0.000138527 | D117: =IF('DF raw data'!P122="","",'DF raw data'!P122) -> -3.02744e-05 | F117: -1.767061262e-05 | G117: 0.0001391642242 | H117: -3.041366224e-05 | J117: -0.0006110362791 | K117: -0.008593475011 | L117: 0.004065300253 | M117: 0.05853986208 | N117: 0.0001643984607
A118: =IF('DF raw data'!M123="","",'DF raw data'!M123) -> -272 | B118: =IF('DF raw data'!N123="","",'DF raw data'!N123) -> -3.26537e-05 | C118: =IF('DF raw data'!O123="","",'DF raw data'!O123) -> 0.000135112 | D118: =IF('DF raw data'!P123="","",'DF raw data'!P123) -> -2.59202e-05 | F118: -3.280390702e-05 | G118: 0.0001357335152 | H118: -2.603943292e-05 | J118: -0.0006274382326 | K118: -0.008907194127 | L118: 0.004133167011 | M118: 0.06060644559 | N118: 0.0001731368348
A119: =IF('DF raw data'!M124="","",'DF raw data'!M124) -> -271.5 | B119: =IF('DF raw data'!N124="","",'DF raw data'!N124) -> -2.72643e-05 | C119: =IF('DF raw data'!O124="","",'DF raw data'!O124) -> 0.000132693 | D119: =IF('DF raw data'!P124="","",'DF raw data'!P124) -> -3.47992e-05 | F119: -2.738971578e-05 | G119: 0.0001333033878 | H119: -3.495927632e-05 | J119: -0.0006411330905 | K119: -0.009227760672 | L119: 0.004199818705 | M119: 0.06270635494 | N119: 0.0001821615992
A120: =IF('DF raw data'!M125="","",'DF raw data'!M125) -> -271 | B120: =IF('DF raw data'!N125="","",'DF raw data'!N125) -> -1.98996e-05 | C120: =IF('DF raw data'!O125="","",'DF raw data'!O125) -> 0.000134732 | D120: =IF('DF raw data'!P125="","",'DF raw data'!P125) -> -2.59939e-05 | F120: -1.999113816e-05 | G120: 0.0001353517672 | H120: -2.611347194e-05 | J120: -0.0006511286596 | K120: -0.009553325002 | L120: 0.004267494588 | M120: 0.06484010224 | N120: 0.0001914793385
A121: =IF('DF raw data'!M126="","",'DF raw data'!M126) -> -270.5 | B121: =IF('DF raw data'!N126="","",'DF raw data'!N126) -> -1.19458e-05 | C121: =IF('DF raw data'!O126="","",'DF raw data'!O126) -> 0.000133258 | D121: =IF('DF raw data'!P126="","",'DF raw data'!P126) -> -3.64101e-05 | F121: -1.200075068e-05 | G121: 0.0001338709868 | H121: -3.657758646e-05 | J121: -0.0006571290349 | K121: -0.009881889519 | L121: 0.004334430082 | M121: 0.06700731728 | N121: 0.0002010888898
A122: =IF('DF raw data'!M127="","",'DF raw data'!M127) -> -270 | B122: =IF('DF raw data'!N127="","",'DF raw data'!N127) -> -5.60543e-06 | C122: =IF('DF raw data'!O127="","",'DF raw data'!O127) -> 0.000140522 | D122: =IF('DF raw data'!P127="","",'DF raw data'!P127) -> -2.91781e-05 | F122: -5.631214978e-06 | G122: 0.0001411684012 | H122: -2.931231926e-05 | J122: -0.0006599446424 | K122: -0.01021186184 | L122: 0.004405014282 | M122: 0.06920982442 | N122: 0.0002110087287
A123: =IF('DF raw data'!M128="","",'DF raw data'!M128) -> -269.5 | B123: =IF('DF raw data'!N128="","",'DF raw data'!N128) -> -2.58546e-05 | C123: =IF('DF raw data'!O128="","",'DF raw data'!O128) -> 0.000141752 | D123: =IF('DF raw data'!P128="","",'DF raw data'!P128) -> -3.4544e-05 | F123: -2.597353116e-05 | G123: 0.0001424040592 | H123: -3.47029024e-05 | J123: -0.000672931408 | K123: -0.01054832754 | L123: 0.004476216312 | M123: 0.07144793257 | N123: 0.0002212534033
A124: =IF('DF raw data'!M129="","",'DF raw data'!M129) -> -269 | B124: =IF('DF raw data'!N129="","",'DF raw data'!N129) -> -2.73317e-05 | C124: =IF('DF raw data'!O129="","",'DF raw data'!O129) -> 0.000143883 | D124: =IF('DF raw data'!P129="","",'DF raw data'!P129) -> -3.00605e-05 | F124: -2.745742582e-05 | G124: 0.0001445448618 | H124: -3.01987783e-05 | J124: -0.0006866601209 | K124: -0.01089165761 | L124: 0.004548488743 | M124: 0.07372217695 | N124: 0.0002318335293
A125: =IF('DF raw data'!M130="","",'DF raw data'!M130) -> -268.5 | B125: =IF('DF raw data'!N130="","",'DF raw data'!N130) -> -1.45742e-05 | C125: =IF('DF raw data'!O130="","",'DF raw data'!O130) -> 0.000140242 | D125: =IF('DF raw data'!P130="","",'DF raw data'!P130) -> -3.53187e-05 | F125: -1.464124132e-05 | G125: 0.0001408871132 | H125: -3.548116602e-05 | J125: -0.0006939807416 | K125: -0.01123864798 | L125: 0.0046189323 | M125: 0.0760316431 | N125: 0.0002427416017
A126: =IF('DF raw data'!M131="","",'DF raw data'!M131) -> -268 | B126: =IF('DF raw data'!N131="","",'DF raw data'!N131) -> -2.92512e-05 | C126: =IF('DF raw data'!O131="","",'DF raw data'!O131) -> 0.00013898 | D126: =IF('DF raw data'!P131="","",'DF raw data'!P131) -> -3.49192e-05 | F126: -2.938575552e-05 | G126: 0.000139619308 | H126: -3.507982832e-05 | J126: -0.0007086736193 | K126: -0.01159298479 | L126: 0.004688741954 | M126: 0.07837601407 | N126: 0.0002539848614
A127: =IF('DF raw data'!M132="","",'DF raw data'!M132) -> -267.5 | B127: =IF('DF raw data'!N132="","",'DF raw data'!N132) -> -1.91899e-05 | C127: =IF('DF raw data'!O132="","",'DF raw data'!O132) -> 0.000137926 | D127: =IF('DF raw data'!P132="","",'DF raw data'!P132) -> -3.35782e-05 | F127: -1.927817354e-05 | G127: 0.0001385604596 | H127: -3.373265972e-05 | J127: -0.0007183127061 | K127: -0.01195214114 | L127: 0.004758022183 | M127: 0.08075502516 | N127: 0.0002655622355
A128: =IF('DF raw data'!M133="","",'DF raw data'!M133) -> -267 | B128: =IF('DF raw data'!N133="","",'DF raw data'!N133) -> -1.61155e-05 | C128: =IF('DF raw data'!O133="","",'DF raw data'!O133) -> 0.000142507 | D128: =IF('DF raw data'!P133="","",'DF raw data'!P133) -> -3.04863e-05 | F128: =(1-$G$1*($B$49-$G$2))*B128 -> -1.61896313e-05 | G128: 0.0001431625322 | H128: -3.062653698e-05 | J128: =F128*$G$3+J127 -> -0.0007264075217 | K128: =J128*$G$3+K127 -> -0.0123153449 | L128: =G128*$G$3+L127 -> 0.004829603449 | M128: =L128*$G$3+M127 -> 0.08316982689 | N128: =(J128^2+L128^2)*$G$3+N127 -> 0.0002774886042
A129: =IF('DF raw data'!M134="","",'DF raw data'!M134) -> -266.5 | B129: =IF('DF raw data'!N134="","",'DF raw data'!N134) -> -1.72675e-05 | C129: =IF('DF raw data'!O134="","",'DF raw data'!O134) -> 0.000141505 | D129: =IF('DF raw data'!P134="","",'DF raw data'!P134) -> -3.28296e-05 | F129: -1.73469305e-05 | G129: 0.000142155923 | H129: -3.298061616e-05 | J129: -0.000735080987 | K129: -0.01268288539 | L129: 0.004900681411 | M129: 0.08562016759 | N129: 0.0002897671154
A130: =IF('DF raw data'!M135="","",'DF raw data'!M135) -> -266 | B130: =IF('DF raw data'!N135="","",'DF raw data'!N135) -> -2.36053e-05 | C130: =IF('DF raw data'!O135="","",'DF raw data'!O135) -> 0.000133123 | D130: =IF('DF raw data'!P135="","",'DF raw data'!P135) -> -4.39951e-05 | F130: -2.371388438e-05 | G130: 0.0001337353658 | H130: -4.419747746e-05 | J130: -0.0007469379292 | K130: -0.01305635436 | L130: 0.004967549094 | M130: 0.08810394214 | N130: 0.0003023843455
A131: =IF('DF raw data'!M136="","",'DF raw data'!M136) -> -265.5 | B131: =IF('DF raw data'!N136="","",'DF raw data'!N136) -> -1.79047e-05 | C131: =IF('DF raw data'!O136="","",'DF raw data'!O136) -> 0.000145199 | D131: =IF('DF raw data'!P136="","",'DF raw data'!P136) -> -3.83879e-05 | F131: -1.798706162e-05 | G131: 0.0001458669154 | H131: -3.856448434e-05 | J131: -0.00075593146 | K131: -0.01343432009 | L131: 0.005040482552 | M131: 0.09062418342 | N131: 0.0003153732939
A132: =IF('DF raw data'!M137="","",'DF raw data'!M137) -> -265 | B132: =IF('DF raw data'!N137="","",'DF raw data'!N137) -> -2.07251e-05 | C132: =IF('DF raw data'!O137="","",'DF raw data'!O137) -> 0.000142834 | D132: =IF('DF raw data'!P137="","",'DF raw data'!P137) -> -3.80249e-05 | F132: -2.082043546e-05 | G132: 0.0001434910364 | H132: -3.819981454e-05 | J132: -0.0007663416777 | K132: -0.01381749093 | L132: 0.00511222807 | M132: 0.09318029745 | N132: 0.0003287343716
A133: =IF('DF raw data'!M138="","",'DF raw data'!M138) -> -264.5 | B133: =IF('DF raw data'!N138="","",'DF raw data'!N138) -> -1.59851e-05 | C133: =IF('DF raw data'!O138="","",'DF raw data'!O138) -> 0.000135609 | D133: =IF('DF raw data'!P138="","",'DF raw data'!P138) -> -3.3839e-05 | F133: -1.605863146e-05 | G133: 0.0001362328014 | H133: -3.39946594e-05 | J133: -0.0007743709934 | K133: -0.01420467642 | L133: 0.00518034447 | M133: 0.09577046969 | N133: 0.0003424521812
A134: =IF('DF raw data'!M139="","",'DF raw data'!M139) -> -264 | B134: =IF('DF raw data'!N139="","",'DF raw data'!N139) -> -2.34824e-05 | C134: =IF('DF raw data'!O139="","",'DF raw data'!O139) -> 0.00013313 | D134: =IF('DF raw data'!P139="","",'DF raw data'!P139) -> -3.58748e-05 | F134: -2.359041904e-05 | G134: 0.000133742398 | H134: -3.603982408e-05 | J134: -0.000786166203 | K134: -0.01459775952 | L134: 0.005247215669 | M134: 0.09839407752 | N134: 0.000356527846
A135: =IF('DF raw data'!M140="","",'DF raw data'!M140) -> -263.5 | B135: =IF('DF raw data'!N140="","",'DF raw data'!N140) -> -2.13001e-05 | C135: =IF('DF raw data'!O140="","",'DF raw data'!O140) -> 0.000146605 | D135: =IF('DF raw data'!P140="","",'DF raw data'!P140) -> -4.05645e-05 | F135: -2.139808046e-05 | G135: 0.000147279383 | H135: -4.07510967e-05 | J135: -0.0007968652432 | K135: -0.01499619215 | L135: 0.005320855361 | M135: 0.1010545052 | N135: 0.000371001094
A136: =IF('DF raw data'!M141="","",'DF raw data'!M141) -> -263 | B136: =IF('DF raw data'!N141="","",'DF raw data'!N141) -> -2.55322e-05 | C136: =IF('DF raw data'!O141="","",'DF raw data'!O141) -> 0.000152592 | D136: =IF('DF raw data'!P141="","",'DF raw data'!P141) -> -3.74491e-05 | F136: -2.564964812e-05 | G136: 0.0001532939232 | H136: -3.762136586e-05 | J136: -0.0008096900673 | K136: -0.01540103718 | L136: 0.005397502323 | M136: 0.1037532564 | N136: 0.0003858954087
A137: =IF('DF raw data'!M142="","",'DF raw data'!M142) -> -262.5 | B137: =IF('DF raw data'!N142="","",'DF raw data'!N142) -> -2.79712e-05 | C137: =IF('DF raw data'!O142="","",'DF raw data'!O142) -> 0.000148854 | D137: =IF('DF raw data'!P142="","",'DF raw data'!P142) -> -3.20679e-05 | F137: -2.809986752e-05 | G137: 0.0001495387284 | H137: -3.221541234e-05 | J137: -0.000823740001 | K137: -0.01581290718 | L137: 0.005472271687 | M137: 0.1064893922 | N137: 0.0004012075612
A138: =IF('DF raw data'!M143="","",'DF raw data'!M143) -> -262 | B138: =IF('DF raw data'!N143="","",'DF raw data'!N143) -> -1.66915e-05 | C138: =IF('DF raw data'!O143="","",'DF raw data'!O143) -> 0.000148229 | D138: =IF('DF raw data'!P143="","",'DF raw data'!P143) -> -3.18278e-05 | F138: -1.67682809e-05 | G138: 0.0001489108534 | H138: -3.197420788e-05 | J138: -0.0008321241415 | K138: -0.01622896925 | L138: 0.005546727113 | M138: 0.1092627558 | N138: 0.0004169368673
A139: =IF('DF raw data'!M144="","",'DF raw data'!M144) -> -261.5 | B139: =IF('DF raw data'!N144="","",'DF raw data'!N144) -> -1.5028e-05 | C139: =IF('DF raw data'!O144="","",'DF raw data'!O144) -> 0.000141411 | D139: =IF('DF raw data'!P144="","",'DF raw data'!P144) -> -2.71123e-05 | F139: -1.50971288e-05 | G139: 0.0001420614906 | H139: -2.723701658e-05 | J139: -0.0008396727059 | K139: -0.0166488056 | L139: 0.005617757859 | M139: 0.1120716347 | N139: 0.0004330689941
A140: =IF('DF raw data'!M145="","",'DF raw data'!M145) -> -261 | B140: =IF('DF raw data'!N145="","",'DF raw data'!N145) -> -1.92584e-05 | C140: =IF('DF raw data'!O145="","",'DF raw data'!O145) -> 0.000130463 | D140: =IF('DF raw data'!P145="","",'DF raw data'!P145) -> -2.66074e-05 | F140: -1.934698864e-05 | G140: 0.0001310631298 | H140: -2.672979404e-05 | J140: -0.0008493462002 | K140: -0.0170734787 | L140: 0.005683289424 | M140: 0.1149132794 | N140: 0.0004495795779
A141: =IF('DF raw data'!M146="","",'DF raw data'!M146) -> -260.5 | B141: =IF('DF raw data'!N146="","",'DF raw data'!N146) -> -1.09181e-05 | C141: =IF('DF raw data'!O146="","",'DF raw data'!O146) -> 0.000134942 | D141: =IF('DF raw data'!P146="","",'DF raw data'!P146) -> -4.00096e-05 | F141: -1.096832326e-05 | G141: 0.0001355627332 | H141: -4.019364416e-05 | J141: -0.0008548303618 | K141: -0.01750089388 | L141: 0.00575107079 | M141: 0.1177888148 | N141: 0.000466482353
A142: =IF('DF raw data'!M147="","",'DF raw data'!M147) -> -260 | B142: =IF('DF raw data'!N147="","",'DF raw data'!N147) -> -2.04679e-05 | C142: =IF('DF raw data'!O147="","",'DF raw data'!O147) -> 0.000138492 | D142: =IF('DF raw data'!P147="","",'DF raw data'!P147) -> -3.93269e-05 | F142: -2.056205234e-05 | G142: 0.0001391290632 | H142: -3.950780374e-05 | J142: -0.000865111388 | K142: -0.01793344958 | L142: 0.005820635322 | M142: 0.1206991325 | N142: 0.0004837964597
A143: =IF('DF raw data'!M148="","",'DF raw data'!M148) -> -259.5 | B143: =IF('DF raw data'!N148="","",'DF raw data'!N148) -> -2.28446e-05 | C143: =IF('DF raw data'!O148="","",'DF raw data'!O148) -> 0.000135894 | D143: =IF('DF raw data'!P148="","",'DF raw data'!P148) -> -3.10802e-05 | F143: -2.294968516e-05 | G143: 0.0001365191124 | H143: -3.122316892e-05 | J143: -0.0008765862306 | K143: -0.01837174269 | L143: 0.005888894878 | M143: 0.1236435799 | N143: 0.0005015202028
